Workbook

Sheet Disclaimer
B4: Disclaimer
B5: 1 | C5: Neither the U.S. Department of Energy (DOE) National Energy Technology Laboratory (NETL) nor any person acting on behalf of these organizations:
C6: A. Makes any warranty or representation, express or implied, with respect to the accuracy, completeness, or usefulness of the information contained in this document, or that the use of any information, apparatus, method, or process disclosed in this document may not infringe on privately owned rights; or
C7: B. Assumes any liability with this report as to its use, or damages resulting from the use of any information, apparatus, method, or process disclosed in this document.
B8: 2 | C8: Reference herein to any specific commercial product, process, or service by trade name, trademark, manufacturer, or otherwise, does not necessarily constitute or imply its endorsement, recommendation, or favoring by NETL. The views and opinions of the authors expressed herein do not necessarily state or reflect those of NETL.
B10: Contact Information

Sheet Instructions
A1: Worksheet Descriptions
A2: A description of the worksheets that are viewable by default are below. There are various other worksheets that are hidden to simplify the user experience, but they can easily be unhidden to track all of the calculations/data. On all sheets, cells that are intended for user interaction are formatted with an orange background (the Input formatting option in Excel). In most cases, these cells use a drop-down to provide a user with the range of acceptable inputs for those cells.
A4: Worksheets | B4: Description
A5: generation_mix | B5: The generation_mix worksheet allows the user to browse and customize the generation mix for any selected Federal Energy Regulatory Commission (FERC) or Balancing Authority Area (BA) region. This generation mix represents the amount of electricity produced by each power plant type in that region. Note that this can be different than the mix that the region actually uses for electricity (consumption mix). The worksheet provides the various impact categories and the amount of each emission species for the selected FERC or BA, as well as two separate graphs discussed in more detail below.
A6: consumption_mix | B6: The consumption_mix worksheet allows the user to browse the consumption mix for any selected Federal Electricity Reliability Council (FERC) or Balancing Authority Area (BA) region. This consumption mix includes the net imports from the various BAs into the selected region. As a simple example, a given region could be exclusively renewable generation, which would have low CO2 emissions, but that region may also need to import electricity from a neighboring balancing authority area to meet demand. If that neighboring balancing authority area produces exclusively natural gas then the CO2 emissions for the consumption mix will be higher than the generation mix and will also more accurately reflect the electricity that's used in that region.
A7: consumption_vs_generation | B7: This sheet provides a table with a comparison between the generation and consumption mixes of each of the subregions. As noted above, there can be a significant differences between the two, and the consumption mix is a more accurate reflection of the electricity actually being consumed in an area.
A8: custom_mixes | B8: All of the custom mixes saved from the generation_mix tab are saved here - each row is a custom mix. This sheet is editable by default, so users can delete custom mixes that they don't need anymore or manually create a bunch of mixes.
A9: traci_factors | B9: The traci_factors worksheet contains all of the impact factors for the impact methods provided in this tool - Eutrophication Potential, Acidification Potential, Particulate Matter Formation Potential, Photochemical Smog Formation Potential, Ozone Depletion Potential, Water Consumption, and the various factors for Global Warming Potential as discussed below. This sheet is editable by default, so that the user may change or assign impact factors to species as desired.
A12: Generation mix technology options
A15: Technology | B15: Descriptions | C15: Source
A16: Biomass | B16: Power plants where more than 90% of electricity generation is from combusting biomass fuels. | C16: https://github.com/USEPA/ElectricityLCI
A17: Coal | B17: Power plants where more than 90% of electricity generation is from combusting coal. | C17: https://github.com/USEPA/ElectricityLCI
A18: Natural gas | B18: Power plants where more than 90% of electricity generation is from combusting natural gas. | C18: https://github.com/USEPA/ElectricityLCI
A19: Geothermal | B19: Power plants where more than 90% of electricity generation is geothermal energy. | C19: https://github.com/USEPA/ElectricityLCI
A20: Hydro | B20: Power plants where more than 90% of electricity generation is from hydroelectric power. | C20: https://github.com/USEPA/ElectricityLCI
A21: Mixed | B21: Power plants that use some mix of fuel - i.e., they don't reach the 90 percent threshhold for being classified as a single fuel source. As a result, these plants represent different things based on the power plants that exist in the specified area of interest. That is, mixed power plants in CAISO will not have the same inventory as mixed plants in ERCOT. | C21: https://github.com/USEPA/ElectricityLCI
A22: Nuclear | B22: Power plants where more than 90% of electricity generation is from thermonuclear generation. | C22: https://github.com/USEPA/ElectricityLCI
A23: Other fossil | B23: Power plants where more than 90% of electricity generation is from combusting other fossil fuels (blast furnace gas, other gas, tire-derived fuel). | C23: https://github.com/USEPA/ElectricityLCI
A24: Petroleum | B24: Power plants where more than 90% of electricity generation is from combusting petroleum-based fuels (diesel fuel oil or residual fuel oil). | C24: https://github.com/USEPA/ElectricityLCI
A25: Other fuels | B25: Power plants where more than 90% of electricity generation is from "other" fuels, inlcuding nonbiogenic MSW. | C25: https://github.com/USEPA/ElectricityLCI
A26: Solar | B26: Power plants where more than 90% of electricity generation is from solar photovoltaic cells. | C26: https://github.com/USEPA/ElectricityLCI
A27: Solar thermal | B27: Power plants where more than 90% of electricity generation is from solar-thermal generation. | C27: https://github.com/USEPA/ElectricityLCI
A28: Wind | B28: Power plants where more than 90% of electricity generation is from wind turbines. | C28: https://github.com/USEPA/ElectricityLCI
A29: SCPC | B29: Supercritical pulverized coal power plant. | C29: https://netl.doe.gov/energy-analysis/details?id=3236
A30: SCPC w/ CCS | B30: Supercritical pulverized coal power plant with carbon capture and storage in a saline aquifer. | C30: https://netl.doe.gov/energy-analysis/details?id=3236
A31: SubPC | B31: Sub-critical pulverized coal power plant. | C31: https://netl.doe.gov/energy-analysis/details?id=3234
A32: SubPC w/ CCS | B32: Sub-critical pulverized coal power plant with carbon capture and storage in a saline aquifer. | C32: https://netl.doe.gov/energy-analysis/details?id=3234
A33: NGCC | B33: Natural gas combined cycle power plant. | C33: https://netl.doe.gov/energy-analysis/details?id=3731
A34: NGCC w/ CCS | B34: Natural gas combined cycle power plant with carbon capture and storage in a saline aquifer. | C34: https://netl.doe.gov/energy-analysis/details?id=3731
A35: OxyPC w/ CCS | B35: Oxycombustion pulverized coal power plant with carbon capture and storage in a saline aquifer. | C35: https://netl.doe.gov/energy-analysis/details?id=3235
A36: SOFC Coal Conventional Gasifier w/ CCS | B36: Solid oxide fuel cell with a conventional coal gasifier with carbon capture and storage in a saline aquifer. | C36: https://netl.doe.gov/energy-analysis/details?id=3232
A37: SOFC NG w/ CCS | B37: Solid oxide fuel cell using natural gas with carbon capture and storage in a saline aquifer. | C37: https://netl.doe.gov/energy-analysis/details?id=3232
A38: SubPC w/ CCS w/ NG Aux | B38: Sub-critical pulverized coal power plant with carbon capture and storage in a saline aquifer. The steam and electricity loads for the carbon capture system are provided by a natural gas simple cycle turbine. | C38: Report under review
A40: Global Warming Potential Options
A41: There are several options available for the impact factors associated with global warming potential. This selection is performed in the traci_factors worksheet (the "Global Warming Potential Options" header above is a link to the cell). Short descriptions and sources for the various iterations of factors is available in the table below.
A43: GWP Selection | B43: Description | C43: Source
A44: IPCC TAR, 2001, 20-yr | B44: IPCC Third Assessment Report (TAR) - 20-year time horizon | C44: https://www.ipcc.ch/site/assets/uploads/2018/03/TAR-06.pdf
A45: IPCC TAR, 2001, 100-yr | B45: IPCC Third Assessment Report (TAR) - 100-year time horizon | C45: https://www.ipcc.ch/site/assets/uploads/2018/03/TAR-06.pdf
A46: IPCC AR4, 2007, 20-yr | B46: IPCC Fourth Assessment Report (AR4) - 20-year time horizon | C46: https://www.ipcc.ch/site/assets/uploads/2018/02/ar4-wg1-chapter2-1.pdf
A47: IPCC AR4, 2007, 100-yr | B47: IPCC Fourth Assessment Report (AR4) - 100-year time horizon. This is the default set of values used by the The Tool for the Reduction and Assessment of Chemical and other environmental Impacts (TRACI) version 2.1. | C47: https://www.ipcc.ch/site/assets/uploads/2018/02/ar4-wg1-chapter2-1.pdf
A48: IPCC AR5, 2013, 20-yr, w/o climate carbon feedback | B48: IPCC Fifth Assessment Report (AR5) - 20-year time horizon. | C48: https://www.ipcc.ch/site/assets/uploads/2018/02/WG1AR5_Chapter08_FINAL.pdf
A49: IPCC AR5, 2013, 100-yr, w/o climate carbon feedback | B49: IPCC Fifth Assessment Report (AR5) - 100-year time horizon. | C49: https://www.ipcc.ch/site/assets/uploads/2018/02/WG1AR5_Chapter08_FINAL.pdf
A50: IPCC AR5, 2013, 20-yr, w/ climate carbon feedback | B50: IPCC Fifth Assessment Report (AR5) - 20-year time horizon with climate carbon feedbacks. | C50: https://www.ipcc.ch/site/assets/uploads/2018/07/WGI_AR5.Chap_.8_SM.pdf
A51: IPCC AR5, 2013, 100-yr, w/ climate carbon feedback | B51: IPCC Fifth Assessment Report (AR5) - 100-year time horizon with climate carbon feedbacks. NETL has been using factors with climate carbon feedbacks in impact calculations for reports and journal articles, most importantly the value for methane. Additionally, NETL uses the 1 and 2 kg CO2e adder for fossil-based methane emissions, for 20-yr and 100-yr respectively. NETL considers this set of GWP impacts as the default. | C51: https://www.ipcc.ch/site/assets/uploads/2018/07/WGI_AR5.Chap_.8_SM.pdf
A54: Annual Energy Outlook Mixes (external link)
A55: When loading custom mixes in the generation_mix page, the list includes generation mixes from the Energy Information Administration (EIA) 2019 Annual Energy Outlook (AEO) reference cases. The regions in the AEO are National Energy Modeling System (NEMS) regions, which do not align with Balancing Authority Areas. Because of this the AEO outlooks were manually aligned to FERC regions. As an AEO mix is selected, the FERC region selection will automatically change.
A57: Region and BA Lookup (link will launch tool)
A58: The generation_mix and consumption_mix worksheets have buttons to launch a tool for looking up your FERC or Balancing Authority Area (BA) by zip code. The cross-reference was built by finding the intersections between maps containing zip codes and then each of the region types. The zip code shapes are from a 2010 file, so if you're in an area with a newer post office, your zip code might not be found. There are also areas of the country which have overlapped BAs and even FERC regions - in those cases, the tool will return all of the FERC and BAs that it finds for your region.
A60: Federal Energy Regulatory Commission (FERC) Electric Power Markets (external link)
A61: FERC identifies 10 electricity power markets in the U.S. A map of those markets is available at the link above.
A62: Acronym/Abbreviation | B62: Full Name
A63: CAISO | B63: California Independent System Operator
A64: MISO | B64: Midcontinent Independent System Operator
A65: ISO-NE | B65: Independent System Operator - New England
A66: NYISO | B66: New York Independent System Operator
A67: Northwest | B67: Northwest
A68: PJM | B68: Pennsylvania-New Jersey-Maryland Interconnection
A69: Southeast | B69: Southeast
A70: Southwest | B70: Southwest
A71: SPP | B71: Southwest Power Pool
A72: ERCOT | B72: Electric Reliability Council of Texas
A74: U.S. Power Balancing Authorities (external link)
A75: The above link provides a map of the power balancing authorities in the U.S.
A77: EPA Tool for Reduction and Assessment of Chemicals and Other Environmental Impacts (TRACI) (external link)
A78: The above link provides the reference to the impact assessment used for this tool.
A79: Impact Category Name | B79: Units
A80: Global Warming Potential | B80: kg CO2e
A81: Acidification Potential | B81: kg SO2e
A82: Particulate Matter Formation Potential | B82: kg PM2.5e
A83: Photochemical Smog Formation Potential | B83: kg O3e
A84: Eutrophication Potential | B84: kg Ne
A85: Ozone Depletion Potential | B85: kg CFC-11e
A86: Water Consumption | B86: liters

Sheet generation_mix
A7: FERC Region | B7: CAISO
A8: Balancing Authority | B8: Use FERC
A9: Impact Category for Graph | B9: Global Warming Potential
A10: Sort Graph | B10: by impact potential
A11: Custom mix | B11: Use default mix
C15: Default mix | D15: Custom mix | E15: Normalized custom mix
B16: Biomass | C16: =INDEX(generation_mix_calcs!$C$19:$Y$19,1,ROW()-ROW($B$15)) -> 0.02585904572 | D16: 0.02585904572 | E16: =D16/$D$39 -> 0.02585904572
B17: Coal | C17: =INDEX(generation_mix_calcs!$C$19:$Y$19,1,ROW()-ROW($B$15)) -> 0 | D17: 0 | E17: 0
B18: Natural gas | C18: =INDEX(generation_mix_calcs!$C$19:$Y$19,1,ROW()-ROW($B$15)) -> 0.4628453208 | D18: 0.4628453208 | E18: 0.4628453208
B19: Geothermal | C19: =INDEX(generation_mix_calcs!$C$19:$Y$19,1,ROW()-ROW($B$15)) -> 0.05816688519 | D19: 0.05816688519 | E19: 0.05816688519
B20: Hydro | C20: =INDEX(generation_mix_calcs!$C$19:$Y$19,1,ROW()-ROW($B$15)) -> 0.1195952199 | D20: 0.1195952199 | E20: 0.1195952199
B21: Mixed | C21: =INDEX(generation_mix_calcs!$C$19:$Y$19,1,ROW()-ROW($B$15)) -> 0.06673106129 | D21: 0.06673106129 | E21: 0.06673106129
B22: Nuclear | C22: =INDEX(generation_mix_calcs!$C$19:$Y$19,1,ROW()-ROW($B$15)) -> 0.09201281248 | D22: 0.09201281248 | E22: 0.09201281248
B23: Other fossil | C23: =INDEX(generation_mix_calcs!$C$19:$Y$19,1,ROW()-ROW($B$15)) -> 0.000313457878 | D23: 0.000313457878 | E23: 0.000313457878
B24: Petroleum | C24: =INDEX(generation_mix_calcs!$C$19:$Y$19,1,ROW()-ROW($B$15)) -> 0.0001718548437 | D24: 0.0001718548437 | E24: 0.0001718548437
B25: Other fuels | C25: =INDEX(generation_mix_calcs!$C$19:$Y$19,1,ROW()-ROW($B$15)) -> 0.002103027017 | D25: 0.002103027017 | E25: 0.002103027017
B26: Solar | C26: =INDEX(generation_mix_calcs!$C$19:$Y$19,1,ROW()-ROW($B$15)) -> 0.09249499855 | D26: 0.09249499855 | E26: 0.09249499855
B27: Solar thermal | C27: =INDEX(generation_mix_calcs!$C$19:$Y$19,1,ROW()-ROW($B$15)) -> 0.01102895597 | D27: 0.01102895597 | E27: 0.01102895597
B28: Wind | C28: =INDEX(generation_mix_calcs!$C$19:$Y$19,1,ROW()-ROW($B$15)) -> 0.06867736031 | D28: 0.06867736031 | E28: 0.06867736031
B29: SCPC | C29: =INDEX(generation_mix_calcs!$C$19:$Y$19,1,ROW()-ROW($B$15)) -> 0 | D29: 0 | E29: 0
B30: SCPC w/ CCS | C30: =INDEX(generation_mix_calcs!$C$19:$Y$19,1,ROW()-ROW($B$15)) -> 0 | D30: 0 | E30: 0
B31: SubPC | C31: =INDEX(generation_mix_calcs!$C$19:$Y$19,1,ROW()-ROW($B$15)) -> 0 | D31: 0 | E31: 0
B32: SubPC w/ CCS | C32: =INDEX(generation_mix_calcs!$C$19:$Y$19,1,ROW()-ROW($B$15)) -> 0 | D32: 0 | E32: 0
B33: NGCC | C33: =INDEX(generation_mix_calcs!$C$19:$Y$19,1,ROW()-ROW($B$15)) -> 0 | D33: 0 | E33: 0
B34: NGCC w/ CCS | C34: =INDEX(generation_mix_calcs!$C$19:$Y$19,1,ROW()-ROW($B$15)) -> 0 | D34: 0 | E34: 0
B35: OxyPC w/ CCS | C35: =INDEX(generation_mix_calcs!$C$19:$Y$19,1,ROW()-ROW($B$15)) -> 0 | D35: 0 | E35: 0
B36: SOFC Coal Conventional Gasifier w/ CCS | C36: =INDEX(generation_mix_calcs!$C$19:$Y$19,1,ROW()-ROW($B$15)) -> 0 | D36: 0 | E36: 0
B37: SOFC NG w/ CCS | C37: =INDEX(generation_mix_calcs!$C$19:$Y$19,1,ROW()-ROW($B$15)) -> 0 | D37: 0 | E37: 0
B38: SubPC w/ CCS w/ NG Aux | C38: =INDEX(generation_mix_calcs!$C$19:$Y$19,1,ROW()-ROW($B$15)) -> 0 | D38: 0 | E38: 0
B39: Total | C39: =SUM(C16:C38) -> 1 | D39: =SUM(D16:D38) -> 1 | E39: =SUM(E16:E38) -> 1
C45: =INDEX(C$67:C$73,MATCH($B$9,$B$67:$B$73,0),1) -> 403.5253279 | D45: =INDEX(D$67:D$73,MATCH($B$9,$B$67:$B$73,0),1) -> 34.75543272 | E45: 0 | F45: 296.4122265 | G45: 7.817501492 | H45: 0.6371496973 | I45: 56.67716545 | J45: 1.790369872 | K45: 0.2470820828 | L45: 0.1853339751 | M45: 0 | N45: 1.729232593 | O45: 0.7821681318 | P45: 2.491665359 | Q45: 0 | R45: 0 | S45: 0 | T45: 0 | U45: 0 | V45: 0 | W45: 0 | X45: 0 | Y45: 0 | Z45: 0 | AB45: 2 | AC45: TRUE | AD45: TRUE | AE45: TRUE | AF45: TRUE | AG45: TRUE | AH45: TRUE | AI45: TRUE | AJ45: TRUE | AK45: TRUE | AL45: TRUE | AM45: TRUE | AN45: TRUE | AO45: TRUE | AP45: TRUE | AQ45: TRUE | AR45: TRUE | AS45: TRUE | AT45: TRUE | AU45: TRUE | AV45: TRUE | AW45: TRUE | AX45: TRUE | AY45: TRUE
C46: =ROUND(C45,3-(1+INT($C$47))) -> 404 | D46: 35 | E46: 0 | F46: 296 | G46: 8 | H46: 1 | I46: 57 | J46: 2 | K46: 0 | L46: 0 | M46: 0 | N46: 2 | O46: 1 | P46: 2 | Q46: 0 | R46: 0 | S46: 0 | T46: 0 | U46: 0 | V46: 0 | W46: 0 | X46: 0 | Y46: 0 | Z46: 0 | AB46: =INDEX(B$66:B$1481,$AB$45,1) -> Eutrophication Potential | AC46: =INDEX(D$66:D$1481,$AB$45,1) -> 0.004927387331 | AD46: =INDEX(E$66:E$1481,$AB$45,1) -> 0 | AE46: 0.05388878527 | AF46: 5.130461073e-05 | AG46: 0 | AH46: 0.01105277625 | AI46: 0.001932981934 | AJ46: 2.34350108e-05 | AK46: 0.0004323004203 | AL46: 0 | AM46: 0.0003118009564 | AN46: 5.366004066e-05 | AO46: 0.0003000722935 | AP46: 0 | AQ46: 0 | AR46: 0 | AS46: 0 | AT46: 0 | AU46: 0 | AV46: 0 | AW46: 0 | AX46: 0 | AY46: 0
C47: =LOG(ABS(C45),10) -> 2.605870799 | AB47: =INDEX(A$66:A$1481,$AB$45,1) -> 0 | AC47: =D66 -> Biomass | AD47: =E66 -> Coal | AE47: Natural gas | AF47: Geothermal | AG47: Hydro | AH47: Mixed | AI47: Nuclear | AJ47: Other fossil | AK47: Petroleum | AL47: Other fuels | AM47: Solar | AN47: Solar thermal | AO47: Wind | AP47: SCPC | AQ47: SCPC w/ CCS | AR47: SubPC | AS47: SubPC w/ CCS | AT47: NGCC | AU47: NGCC w/ CCS | AV47: OxyPC w/ CCS | AW47: SOFC Coal Conventional Gasifier w/ CCS | AX47: SOFC NG w/ CCS | AY47: SubPC w/ CCS w/ NG Aux
C48: =TEXT(INT(C47),"0#") -> 02 | D48: =D45/$C$45 -> 0.08612949503 | E48: 0 | F48: 0.7345566834 | G48: 0.01937301317 | H48: 0.001578958378 | I48: 0.1404550385 | J48: 0.004436821553 | K48: 0.0006123087343 | L48: 0.0004592870938 | M48: 0 | N48: 0.004285313643 | O48: 0.001938337144 | P48: 0.006174743409 | Q48: 0 | R48: 0 | S48: 0 | T48: 0 | U48: 0 | V48: 0 | W48: 0 | X48: 0 | Y48: 0 | Z48: 0 | AB48: =IF(AND(AB47<>"input",AB45>8),AB46&" emissions to "&AB47,IF(AB45<=8,AB46,"Input of "&AB46)) -> Eutrophication Potential | AC48: =IF(AC45,AC47,"") -> Biomass | AD48: =IF(AD45,AD47,"") -> Coal | AE48: Natural gas | AF48: Geothermal | AG48: Hydro | AH48: Mixed | AI48: Nuclear | AJ48: Other fossil | AK48: Petroleum | AL48: Other fuels | AM48: Solar | AN48: Solar thermal | AO48: Wind | AP48: SCPC | AQ48: SCPC w/ CCS | AR48: SubPC | AS48: SubPC w/ CCS | AT48: NGCC | AU48: NGCC w/ CCS | AV48: OxyPC w/ CCS | AW48: SOFC Coal Conventional Gasifier w/ CCS | AX48: SOFC NG w/ CCS | AY48: SubPC w/ CCS w/ NG Aux
C49: =10^(INT(C48)-2) -> 1 | D49: =IF(INT($C$47)<-3,TEXT(D45/10^$C$48,"#,0.0#")&"E"&$C$48,) -> 0 | E49: =IF(INT($C$47)<-3,TEXT(E45/10^$C$48,"#,0.0#")&"E"&$C$48,) -> 0 | F49: 0 | G49: 0 | H49: 0 | I49: 0 | J49: 0 | K49: 0 | L49: 0 | M49: 0 | N49: 0 | O49: 0 | P49: 0 | Q49: 0 | R49: 0 | S49: 0 | T49: 0 | U49: 0 | V49: 0 | W49: 0 | X49: 0 | Y49: 0 | Z49: 0 | AC49: =IF(AC45,AC46,"") -> 0.004927387331 | AD49: =IF(AD45,AD46,"") -> 0 | AE49: 0.05388878527 | AF49: 5.130461073e-05 | AG49: 0 | AH49: 0.01105277625 | AI49: 0.001932981934 | AJ49: 2.34350108e-05 | AK49: 0.0004323004203 | AL49: 0 | AM49: 0.0003118009564 | AN49: 5.366004066e-05 | AO49: 0.0003000722935 | AP49: 0 | AQ49: 0 | AR49: 0 | AS49: 0 | AT49: 0 | AU49: 0 | AV49: 0 | AW49: 0 | AX49: 0 | AY49: 0
C50: =IF(C49<0.001,TEXT(C49,"#.00E+00"),C49) -> 1 | D50: =IF(D45=0,0,IF(D45<$C$49,"<"&$C$51,IF(D46<0.001,D49,D46))) -> 35 | E50: =IF(E45=0,0,IF(E45<$C$49,"<"&$C$51,IF(E46<0.001,E49,E46))) -> 0 | F50: 296 | G50: 8 | H50: <1 | I50: 57 | J50: 2 | K50: <1 | L50: <1 | M50: 0 | N50: 2 | O50: <1 | P50: 2 | Q50: 0 | R50: 0 | S50: 0 | T50: 0 | U50: 0 | V50: 0 | W50: 0 | X50: 0 | Y50: 0 | Z50: 0 | AC50: =IFERROR(RANK(AC49,$AC$49:$AY$49,0)+COLUMN()/1000,"") -> 3.029 | AD50: =IFERROR(RANK(AD49,$AC$49:$AY$49,0)+COLUMN()/1000,"") -> 11.03 | AE50: 1.031 | AF50: 9.032 | AG50: 11.033 | AH50: 2.034 | AI50: 4.035 | AJ50: 10.036 | AK50: 5.037 | AL50: 11.038 | AM50: 6.039 | AN50: 8.04 | AO50: 7.041 | AP50: 11.042 | AQ50: 11.043 | AR50: 11.044 | AS50: 11.045 | AT50: 11.046 | AU50: 11.047 | AV50: 11.048 | AW50: 11.049 | AX50: 11.05 | AY50: 11.051
C51: =IF(INT($C$47)<-3,TEXT(C49/10^$C$48,"#,0.00#")&"E"&$C$48,C49) -> 1 | D51: 1 | E51: 2 | F51: 3 | G51: 4 | H51: 5 | I51: 6 | J51: 7 | K51: 8 | L51: 9 | M51: 10 | N51: 11 | O51: 12 | P51: 13 | Q51: 14 | R51: 15 | S51: 16 | T51: 17 | U51: 18 | V51: 19 | W51: 20 | X51: 21 | Y51: 22 | Z51: 23 | AC51: =IFERROR(RANK(AC50,$AC$50:$AY$50,1),"") -> 3 | AD51: =IFERROR(RANK(AD50,$AC$50:$AY$50,1),"") -> 11 | AE51: 1 | AF51: 9 | AG51: 12 | AH51: 2 | AI51: 4 | AJ51: 10 | AK51: 5 | AL51: 13 | AM51: 6 | AN51: 8 | AO51: 7 | AP51: 14 | AQ51: 15 | AR51: 16 | AS51: 17 | AT51: 18 | AU51: 19 | AV51: 20 | AW51: 21 | AX51: 22 | AY51: 23
D52: =IFERROR(IF($B$10=drop_down_data!$O$3,_xlfn.RANK.EQ(INDEX(D$67:D$73,MATCH($B$65,$B$67:$B$73,0)),INDEX($D$67:$BW$73,MATCH($B$65,$B$67:$B$73,0),),0)+COLUMN()/1000,_xlfn.RANK.EQ(D63,$D$63:$Z$63)+COLUMN()/1000),"") -> 3.004 | E52: =IFERROR(IF($B$10=drop_down_data!$O$3,_xlfn.RANK.EQ(INDEX(E$67:E$73,MATCH($B$65,$B$67:$B$73,0)),INDEX($D$67:$BW$73,MATCH($B$65,$B$67:$B$73,0),),0)+COLUMN()/1000,_xlfn.RANK.EQ(E63,$D$63:$Z$63)+COLUMN()/1000),"") -> 12.005 | F52: =IFERROR(IF($B$10=drop_down_data!$O$3,_xlfn.RANK.EQ(INDEX(F$67:F$73,MATCH($B$65,$B$67:$B$73,0)),INDEX($D$67:$BW$73,MATCH($B$65,$B$67:$B$73,0),),0)+COLUMN()/1000,_xlfn.RANK.EQ(F63,$D$63:$Z$63)+COLUMN()/1000),"") -> 1.006 | G52: =IFERROR(IF($B$10=drop_down_data!$O$3,_xlfn.RANK.EQ(INDEX(G$67:G$73,MATCH($B$65,$B$67:$B$73,0)),INDEX($D$67:$BW$73,MATCH($B$65,$B$67:$B$73,0),),0)+COLUMN()/1000,_xlfn.RANK.EQ(G63,$D$63:$Z$63)+COLUMN()/1000),"") -> 4.007 | H52: =IFERROR(IF($B$10=drop_down_data!$O$3,_xlfn.RANK.EQ(INDEX(H$67:H$73,MATCH($B$65,$B$67:$B$73,0)),INDEX($D$67:$BW$73,MATCH($B$65,$B$67:$B$73,0),),0)+COLUMN()/1000,_xlfn.RANK.EQ(H63,$D$63:$Z$63)+COLUMN()/1000),"") -> 9.008 | I52: =IFERROR(IF($B$10=drop_down_data!$O$3,_xlfn.RANK.EQ(INDEX(I$67:I$73,MATCH($B$65,$B$67:$B$73,0)),INDEX($D$67:$BW$73,MATCH($B$65,$B$67:$B$73,0),),0)+COLUMN()/1000,_xlfn.RANK.EQ(I63,$D$63:$Z$63)+COLUMN()/1000),"") -> 2.009 | J52: =IFERROR(IF($B$10=drop_down_data!$O$3,_xlfn.RANK.EQ(INDEX(J$67:J$73,MATCH($B$65,$B$67:$B$73,0)),INDEX($D$67:$BW$73,MATCH($B$65,$B$67:$B$73,0),),0)+COLUMN()/1000,_xlfn.RANK.EQ(J63,$D$63:$Z$63)+COLUMN()/1000),"") -> 6.01 | K52: =IFERROR(IF($B$10=drop_down_data!$O$3,_xlfn.RANK.EQ(INDEX(K$67:K$73,MATCH($B$65,$B$67:$B$73,0)),INDEX($D$67:$BW$73,MATCH($B$65,$B$67:$B$73,0),),0)+COLUMN()/1000,_xlfn.RANK.EQ(K63,$D$63:$Z$63)+COLUMN()/1000),"") -> 10.011 | L52: =IFERROR(IF($B$10=drop_down_data!$O$3,_xlfn.RANK.EQ(INDEX(L$67:L$73,MATCH($B$65,$B$67:$B$73,0)),INDEX($D$67:$BW$73,MATCH($B$65,$B$67:$B$73,0),),0)+COLUMN()/1000,_xlfn.RANK.EQ(L63,$D$63:$Z$63)+COLUMN()/1000),"") -> 11.012 | M52: =IFERROR(IF($B$10=drop_down_data!$O$3,_xlfn.RANK.EQ(INDEX(M$67:M$73,MATCH($B$65,$B$67:$B$73,0)),INDEX($D$67:$BW$73,MATCH($B$65,$B$67:$B$73,0),),0)+COLUMN()/1000,_xlfn.RANK.EQ(M63,$D$63:$Z$63)+COLUMN()/1000),"") -> 12.013 | N52: =IFERROR(IF($B$10=drop_down_data!$O$3,_xlfn.RANK.EQ(INDEX(N$67:N$73,MATCH($B$65,$B$67:$B$73,0)),INDEX($D$67:$BW$73,MATCH($B$65,$B$67:$B$73,0),),0)+COLUMN()/1000,_xlfn.RANK.EQ(N63,$D$63:$Z$63)+COLUMN()/1000),"") -> 7.014 | O52: =IFERROR(IF($B$10=drop_down_data!$O$3,_xlfn.RANK.EQ(INDEX(O$67:O$73,MATCH($B$65,$B$67:$B$73,0)),INDEX($D$67:$BW$73,MATCH($B$65,$B$67:$B$73,0),),0)+COLUMN()/1000,_xlfn.RANK.EQ(O63,$D$63:$Z$63)+COLUMN()/1000),"") -> 8.015 | P52: =IFERROR(IF($B$10=drop_down_data!$O$3,_xlfn.RANK.EQ(INDEX(P$67:P$73,MATCH($B$65,$B$67:$B$73,0)),INDEX($D$67:$BW$73,MATCH($B$65,$B$67:$B$73,0),),0)+COLUMN()/1000,_xlfn.RANK.EQ(P63,$D$63:$Z$63)+COLUMN()/1000),"") -> 5.016 | Q52: =IFERROR(IF($B$10=drop_down_data!$O$3,_xlfn.RANK.EQ(INDEX(Q$67:Q$73,MATCH($B$65,$B$67:$B$73,0)),INDEX($D$67:$BW$73,MATCH($B$65,$B$67:$B$73,0),),0)+COLUMN()/1000,_xlfn.RANK.EQ(Q63,$D$63:$Z$63)+COLUMN()/1000),"") -> 12.017 | R52: =IFERROR(IF($B$10=drop_down_data!$O$3,_xlfn.RANK.EQ(INDEX(R$67:R$73,MATCH($B$65,$B$67:$B$73,0)),INDEX($D$67:$BW$73,MATCH($B$65,$B$67:$B$73,0),),0)+COLUMN()/1000,_xlfn.RANK.EQ(R63,$D$63:$Z$63)+COLUMN()/1000),"") -> 12.018 | S52: =IFERROR(IF($B$10=drop_down_data!$O$3,_xlfn.RANK.EQ(INDEX(S$67:S$73,MATCH($B$65,$B$67:$B$73,0)),INDEX($D$67:$BW$73,MATCH($B$65,$B$67:$B$73,0),),0)+COLUMN()/1000,_xlfn.RANK.EQ(S63,$D$63:$Z$63)+COLUMN()/1000),"") -> 12.019 | T52: =IFERROR(IF($B$10=drop_down_data!$O$3,_xlfn.RANK.EQ(INDEX(T$67:T$73,MATCH($B$65,$B$67:$B$73,0)),INDEX($D$67:$BW$73,MATCH($B$65,$B$67:$B$73,0),),0)+COLUMN()/1000,_xlfn.RANK.EQ(T63,$D$63:$Z$63)+COLUMN()/1000),"") -> 12.02 | U52: =IFERROR(IF($B$10=drop_down_data!$O$3,_xlfn.RANK.EQ(INDEX(U$67:U$73,MATCH($B$65,$B$67:$B$73,0)),INDEX($D$67:$BW$73,MATCH($B$65,$B$67:$B$73,0),),0)+COLUMN()/1000,_xlfn.RANK.EQ(U63,$D$63:$Z$63)+COLUMN()/1000),"") -> 12.021 | V52: =IFERROR(IF($B$10=drop_down_data!$O$3,_xlfn.RANK.EQ(INDEX(V$67:V$73,MATCH($B$65,$B$67:$B$73,0)),INDEX($D$67:$BW$73,MATCH($B$65,$B$67:$B$73,0),),0)+COLUMN()/1000,_xlfn.RANK.EQ(V63,$D$63:$Z$63)+COLUMN()/1000),"") -> 12.022 | W52: =IFERROR(IF($B$10=drop_down_data!$O$3,_xlfn.RANK.EQ(INDEX(W$67:W$73,MATCH($B$65,$B$67:$B$73,0)),INDEX($D$67:$BW$73,MATCH($B$65,$B$67:$B$73,0),),0)+COLUMN()/1000,_xlfn.RANK.EQ(W63,$D$63:$Z$63)+COLUMN()/1000),"") -> 12.023 | X52: =IFERROR(IF($B$10=drop_down_data!$O$3,_xlfn.RANK.EQ(INDEX(X$67:X$73,MATCH($B$65,$B$67:$B$73,0)),INDEX($D$67:$BW$73,MATCH($B$65,$B$67:$B$73,0),),0)+COLUMN()/1000,_xlfn.RANK.EQ(X63,$D$63:$Z$63)+COLUMN()/1000),"") -> 12.024 | Y52: =IFERROR(IF($B$10=drop_down_data!$O$3,_xlfn.RANK.EQ(INDEX(Y$67:Y$73,MATCH($B$65,$B$67:$B$73,0)),INDEX($D$67:$BW$73,MATCH($B$65,$B$67:$B$73,0),),0)+COLUMN()/1000,_xlfn.RANK.EQ(Y63,$D$63:$Z$63)+COLUMN()/1000),"") -> 12.025 | Z52: =IFERROR(IF($B$10=drop_down_data!$O$3,_xlfn.RANK.EQ(INDEX(Z$67:Z$73,MATCH($B$65,$B$67:$B$73,0)),INDEX($D$67:$BW$73,MATCH($B$65,$B$67:$B$73,0),),0)+COLUMN()/1000,_xlfn.RANK.EQ(Z63,$D$63:$Z$63)+COLUMN()/1000),"") -> 12.026 | AC52: 1 | AD52: 2 | AE52: 3 | AF52: 4 | AG52: 5 | AH52: 6 | AI52: 7 | AJ52: 8 | AK52: 9 | AL52: 10 | AM52: 11 | AN52: 12 | AO52: 13 | AP52: 14 | AQ52: 15 | AR52: 16 | AS52: 17 | AT52: 18 | AU52: 19 | AV52: 20 | AW52: 21 | AX52: 22 | AY52: 23
D53: =_xlfn.RANK.EQ(D$52,$D$52:$Z$52,1) -> 3 | E53: =_xlfn.RANK.EQ(E$52,$D$52:$Z$52,1) -> 12 | F53: 1 | G53: 4 | H53: 9 | I53: 2 | J53: 6 | K53: 10 | L53: 11 | M53: 13 | N53: 7 | O53: 8 | P53: 5 | Q53: 14 | R53: 15 | S53: 16 | T53: 17 | U53: 18 | V53: 19 | W53: 20 | X53: 21 | Y53: 22 | Z53: 23 | AC53: =IFERROR(INDEX($AC$48:$AY$48,1,MATCH(AC52,$AC$51:$AY$51,0)),"") -> Natural gas | AD53: =IFERROR(INDEX($AC$48:$AY$48,1,MATCH(AD52,$AC$51:$AY$51,0)),"") -> Mixed | AE53: Biomass | AF53: Nuclear | AG53: Petroleum | AH53: Solar | AI53: Wind | AJ53: Solar thermal | AK53: Geothermal | AL53: Other fossil | AM53: Coal | AN53: Hydro | AO53: Other fuels | AP53: SCPC | AQ53: SCPC w/ CCS | AR53: SubPC | AS53: SubPC w/ CCS | AT53: NGCC | AU53: NGCC w/ CCS | AV53: OxyPC w/ CCS | AW53: SOFC Coal Conventional Gasifier w/ CCS | AX53: SOFC NG w/ CCS | AY53: SubPC w/ CCS w/ NG Aux
D54: =MATCH(D51,$D$53:$Z$53,0) -> 3 | E54: =MATCH(E51,$D$53:$Z$53,0) -> 6 | F54: 1 | G54: 4 | H54: 13 | I54: 7 | J54: 11 | K54: 12 | L54: 5 | M54: 8 | N54: 9 | O54: 2 | P54: 10 | Q54: 14 | R54: 15 | S54: 16 | T54: 17 | U54: 18 | V54: 19 | W54: 20 | X54: 21 | Y54: 22 | Z54: 23 | AB54: =MAX(COUNTIF($AC$45:$AY$45,TRUE),1) -> 23 | AC54: =IFERROR(INDEX($AC$49:$AY$49,1,MATCH(AC52,$AC$51:$AY$51,0)),"") -> 0.05388878527 | AD54: 0.01105277625 | AE54: 0.004927387331 | AF54: 0.001932981934 | AG54: 0.0004323004203 | AH54: 0.0003118009564 | AI54: 0.0003000722935 | AJ54: 5.366004066e-05 | AK54: 5.130461073e-05 | AL54: 2.34350108e-05 | AM54: 0 | AN54: 0 | AO54: 0 | AP54: 0 | AQ54: 0 | AR54: 0 | AS54: 0 | AT54: 0 | AU54: 0 | AV54: 0 | AW54: 0 | AX54: 0 | AY54: 0
C55: =IF(C47<=-4,TEXT(C46,"#.##E+00"),C46) -> 404 | D55: =INDEX($D$50:$Z$50,1,D54) -> 296 | E55: =INDEX($D$50:$Z$50,1,E54) -> 57 | F55: 35 | G55: 8 | H55: 2 | I55: 2 | J55: 2 | K55: <1 | L55: <1 | M55: <1 | N55: <1 | O55: 0 | P55: 0 | Q55: 0 | R55: 0 | S55: 0 | T55: 0 | U55: 0 | V55: 0 | W55: 0 | X55: 0 | Y55: 0 | Z55: 0 | AB55: =LOG(ABS(AC54),10) -> -1.268501606 | AC55: =IFERROR(LOG(ABS(AC54),10),"") -> -1.268501606 | AD55: =IFERROR(LOG(ABS(AD54),10),"") -> -1.956528622 | AE55: -2.307383297 | AF55: -2.713772205 | AG55: -3.364214342 | AH55: -3.506122557 | AI55: -3.522774102 | AJ55: -4.270349003 | AK55: -4.289843603 | AL55: -4.630134842
C56: =B65&" "&IF($B$9="Global Warming Potential",traci_factors!$M$1&" ","")&INDEX(impact_text!B2:B8,MATCH(generation_mix!B65,impact_text!$A$2:$A$8,0),1) -> Global Warming Potential IPCC AR5, 2013, 100-yr, w/ climate carbon feedback kg CO₂-e/MWh delivered | AB56: =10^(INT(AB55)-2) -> 0.0001 | AC56: =IFERROR(3-(1+INT(AC55)),"") -> 4 | AD56: =IFERROR(3-(1+INT(AD55)),"") -> 4 | AE56: 5 | AF56: 5 | AG56: 6 | AH56: 6 | AI56: 6 | AJ56: 7 | AK56: 7 | AL56: 7
AB57: =IF($AC$54>0.001,TEXT(AB56,"#,##0"&AC58),TEXT(AB56,"#E+##")) -> 0.0001 | AC57: =IF(AC56="","",IF(AC54<$AB$56,"<"&TEXT($AB$56,IF($AB$56<0.001,"#E+##","#,###"&AC58)),IF(AC54=0,"0",TEXT(ROUND(AC54,AC56),IF(AC54<0.001,"#.0E+##",IF(AC56=0,"#,###","#.###")))))) -> .054 | AD57: =IF(AD56="","",IF(AD54<$AB$56,"<"&TEXT($AB$56,IF($AB$56<0.001,"#E+##","#,###"&AD58)),IF(AD54=0,"0",TEXT(ROUND(AD54,AD56),IF(AD54<0.001,"#.0E+##",IF(AD56=0,"#,###","#.###")))))) -> .011 | AE57: .005 | AF57: .002 | AG57: 4.3E-4 | AH57: 3.1E-4 | AI57: 3.0E-4 | AJ57: <1E-4 | AK57: <1E-4 | AL57: <1E-4
AC58: =IF(AC56>=1,"."&REPT("0",$AC$56),"") -> .0000 | AD58: =IF(AD56>=1,"."&REPT("0",$AC$56),"") -> .0000 | AE58: .0000 | AF58: .0000 | AG58: .0000 | AH58: .0000 | AI58: .0000 | AJ58: .0000 | AK58: .0000 | AL58: .0000 | AM58: .0000 | AN58: .0000 | AO58: .0000 | AP58: .0000 | AQ58: .0000 | AR58: .0000 | AS58: .0000 | AT58: .0000 | AU58: .0000 | AV58: .0000 | AW58: .0000 | AX58: .0000 | AY58: .0000
AC59: =IF(AC54=0,"0",IF(AC54>$AB$56,IF($AC$54>0.001,TEXT(AC54,"#,##0"&AC58),TEXT(AC54,"#.00E+00")),"<"&$AB$57)) -> 0.0539 | AD59: =IF(AD54=0,"0",IF(AD54>$AB$56,IF($AC$54>0.001,TEXT(AD54,"#,##0"&AD58),TEXT(AD54,"#.00E+00")),"<"&$AB$57)) -> 0.0111 | AE59: 0.0049 | AF59: 0.0019 | AG59: 0.0004 | AH59: 0.0003 | AI59: 0.0003 | AJ59: <0.0001 | AK59: <0.0001 | AL59: <0.0001 | AM59: 0 | AN59: 0 | AO59: 0 | AP59: 0 | AQ59: 0 | AR59: 0 | AS59: 0 | AT59: 0 | AU59: 0 | AV59: 0 | AW59: 0 | AX59: 0 | AY59: 0
C61: =PROPER(C66)&" - "&TEXT(C63,"0.0%") -> Total - 100.0% | D61: Biomass - 2.6% | E61: Coal - 0.0% | F61: Natural Gas - 46.3% | G61: Geothermal - 5.8% | H61: Hydro - 12.0% | I61: Mixed - 6.7% | J61: Nuclear - 9.2% | K61: Other Fossil - 0.0% | L61: Petroleum - 0.0% | M61: Other Fuels - 0.2% | N61: Solar - 9.2% | O61: Solar Thermal - 1.1% | P61: Wind - 6.9% | Q61: =Q66&" - "&TEXT(Q63,"0.0%") -> SCPC - 0.0% | R61: =R66&" - "&TEXT(R63,"0.0%") -> SCPC w/ CCS - 0.0% | S61: SubPC - 0.0% | T61: SubPC w/ CCS - 0.0% | U61: NGCC - 0.0% | V61: NGCC w/ CCS - 0.0% | W61: OxyPC w/ CCS - 0.0% | X61: SOFC Coal Conventional Gasifier w/ CCS - 0.0% | Y61: SOFC NG w/ CCS - 0.0% | Z61: SubPC w/ CCS w/ NG Aux - 0.0%
C62: Total | D62: =PROPER(D64) -> Natural Gas - 46.3% | E62: Mixed - 6.7% | F62: Biomass - 2.6% | G62: Geothermal - 5.8% | H62: Wind - 6.9% | I62: Nuclear - 9.2% | J62: Solar - 9.2% | K62: Solar Thermal - 1.1% | L62: Hydro - 12.0% | M62: Other Fossil - 0.0% | N62: Petroleum - 0.0% | O62: Coal - 0.0% | P62: Other Fuels - 0.2% | Q62: =Q66 -> SCPC | R62: SCPC w/ CCS | S62: SubPC | T62: SubPC w/ CCS | U62: NGCC | V62: NGCC w/ CCS | W62: OxyPC w/ CCS | X62: SOFC Coal Conventional Gasifier w/ CCS | Y62: SOFC NG w/ CCS | Z62: SubPC w/ CCS w/ NG Aux
C63: =SUM(D63:Z63) -> 1 | D63: =generation_mix_calcs!C21 -> 0.02585904572 | E63: =generation_mix_calcs!D21 -> 0 | F63: =generation_mix_calcs!E21 -> 0.4628453208 | G63: =generation_mix_calcs!F21 -> 0.05816688519 | H63: =generation_mix_calcs!G21 -> 0.1195952199 | I63: =generation_mix_calcs!H21 -> 0.06673106129 | J63: =generation_mix_calcs!I21 -> 0.09201281248 | K63: =generation_mix_calcs!J21 -> 0.000313457878 | L63: =generation_mix_calcs!K21 -> 0.0001718548437 | M63: =generation_mix_calcs!L21 -> 0.002103027017 | N63: =generation_mix_calcs!M21 -> 0.09249499855 | O63: =generation_mix_calcs!N21 -> 0.01102895597 | P63: =generation_mix_calcs!O21 -> 0.06867736031 | Q63: =generation_mix_calcs!P21 -> 0 | R63: =generation_mix_calcs!Q21 -> 0 | S63: =generation_mix_calcs!R21 -> 0 | T63: =generation_mix_calcs!S21 -> 0 | U63: =generation_mix_calcs!T21 -> 0 | V63: =generation_mix_calcs!U21 -> 0 | W63: =generation_mix_calcs!V21 -> 0 | X63: =generation_mix_calcs!W21 -> 0 | Y63: =generation_mix_calcs!X21 -> 0 | Z63: =generation_mix_calcs!Y21 -> 0
C64: Total | D64: =INDEX($D$61:$Z$61,1,D54) -> Natural Gas - 46.3% | E64: =INDEX($D$61:$BW$61,1,E54) -> Mixed - 6.7% | F64: Biomass - 2.6% | G64: Geothermal - 5.8% | H64: Wind - 6.9% | I64: Nuclear - 9.2% | J64: Solar - 9.2% | K64: Solar Thermal - 1.1% | L64: Hydro - 12.0% | M64: Other Fossil - 0.0% | N64: Petroleum - 0.0% | O64: Coal - 0.0% | P64: Other Fuels - 0.2% | Q64: SCPC - 0.0% | R64: SCPC w/ CCS - 0.0% | S64: SubPC - 0.0% | T64: SubPC w/ CCS - 0.0% | U64: NGCC - 0.0% | V64: NGCC w/ CCS - 0.0% | W64: OxyPC w/ CCS - 0.0% | X64: SOFC Coal Conventional Gasifier w/ CCS - 0.0% | Y64: SOFC NG w/ CCS - 0.0% | Z64: SubPC w/ CCS w/ NG Aux - 0.0%
B65: =INDEX(B$67:B$73,MATCH($B$9,$B$67:$B$73,0),1) -> Global Warming Potential | C65: =C46 -> 404 | D65: =INDEX($D$46:$Z$46,1,D54) -> 296 | E65: =INDEX($D$46:$Z$46,1,E54) -> 57 | F65: 35 | G65: 8 | H65: 2 | I65: 2 | J65: 2 | K65: 1 | L65: 1 | M65: 0 | N65: 0 | O65: 0 | P65: 0 | Q65: 0 | R65: 0 | S65: 0 | T65: 0 | U65: 0 | V65: 0 | W65: 0 | X65: 0 | Y65: 0 | Z65: 0
B66: Impact Category | C66: Total | D66: Biomass | E66: Coal | F66: Natural gas | G66: Geothermal | H66: Hydro | I66: Mixed | J66: Nuclear | K66: Other fossil | L66: Petroleum | M66: Other fuels | N66: Solar | O66: Solar thermal | P66: Wind | Q66: SCPC | R66: SCPC w/ CCS | S66: SubPC | T66: SubPC w/ CCS | U66: NGCC | V66: NGCC w/ CCS | W66: OxyPC w/ CCS | X66: SOFC Coal Conventional Gasifier w/ CCS | Y66: SOFC NG w/ CCS | Z66: SubPC w/ CCS w/ NG Aux
B67: Eutrophication Potential | C67: =SUM(D67:Y67) -> 0.07297450412 | D67: =generation_mix_calcs!C8 -> 0.004927387331 | E67: =generation_mix_calcs!D8 -> 0 | F67: =generation_mix_calcs!E8 -> 0.05388878527 | G67: =generation_mix_calcs!F8 -> 5.130461073e-05 | H67: =generation_mix_calcs!G8 -> 0 | I67: =generation_mix_calcs!H8 -> 0.01105277625 | J67: =generation_mix_calcs!I8 -> 0.001932981934 | K67: =generation_mix_calcs!J8 -> 2.34350108e-05 | L67: =generation_mix_calcs!K8 -> 0.0004323004203 | M67: =generation_mix_calcs!L8 -> 0 | N67: =generation_mix_calcs!M8 -> 0.0003118009564 | O67: =generation_mix_calcs!N8 -> 5.366004066e-05 | P67: =generation_mix_calcs!O8 -> 0.0003000722935 | Q67: =generation_mix_calcs!P8 -> 0 | R67: =generation_mix_calcs!Q8 -> 0 | S67: =generation_mix_calcs!R8 -> 0 | T67: =generation_mix_calcs!S8 -> 0 | U67: =generation_mix_calcs!T8 -> 0 | V67: =generation_mix_calcs!U8 -> 0 | W67: =generation_mix_calcs!V8 -> 0 | X67: =generation_mix_calcs!W8 -> 0 | Y67: =generation_mix_calcs!X8 -> 0 | Z67: =generation_mix_calcs!Y8 -> 0
B68: Acidification Potential | C68: 1.093264554 | D68: =generation_mix_calcs!C9 -> 0.0826960667 | E68: =generation_mix_calcs!D9 -> 0 | F68: =generation_mix_calcs!E9 -> 0.7816471633 | G68: =generation_mix_calcs!F9 -> 0.002465850754 | H68: =generation_mix_calcs!G9 -> 0 | I68: =generation_mix_calcs!H9 -> 0.1836651361 | J68: =generation_mix_calcs!I9 -> 0.02298796922 | K68: =generation_mix_calcs!J9 -> 0.0003715919008 | L68: =generation_mix_calcs!K9 -> 0.006808754535 | M68: =generation_mix_calcs!L9 -> 0 | N68: =generation_mix_calcs!M9 -> 0.004820142498 | O68: =generation_mix_calcs!N9 -> 0.0008012493886 | P68: =generation_mix_calcs!O9 -> 0.007000629833 | Q68: =generation_mix_calcs!P9 -> 0 | R68: =generation_mix_calcs!Q9 -> 0 | S68: =generation_mix_calcs!R9 -> 0 | T68: =generation_mix_calcs!S9 -> 0 | U68: =generation_mix_calcs!T9 -> 0 | V68: =generation_mix_calcs!U9 -> 0 | W68: =generation_mix_calcs!V9 -> 0 | X68: =generation_mix_calcs!W9 -> 0 | Y68: =generation_mix_calcs!X9 -> 0 | Z68: =generation_mix_calcs!Y9 -> 0
B69: Particulate Matter Formation Potential | C69: 0.1291616306 | D69: =generation_mix_calcs!C10 -> 0.005679101556 | E69: =generation_mix_calcs!D10 -> 0 | F69: =generation_mix_calcs!E10 -> 0.01588577779 | G69: =generation_mix_calcs!F10 -> 0.0005611658003 | H69: =generation_mix_calcs!G10 -> 0 | I69: =generation_mix_calcs!H10 -> 0.009201530215 | J69: =generation_mix_calcs!I10 -> 0.001089104045 | K69: =generation_mix_calcs!J10 -> 3.895008785e-06 | L69: =generation_mix_calcs!K10 -> 0.0001013815618 | M69: =generation_mix_calcs!L10 -> 0 | N69: =generation_mix_calcs!M10 -> 0.09633814712 | O69: =generation_mix_calcs!N10 -> 1.068127722e-05 | P69: =generation_mix_calcs!O10 -> 0.0002908462202 | Q69: =generation_mix_calcs!P10 -> 0 | R69: =generation_mix_calcs!Q10 -> 0 | S69: =generation_mix_calcs!R10 -> 0 | T69: =generation_mix_calcs!S10 -> 0 | U69: =generation_mix_calcs!T10 -> 0 | V69: =generation_mix_calcs!U10 -> 0 | W69: =generation_mix_calcs!V10 -> 0 | X69: =generation_mix_calcs!W10 -> 0 | Y69: =generation_mix_calcs!X10 -> 0 | Z69: =generation_mix_calcs!Y10 -> 0
B70: Photochemical Smog Formation Potential | C70: 36.13630728 | D70: =generation_mix_calcs!C11 -> 2.672979025 | E70: =generation_mix_calcs!D11 -> 0 | F70: =generation_mix_calcs!E11 -> 26.73395371 | G70: =generation_mix_calcs!F11 -> 0.01848390674 | H70: =generation_mix_calcs!G11 -> 2.758532376e-05 | I70: =generation_mix_calcs!H11 -> 5.808466182 | J70: =generation_mix_calcs!I11 -> 0.1917938489 | K70: =generation_mix_calcs!J11 -> 0.01312621133 | L70: =generation_mix_calcs!K11 -> 0.2333617681 | M70: =generation_mix_calcs!L11 -> 0 | N70: =generation_mix_calcs!M11 -> 0.3635996964 | O70: =generation_mix_calcs!N11 -> 0.02604823292 | P70: =generation_mix_calcs!O11 -> 0.0744671169 | Q70: =generation_mix_calcs!P11 -> 0 | R70: =generation_mix_calcs!Q11 -> 0 | S70: =generation_mix_calcs!R11 -> 0 | T70: =generation_mix_calcs!S11 -> 0 | U70: =generation_mix_calcs!T11 -> 0 | V70: =generation_mix_calcs!U11 -> 0 | W70: =generation_mix_calcs!V11 -> 0 | X70: =generation_mix_calcs!W11 -> 0 | Y70: =generation_mix_calcs!X11 -> 0 | Z70: =generation_mix_calcs!Y11 -> 0
B71: Global Warming Potential | C71: 403.5253279 | D71: =generation_mix_calcs!C12 -> 34.75543272 | E71: =generation_mix_calcs!D12 -> 0 | F71: =generation_mix_calcs!E12 -> 296.4122265 | G71: =generation_mix_calcs!F12 -> 7.817501492 | H71: =generation_mix_calcs!G12 -> 0.6371496973 | I71: =generation_mix_calcs!H12 -> 56.67716545 | J71: =generation_mix_calcs!I12 -> 1.790369872 | K71: =generation_mix_calcs!J12 -> 0.2470820828 | L71: =generation_mix_calcs!K12 -> 0.1853339751 | M71: =generation_mix_calcs!L12 -> 0 | N71: =generation_mix_calcs!M12 -> 1.729232593 | O71: =generation_mix_calcs!N12 -> 0.7821681318 | P71: =generation_mix_calcs!O12 -> 2.491665359 | Q71: =generation_mix_calcs!P12 -> 0 | R71: =generation_mix_calcs!Q12 -> 0 | S71: =generation_mix_calcs!R12 -> 0 | T71: =generation_mix_calcs!S12 -> 0 | U71: =generation_mix_calcs!T12 -> 0 | V71: =generation_mix_calcs!U12 -> 0 | W71: =generation_mix_calcs!V12 -> 0 | X71: =generation_mix_calcs!W12 -> 0 | Y71: =generation_mix_calcs!X12 -> 0 | Z71: =generation_mix_calcs!Y12 -> 0
B72: Ozone Depletion Potential | C72: 1.242828111e-06 | D72: =generation_mix_calcs!C13 -> 1.423046368e-07 | E72: =generation_mix_calcs!D13 -> 0 | F72: =generation_mix_calcs!E13 -> 3.943717087e-07 | G72: =generation_mix_calcs!F13 -> 9.796078753e-16 | H72: =generation_mix_calcs!G13 -> 0 | I72: =generation_mix_calcs!H13 -> 6.731498015e-07 | J72: =generation_mix_calcs!I13 -> 3.934245753e-15 | K72: =generation_mix_calcs!J13 -> 0 | L72: =generation_mix_calcs!K13 -> 1.184377153e-09 | M72: =generation_mix_calcs!L13 -> 0 | N72: =generation_mix_calcs!M13 -> 3.05933461e-08 | O72: =generation_mix_calcs!N13 -> 8.030081383e-11 | P72: =generation_mix_calcs!O13 -> 1.143935129e-09 | Q72: =generation_mix_calcs!P13 -> 0 | R72: =generation_mix_calcs!Q13 -> 0 | S72: =generation_mix_calcs!R13 -> 0 | T72: =generation_mix_calcs!S13 -> 0 | U72: =generation_mix_calcs!T13 -> 0 | V72: =generation_mix_calcs!U13 -> 0 | W72: =generation_mix_calcs!V13 -> 0 | X72: =generation_mix_calcs!W13 -> 0 | Y72: =generation_mix_calcs!X13 -> 0 | Z72: =generation_mix_calcs!Y13 -> 0
B73: Water Consumption | C73: 125.9677742 | D73: =generation_mix_calcs!C14 -> 0 | E73: =generation_mix_calcs!D14 -> 0 | F73: =generation_mix_calcs!E14 -> 76.17650899 | G73: =generation_mix_calcs!F14 -> 0 | H73: =generation_mix_calcs!G14 -> 2.259263331 | I73: =generation_mix_calcs!H14 -> 48.40347587 | J73: =generation_mix_calcs!I14 -> 0 | K73: =generation_mix_calcs!J14 -> 0 | L73: =generation_mix_calcs!K14 -> 0 | M73: =generation_mix_calcs!L14 -> 0 | N73: =generation_mix_calcs!M14 -> -0.01487794422 | O73: =generation_mix_calcs!N14 -> -1.42176152e-05 | P73: =generation_mix_calcs!O14 -> -0.856581866 | Q73: =generation_mix_calcs!P14 -> 0 | R73: =generation_mix_calcs!Q14 -> 0 | S73: =generation_mix_calcs!R14 -> 0 | T73: =generation_mix_calcs!S14 -> 0 | U73: =generation_mix_calcs!T14 -> 0 | V73: =generation_mix_calcs!U14 -> 0 | W73: =generation_mix_calcs!V14 -> 0 | X73: =generation_mix_calcs!W14 -> 0 | Y73: =generation_mix_calcs!X14 -> 0 | Z73: =generation_mix_calcs!Y14 -> 0
A74: Category | B74: Emission (kg) | C74: Total | D74: Biomass | E74: Coal | F74: Natural gas | G74: Geothermal | H74: Hydro | I74: Mixed | J74: Nuclear | K74: Other fossil | L74: Petroleum | M74: OTHF | N74: Solar | O74: Solar thermal | P74: Wind | Q74: SCPC | R74: SCPC w/ CCS | S74: SubPC | T74: SubPC w/ CCS | U74: NGCC | V74: NGCC w/ CCS | W74: OxyPC w/ CCS | X74: SOFC Coal Conventional Gasifier w/ CCS | Y74: SOFC NG w/ CCS | Z74: SubPC w/ CCS w/ NG Aux
A75: input | B75: Heat | C75: =SUM(D75:P75) -> 9432.018573 | D75: =generation_mix_calcs!C24 -> 359.8744773 | E75: =generation_mix_calcs!D24 -> 0 | F75: =generation_mix_calcs!E24 -> 3893.963522 | G75: =generation_mix_calcs!F24 -> 593.7452233 | H75: =generation_mix_calcs!G24 -> 1220.805162 | I75: =generation_mix_calcs!H24 -> 614.7533785 | J75: =generation_mix_calcs!I24 -> 1064.17393 | K75: =generation_mix_calcs!J24 -> 4.911037671 | L75: =generation_mix_calcs!K24 -> 2.119532815 | M75: =generation_mix_calcs!L24 -> 21.46688261 | N75: =generation_mix_calcs!M24 -> 955.1732317 | O75: =generation_mix_calcs!N24 -> 0 | P75: =generation_mix_calcs!O24 -> 701.0321946 | Q75: =generation_mix_calcs!P24 -> 0 | R75: =generation_mix_calcs!Q24 -> 0 | S75: =generation_mix_calcs!R24 -> 0 | T75: =generation_mix_calcs!S24 -> 0 | U75: =generation_mix_calcs!T24 -> 0 | V75: =generation_mix_calcs!U24 -> 0 | W75: =generation_mix_calcs!V24 -> 0 | X75: =generation_mix_calcs!W24 -> 0 | Y75: =generation_mix_calcs!X24 -> 0 | Z75: =generation_mix_calcs!Y24 -> 0
A76: input | B76: Water | C76: 3609.146276 | D76: =generation_mix_calcs!C25 -> 0 | E76: =generation_mix_calcs!D25 -> 0 | F76: =generation_mix_calcs!E25 -> 3609.146276 | G76: =generation_mix_calcs!F25 -> 0 | H76: =generation_mix_calcs!G25 -> 0 | I76: =generation_mix_calcs!H25 -> 0 | J76: =generation_mix_calcs!I25 -> 0 | K76: =generation_mix_calcs!J25 -> 0 | L76: =generation_mix_calcs!K25 -> 0 | M76: =generation_mix_calcs!L25 -> 0 | N76: =generation_mix_calcs!M25 -> 0 | O76: =generation_mix_calcs!N25 -> 0 | P76: =generation_mix_calcs!O25 -> 0 | Q76: =generation_mix_calcs!P25 -> 0 | R76: =generation_mix_calcs!Q25 -> 0 | S76: =generation_mix_calcs!R25 -> 0 | T76: =generation_mix_calcs!S25 -> 0 | U76: =generation_mix_calcs!T25 -> 0 | V76: =generation_mix_calcs!U25 -> 0 | W76: =generation_mix_calcs!V25 -> 0 | X76: =generation_mix_calcs!W25 -> 0 | Y76: =generation_mix_calcs!X25 -> 0 | Z76: =generation_mix_calcs!Y25 -> 0
A77: input | B77: Water, brackish | C77: 162.1402136 | D77: =generation_mix_calcs!C26 -> 0 | E77: =generation_mix_calcs!D26 -> 0 | F77: =generation_mix_calcs!E26 -> 162.1402136 | G77: =generation_mix_calcs!F26 -> 0 | H77: =generation_mix_calcs!G26 -> 0 | I77: =generation_mix_calcs!H26 -> 0 | J77: =generation_mix_calcs!I26 -> 0 | K77: =generation_mix_calcs!J26 -> 0 | L77: =generation_mix_calcs!K26 -> 0 | M77: =generation_mix_calcs!L26 -> 0 | N77: =generation_mix_calcs!M26 -> 0 | O77: =generation_mix_calcs!N26 -> 0 | P77: =generation_mix_calcs!O26 -> 0 | Q77: =generation_mix_calcs!P26 -> 0 | R77: =generation_mix_calcs!Q26 -> 0 | S77: =generation_mix_calcs!R26 -> 0 | T77: =generation_mix_calcs!S26 -> 0 | U77: =generation_mix_calcs!T26 -> 0 | V77: =generation_mix_calcs!U26 -> 0 | W77: =generation_mix_calcs!V26 -> 0 | X77: =generation_mix_calcs!W26 -> 0 | Y77: =generation_mix_calcs!X26 -> 0 | Z77: =generation_mix_calcs!Y26 -> 0
A78: input | B78: Water, fresh | C78: 101.4075733 | D78: =generation_mix_calcs!C27 -> 0 | E78: =generation_mix_calcs!D27 -> 0 | F78: =generation_mix_calcs!E27 -> 50.7448198 | G78: =generation_mix_calcs!F27 -> 0 | H78: =generation_mix_calcs!G27 -> 2.259263331 | I78: =generation_mix_calcs!H27 -> 48.40349019 | J78: =generation_mix_calcs!I27 -> 0 | K78: =generation_mix_calcs!J27 -> 0 | L78: =generation_mix_calcs!K27 -> 0 | M78: =generation_mix_calcs!L27 -> 0 | N78: =generation_mix_calcs!M27 -> 0 | O78: =generation_mix_calcs!N27 -> 0 | P78: =generation_mix_calcs!O27 -> 0 | Q78: =generation_mix_calcs!P27 -> 0 | R78: =generation_mix_calcs!Q27 -> 0 | S78: =generation_mix_calcs!R27 -> 0 | T78: =generation_mix_calcs!S27 -> 0 | U78: =generation_mix_calcs!T27 -> 0 | V78: =generation_mix_calcs!U27 -> 0 | W78: =generation_mix_calcs!V27 -> 0 | X78: =generation_mix_calcs!W27 -> 0 | Y78: =generation_mix_calcs!X27 -> 0 | Z78: =generation_mix_calcs!Y27 -> 0
A79: input | B79: Water, reclaimed | C79: 61.43469022 | D79: =generation_mix_calcs!C28 -> 0 | E79: =generation_mix_calcs!D28 -> 0 | F79: =generation_mix_calcs!E28 -> 61.43469022 | G79: =generation_mix_calcs!F28 -> 0 | H79: =generation_mix_calcs!G28 -> 0 | I79: =generation_mix_calcs!H28 -> 0 | J79: =generation_mix_calcs!I28 -> 0 | K79: =generation_mix_calcs!J28 -> 0 | L79: =generation_mix_calcs!K28 -> 0 | M79: =generation_mix_calcs!L28 -> 0 | N79: =generation_mix_calcs!M28 -> 0 | O79: =generation_mix_calcs!N28 -> 0 | P79: =generation_mix_calcs!O28 -> 0 | Q79: =generation_mix_calcs!P28 -> 0 | R79: =generation_mix_calcs!Q28 -> 0 | S79: =generation_mix_calcs!R28 -> 0 | T79: =generation_mix_calcs!S28 -> 0 | U79: =generation_mix_calcs!T28 -> 0 | V79: =generation_mix_calcs!U28 -> 0 | W79: =generation_mix_calcs!V28 -> 0 | X79: =generation_mix_calcs!W28 -> 0 | Y79: =generation_mix_calcs!X28 -> 0 | Z79: =generation_mix_calcs!Y28 -> 0
A80: input | B80: Water, saline | C80: 12988.26858 | D80: =generation_mix_calcs!C29 -> 0 | E80: =generation_mix_calcs!D29 -> 0 | F80: =generation_mix_calcs!E29 -> 868.2061577 | G80: =generation_mix_calcs!F29 -> 0 | H80: =generation_mix_calcs!G29 -> 0 | I80: =generation_mix_calcs!H29 -> 0 | J80: =generation_mix_calcs!I29 -> 12120.06242 | K80: =generation_mix_calcs!J29 -> 0 | L80: =generation_mix_calcs!K29 -> 0 | M80: =generation_mix_calcs!L29 -> 0 | N80: =generation_mix_calcs!M29 -> 0 | O80: =generation_mix_calcs!N29 -> 0 | P80: =generation_mix_calcs!O29 -> 0 | Q80: =generation_mix_calcs!P29 -> 0 | R80: =generation_mix_calcs!Q29 -> 0 | S80: =generation_mix_calcs!R29 -> 0 | T80: =generation_mix_calcs!S29 -> 0 | U80: =generation_mix_calcs!T29 -> 0 | V80: =generation_mix_calcs!U29 -> 0 | W80: =generation_mix_calcs!V29 -> 0 | X80: =generation_mix_calcs!W29 -> 0 | Y80: =generation_mix_calcs!X29 -> 0 | Z80: =generation_mix_calcs!Y29 -> 0
A81: air | B81: (E)-8-Dodecen-1-yl acetate | C81: 1.764865954e-13 | D81: =generation_mix_calcs!C30 -> 0 | E81: =generation_mix_calcs!D30 -> 0 | F81: =generation_mix_calcs!E30 -> 1.570065735e-13 | G81: =generation_mix_calcs!F30 -> 0 | H81: =generation_mix_calcs!G30 -> 0 | I81: =generation_mix_calcs!H30 -> 1.902148489e-14 | J81: =generation_mix_calcs!I30 -> 0 | K81: =generation_mix_calcs!J30 -> 0 | L81: =generation_mix_calcs!K30 -> 4.585369669e-16 | M81: =generation_mix_calcs!L30 -> 0 | N81: =generation_mix_calcs!M30 -> 0 | O81: =generation_mix_calcs!N30 -> 0 | P81: =generation_mix_calcs!O30 -> 0 | Q81: =generation_mix_calcs!P30 -> 0 | R81: =generation_mix_calcs!Q30 -> 0 | S81: =generation_mix_calcs!R30 -> 0 | T81: =generation_mix_calcs!S30 -> 0 | U81: =generation_mix_calcs!T30 -> 0 | V81: =generation_mix_calcs!U30 -> 0 | W81: =generation_mix_calcs!V30 -> 0 | X81: =generation_mix_calcs!W30 -> 0 | Y81: =generation_mix_calcs!X30 -> 0 | Z81: =generation_mix_calcs!Y30 -> 0
A82: air | B82: (E)-Crotonic acid | C82: 3.255922689e-12 | D82: =generation_mix_calcs!C31 -> 0 | E82: =generation_mix_calcs!D31 -> 0 | F82: =generation_mix_calcs!E31 -> 2.896545016e-12 | G82: =generation_mix_calcs!F31 -> 0 | H82: =generation_mix_calcs!G31 -> 0 | I82: =generation_mix_calcs!H31 -> 3.50918327e-13 | J82: =generation_mix_calcs!I31 -> 0 | K82: =generation_mix_calcs!J31 -> 0 | L82: =generation_mix_calcs!K31 -> 8.459346293e-15 | M82: =generation_mix_calcs!L31 -> 0 | N82: =generation_mix_calcs!M31 -> 0 | O82: =generation_mix_calcs!N31 -> 0 | P82: =generation_mix_calcs!O31 -> 0 | Q82: =generation_mix_calcs!P31 -> 0 | R82: =generation_mix_calcs!Q31 -> 0 | S82: =generation_mix_calcs!R31 -> 0 | T82: =generation_mix_calcs!S31 -> 0 | U82: =generation_mix_calcs!T31 -> 0 | V82: =generation_mix_calcs!U31 -> 0 | W82: =generation_mix_calcs!V31 -> 0 | X82: =generation_mix_calcs!W31 -> 0 | Y82: =generation_mix_calcs!X31 -> 0 | Z82: =generation_mix_calcs!Y31 -> 0
A83: air | B83: .lambda.-Cyhalothrin | C83: 1.187725505e-09 | D83: =generation_mix_calcs!C32 -> 0 | E83: =generation_mix_calcs!D32 -> 0 | F83: =generation_mix_calcs!E32 -> 1.054831651e-09 | G83: =generation_mix_calcs!F32 -> 0 | H83: =generation_mix_calcs!G32 -> 0 | I83: =generation_mix_calcs!H32 -> 1.298134121e-10 | J83: =generation_mix_calcs!I32 -> 0 | K83: =generation_mix_calcs!J32 -> 0 | L83: =generation_mix_calcs!K32 -> 3.080441551e-12 | M83: =generation_mix_calcs!L32 -> 0 | N83: =generation_mix_calcs!M32 -> 0 | O83: =generation_mix_calcs!N32 -> 0 | P83: =generation_mix_calcs!O32 -> 0 | Q83: =generation_mix_calcs!P32 -> 0 | R83: =generation_mix_calcs!Q32 -> 0 | S83: =generation_mix_calcs!R32 -> 0 | T83: =generation_mix_calcs!S32 -> 0 | U83: =generation_mix_calcs!T32 -> 0 | V83: =generation_mix_calcs!U32 -> 0 | W83: =generation_mix_calcs!V32 -> 0 | X83: =generation_mix_calcs!W32 -> 0 | Y83: =generation_mix_calcs!X32 -> 0 | Z83: =generation_mix_calcs!Y32 -> 0
A84: air | B84: 1,1,1,2-Tetrachloroethane | C84: 3.100928179e-10 | D84: =generation_mix_calcs!C33 -> 0 | E84: =generation_mix_calcs!D33 -> 0 | F84: =generation_mix_calcs!E33 -> 2.419419302e-10 | G84: =generation_mix_calcs!F33 -> 0 | H84: =generation_mix_calcs!G33 -> 0 | I84: =generation_mix_calcs!H33 -> 4.916179364e-11 | J84: =generation_mix_calcs!I33 -> 0 | K84: =generation_mix_calcs!J33 -> 0 | L84: =generation_mix_calcs!K33 -> 7.047304825e-13 | M84: =generation_mix_calcs!L33 -> 0 | N84: =generation_mix_calcs!M33 -> 1.365181891e-11 | O84: =generation_mix_calcs!N33 -> 7.65476747e-15 | P84: =generation_mix_calcs!O33 -> 4.624889846e-12 | Q84: =generation_mix_calcs!P33 -> 0 | R84: =generation_mix_calcs!Q33 -> 0 | S84: =generation_mix_calcs!R33 -> 0 | T84: =generation_mix_calcs!S33 -> 0 | U84: =generation_mix_calcs!T33 -> 0 | V84: =generation_mix_calcs!U33 -> 0 | W84: =generation_mix_calcs!V33 -> 0 | X84: =generation_mix_calcs!W33 -> 0 | Y84: =generation_mix_calcs!X33 -> 0 | Z84: =generation_mix_calcs!Y33 -> 0
A85: air | B85: 1,1,1-Trichloroethane | C85: 1.946230343e-06 | D85: =generation_mix_calcs!C34 -> 5.620783823e-07 | E85: =generation_mix_calcs!D34 -> 0 | F85: =generation_mix_calcs!E34 -> 1.033160486e-06 | G85: =generation_mix_calcs!F34 -> 8.16339896e-15 | H85: =generation_mix_calcs!G34 -> 0 | I85: =generation_mix_calcs!H34 -> 1.148786906e-07 | J85: =generation_mix_calcs!I34 -> 3.278538127e-14 | K85: =generation_mix_calcs!J34 -> 0 | L85: =generation_mix_calcs!K34 -> 3.090507684e-09 | M85: =generation_mix_calcs!L34 -> 0 | N85: =generation_mix_calcs!M34 -> 2.308651504e-07 | O85: =generation_mix_calcs!N34 -> 5.86038888e-10 | P85: =generation_mix_calcs!O34 -> 1.571046136e-09 | Q85: =generation_mix_calcs!P34 -> 0 | R85: =generation_mix_calcs!Q34 -> 0 | S85: =generation_mix_calcs!R34 -> 0 | T85: =generation_mix_calcs!S34 -> 0 | U85: =generation_mix_calcs!T34 -> 0 | V85: =generation_mix_calcs!U34 -> 0 | W85: =generation_mix_calcs!V34 -> 0 | X85: =generation_mix_calcs!W34 -> 0 | Y85: =generation_mix_calcs!X34 -> 0 | Z85: =generation_mix_calcs!Y34 -> 0
A86: air | B86: 1,1,2,2-Tetrachloroethane | C86: 1.388923581e-06 | D86: =generation_mix_calcs!C35 -> 1.37488471e-06 | E86: =generation_mix_calcs!D35 -> 0 | F86: =generation_mix_calcs!E35 -> 1.246385932e-08 | G86: =generation_mix_calcs!F35 -> 0 | H86: =generation_mix_calcs!G35 -> 0 | I86: =generation_mix_calcs!H35 -> 1.473226588e-09 | J86: =generation_mix_calcs!I35 -> 0 | K86: =generation_mix_calcs!J35 -> 0 | L86: =generation_mix_calcs!K35 -> 3.868307863e-11 | M86: =generation_mix_calcs!L35 -> 0 | N86: =generation_mix_calcs!M35 -> 4.503326749e-11 | O86: =generation_mix_calcs!N35 -> 3.095177549e-14 | P86: =generation_mix_calcs!O35 -> 1.803789291e-11 | Q86: =generation_mix_calcs!P35 -> 0 | R86: =generation_mix_calcs!Q35 -> 0 | S86: =generation_mix_calcs!R35 -> 0 | T86: =generation_mix_calcs!S35 -> 0 | U86: =generation_mix_calcs!T35 -> 0 | V86: =generation_mix_calcs!U35 -> 0 | W86: =generation_mix_calcs!V35 -> 0 | X86: =generation_mix_calcs!W35 -> 0 | Y86: =generation_mix_calcs!X35 -> 0 | Z86: =generation_mix_calcs!Y35 -> 0
A87: air | B87: 1,1,2-Trichloroethane | C87: 1.540352007e-07 | D87: =generation_mix_calcs!C36 -> 6.220950044e-10 | E87: =generation_mix_calcs!D36 -> 0 | F87: =generation_mix_calcs!E36 -> 1.504241467e-08 | G87: =generation_mix_calcs!F36 -> 0 | H87: =generation_mix_calcs!G36 -> 0 | I87: =generation_mix_calcs!H36 -> 1.381122239e-07 | J87: =generation_mix_calcs!I36 -> 0 | K87: =generation_mix_calcs!J36 -> 0 | L87: =generation_mix_calcs!K36 -> 4.465938289e-11 | M87: =generation_mix_calcs!L36 -> 0 | N87: =generation_mix_calcs!M36 -> 1.575002393e-10 | O87: =generation_mix_calcs!N36 -> 8.89486794e-14 | P87: =generation_mix_calcs!O36 -> 5.621857663e-11 | Q87: =generation_mix_calcs!P36 -> 0 | R87: =generation_mix_calcs!Q36 -> 0 | S87: =generation_mix_calcs!R36 -> 0 | T87: =generation_mix_calcs!S36 -> 0 | U87: =generation_mix_calcs!T36 -> 0 | V87: =generation_mix_calcs!U36 -> 0 | W87: =generation_mix_calcs!V36 -> 0 | X87: =generation_mix_calcs!W36 -> 0 | Y87: =generation_mix_calcs!X36 -> 0 | Z87: =generation_mix_calcs!Y36 -> 0
A88: air | B88: 1,1-Dichloroethane | C88: 1.834738038e-06 | D88: =generation_mix_calcs!C37 -> 1.834737419e-06 | E88: =generation_mix_calcs!D37 -> 0 | F88: =generation_mix_calcs!E37 -> 3.069790813e-14 | G88: =generation_mix_calcs!F37 -> 0 | H88: =generation_mix_calcs!G37 -> 0 | I88: =generation_mix_calcs!H37 -> 1.771427822e-13 | J88: =generation_mix_calcs!I37 -> 0 | K88: =generation_mix_calcs!J37 -> 0 | L88: =generation_mix_calcs!K37 -> 4.111518173e-13 | M88: =generation_mix_calcs!L37 -> 0 | N88: =generation_mix_calcs!M37 -> 0 | O88: =generation_mix_calcs!N37 -> 0 | P88: =generation_mix_calcs!O37 -> 0 | Q88: =generation_mix_calcs!P37 -> 0 | R88: =generation_mix_calcs!Q37 -> 0 | S88: =generation_mix_calcs!R37 -> 0 | T88: =generation_mix_calcs!S37 -> 0 | U88: =generation_mix_calcs!T37 -> 0 | V88: =generation_mix_calcs!U37 -> 0 | W88: =generation_mix_calcs!V37 -> 0 | X88: =generation_mix_calcs!W37 -> 0 | Y88: =generation_mix_calcs!X37 -> 0 | Z88: =generation_mix_calcs!Y37 -> 0
A89: air | B89: 1,1-Dichloroethylene | C89: 1.566655364e-07 | D89: =generation_mix_calcs!C38 -> 1.449557109e-07 | E89: =generation_mix_calcs!D38 -> 0 | F89: =generation_mix_calcs!E38 -> 9.676042409e-09 | G89: =generation_mix_calcs!F38 -> 0 | H89: =generation_mix_calcs!G38 -> 0 | I89: =generation_mix_calcs!H38 -> 1.594579935e-09 | J89: =generation_mix_calcs!I38 -> 0 | K89: =generation_mix_calcs!J38 -> 0 | L89: =generation_mix_calcs!K38 -> 2.821927132e-11 | M89: =generation_mix_calcs!L38 -> 0 | N89: =generation_mix_calcs!M38 -> 3.083426596e-10 | O89: =generation_mix_calcs!N38 -> 1.865440487e-13 | P89: =generation_mix_calcs!O38 -> 1.024546942e-10 | Q89: =generation_mix_calcs!P38 -> 0 | R89: =generation_mix_calcs!Q38 -> 0 | S89: =generation_mix_calcs!R38 -> 0 | T89: =generation_mix_calcs!S38 -> 0 | U89: =generation_mix_calcs!T38 -> 0 | V89: =generation_mix_calcs!U38 -> 0 | W89: =generation_mix_calcs!V38 -> 0 | X89: =generation_mix_calcs!W38 -> 0 | Y89: =generation_mix_calcs!X38 -> 0 | Z89: =generation_mix_calcs!Y38 -> 0
A90: air | B90: 1,1-Dimethylhydrazine | C90: 3.994824762e-12 | D90: =generation_mix_calcs!C39 -> 0 | E90: =generation_mix_calcs!D39 -> 0 | F90: =generation_mix_calcs!E39 -> 3.603471896e-12 | G90: =generation_mix_calcs!F39 -> 0 | H90: =generation_mix_calcs!G39 -> 0 | I90: =generation_mix_calcs!H39 -> 3.808237165e-13 | J90: =generation_mix_calcs!I39 -> 0 | K90: =generation_mix_calcs!J39 -> 0 | L90: =generation_mix_calcs!K39 -> 1.052914946e-14 | M90: =generation_mix_calcs!L39 -> 0 | N90: =generation_mix_calcs!M39 -> 0 | O90: =generation_mix_calcs!N39 -> 0 | P90: =generation_mix_calcs!O39 -> 0 | Q90: =generation_mix_calcs!P39 -> 0 | R90: =generation_mix_calcs!Q39 -> 0 | S90: =generation_mix_calcs!R39 -> 0 | T90: =generation_mix_calcs!S39 -> 0 | U90: =generation_mix_calcs!T39 -> 0 | V90: =generation_mix_calcs!U39 -> 0 | W90: =generation_mix_calcs!V39 -> 0 | X90: =generation_mix_calcs!W39 -> 0 | Y90: =generation_mix_calcs!X39 -> 0 | Z90: =generation_mix_calcs!Y39 -> 0
A91: air | B91: 1,2,3,4,6,7,8,9-Octachlorodibenzo-p-dioxin | C91: 1.380721241e-16 | D91: =generation_mix_calcs!C40 -> 2.141546439e-18 | E91: =generation_mix_calcs!D40 -> 0 | F91: =generation_mix_calcs!E40 -> 6.923447333e-18 | G91: =generation_mix_calcs!F40 -> 0 | H91: =generation_mix_calcs!G40 -> 0 | I91: =generation_mix_calcs!H40 -> 3.627807726e-17 | J91: =generation_mix_calcs!I40 -> 0 | K91: =generation_mix_calcs!J40 -> 0 | L91: =generation_mix_calcs!K40 -> 9.272905312e-17 | M91: =generation_mix_calcs!L40 -> 0 | N91: =generation_mix_calcs!M40 -> 0 | O91: =generation_mix_calcs!N40 -> 0 | P91: =generation_mix_calcs!O40 -> 0 | Q91: =generation_mix_calcs!P40 -> 0 | R91: =generation_mix_calcs!Q40 -> 0 | S91: =generation_mix_calcs!R40 -> 0 | T91: =generation_mix_calcs!S40 -> 0 | U91: =generation_mix_calcs!T40 -> 0 | V91: =generation_mix_calcs!U40 -> 0 | W91: =generation_mix_calcs!V40 -> 0 | X91: =generation_mix_calcs!W40 -> 0 | Y91: =generation_mix_calcs!X40 -> 0 | Z91: =generation_mix_calcs!Y40 -> 0
A92: air | B92: 1,2,3,4,6,7,8,9-Octachlorodibenzofuran | C92: 8.851030631e-17 | D92: =generation_mix_calcs!C41 -> 1.371578036e-18 | E92: =generation_mix_calcs!D41 -> 0 | F92: =generation_mix_calcs!E41 -> 4.434201436e-18 | G92: =generation_mix_calcs!F41 -> 0 | H92: =generation_mix_calcs!G41 -> 0 | I92: =generation_mix_calcs!H41 -> 2.331513877e-17 | J92: =generation_mix_calcs!I41 -> 0 | K92: =generation_mix_calcs!J41 -> 0 | L92: =generation_mix_calcs!K41 -> 5.938938807e-17 | M92: =generation_mix_calcs!L41 -> 0 | N92: =generation_mix_calcs!M41 -> 0 | O92: =generation_mix_calcs!N41 -> 0 | P92: =generation_mix_calcs!O41 -> 0 | Q92: =generation_mix_calcs!P41 -> 0 | R92: =generation_mix_calcs!Q41 -> 0 | S92: =generation_mix_calcs!R41 -> 0 | T92: =generation_mix_calcs!S41 -> 0 | U92: =generation_mix_calcs!T41 -> 0 | V92: =generation_mix_calcs!U41 -> 0 | W92: =generation_mix_calcs!V41 -> 0 | X92: =generation_mix_calcs!W41 -> 0 | Y92: =generation_mix_calcs!X41 -> 0 | Z92: =generation_mix_calcs!Y41 -> 0
A93: air | B93: 1,2,3,4,6,7,8-Heptachlorodibenzo-p-dioxin | C93: 8.597803206e-17 | D93: =generation_mix_calcs!C42 -> 1.332598024e-18 | E93: =generation_mix_calcs!D42 -> 0 | F93: =generation_mix_calcs!E42 -> 4.308182194e-18 | G93: =generation_mix_calcs!F42 -> 0 | H93: =generation_mix_calcs!G42 -> 0 | I93: =generation_mix_calcs!H42 -> 2.263569996e-17 | J93: =generation_mix_calcs!I42 -> 0 | K93: =generation_mix_calcs!J42 -> 0 | L93: =generation_mix_calcs!K42 -> 5.770155189e-17 | M93: =generation_mix_calcs!L42 -> 0 | N93: =generation_mix_calcs!M42 -> 0 | O93: =generation_mix_calcs!N42 -> 0 | P93: =generation_mix_calcs!O42 -> 0 | Q93: =generation_mix_calcs!P42 -> 0 | R93: =generation_mix_calcs!Q42 -> 0 | S93: =generation_mix_calcs!R42 -> 0 | T93: =generation_mix_calcs!S42 -> 0 | U93: =generation_mix_calcs!T42 -> 0 | V93: =generation_mix_calcs!U42 -> 0 | W93: =generation_mix_calcs!V42 -> 0 | X93: =generation_mix_calcs!W42 -> 0 | Y93: =generation_mix_calcs!X42 -> 0 | Z93: =generation_mix_calcs!Y42 -> 0
A94: air | B94: 1,2,3,4,6,7,8-Heptachlorodibenzofuran | C94: 3.157420324e-16 | D94: =generation_mix_calcs!C43 -> 4.894190807e-18 | E94: =generation_mix_calcs!D43 -> 0 | F94: =generation_mix_calcs!E43 -> 1.582252511e-17 | G94: =generation_mix_calcs!F43 -> 0 | H94: =generation_mix_calcs!G43 -> 0 | I94: =generation_mix_calcs!H43 -> 8.310664358e-17 | J94: =generation_mix_calcs!I43 -> 0 | K94: =generation_mix_calcs!J43 -> 0 | L94: =generation_mix_calcs!K43 -> 2.119186729e-16 | M94: =generation_mix_calcs!L43 -> 0 | N94: =generation_mix_calcs!M43 -> 0 | O94: =generation_mix_calcs!N43 -> 0 | P94: =generation_mix_calcs!O43 -> 0 | Q94: =generation_mix_calcs!P43 -> 0 | R94: =generation_mix_calcs!Q43 -> 0 | S94: =generation_mix_calcs!R43 -> 0 | T94: =generation_mix_calcs!S43 -> 0 | U94: =generation_mix_calcs!T43 -> 0 | V94: =generation_mix_calcs!U43 -> 0 | W94: =generation_mix_calcs!V43 -> 0 | X94: =generation_mix_calcs!W43 -> 0 | Y94: =generation_mix_calcs!X43 -> 0 | Z94: =generation_mix_calcs!Y43 -> 0
A95: air | B95: 1,2,3,4,7,8,9-Heptachlorodibenzofuran | C95: 5.554607301e-17 | D95: =generation_mix_calcs!C44 -> 8.595460782e-19 | E95: =generation_mix_calcs!D44 -> 0 | F95: =generation_mix_calcs!E44 -> 2.778843314e-18 | G95: =generation_mix_calcs!F44 -> 0 | H95: =generation_mix_calcs!G44 -> 0 | I95: =generation_mix_calcs!H44 -> 1.468930138e-17 | J95: =generation_mix_calcs!I44 -> 0 | K95: =generation_mix_calcs!J44 -> 0 | L95: =generation_mix_calcs!K44 -> 3.721838224e-17 | M95: =generation_mix_calcs!L44 -> 0 | N95: =generation_mix_calcs!M44 -> 0 | O95: =generation_mix_calcs!N44 -> 0 | P95: =generation_mix_calcs!O44 -> 0 | Q95: =generation_mix_calcs!P44 -> 0 | R95: =generation_mix_calcs!Q44 -> 0 | S95: =generation_mix_calcs!R44 -> 0 | T95: =generation_mix_calcs!S44 -> 0 | U95: =generation_mix_calcs!T44 -> 0 | V95: =generation_mix_calcs!U44 -> 0 | W95: =generation_mix_calcs!V44 -> 0 | X95: =generation_mix_calcs!W44 -> 0 | Y95: =generation_mix_calcs!X44 -> 0 | Z95: =generation_mix_calcs!Y44 -> 0
A96: air | B96: 1,2,3,4,7,8-Hexachlorodibenzo-p-dioxin | C96: 1.771349219e-17 | D96: =generation_mix_calcs!C45 -> 2.740875022e-19 | E96: =generation_mix_calcs!D45 -> 0 | F96: =generation_mix_calcs!E45 -> 8.861028423e-19 | G96: =generation_mix_calcs!F45 -> 0 | H96: =generation_mix_calcs!G45 -> 0 | I96: =generation_mix_calcs!H45 -> 4.685301183e-18 | J96: =generation_mix_calcs!I45 -> 0 | K96: =generation_mix_calcs!J45 -> 0 | L96: =generation_mix_calcs!K45 -> 1.186800066e-17 | M96: =generation_mix_calcs!L45 -> 0 | N96: =generation_mix_calcs!M45 -> 0 | O96: =generation_mix_calcs!N45 -> 0 | P96: =generation_mix_calcs!O45 -> 0 | Q96: =generation_mix_calcs!P45 -> 0 | R96: =generation_mix_calcs!Q45 -> 0 | S96: =generation_mix_calcs!R45 -> 0 | T96: =generation_mix_calcs!S45 -> 0 | U96: =generation_mix_calcs!T45 -> 0 | V96: =generation_mix_calcs!U45 -> 0 | W96: =generation_mix_calcs!V45 -> 0 | X96: =generation_mix_calcs!W45 -> 0 | Y96: =generation_mix_calcs!X45 -> 0 | Z96: =generation_mix_calcs!Y45 -> 0
A97: air | B97: 1,2,3,4,7,8-Hexachlorodibenzofuran | C97: 1.151277822e-16 | D97: =generation_mix_calcs!C46 -> 1.783423513e-18 | E97: =generation_mix_calcs!D46 -> 0 | F97: =generation_mix_calcs!E46 -> 5.765664729e-18 | G97: =generation_mix_calcs!F46 -> 0 | H97: =generation_mix_calcs!G46 -> 0 | I97: =generation_mix_calcs!H46 -> 3.035637896e-17 | J97: =generation_mix_calcs!I46 -> 0 | K97: =generation_mix_calcs!J46 -> 0 | L97: =generation_mix_calcs!K46 -> 7.7222315e-17 | M97: =generation_mix_calcs!L46 -> 0 | N97: =generation_mix_calcs!M46 -> 0 | O97: =generation_mix_calcs!N46 -> 0 | P97: =generation_mix_calcs!O46 -> 0 | Q97: =generation_mix_calcs!P46 -> 0 | R97: =generation_mix_calcs!Q46 -> 0 | S97: =generation_mix_calcs!R46 -> 0 | T97: =generation_mix_calcs!S46 -> 0 | U97: =generation_mix_calcs!T46 -> 0 | V97: =generation_mix_calcs!U46 -> 0 | W97: =generation_mix_calcs!V46 -> 0 | X97: =generation_mix_calcs!W46 -> 0 | Y97: =generation_mix_calcs!X46 -> 0 | Z97: =generation_mix_calcs!Y46 -> 0
A98: air | B98: 1,2,3,6,7,8-Hexachlorodibenzo-p-dioxin | C98: 2.583629116e-17 | D98: =generation_mix_calcs!C47 -> 4.000926885e-19 | E98: =generation_mix_calcs!D47 -> 0 | F98: =generation_mix_calcs!E47 -> 1.293467471e-18 | G98: =generation_mix_calcs!F47 -> 0 | H98: =generation_mix_calcs!G47 -> 0 | I98: =generation_mix_calcs!H47 -> 6.818700343e-18 | J98: =generation_mix_calcs!I47 -> 0 | K98: =generation_mix_calcs!J47 -> 0 | L98: =generation_mix_calcs!K47 -> 1.732403066e-17 | M98: =generation_mix_calcs!L47 -> 0 | N98: =generation_mix_calcs!M47 -> 0 | O98: =generation_mix_calcs!N47 -> 0 | P98: =generation_mix_calcs!O47 -> 0 | Q98: =generation_mix_calcs!P47 -> 0 | R98: =generation_mix_calcs!Q47 -> 0 | S98: =generation_mix_calcs!R47 -> 0 | T98: =generation_mix_calcs!S47 -> 0 | U98: =generation_mix_calcs!T47 -> 0 | V98: =generation_mix_calcs!U47 -> 0 | W98: =generation_mix_calcs!V47 -> 0 | X98: =generation_mix_calcs!W47 -> 0 | Y98: =generation_mix_calcs!X47 -> 0 | Z98: =generation_mix_calcs!Y47 -> 0
A99: air | B99: 1,2,3,6,7,8-Hexachlorodibenzofuran | C99: 1.228440922e-16 | D99: =generation_mix_calcs!C48 -> 1.901177886e-18 | E99: =generation_mix_calcs!D48 -> 0 | F99: =generation_mix_calcs!E48 -> 6.146355141e-18 | G99: =generation_mix_calcs!F48 -> 0 | H99: =generation_mix_calcs!G48 -> 0 | I99: =generation_mix_calcs!H48 -> 3.247547479e-17 | J99: =generation_mix_calcs!I48 -> 0 | K99: =generation_mix_calcs!J48 -> 0 | L99: =generation_mix_calcs!K48 -> 8.232108442e-17 | M99: =generation_mix_calcs!L48 -> 0 | N99: =generation_mix_calcs!M48 -> 0 | O99: =generation_mix_calcs!N48 -> 0 | P99: =generation_mix_calcs!O48 -> 0 | Q99: =generation_mix_calcs!P48 -> 0 | R99: =generation_mix_calcs!Q48 -> 0 | S99: =generation_mix_calcs!R48 -> 0 | T99: =generation_mix_calcs!S48 -> 0 | U99: =generation_mix_calcs!T48 -> 0 | V99: =generation_mix_calcs!U48 -> 0 | W99: =generation_mix_calcs!V48 -> 0 | X99: =generation_mix_calcs!W48 -> 0 | Y99: =generation_mix_calcs!X48 -> 0 | Z99: =generation_mix_calcs!Y48 -> 0
A100: air | B100: 1,2,3,7,8,9-Hexachlorodibenzo-p-dioxin | C100: 2.045081958e-17 | D100: =generation_mix_calcs!C49 -> 3.166526121e-19 | E100: =generation_mix_calcs!D49 -> 0 | F100: =generation_mix_calcs!E49 -> 1.023712418e-18 | G100: =generation_mix_calcs!F49 -> 0 | H100: =generation_mix_calcs!G49 -> 0 | I100: =generation_mix_calcs!H49 -> 5.399382798e-18 | J100: =generation_mix_calcs!I49 -> 0 | K100: =generation_mix_calcs!J49 -> 0 | L100: =generation_mix_calcs!K49 -> 1.371107175e-17 | M100: =generation_mix_calcs!L49 -> 0 | N100: =generation_mix_calcs!M49 -> 0 | O100: =generation_mix_calcs!N49 -> 0 | P100: =generation_mix_calcs!O49 -> 0 | Q100: =generation_mix_calcs!P49 -> 0 | R100: =generation_mix_calcs!Q49 -> 0 | S100: =generation_mix_calcs!R49 -> 0 | T100: =generation_mix_calcs!S49 -> 0 | U100: =generation_mix_calcs!T49 -> 0 | V100: =generation_mix_calcs!U49 -> 0 | W100: =generation_mix_calcs!V49 -> 0 | X100: =generation_mix_calcs!W49 -> 0 | Y100: =generation_mix_calcs!X49 -> 0 | Z100: =generation_mix_calcs!Y49 -> 0
A101: air | B101: 1,2,3,7,8,9-Hexachlorodibenzofuran | C101: 4.68100787e-17 | D101: =generation_mix_calcs!C50 -> 7.246147521e-19 | E101: =generation_mix_calcs!D50 -> 0 | F101: =generation_mix_calcs!E50 -> 2.342621193e-18 | G101: =generation_mix_calcs!F50 -> 0 | H101: =generation_mix_calcs!G50 -> 0 | I101: =generation_mix_calcs!H50 -> 1.236699275e-17 | J101: =generation_mix_calcs!I50 -> 0 | K101: =generation_mix_calcs!J50 -> 0 | L101: =generation_mix_calcs!K50 -> 3.137585001e-17 | M101: =generation_mix_calcs!L50 -> 0 | N101: =generation_mix_calcs!M50 -> 0 | O101: =generation_mix_calcs!N50 -> 0 | P101: =generation_mix_calcs!O50 -> 0 | Q101: =generation_mix_calcs!P50 -> 0 | R101: =generation_mix_calcs!Q50 -> 0 | S101: =generation_mix_calcs!R50 -> 0 | T101: =generation_mix_calcs!S50 -> 0 | U101: =generation_mix_calcs!T50 -> 0 | V101: =generation_mix_calcs!U50 -> 0 | W101: =generation_mix_calcs!V50 -> 0 | X101: =generation_mix_calcs!W50 -> 0 | Y101: =generation_mix_calcs!X50 -> 0 | Z101: =generation_mix_calcs!Y50 -> 0
A102: air | B102: 1,2,3,7,8-Pentachlorodibenzo-p-dioxin | C102: 1.787418201e-17 | D102: =generation_mix_calcs!C51 -> 2.764581364e-19 | E102: =generation_mix_calcs!D51 -> 0 | F102: =generation_mix_calcs!E51 -> 8.937669118e-19 | G102: =generation_mix_calcs!F51 -> 0 | H102: =generation_mix_calcs!G51 -> 0 | I102: =generation_mix_calcs!H51 -> 4.733307734e-18 | J102: =generation_mix_calcs!I51 -> 0 | K102: =generation_mix_calcs!J51 -> 0 | L102: =generation_mix_calcs!K51 -> 1.197064922e-17 | M102: =generation_mix_calcs!L51 -> 0 | N102: =generation_mix_calcs!M51 -> 0 | O102: =generation_mix_calcs!N51 -> 0 | P102: =generation_mix_calcs!O51 -> 0 | Q102: =generation_mix_calcs!P51 -> 0 | R102: =generation_mix_calcs!Q51 -> 0 | S102: =generation_mix_calcs!R51 -> 0 | T102: =generation_mix_calcs!S51 -> 0 | U102: =generation_mix_calcs!T51 -> 0 | V102: =generation_mix_calcs!U51 -> 0 | W102: =generation_mix_calcs!V51 -> 0 | X102: =generation_mix_calcs!W51 -> 0 | Y102: =generation_mix_calcs!X51 -> 0 | Z102: =generation_mix_calcs!Y51 -> 0
A103: air | B103: 1,2,3,7,8-Pentachlorodibenzofuran | C103: 1.086066103e-16 | D103: =generation_mix_calcs!C52 -> 1.679268477e-18 | E103: =generation_mix_calcs!D52 -> 0 | F103: =generation_mix_calcs!E52 -> 5.428939876e-18 | G103: =generation_mix_calcs!F52 -> 0 | H103: =generation_mix_calcs!G52 -> 0 | I103: =generation_mix_calcs!H52 -> 2.878600448e-17 | J103: =generation_mix_calcs!I52 -> 0 | K103: =generation_mix_calcs!J52 -> 0 | L103: =generation_mix_calcs!K52 -> 7.271239743e-17 | M103: =generation_mix_calcs!L52 -> 0 | N103: =generation_mix_calcs!M52 -> 0 | O103: =generation_mix_calcs!N52 -> 0 | P103: =generation_mix_calcs!O52 -> 0 | Q103: =generation_mix_calcs!P52 -> 0 | R103: =generation_mix_calcs!Q52 -> 0 | S103: =generation_mix_calcs!R52 -> 0 | T103: =generation_mix_calcs!S52 -> 0 | U103: =generation_mix_calcs!T52 -> 0 | V103: =generation_mix_calcs!U52 -> 0 | W103: =generation_mix_calcs!V52 -> 0 | X103: =generation_mix_calcs!W52 -> 0 | Y103: =generation_mix_calcs!X52 -> 0 | Z103: =generation_mix_calcs!Y52 -> 0
A104: air | B104: 1,2,3-Trichloropropane | C104: 0 | D104: =generation_mix_calcs!C53 -> 0 | E104: =generation_mix_calcs!D53 -> 0 | F104: =generation_mix_calcs!E53 -> 0 | G104: =generation_mix_calcs!F53 -> 0 | H104: =generation_mix_calcs!G53 -> 0 | I104: =generation_mix_calcs!H53 -> 0 | J104: =generation_mix_calcs!I53 -> 0 | K104: =generation_mix_calcs!J53 -> 0 | L104: =generation_mix_calcs!K53 -> 0 | M104: =generation_mix_calcs!L53 -> 0 | N104: =generation_mix_calcs!M53 -> 0 | O104: =generation_mix_calcs!N53 -> 0 | P104: =generation_mix_calcs!O53 -> 0 | Q104: =generation_mix_calcs!P53 -> 0 | R104: =generation_mix_calcs!Q53 -> 0 | S104: =generation_mix_calcs!R53 -> 0 | T104: =generation_mix_calcs!S53 -> 0 | U104: =generation_mix_calcs!T53 -> 0 | V104: =generation_mix_calcs!U53 -> 0 | W104: =generation_mix_calcs!V53 -> 0 | X104: =generation_mix_calcs!W53 -> 0 | Y104: =generation_mix_calcs!X53 -> 0 | Z104: =generation_mix_calcs!Y53 -> 0
A105: air | B105: 1,2,3-Trimethylbenzene | C105: 0 | D105: =generation_mix_calcs!C54 -> 0 | E105: =generation_mix_calcs!D54 -> 0 | F105: =generation_mix_calcs!E54 -> 0 | G105: =generation_mix_calcs!F54 -> 0 | H105: =generation_mix_calcs!G54 -> 0 | I105: =generation_mix_calcs!H54 -> 0 | J105: =generation_mix_calcs!I54 -> 0 | K105: =generation_mix_calcs!J54 -> 0 | L105: =generation_mix_calcs!K54 -> 0 | M105: =generation_mix_calcs!L54 -> 0 | N105: =generation_mix_calcs!M54 -> 0 | O105: =generation_mix_calcs!N54 -> 0 | P105: =generation_mix_calcs!O54 -> 0 | Q105: =generation_mix_calcs!P54 -> 0 | R105: =generation_mix_calcs!Q54 -> 0 | S105: =generation_mix_calcs!R54 -> 0 | T105: =generation_mix_calcs!S54 -> 0 | U105: =generation_mix_calcs!T54 -> 0 | V105: =generation_mix_calcs!U54 -> 0 | W105: =generation_mix_calcs!V54 -> 0 | X105: =generation_mix_calcs!W54 -> 0 | Y105: =generation_mix_calcs!X54 -> 0 | Z105: =generation_mix_calcs!Y54 -> 0
A106: air | B106: 1,2,4-Trichlorobenzene | C106: 3.629141209e-08 | D106: =generation_mix_calcs!C55 -> 9.739569106e-15 | E106: =generation_mix_calcs!D55 -> 0 | F106: =generation_mix_calcs!E55 -> 3.280972368e-08 | G106: =generation_mix_calcs!F55 -> 0 | H106: =generation_mix_calcs!G55 -> 0 | I106: =generation_mix_calcs!H55 -> 3.36655794e-09 | J106: =generation_mix_calcs!I55 -> 0 | K106: =generation_mix_calcs!J55 -> 0 | L106: =generation_mix_calcs!K55 -> 9.629933919e-11 | M106: =generation_mix_calcs!L55 -> 0 | N106: =generation_mix_calcs!M55 -> 1.405255176e-11 | O106: =generation_mix_calcs!N55 -> 1.021032891e-14 | P106: =generation_mix_calcs!O55 -> 4.758624276e-12 | Q106: =generation_mix_calcs!P55 -> 0 | R106: =generation_mix_calcs!Q55 -> 0 | S106: =generation_mix_calcs!R55 -> 0 | T106: =generation_mix_calcs!S55 -> 0 | U106: =generation_mix_calcs!T55 -> 0 | V106: =generation_mix_calcs!U55 -> 0 | W106: =generation_mix_calcs!V55 -> 0 | X106: =generation_mix_calcs!W55 -> 0 | Y106: =generation_mix_calcs!X55 -> 0 | Z106: =generation_mix_calcs!Y55 -> 0
A107: air | B107: 1,2,4-Trimethylbenzene | C107: 1.332873209e-06 | D107: =generation_mix_calcs!C56 -> 2.313055545e-10 | E107: =generation_mix_calcs!D56 -> 0 | F107: =generation_mix_calcs!E56 -> 6.772895595e-07 | G107: =generation_mix_calcs!F56 -> 0 | H107: =generation_mix_calcs!G56 -> 0 | I107: =generation_mix_calcs!H56 -> 1.671835552e-07 | J107: =generation_mix_calcs!I56 -> 0 | K107: =generation_mix_calcs!J56 -> 0 | L107: =generation_mix_calcs!K56 -> 1.198383249e-08 | M107: =generation_mix_calcs!L56 -> 0 | N107: =generation_mix_calcs!M56 -> 3.879812874e-07 | O107: =generation_mix_calcs!N56 -> 5.73517577e-10 | P107: =generation_mix_calcs!O56 -> 8.763015114e-08 | Q107: =generation_mix_calcs!P56 -> 0 | R107: =generation_mix_calcs!Q56 -> 0 | S107: =generation_mix_calcs!R56 -> 0 | T107: =generation_mix_calcs!S56 -> 0 | U107: =generation_mix_calcs!T56 -> 0 | V107: =generation_mix_calcs!U56 -> 0 | W107: =generation_mix_calcs!V56 -> 0 | X107: =generation_mix_calcs!W56 -> 0 | Y107: =generation_mix_calcs!X56 -> 0 | Z107: =generation_mix_calcs!Y56 -> 0
A108: air | B108: 1,2-Butylene oxide | C108: 1.149616992e-08 | D108: =generation_mix_calcs!C57 -> 0 | E108: =generation_mix_calcs!D57 -> 0 | F108: =generation_mix_calcs!E57 -> 1.04336166e-08 | G108: =generation_mix_calcs!F57 -> 0 | H108: =generation_mix_calcs!G57 -> 0 | I108: =generation_mix_calcs!H57 -> 9.280974701e-10 | J108: =generation_mix_calcs!I57 -> 0 | K108: =generation_mix_calcs!J57 -> 0 | L108: =generation_mix_calcs!K57 -> 3.050283809e-11 | M108: =generation_mix_calcs!L57 -> 0 | N108: =generation_mix_calcs!M57 -> 7.95676278e-11 | O108: =generation_mix_calcs!N57 -> 1.395145407e-13 | P108: =generation_mix_calcs!O57 -> 2.424587576e-11 | Q108: =generation_mix_calcs!P57 -> 0 | R108: =generation_mix_calcs!Q57 -> 0 | S108: =generation_mix_calcs!R57 -> 0 | T108: =generation_mix_calcs!S57 -> 0 | U108: =generation_mix_calcs!T57 -> 0 | V108: =generation_mix_calcs!U57 -> 0 | W108: =generation_mix_calcs!V57 -> 0 | X108: =generation_mix_calcs!W57 -> 0 | Y108: =generation_mix_calcs!X57 -> 0 | Z108: =generation_mix_calcs!Y57 -> 0
A109: air | B109: 1,2-Dibromo-3-chloropropane | C109: 4.095440084e-11 | D109: =generation_mix_calcs!C58 -> 0 | E109: =generation_mix_calcs!D58 -> 0 | F109: =generation_mix_calcs!E58 -> 3.589262971e-11 | G109: =generation_mix_calcs!F58 -> 0 | H109: =generation_mix_calcs!G58 -> 0 | I109: =generation_mix_calcs!H58 -> 4.944189794e-12 | J109: =generation_mix_calcs!I58 -> 0 | K109: =generation_mix_calcs!J58 -> 0 | L109: =generation_mix_calcs!K58 -> 1.04768396e-13 | M109: =generation_mix_calcs!L58 -> 0 | N109: =generation_mix_calcs!M58 -> 9.566721175e-15 | O109: =generation_mix_calcs!N58 -> 5.263255793e-18 | P109: =generation_mix_calcs!O58 -> 3.240963156e-15 | Q109: =generation_mix_calcs!P58 -> 0 | R109: =generation_mix_calcs!Q58 -> 0 | S109: =generation_mix_calcs!R58 -> 0 | T109: =generation_mix_calcs!S58 -> 0 | U109: =generation_mix_calcs!T58 -> 0 | V109: =generation_mix_calcs!U58 -> 0 | W109: =generation_mix_calcs!V58 -> 0 | X109: =generation_mix_calcs!W58 -> 0 | Y109: =generation_mix_calcs!X58 -> 0 | Z109: =generation_mix_calcs!Y58 -> 0
A110: air | B110: 1,2-Dichloroethane | C110: 7.281814745e-07 | D110: =generation_mix_calcs!C59 -> 3.506799871e-07 | E110: =generation_mix_calcs!D59 -> 0 | F110: =generation_mix_calcs!E59 -> 8.8529657e-08 | G110: =generation_mix_calcs!F59 -> 0 | H110: =generation_mix_calcs!G59 -> 0 | I110: =generation_mix_calcs!H59 -> 2.859097577e-07 | J110: =generation_mix_calcs!I59 -> 0 | K110: =generation_mix_calcs!J59 -> 0 | L110: =generation_mix_calcs!K59 -> 3.139118666e-10 | M110: =generation_mix_calcs!L59 -> 0 | N110: =generation_mix_calcs!M59 -> 2.042214833e-09 | O110: =generation_mix_calcs!N59 -> 1.454929963e-12 | P110: =generation_mix_calcs!O59 -> 7.044911462e-10 | Q110: =generation_mix_calcs!P59 -> 0 | R110: =generation_mix_calcs!Q59 -> 0 | S110: =generation_mix_calcs!R59 -> 0 | T110: =generation_mix_calcs!S59 -> 0 | U110: =generation_mix_calcs!T59 -> 0 | V110: =generation_mix_calcs!U59 -> 0 | W110: =generation_mix_calcs!V59 -> 0 | X110: =generation_mix_calcs!W59 -> 0 | Y110: =generation_mix_calcs!X59 -> 0 | Z110: =generation_mix_calcs!Y59 -> 0
A111: air | B111: 1,2-Dichloroethylene | C111: 9.3018574e-07 | D111: =generation_mix_calcs!C60 -> 0 | E111: =generation_mix_calcs!D60 -> 0 | F111: =generation_mix_calcs!E60 -> 7.824178785e-07 | G111: =generation_mix_calcs!F60 -> 0 | H111: =generation_mix_calcs!G60 -> 0 | I111: =generation_mix_calcs!H60 -> 1.454083281e-07 | J111: =generation_mix_calcs!I60 -> 0 | K111: =generation_mix_calcs!J60 -> 0 | L111: =generation_mix_calcs!K60 -> 2.280301523e-09 | M111: =generation_mix_calcs!L60 -> 0 | N111: =generation_mix_calcs!M60 -> 5.91578827e-11 | O111: =generation_mix_calcs!N60 -> 3.272488037e-14 | P111: =generation_mix_calcs!O60 -> 2.004119671e-11 | Q111: =generation_mix_calcs!P60 -> 0 | R111: =generation_mix_calcs!Q60 -> 0 | S111: =generation_mix_calcs!R60 -> 0 | T111: =generation_mix_calcs!S60 -> 0 | U111: =generation_mix_calcs!T60 -> 0 | V111: =generation_mix_calcs!U60 -> 0 | W111: =generation_mix_calcs!V60 -> 0 | X111: =generation_mix_calcs!W60 -> 0 | Y111: =generation_mix_calcs!X60 -> 0 | Z111: =generation_mix_calcs!Y60 -> 0
A112: air | B112: 1,2-Dichloropropane | C112: 1.891924337e-07 | D112: =generation_mix_calcs!C61 -> 1.715867441e-07 | E112: =generation_mix_calcs!D61 -> 0 | F112: =generation_mix_calcs!E61 -> 1.564982276e-08 | G112: =generation_mix_calcs!F61 -> 0 | H112: =generation_mix_calcs!G61 -> 0 | I112: =generation_mix_calcs!H61 -> 1.902719772e-09 | J112: =generation_mix_calcs!I61 -> 0 | K112: =generation_mix_calcs!J61 -> 0 | L112: =generation_mix_calcs!K61 -> 4.614711317e-11 | M112: =generation_mix_calcs!L61 -> 0 | N112: =generation_mix_calcs!M61 -> 5.761498949e-12 | O112: =generation_mix_calcs!N61 -> 2.34265458e-14 | P112: =generation_mix_calcs!O61 -> 1.215062521e-12 | Q112: =generation_mix_calcs!P61 -> 0 | R112: =generation_mix_calcs!Q61 -> 0 | S112: =generation_mix_calcs!R61 -> 0 | T112: =generation_mix_calcs!S61 -> 0 | U112: =generation_mix_calcs!T61 -> 0 | V112: =generation_mix_calcs!U61 -> 0 | W112: =generation_mix_calcs!V61 -> 0 | X112: =generation_mix_calcs!W61 -> 0 | Y112: =generation_mix_calcs!X61 -> 0 | Z112: =generation_mix_calcs!Y61 -> 0
A113: air | B113: 1,2-Diphenylhydrazine | C113: 1.275492514e-12 | D113: =generation_mix_calcs!C62 -> 0 | E113: =generation_mix_calcs!D62 -> 0 | F113: =generation_mix_calcs!E62 -> 1.147320074e-12 | G113: =generation_mix_calcs!F62 -> 0 | H113: =generation_mix_calcs!G62 -> 0 | I113: =generation_mix_calcs!H62 -> 1.248203673e-13 | J113: =generation_mix_calcs!I62 -> 0 | K113: =generation_mix_calcs!J62 -> 0 | L113: =generation_mix_calcs!K62 -> 3.352072403e-15 | M113: =generation_mix_calcs!L62 -> 0 | N113: =generation_mix_calcs!M62 -> 0 | O113: =generation_mix_calcs!N62 -> 0 | P113: =generation_mix_calcs!O62 -> 0 | Q113: =generation_mix_calcs!P62 -> 0 | R113: =generation_mix_calcs!Q62 -> 0 | S113: =generation_mix_calcs!R62 -> 0 | T113: =generation_mix_calcs!S62 -> 0 | U113: =generation_mix_calcs!T62 -> 0 | V113: =generation_mix_calcs!U62 -> 0 | W113: =generation_mix_calcs!V62 -> 0 | X113: =generation_mix_calcs!W62 -> 0 | Y113: =generation_mix_calcs!X62 -> 0 | Z113: =generation_mix_calcs!Y62 -> 0
A114: air | B114: 1,2-Phenylenediamine | C114: 2.777367405e-10 | D114: =generation_mix_calcs!C63 -> 0 | E114: =generation_mix_calcs!D63 -> 0 | F114: =generation_mix_calcs!E63 -> 2.465533656e-10 | G114: =generation_mix_calcs!F63 -> 0 | H114: =generation_mix_calcs!G63 -> 0 | I114: =generation_mix_calcs!H63 -> 3.046298189e-11 | J114: =generation_mix_calcs!I63 -> 0 | K114: =generation_mix_calcs!J63 -> 0 | L114: =generation_mix_calcs!K63 -> 7.20002369e-13 | M114: =generation_mix_calcs!L63 -> 0 | N114: =generation_mix_calcs!M63 -> 0 | O114: =generation_mix_calcs!N63 -> 3.907038626e-16 | P114: =generation_mix_calcs!O63 -> 0 | Q114: =generation_mix_calcs!P63 -> 0 | R114: =generation_mix_calcs!Q63 -> 0 | S114: =generation_mix_calcs!R63 -> 0 | T114: =generation_mix_calcs!S63 -> 0 | U114: =generation_mix_calcs!T63 -> 0 | V114: =generation_mix_calcs!U63 -> 0 | W114: =generation_mix_calcs!V63 -> 0 | X114: =generation_mix_calcs!W63 -> 0 | Y114: =generation_mix_calcs!X63 -> 0 | Z114: =generation_mix_calcs!Y63 -> 0
A115: air | B115: 1,3,5-Trimethylbenzene | C115: 5.174458486e-14 | D115: =generation_mix_calcs!C64 -> 2.658233863e-19 | E115: =generation_mix_calcs!D64 -> 0 | F115: =generation_mix_calcs!E64 -> 8.593856204e-19 | G115: =generation_mix_calcs!F64 -> 0 | H115: =generation_mix_calcs!G64 -> 0 | I115: =generation_mix_calcs!H64 -> 1.908571933e-17 | J115: =generation_mix_calcs!I64 -> 0 | K115: =generation_mix_calcs!J64 -> 0 | L115: =generation_mix_calcs!K64 -> 1.151016409e-17 | M115: =generation_mix_calcs!L64 -> 0 | N115: =generation_mix_calcs!M64 -> 3.526169779e-15 | O115: =generation_mix_calcs!N64 -> 9.214196612e-17 | P115: =generation_mix_calcs!O64 -> 4.809455202e-14 | Q115: =generation_mix_calcs!P64 -> 0 | R115: =generation_mix_calcs!Q64 -> 0 | S115: =generation_mix_calcs!R64 -> 0 | T115: =generation_mix_calcs!S64 -> 0 | U115: =generation_mix_calcs!T64 -> 0 | V115: =generation_mix_calcs!U64 -> 0 | W115: =generation_mix_calcs!V64 -> 0 | X115: =generation_mix_calcs!W64 -> 0 | Y115: =generation_mix_calcs!X64 -> 0 | Z115: =generation_mix_calcs!Y64 -> 0
A116: air | B116: 1,3-Butadiene | C116: 3.59467303e-06 | D116: =generation_mix_calcs!C65 -> 4.361227679e-09 | E116: =generation_mix_calcs!D65 -> 0 | F116: =generation_mix_calcs!E65 -> 2.216029892e-06 | G116: =generation_mix_calcs!F65 -> 1.361594647e-12 | H116: =generation_mix_calcs!G65 -> 0 | I116: =generation_mix_calcs!H65 -> 2.945567058e-07 | J116: =generation_mix_calcs!I65 -> 1.012489716e-11 | K116: =generation_mix_calcs!J65 -> 0 | L116: =generation_mix_calcs!K65 -> 1.07439961e-06 | M116: =generation_mix_calcs!L65 -> 0 | N116: =generation_mix_calcs!M65 -> 4.773094532e-09 | O116: =generation_mix_calcs!N65 -> 1.293466119e-11 | P116: =generation_mix_calcs!O65 -> 5.280784253e-10 | Q116: =generation_mix_calcs!P65 -> 0 | R116: =generation_mix_calcs!Q65 -> 0 | S116: =generation_mix_calcs!R65 -> 0 | T116: =generation_mix_calcs!S65 -> 0 | U116: =generation_mix_calcs!T65 -> 0 | V116: =generation_mix_calcs!U65 -> 0 | W116: =generation_mix_calcs!V65 -> 0 | X116: =generation_mix_calcs!W65 -> 0 | Y116: =generation_mix_calcs!X65 -> 0 | Z116: =generation_mix_calcs!Y65 -> 0
A117: air | B117: 1,3-Dichloropropene | C117: 5.119966921e-09 | D117: =generation_mix_calcs!C66 -> 1.014972167e-14 | E117: =generation_mix_calcs!D66 -> 0 | F117: =generation_mix_calcs!E66 -> 4.532020963e-09 | G117: =generation_mix_calcs!F66 -> 0 | H117: =generation_mix_calcs!G66 -> 0 | I117: =generation_mix_calcs!H66 -> 5.609655164e-10 | J117: =generation_mix_calcs!I66 -> 0 | K117: =generation_mix_calcs!J66 -> 0 | L117: =generation_mix_calcs!K66 -> 1.367403545e-11 | M117: =generation_mix_calcs!L66 -> 0 | N117: =generation_mix_calcs!M66 -> 8.060783534e-12 | O117: =generation_mix_calcs!N66 -> 7.04877485e-15 | P117: =generation_mix_calcs!O66 -> 5.228424804e-12 | Q117: =generation_mix_calcs!P66 -> 0 | R117: =generation_mix_calcs!Q66 -> 0 | S117: =generation_mix_calcs!R66 -> 0 | T117: =generation_mix_calcs!S66 -> 0 | U117: =generation_mix_calcs!T66 -> 0 | V117: =generation_mix_calcs!U66 -> 0 | W117: =generation_mix_calcs!V66 -> 0 | X117: =generation_mix_calcs!W66 -> 0 | Y117: =generation_mix_calcs!X66 -> 0 | Z117: =generation_mix_calcs!Y66 -> 0
A118: air | B118: 1,3-Phenylenediamine | C118: 4.644630823e-10 | D118: =generation_mix_calcs!C67 -> 0 | E118: =generation_mix_calcs!D67 -> 0 | F118: =generation_mix_calcs!E67 -> 4.123934256e-10 | G118: =generation_mix_calcs!F67 -> 0 | H118: =generation_mix_calcs!G67 -> 0 | I118: =generation_mix_calcs!H67 -> 5.086534836e-11 | J118: =generation_mix_calcs!I67 -> 0 | K118: =generation_mix_calcs!J67 -> 0 | L118: =generation_mix_calcs!K67 -> 1.204308359e-12 | M118: =generation_mix_calcs!L67 -> 0 | N118: =generation_mix_calcs!M67 -> 0 | O118: =generation_mix_calcs!N67 -> 0 | P118: =generation_mix_calcs!O67 -> 0 | Q118: =generation_mix_calcs!P67 -> 0 | R118: =generation_mix_calcs!Q67 -> 0 | S118: =generation_mix_calcs!R67 -> 0 | T118: =generation_mix_calcs!S67 -> 0 | U118: =generation_mix_calcs!T67 -> 0 | V118: =generation_mix_calcs!U67 -> 0 | W118: =generation_mix_calcs!V67 -> 0 | X118: =generation_mix_calcs!W67 -> 0 | Y118: =generation_mix_calcs!X67 -> 0 | Z118: =generation_mix_calcs!Y67 -> 0
A119: air | B119: 1,3-Propane sultone | C119: 1.736687499e-11 | D119: =generation_mix_calcs!C68 -> 0 | E119: =generation_mix_calcs!D68 -> 0 | F119: =generation_mix_calcs!E68 -> 1.562198814e-11 | G119: =generation_mix_calcs!F68 -> 0 | H119: =generation_mix_calcs!G68 -> 0 | I119: =generation_mix_calcs!H68 -> 1.699244768e-12 | J119: =generation_mix_calcs!I68 -> 0 | K119: =generation_mix_calcs!J68 -> 0 | L119: =generation_mix_calcs!K68 -> 4.564207556e-14 | M119: =generation_mix_calcs!L68 -> 0 | N119: =generation_mix_calcs!M68 -> 0 | O119: =generation_mix_calcs!N68 -> 0 | P119: =generation_mix_calcs!O68 -> 0 | Q119: =generation_mix_calcs!P68 -> 0 | R119: =generation_mix_calcs!Q68 -> 0 | S119: =generation_mix_calcs!R68 -> 0 | T119: =generation_mix_calcs!S68 -> 0 | U119: =generation_mix_calcs!T68 -> 0 | V119: =generation_mix_calcs!U68 -> 0 | W119: =generation_mix_calcs!V68 -> 0 | X119: =generation_mix_calcs!W68 -> 0 | Y119: =generation_mix_calcs!X68 -> 0 | Z119: =generation_mix_calcs!Y68 -> 0
A120: air | B120: 1,4-Dichloro-2-butene | C120: 1.827903924e-10 | D120: =generation_mix_calcs!C69 -> 0 | E120: =generation_mix_calcs!D69 -> 0 | F120: =generation_mix_calcs!E69 -> 1.623734583e-10 | G120: =generation_mix_calcs!F69 -> 0 | H120: =generation_mix_calcs!G69 -> 0 | I120: =generation_mix_calcs!H69 -> 1.99427486e-11 | J120: =generation_mix_calcs!I69 -> 0 | K120: =generation_mix_calcs!J69 -> 0 | L120: =generation_mix_calcs!K69 -> 4.741855124e-13 | M120: =generation_mix_calcs!L69 -> 0 | N120: =generation_mix_calcs!M69 -> 0 | O120: =generation_mix_calcs!N69 -> 0 | P120: =generation_mix_calcs!O69 -> 0 | Q120: =generation_mix_calcs!P69 -> 0 | R120: =generation_mix_calcs!Q69 -> 0 | S120: =generation_mix_calcs!R69 -> 0 | T120: =generation_mix_calcs!S69 -> 0 | U120: =generation_mix_calcs!T69 -> 0 | V120: =generation_mix_calcs!U69 -> 0 | W120: =generation_mix_calcs!V69 -> 0 | X120: =generation_mix_calcs!W69 -> 0 | Y120: =generation_mix_calcs!X69 -> 0 | Z120: =generation_mix_calcs!Y69 -> 0
A121: air | B121: 1,4-Dioxane | C121: 4.750218561e-08 | D121: =generation_mix_calcs!C70 -> 3.921764631e-10 | E121: =generation_mix_calcs!D70 -> 0 | F121: =generation_mix_calcs!E70 -> 3.999448966e-08 | G121: =generation_mix_calcs!F70 -> 0 | H121: =generation_mix_calcs!G70 -> 0 | I121: =generation_mix_calcs!H70 -> 4.844053786e-09 | J121: =generation_mix_calcs!I70 -> 0 | K121: =generation_mix_calcs!J70 -> 0 | L121: =generation_mix_calcs!K70 -> 1.175956156e-10 | M121: =generation_mix_calcs!L70 -> 0 | N121: =generation_mix_calcs!M70 -> 2.141617392e-09 | O121: =generation_mix_calcs!N70 -> 5.597356476e-12 | P121: =generation_mix_calcs!O70 -> 6.65533168e-12 | Q121: =generation_mix_calcs!P70 -> 0 | R121: =generation_mix_calcs!Q70 -> 0 | S121: =generation_mix_calcs!R70 -> 0 | T121: =generation_mix_calcs!S70 -> 0 | U121: =generation_mix_calcs!T70 -> 0 | V121: =generation_mix_calcs!U70 -> 0 | W121: =generation_mix_calcs!V70 -> 0 | X121: =generation_mix_calcs!W70 -> 0 | Y121: =generation_mix_calcs!X70 -> 0 | Z121: =generation_mix_calcs!Y70 -> 0
A122: air | B122: 1-Butanol | C122: 3.375797046e-06 | D122: =generation_mix_calcs!C71 -> 5.294941227e-13 | E122: =generation_mix_calcs!D71 -> 0 | F122: =generation_mix_calcs!E71 -> 2.734339549e-06 | G122: =generation_mix_calcs!F71 -> 0 | H122: =generation_mix_calcs!G71 -> 0 | I122: =generation_mix_calcs!H71 -> 4.411681753e-07 | J122: =generation_mix_calcs!I71 -> 0 | K122: =generation_mix_calcs!J71 -> 0 | L122: =generation_mix_calcs!K71 -> 7.998263999e-09 | M122: =generation_mix_calcs!L71 -> 0 | N122: =generation_mix_calcs!M71 -> 1.701875941e-07 | O122: =generation_mix_calcs!N71 -> 3.049002342e-10 | P122: =generation_mix_calcs!O71 -> 2.179803402e-08 | Q122: =generation_mix_calcs!P71 -> 0 | R122: =generation_mix_calcs!Q71 -> 0 | S122: =generation_mix_calcs!R71 -> 0 | T122: =generation_mix_calcs!S71 -> 0 | U122: =generation_mix_calcs!T71 -> 0 | V122: =generation_mix_calcs!U71 -> 0 | W122: =generation_mix_calcs!V71 -> 0 | X122: =generation_mix_calcs!W71 -> 0 | Y122: =generation_mix_calcs!X71 -> 0 | Z122: =generation_mix_calcs!Y71 -> 0
A123: air | B123: 1-Butene | C123: 2.264200629e-09 | D123: =generation_mix_calcs!C72 -> 3.49002602e-15 | E123: =generation_mix_calcs!D72 -> 0 | F123: =generation_mix_calcs!E72 -> 1.128297333e-14 | G123: =generation_mix_calcs!F72 -> 1.113161397e-11 | H123: =generation_mix_calcs!G72 -> 0 | I123: =generation_mix_calcs!H72 -> 1.739142652e-13 | J123: =generation_mix_calcs!I72 -> 7.733492877e-10 | K123: =generation_mix_calcs!J72 -> 0 | L123: =generation_mix_calcs!K72 -> 1.511182771e-13 | M123: =generation_mix_calcs!L72 -> 0 | N123: =generation_mix_calcs!M72 -> 7.084541429e-11 | O123: =generation_mix_calcs!N72 -> 5.02171036e-14 | P123: =generation_mix_calcs!O72 -> 1.40848429e-09 | Q123: =generation_mix_calcs!P72 -> 0 | R123: =generation_mix_calcs!Q72 -> 0 | S123: =generation_mix_calcs!R72 -> 0 | T123: =generation_mix_calcs!S72 -> 0 | U123: =generation_mix_calcs!T72 -> 0 | V123: =generation_mix_calcs!U72 -> 0 | W123: =generation_mix_calcs!V72 -> 0 | X123: =generation_mix_calcs!W72 -> 0 | Y123: =generation_mix_calcs!X72 -> 0 | Z123: =generation_mix_calcs!Y72 -> 0
A124: air | B124: 1-Dodecanol | C124: 1.733684357e-12 | D124: =generation_mix_calcs!C73 -> 0 | E124: =generation_mix_calcs!D73 -> 0 | F124: =generation_mix_calcs!E73 -> 1.542326297e-12 | G124: =generation_mix_calcs!F73 -> 0 | H124: =generation_mix_calcs!G73 -> 0 | I124: =generation_mix_calcs!H73 -> 1.868537039e-13 | J124: =generation_mix_calcs!I73 -> 0 | K124: =generation_mix_calcs!J73 -> 0 | L124: =generation_mix_calcs!K73 -> 4.504356813e-15 | M124: =generation_mix_calcs!L73 -> 0 | N124: =generation_mix_calcs!M73 -> 0 | O124: =generation_mix_calcs!N73 -> 0 | P124: =generation_mix_calcs!O73 -> 0 | Q124: =generation_mix_calcs!P73 -> 0 | R124: =generation_mix_calcs!Q73 -> 0 | S124: =generation_mix_calcs!R73 -> 0 | T124: =generation_mix_calcs!S73 -> 0 | U124: =generation_mix_calcs!T73 -> 0 | V124: =generation_mix_calcs!U73 -> 0 | W124: =generation_mix_calcs!V73 -> 0 | X124: =generation_mix_calcs!W73 -> 0 | Y124: =generation_mix_calcs!X73 -> 0 | Z124: =generation_mix_calcs!Y73 -> 0
A125: air | B125: 1-Methoxy-2-propyl acetate | C125: 3.670095484e-10 | D125: =generation_mix_calcs!C74 -> 2.486393052e-17 | E125: =generation_mix_calcs!D74 -> 0 | F125: =generation_mix_calcs!E74 -> 8.03830869e-17 | G125: =generation_mix_calcs!F74 -> 2.638092296e-12 | H125: =generation_mix_calcs!G74 -> 0 | I125: =generation_mix_calcs!H74 -> 2.680997382e-15 | J125: =generation_mix_calcs!I74 -> 1.793553211e-10 | K125: =generation_mix_calcs!J74 -> 0 | L125: =generation_mix_calcs!K74 -> 1.076609264e-15 | M125: =generation_mix_calcs!L74 -> 0 | N125: =generation_mix_calcs!M74 -> 1.110040784e-12 | O125: =generation_mix_calcs!N74 -> 1.030299265e-14 | P125: =generation_mix_calcs!O74 -> 1.838919284e-10 | Q125: =generation_mix_calcs!P74 -> 0 | R125: =generation_mix_calcs!Q74 -> 0 | S125: =generation_mix_calcs!R74 -> 0 | T125: =generation_mix_calcs!S74 -> 0 | U125: =generation_mix_calcs!T74 -> 0 | V125: =generation_mix_calcs!U74 -> 0 | W125: =generation_mix_calcs!V74 -> 0 | X125: =generation_mix_calcs!W74 -> 0 | Y125: =generation_mix_calcs!X74 -> 0 | Z125: =generation_mix_calcs!Y74 -> 0
... 156 more rows

Sheet consumption_mix
A7: FERC Region | B7: CAISO
A8: Balancing Authority | B8: Use FERC
A9: Impact Category for Graph | B9: Global Warming Potential
Q13: =INDEX(distribution_losses!$B$2:$B$77,MATCH(Q$16,distribution_losses!$A$2:$A$77,0)) -> 0.0479800517 | R13: =INDEX(distribution_losses!$B$2:$B$77,MATCH(R$16,distribution_losses!$A$2:$A$77,0)) -> 0.04885206689 | S13: =INDEX(distribution_losses!$B$2:$B$77,MATCH(S$16,distribution_losses!$A$2:$A$77,0)) -> 0.0418978231 | T13: =INDEX(distribution_losses!$B$2:$B$77,MATCH(T$16,distribution_losses!$A$2:$A$77,0)) -> 0.04629347316 | U13: =INDEX(distribution_losses!$B$2:$B$77,MATCH(U$16,distribution_losses!$A$2:$A$77,0)) -> 0.04908395804
P14: 5 | Q14: 2 | R14: 3 | S14: 4 | T14: 5 | U14: 6
P15: =INDEX(B$54:B$1469,$P$14,1) -> Photochemical Smog Formation Potential | Q15: =IFERROR(IF(AND(Q14>1),MAX(Q30:Q32),"")*(1+Q$13),"") -> 37.87493788 | R15: 57.06191376 | S15: 29.81344185 | T15: 50.02896498 | U15: =IFERROR(IF(AND(U14>1),MAX(U30:U32),"")*(1+U$13),"") -> 26.43793573
P16: =INDEX(A$54:A$1469,$P$14,1) -> 0 | Q16: =IF(Q14>1,INDEX(ba_ferc_mapping!cons_labels,Q14,1),"") -> CAISO | R16: =IF(R14>1,INDEX(ba_ferc_mapping!cons_labels,R14,1),"") -> ERCOT | S16: =IF(S14>1,INDEX(ba_ferc_mapping!cons_labels,S14,1),"") -> ISO-NE | T16: =IF(T14>1,INDEX(ba_ferc_mapping!cons_labels,T14,1),"") -> MISO | U16: =IF(U14>1,INDEX(ba_ferc_mapping!cons_labels,U14,1),"") -> NYISO
D17: 1 | E17: 2 | F17: 3 | G17: 4 | H17: 5 | I17: 6 | J17: 7 | K17: 8 | L17: 9 | M17: 10 | N17: 11 | O17: =IF(P14<8,P17&" "&IF($P$17="Global Warming Potential",traci_factors!$M$1&" ","")&INDEX(impact_text!B2:B8,MATCH(consumption_mix!P17,impact_text!$A$2:$A$8,0),1),"kg "&P15&"/MWh delivered") -> Photochemical Smog Formation Potential kg O₃-e/MWh delivered | P17: =IF(AND(P16<>"input",P14>8),P15&" emissions to "&P16,IF(P14<=8,P15,"Input of "&P15)) -> Photochemical Smog Formation Potential
D18: =IFERROR(_xlfn.RANK.EQ(INDEX(D$55:D$61,MATCH($B$37,$B$55:$B$61,0)),INDEX($D$55:$BW$61,MATCH($B$37,$B$55:$B$61,0),),0)+COLUMN()/1000,"") -> 24.004 | E18: 4.005 | F18: 24.006 | G18: 24.007 | H18: 17.008 | I18: 16.009 | J18: 3.01 | K18: 11.011 | L18: 1.012 | M18: 24.013 | N18: 24.014 | O18: =IFERROR(_xlfn.RANK.EQ(INDEX(O$55:O$60,MATCH($B$37,$B$55:$B$60,0)),INDEX($D$55:$BW$60,MATCH($B$37,$B$55:$B$60,0),),0)+COLUMN()/1000,"") -> 24.015 | P18: 24.016 | Q18: 24.017 | R18: 24.018 | S18: 24.019 | T18: 24.02 | U18: 24.021 | V18: 24.022 | W18: 24.023 | X18: 12.024 | Y18: 24.025 | Z18: 24.026 | AA18: 14.027 | AB18: 24.028 | AC18: 24.029 | AD18: 24.03 | AE18: 18.031 | AF18: 9.032 | AG18: 24.033 | AH18: 24.034 | AI18: 2.035 | AJ18: 24.036 | AK18: 24.037 | AL18: 22.038 | AM18: 24.039 | AN18: 13.04 | AO18: 24.041 | AP18: 15.042 | AQ18: 24.043 | AR18: 24.044 | AS18: 19.045 | AT18: 24.046 | AU18: =IFERROR(_xlfn.RANK.EQ(INDEX(AU$55:AU$60,MATCH($B$37,$B$55:$B$60,0)),INDEX($D$55:$BW$60,MATCH($B$37,$B$55:$B$60,0),),0)+COLUMN()/1000,"") -> 24.047 | AV18: 24.048 | AW18: 21.049 | AX18: 24.05 | AY18: 10.051 | AZ18: 24.052 | BA18: 24.053 | BB18: 24.054 | BC18: 24.055 | BD18: 23.056 | BE18: 20.057 | BF18: 24.058 | BG18: 5.059 | BH18: 24.06 | BI18: 24.061 | BJ18: 24.062 | BK18: 24.063 | BL18: 24.064 | BM18: 24.065 | BN18: 24.066 | BO18: 24.067 | BP18: 24.068 | BQ18: 24.069 | BR18: 24.07 | BS18: 24.071 | BT18: 6.072 | BU18: 7.073 | BV18: 8.074 | BW18: 24.075
D19: =SMALL($D$18:$BW$18,D$17) -> 1.012 | E19: 2.035 | F19: 3.01 | G19: 4.005 | H19: 5.059 | I19: 6.072 | J19: 7.073 | K19: 8.074 | L19: 9.032 | M19: 10.051 | N19: 11.011
D20: =MATCH(D19,$D$18:$BW$18,0) -> 9 | E20: 32 | F20: 7 | G20: 2 | H20: 56 | I20: 69 | J20: 70 | K20: 71 | L20: 29 | M20: 48 | N20: 8 | P20: =MAX(COUNT(Q15:U15),1) -> 5 | Q20: =IFERROR(_xlfn.RANK.EQ(Q15,$Q$15:$U$15,0)+COLUMN()/1000,"") -> 3.017 | R20: =IFERROR(_xlfn.RANK.EQ(R15,$Q$15:$U$15,0)+COLUMN()/1000,"") -> 1.018 | S20: 4.019 | T20: 2.02 | U20: 5.021
C21: =B37&" "&IF($B$9="Global Warming Potential",traci_factors!$M$1&" ","")&INDEX(impact_text!B2:B8,MATCH(consumption_mix!B37,impact_text!$A$2:$A$8,0),1) -> Global Warming Potential IPCC AR5, 2013, 100-yr, w/ climate carbon feedback kg CO₂-e/MWh delivered | Q21: =RANK(Q20,$Q$20:$U$20,1) -> 3 | R21: =RANK(R20,$Q$20:$U$20,1) -> 1 | S21: 4 | T21: 2 | U21: 5
C22: =IF(INT($C$29)<-3,TEXT(C25/10^$C$23,"#,0.00#")&"E"&$C$23,C25) -> 1 | D22: =IF(INT($C$29)<-3,TEXT(D27/10^$C$23,"#,0.0#")&"E"&$C$23,) -> 0 | E22: =IF(INT($C$29)<-3,TEXT(E27/10^$C$23,"#,0.0#")&"E"&$C$23,) -> 0 | F22: 0 | G22: 0 | H22: 0 | I22: 0 | J22: =IF(INT($C$29)<-3,TEXT(J27/10^$C$23,"#,0.0#")&"E"&$C$23,$C$24) -> 1 | K22: =IF(INT($C$29)<-3,TEXT(K27/10^$C$23,"#,0.0#")&"E"&$C$23,$C$24) -> 1 | L22: 1 | M22: 1 | N22: 1 | Q22: 1 | R22: 2 | S22: 3 | T22: 4 | U22: 5
C23: =TEXT(INT(C29),"0#") -> 02 | Q23: =IFERROR(INDEX($Q$16:$U$16,1,MATCH(Q22,$Q$21:$U$21,0)),"") -> ERCOT | R23: =IFERROR(INDEX($Q$16:$U$16,1,MATCH(R22,$Q$21:$U$21,0)),"") -> MISO | S23: CAISO | T23: ISO-NE | U23: NYISO
C24: =IF(C25<0.001,TEXT(C25,"#.00E+00"),C25) -> 1 | Q24: =IFERROR(INDEX($Q$15:$U$15,1,MATCH(Q22,$Q$21:$U$21,0)),"") -> 57.06191376 | R24: =IFERROR(INDEX($Q$15:$U$15,1,MATCH(R22,$Q$21:$U$21,0)),"") -> 50.02896498 | S24: 37.87493788 | T24: 29.81344185 | U24: 26.43793573
C25: =10^(INT(C29)-2) -> 1 | P25: =LOG10(ABS(Q24)) -> 1.756346333 | Q25: =IFERROR(LOG(ABS(Q24),10),"") -> 1.756346333 | R25: =IFERROR(LOG(ABS(R24),10),"") -> 1.699221518 | S25: 1.578351929 | T25: 1.474412117 | U25: 1.422227543
D26: =D28/$C$28 -> 0.5441527446 | E26: =E28/$C$28 -> 0.214797136 | F26: 0.05489260143 | G26: 0.04057279236 | H26: 0.03579952267 | I26: 0.02625298329 | J26: 0.01670644391 | K26: 0.01431980907 | L26: 0.01193317422 | M26: 0.01193317422 | N26: 0.01193317422 | P26: =10^(INT(P25)-2) -> 0.1 | Q26: =IFERROR(3-(1+INT(Q25)),"") -> 1 | R26: =IFERROR(3-(1+INT(R25)),"") -> 1 | S26: 1 | T26: 1 | U26: 1
C27: =INDEX(C$55:C$61,MATCH($B$9,$B$55:$B$61,0),1) -> 418.8830509 | D27: =INDEX($D$55:$BW$61,MATCH($B$37,$B$55:$B$61,0),D20) -> 228.1760121 | E27: 89.76799634 | F27: 22.53886317 | G27: 17.35258499 | H27: 14.71815093 | I27: 10.72440994 | J27: 6.728569322 | K27: 5.901574261 | L27: 5.455397679 | M27: 5.252884697 | N27: 4.811589363 | P27: =IF($Q$24>0.001,TEXT(P26,"#,##0"&Q28),TEXT(P26,"#E+##")) -> 0.1 | Q27: =IF(Q26="","",IF(Q24<$AB$56,"<"&TEXT($AB$56,IF($AB$56<0.001,"#E+##","#,###"&Q28)),IF(Q24=0,"0",TEXT(ROUND(Q24,Q26),IF(Q24<0.001,"#.0E+##",IF(Q26=0,"#,###","#.###")))))) -> 57.1 | R27: =IF(R26="","",IF(R24<$AB$56,"<"&TEXT($AB$56,IF($AB$56<0.001,"#E+##","#,###"&R28)),IF(R24=0,"0",TEXT(ROUND(R24,R26),IF(R24<0.001,"#.0E+##",IF(R26=0,"#,###","#.###")))))) -> 50. | S27: 37.9 | T27: 29.8 | U27: 26.4
C28: =ROUND(C27,3-(1+INT($C$29))) -> 419 | D28: =ROUND(D27,3-(1+INT($C$29))) -> 228 | E28: =ROUND(E27,3-(1+INT($C$29))) -> 90 | F28: 23 | G28: 17 | H28: 15 | I28: 11 | J28: 7 | K28: 6 | L28: 5 | M28: 5 | N28: 5 | P28: =IFERROR(3-(1+INT(P27)),"") -> 2 | Q28: =IFERROR(IF(Q26>=1,"."&REPT("0",$Q$26),""),"") -> .0 | R28: =IFERROR(IF(R26>=1,"."&REPT("0",$Q$26),""),"") -> .0 | S28: .0 | T28: .0 | U28: .0
C29: =LOG(ABS(C27),10) -> 2.622092788 | P29: =IF($AC$54>0.001,TEXT(P28,"#,##0"&Q30),TEXT(P28,"#E+##")) -> 2 | Q29: =IF(Q24=0,"0",IF(Q24>$P$26,IF($Q$24>0.001,TEXT(Q24,"#,##0"&Q28),TEXT(Q24,"#.00E+00")),"<"&$P$27)) -> 57.1 | R29: =IF(R24=0,"0",IF(R24>$P$26,IF($Q$24>0.001,TEXT(R24,"#,##0"&R28),TEXT(R24,"#.00E+00")),"<"&$P$27)) -> 50.0 | S29: 37.9 | T29: 29.8 | U29: 26.4
Q30: =IF($B$8="Use FERC",IF($P14>9,(TRANSPOSE(MMULT(INDEX(ferc_consumption_mix_data!$B$2:$BU$11,MATCH(consumption_mix!Q$16,ferc_consumption_mix_data!$A$2:$A$11,0),),TRANSPOSE(INDEX(ba_genmix_inventory!$C$2:$BV$1407,$P14-9,))))),""),IF($P14>9,(TRANSPOSE(MMULT(INDEX(ba_consumption_mix_data!$B$2:$BU$68,MATCH(consumption_mix!Q$16,ba_consumption_mix_data!$A$2:$A$68,0),),TRANSPOSE(INDEX(ba_genmix_inventory!$C$2:$BV$1407,$P14-9,))))),"")) ->  | R30: =IF($B$8="Use FERC",IF($P14>9,(TRANSPOSE(MMULT(INDEX(ferc_consumption_mix_data!$B$2:$BU$11,MATCH(consumption_mix!R$16,ferc_consumption_mix_data!$A$2:$A$11,0),),TRANSPOSE(INDEX(ba_genmix_inventory!$C$2:$BV$1407,$P14-9,))))),""),IF($P14>9,(TRANSPOSE(MMULT(INDEX(ba_consumption_mix_data!$B$2:$BU$68,MATCH(consumption_mix!R$16,ba_consumption_mix_data!$A$2:$A$68,0),),TRANSPOSE(INDEX(ba_genmix_inventory!$C$2:$BV$1407,$P14-9,))))),"")) ->  | S30: =IF($B$8="Use FERC",IF($P14>9,(TRANSPOSE(MMULT(INDEX(ferc_consumption_mix_data!$B$2:$BU$11,MATCH(consumption_mix!S$16,ferc_consumption_mix_data!$A$2:$A$11,0),),TRANSPOSE(INDEX(ba_genmix_inventory!$C$2:$BV$1407,$P14-9,))))),""),IF($P14>9,(TRANSPOSE(MMULT(INDEX(ba_consumption_mix_data!$B$2:$BU$68,MATCH(consumption_mix!S$16,ba_consumption_mix_data!$A$2:$A$68,0),),TRANSPOSE(INDEX(ba_genmix_inventory!$C$2:$BV$1407,$P14-9,))))),"")) ->  | T30: =IF($B$8="Use FERC",IF($P14>9,(TRANSPOSE(MMULT(INDEX(ferc_consumption_mix_data!$B$2:$BU$11,MATCH(consumption_mix!T$16,ferc_consumption_mix_data!$A$2:$A$11,0),),TRANSPOSE(INDEX(ba_genmix_inventory!$C$2:$BV$1407,$P14-9,))))),""),IF($P14>9,(TRANSPOSE(MMULT(INDEX(ba_consumption_mix_data!$B$2:$BU$68,MATCH(consumption_mix!T$16,ba_consumption_mix_data!$A$2:$A$68,0),),TRANSPOSE(INDEX(ba_genmix_inventory!$C$2:$BV$1407,$P14-9,))))),"")) ->  | U30: =IF($B$8="Use FERC",IF($P14>9,(TRANSPOSE(MMULT(INDEX(ferc_consumption_mix_data!$B$2:$BU$11,MATCH(consumption_mix!U$16,ferc_consumption_mix_data!$A$2:$A$11,0),),TRANSPOSE(INDEX(ba_genmix_inventory!$C$2:$BV$1407,$P14-9,))))),""),IF($P14>9,(TRANSPOSE(MMULT(INDEX(ba_consumption_mix_data!$B$2:$BU$68,MATCH(consumption_mix!U$16,ba_consumption_mix_data!$A$2:$A$68,0),),TRANSPOSE(INDEX(ba_genmix_inventory!$C$2:$BV$1407,$P14-9,))))),"")) -> 
C31: =SUM(D31:N31) -> 0.9765795512 | D31: =INDEX($D$35:$BW$35,1,D$20) -> 0.6138984568 | E31: 0.1258884025 | F31: 0.04877420813 | G31: 0.02163617169 | H31: 0.03410695077 | I31: 0.0209754669 | J31: 0.03251123565 | K31: 0.006373804455 | L31: 0.01701629121 | M31: 0.0177252475 | N31: 0.03767331556 | Q31: =IF($B$8="Use FERC",IF($P14<9,SUMPRODUCT(TRANSPOSE(MMULT(INDEX(ferc_consumption_mix_data!$B$2:$BU$11,MATCH(consumption_mix!Q$16,ferc_consumption_mix_data!$A$2:$A$11,0),),TRANSPOSE(ba_genmix_inventory!$C$2:$BV$1407))),INDEX(traci_factors!$E$2:$K$1407,,MATCH(consumption_mix!$P$15,traci_factors!$E$1:$K$1,0))),""),"") -> 36.14089583 | R31: =IF($B$8="Use FERC",IF($P14<9,SUMPRODUCT(TRANSPOSE(MMULT(INDEX(ferc_consumption_mix_data!$B$2:$BU$11,MATCH(consumption_mix!R$16,ferc_consumption_mix_data!$A$2:$A$11,0),),TRANSPOSE(ba_genmix_inventory!$C$2:$BV$1407))),INDEX(traci_factors!$E$2:$K$1407,,MATCH(consumption_mix!$P$15,traci_factors!$E$1:$K$1,0))),""),"") -> 54.40415819 | S31: =IF($B$8="Use FERC",IF($P14<9,SUMPRODUCT(TRANSPOSE(MMULT(INDEX(ferc_consumption_mix_data!$B$2:$BU$11,MATCH(consumption_mix!S$16,ferc_consumption_mix_data!$A$2:$A$11,0),),TRANSPOSE(ba_genmix_inventory!$C$2:$BV$1407))),INDEX(traci_factors!$E$2:$K$1407,,MATCH(consumption_mix!$P$15,traci_factors!$E$1:$K$1,0))),""),"") -> 28.61455432 | T31: =IF($B$8="Use FERC",IF($P14<9,SUMPRODUCT(TRANSPOSE(MMULT(INDEX(ferc_consumption_mix_data!$B$2:$BU$11,MATCH(consumption_mix!T$16,ferc_consumption_mix_data!$A$2:$A$11,0),),TRANSPOSE(ba_genmix_inventory!$C$2:$BV$1407))),INDEX(traci_factors!$E$2:$K$1407,,MATCH(consumption_mix!$P$15,traci_factors!$E$1:$K$1,0))),""),"") -> 47.81542298 | U31: =IF($B$8="Use FERC",IF($P14<9,SUMPRODUCT(TRANSPOSE(MMULT(INDEX(ferc_consumption_mix_data!$B$2:$BU$11,MATCH(consumption_mix!U$16,ferc_consumption_mix_data!$A$2:$A$11,0),),TRANSPOSE(ba_genmix_inventory!$C$2:$BV$1407))),INDEX(traci_factors!$E$2:$K$1407,,MATCH(consumption_mix!$P$15,traci_factors!$E$1:$K$1,0))),""),"") -> 25.20097227
C32: =IF(C28<0.001,TEXT(C28,"0.00E+00"),C28) -> 419 | D32: =IF(D28=0,0,IF(D27<$C$25,"<"&$C$22,IF(D28<0.001,D22,D28))) -> 228 | E32: =IF(E28=0,0,IF(E27<$C$25,"<"&$C$22,IF(E28<0.001,E22,E28))) -> 90 | F32: 23 | G32: 17 | H32: 15 | I32: 11 | J32: 7 | K32: 6 | L32: 5 | M32: 5 | N32: 5 | Q32: =IFERROR(IF($B$8<>"Use FERC",IF($P14<9,SUMPRODUCT(TRANSPOSE(MMULT(INDEX(ba_consumption_mix_data!$B$2:$BU$68,MATCH(consumption_mix!Q$16,ba_consumption_mix_data!$A$2:$A$68,0),),TRANSPOSE(ba_genmix_inventory!$C$2:$BV$1407))),INDEX(traci_factors!$E$2:$K$1407,,MATCH(consumption_mix!$P$15,traci_factors!$E$1:$K$1,0))),""),""),NA()) ->  | R32: =IFERROR(IF($B$8<>"Use FERC",IF($P14<9,SUMPRODUCT(TRANSPOSE(MMULT(INDEX(ba_consumption_mix_data!$B$2:$BU$68,MATCH(consumption_mix!R$16,ba_consumption_mix_data!$A$2:$A$68,0),),TRANSPOSE(ba_genmix_inventory!$C$2:$BV$1407))),INDEX(traci_factors!$E$2:$K$1407,,MATCH(consumption_mix!$P$15,traci_factors!$E$1:$K$1,0))),""),""),NA()) ->  | S32: =IFERROR(IF($B$8<>"Use FERC",IF($P14<9,SUMPRODUCT(TRANSPOSE(MMULT(INDEX(ba_consumption_mix_data!$B$2:$BU$68,MATCH(consumption_mix!S$16,ba_consumption_mix_data!$A$2:$A$68,0),),TRANSPOSE(ba_genmix_inventory!$C$2:$BV$1407))),INDEX(traci_factors!$E$2:$K$1407,,MATCH(consumption_mix!$P$15,traci_factors!$E$1:$K$1,0))),""),""),NA()) ->  | T32: =IFERROR(IF($B$8<>"Use FERC",IF($P14<9,SUMPRODUCT(TRANSPOSE(MMULT(INDEX(ba_consumption_mix_data!$B$2:$BU$68,MATCH(consumption_mix!T$16,ba_consumption_mix_data!$A$2:$A$68,0),),TRANSPOSE(ba_genmix_inventory!$C$2:$BV$1407))),INDEX(traci_factors!$E$2:$K$1407,,MATCH(consumption_mix!$P$15,traci_factors!$E$1:$K$1,0))),""),""),NA()) ->  | U32: =IFERROR(IF($B$8<>"Use FERC",IF($P14<9,SUMPRODUCT(TRANSPOSE(MMULT(INDEX(ba_consumption_mix_data!$B$2:$BU$68,MATCH(consumption_mix!U$16,ba_consumption_mix_data!$A$2:$A$68,0),),TRANSPOSE(ba_genmix_inventory!$C$2:$BV$1407))),INDEX(traci_factors!$E$2:$K$1407,,MATCH(consumption_mix!$P$15,traci_factors!$E$1:$K$1,0))),""),""),NA()) -> 
C33: =C36&" - "&TEXT(C$31,"0.0%") -> Total - 97.7% | D33: =D36&" - "&TEXT(D$31,"0.0%") -> California Independent System Operator (CAISO) - 61.4% | E33: =E36&" - "&TEXT(E$31,"0.0%") -> Los Angeles Department of Water and Power (CAISO) - 12.6% | F33: Balancing Authority of Northern California (CAISO) - 4.9% | G33: Arizona Public Service Company (Southwest) - 2.2% | H33: Salt River Project Agricultural Improvement and Power District (Southwest) - 3.4% | I33: Turlock Irrigation District (CAISO) - 2.1% | J33: Western Area Power Administration - Desert Southwest Region (Southwest) - 3.3% | K33: Western Area Power Administration - Rocky Mountain Region (Northwest) - 0.6% | L33: Imperial Irrigation District (CAISO) - 1.7% | M33: PacifiCorp West (Northwest) - 1.8% | N33: Bonneville Power Administration (Northwest) - 3.8%
C34: Total | D34: =D54 -> Alcoa Power Generating, Inc. - Yadkin Division (Southeast) | E34: =E54 -> Arizona Public Service Company (Southwest) | F34: Arlington Valley, LLC - AVBA (Southwest) | G34: Associated Electric Cooperative, Inc. (MISO) | H34: Avista Corporation (Northwest) | I34: B.C. Hydro & Power Authority (Canada) | J34: Balancing Authority of Northern California (CAISO) | K34: Bonneville Power Administration (Northwest) | L34: California Independent System Operator (CAISO) | M34: City of Tacoma, Department of Public Utilities, Light Division (Northwest) | N34: Duke Energy Carolinas (Southeast)
C35: =SUM(D35:BW35) -> 1 | D35: =IF(consumption_mix_calcs!C20<>"",consumption_mix_calcs!C20,"") -> 0 | E35: =IF(consumption_mix_calcs!D20<>"",consumption_mix_calcs!D20,"") -> 0.02163617169 | F35: =IF(consumption_mix_calcs!E20<>"",consumption_mix_calcs!E20,"") -> 0 | G35: =IF(consumption_mix_calcs!F20<>"",consumption_mix_calcs!F20,"") -> 0 | H35: =IF(consumption_mix_calcs!G20<>"",consumption_mix_calcs!G20,"") -> 0.0009059001406 | I35: =IF(consumption_mix_calcs!H20<>"",consumption_mix_calcs!H20,"") -> 0.003703567473 | J35: =IF(consumption_mix_calcs!I20<>"",consumption_mix_calcs!I20,"") -> 0.04877420813 | K35: =IF(consumption_mix_calcs!J20<>"",consumption_mix_calcs!J20,"") -> 0.03767331556 | L35: =IF(consumption_mix_calcs!K20<>"",consumption_mix_calcs!K20,"") -> 0.6138984568 | M35: =IF(consumption_mix_calcs!L20<>"",consumption_mix_calcs!L20,"") -> 0 | N35: =IF(consumption_mix_calcs!M20<>"",consumption_mix_calcs!M20,"") -> 0 | O35: =IF(consumption_mix_calcs!N20<>"",consumption_mix_calcs!N20,"") -> 0 | P35: =IF(consumption_mix_calcs!O20<>"",consumption_mix_calcs!O20,"") -> 0 | Q35: =IF(consumption_mix_calcs!P20<>"",consumption_mix_calcs!P20,"") -> 0 | R35: =IF(consumption_mix_calcs!Q20<>"",consumption_mix_calcs!Q20,"") -> 0 | S35: =IF(consumption_mix_calcs!R20<>"",consumption_mix_calcs!R20,"") -> 0 | T35: =IF(consumption_mix_calcs!S20<>"",consumption_mix_calcs!S20,"") -> 0 | U35: =IF(consumption_mix_calcs!T20<>"",consumption_mix_calcs!T20,"") -> 0 | V35: =IF(consumption_mix_calcs!U20<>"",consumption_mix_calcs!U20,"") -> 0 | W35: =IF(consumption_mix_calcs!V20<>"",consumption_mix_calcs!V20,"") -> 0 | X35: =IF(consumption_mix_calcs!W20<>"",consumption_mix_calcs!W20,"") -> 0.003698171437 | Y35: =IF(consumption_mix_calcs!X20<>"",consumption_mix_calcs!X20,"") -> 0.0008656085636 | Z35: =IF(consumption_mix_calcs!Y20<>"",consumption_mix_calcs!Y20,"") -> 0 | AA35: =IF(consumption_mix_calcs!Z20<>"",consumption_mix_calcs!Z20,"") -> 0.002148562804 | AB35: =IF(consumption_mix_calcs!AA20<>"",consumption_mix_calcs!AA20,"") -> 0 | AC35: =IF(consumption_mix_calcs!AB20<>"",consumption_mix_calcs!AB20,"") -> 0 | AD35: =IF(consumption_mix_calcs!AC20<>"",consumption_mix_calcs!AC20,"") -> 0 | AE35: =IF(consumption_mix_calcs!AD20<>"",consumption_mix_calcs!AD20,"") -> 0.001017745896 | AF35: =IF(consumption_mix_calcs!AE20<>"",consumption_mix_calcs!AE20,"") -> 0.01701629121 | AG35: =IF(consumption_mix_calcs!AF20<>"",consumption_mix_calcs!AF20,"") -> 0 | AH35: =IF(consumption_mix_calcs!AG20<>"",consumption_mix_calcs!AG20,"") -> 0 | AI35: =IF(consumption_mix_calcs!AH20<>"",consumption_mix_calcs!AH20,"") -> 0.1258884025 | AJ35: =IF(consumption_mix_calcs!AI20<>"",consumption_mix_calcs!AI20,"") -> 0 | AK35: =IF(consumption_mix_calcs!AJ20<>"",consumption_mix_calcs!AJ20,"") -> 0 | AL35: =IF(consumption_mix_calcs!AK20<>"",consumption_mix_calcs!AK20,"") -> 1.014211472e-05 | AM35: =IF(consumption_mix_calcs!AL20<>"",consumption_mix_calcs!AL20,"") -> 0 | AN35: =IF(consumption_mix_calcs!AM20<>"",consumption_mix_calcs!AM20,"") -> 0.003812281622 | AO35: =IF(consumption_mix_calcs!AN20<>"",consumption_mix_calcs!AN20,"") -> 0 | AP35: =IF(consumption_mix_calcs!AO20<>"",consumption_mix_calcs!AO20,"") -> 0.001543143793 | AQ35: =IF(consumption_mix_calcs!AP20<>"",consumption_mix_calcs!AP20,"") -> 0 | AR35: =IF(consumption_mix_calcs!AQ20<>"",consumption_mix_calcs!AQ20,"") -> 0 | AS35: =IF(consumption_mix_calcs!AR20<>"",consumption_mix_calcs!AR20,"") -> 6.430955388e-05 | AT35: =IF(consumption_mix_calcs!AS20<>"",consumption_mix_calcs!AS20,"") -> 0 | AU35: =IF(consumption_mix_calcs!AT20<>"",consumption_mix_calcs!AT20,"") -> 0 | AV35: =IF(consumption_mix_calcs!AU20<>"",consumption_mix_calcs!AU20,"") -> 0 | AW35: =IF(consumption_mix_calcs!AV20<>"",consumption_mix_calcs!AV20,"") -> 0.001042839289 | AX35: =IF(consumption_mix_calcs!AW20<>"",consumption_mix_calcs!AW20,"") -> 0 | AY35: =IF(consumption_mix_calcs!AX20<>"",consumption_mix_calcs!AX20,"") -> 0.0177252475 | AZ35: =IF(consumption_mix_calcs!AY20<>"",consumption_mix_calcs!AY20,"") -> 0 | BA35: =IF(consumption_mix_calcs!AZ20<>"",consumption_mix_calcs!AZ20,"") -> 0 | BB35: =IF(consumption_mix_calcs!BA20<>"",consumption_mix_calcs!BA20,"") -> 0 | BC35: =IF(consumption_mix_calcs!BB20<>"",consumption_mix_calcs!BB20,"") -> 0 | BD35: =IF(consumption_mix_calcs!BC20<>"",consumption_mix_calcs!BC20,"") -> 8.280975204e-06 | BE35: =IF(consumption_mix_calcs!BD20<>"",consumption_mix_calcs!BD20,"") -> 0.004599895169 | BF35: =IF(consumption_mix_calcs!BE20<>"",consumption_mix_calcs!BE20,"") -> 0 | BG35: =IF(consumption_mix_calcs!BF20<>"",consumption_mix_calcs!BF20,"") -> 0.03410695077 | BH35: =IF(consumption_mix_calcs!BG20<>"",consumption_mix_calcs!BG20,"") -> 0 | BI35: =IF(consumption_mix_calcs!BH20<>"",consumption_mix_calcs!BH20,"") -> 0 | BJ35: =IF(consumption_mix_calcs!BI20<>"",consumption_mix_calcs!BI20,"") -> 0 | BK35: =IF(consumption_mix_calcs!BJ20<>"",consumption_mix_calcs!BJ20,"") -> 0 | BL35: =IF(consumption_mix_calcs!BK20<>"",consumption_mix_calcs!BK20,"") -> 0 | BM35: =IF(consumption_mix_calcs!BL20<>"",consumption_mix_calcs!BL20,"") -> 0 | BN35: =IF(consumption_mix_calcs!BM20<>"",consumption_mix_calcs!BM20,"") -> 0 | BO35: =IF(consumption_mix_calcs!BN20<>"",consumption_mix_calcs!BN20,"") -> 0 | BP35: =IF(consumption_mix_calcs!BO20<>"",consumption_mix_calcs!BO20,"") -> 0 | BQ35: =IF(consumption_mix_calcs!BP20<>"",consumption_mix_calcs!BP20,"") -> 0 | BR35: =IF(consumption_mix_calcs!BQ20<>"",consumption_mix_calcs!BQ20,"") -> 0 | BS35: =IF(consumption_mix_calcs!BR20<>"",consumption_mix_calcs!BR20,"") -> 0 | BT35: =IF(consumption_mix_calcs!BS20<>"",consumption_mix_calcs!BS20,"") -> 0.0209754669 | BU35: =IF(consumption_mix_calcs!BT20<>"",consumption_mix_calcs!BT20,"") -> 0.03251123565 | BV35: =IF(consumption_mix_calcs!BU20<>"",consumption_mix_calcs!BU20,"") -> 0.006373804455 | BW35: =IF(consumption_mix_calcs!BV20<>"",consumption_mix_calcs!BV20,"") -> 0
C36: Total | D36: =INDEX($D$54:$BW$54,1,D20) -> California Independent System Operator (CAISO) | E36: Los Angeles Department of Water and Power (CAISO) | F36: Balancing Authority of Northern California (CAISO) | G36: Arizona Public Service Company (Southwest) | H36: Salt River Project Agricultural Improvement and Power District (Southwest) | I36: Turlock Irrigation District (CAISO) | J36: Western Area Power Administration - Desert Southwest Region (Southwest) | K36: Western Area Power Administration - Rocky Mountain Region (Northwest) | L36: Imperial Irrigation District (CAISO) | M36: PacifiCorp West (Northwest) | N36: Bonneville Power Administration (Northwest)
B37: =INDEX(B$55:B$61,MATCH($B$9,$B$55:$B$61,0),1) -> Global Warming Potential | C37: =C28 -> 419 | D37: =D28 -> 228 | E37: 90 | F37: 23 | G37: 17 | H37: 15 | I37: 11 | J37: 7 | K37: 6 | L37: 5 | M37: 5 | N37: 5
B54: Impact Category | C54: Total | D54: =IF(consumption_mix_calcs!C22<>"",consumption_mix_calcs!C22&" ("&IFERROR(INDEX(ba_ferc_mapping!$B$2:$B$71,MATCH(consumption_mix_calcs!C22,ba_ferc_mapping!$A$2:$A$71,0),1)&")","Canada)"),"") -> Alcoa Power Generating, Inc. - Yadkin Division (Southeast) | E54: =IF(consumption_mix_calcs!D22<>"",consumption_mix_calcs!D22&" ("&IFERROR(INDEX(ba_ferc_mapping!$B$2:$B$71,MATCH(consumption_mix_calcs!D22,ba_ferc_mapping!$A$2:$A$71,0),1)&")","Canada)"),"") -> Arizona Public Service Company (Southwest) | F54: =IF(consumption_mix_calcs!E22<>"",consumption_mix_calcs!E22&" ("&IFERROR(INDEX(ba_ferc_mapping!$B$2:$B$71,MATCH(consumption_mix_calcs!E22,ba_ferc_mapping!$A$2:$A$71,0),1)&")","Canada)"),"") -> Arlington Valley, LLC - AVBA (Southwest) | G54: =IF(consumption_mix_calcs!F22<>"",consumption_mix_calcs!F22&" ("&IFERROR(INDEX(ba_ferc_mapping!$B$2:$B$71,MATCH(consumption_mix_calcs!F22,ba_ferc_mapping!$A$2:$A$71,0),1)&")","Canada)"),"") -> Associated Electric Cooperative, Inc. (MISO) | H54: =IF(consumption_mix_calcs!G22<>"",consumption_mix_calcs!G22&" ("&IFERROR(INDEX(ba_ferc_mapping!$B$2:$B$71,MATCH(consumption_mix_calcs!G22,ba_ferc_mapping!$A$2:$A$71,0),1)&")","Canada)"),"") -> Avista Corporation (Northwest) | I54: =IF(consumption_mix_calcs!H22<>"",consumption_mix_calcs!H22&" ("&IFERROR(INDEX(ba_ferc_mapping!$B$2:$B$71,MATCH(consumption_mix_calcs!H22,ba_ferc_mapping!$A$2:$A$71,0),1)&")","Canada)"),"") -> B.C. Hydro & Power Authority (Canada) | J54: =IF(consumption_mix_calcs!I22<>"",consumption_mix_calcs!I22&" ("&IFERROR(INDEX(ba_ferc_mapping!$B$2:$B$71,MATCH(consumption_mix_calcs!I22,ba_ferc_mapping!$A$2:$A$71,0),1)&")","Canada)"),"") -> Balancing Authority of Northern California (CAISO) | K54: =IF(consumption_mix_calcs!J22<>"",consumption_mix_calcs!J22&" ("&IFERROR(INDEX(ba_ferc_mapping!$B$2:$B$71,MATCH(consumption_mix_calcs!J22,ba_ferc_mapping!$A$2:$A$71,0),1)&")","Canada)"),"") -> Bonneville Power Administration (Northwest) | L54: =IF(consumption_mix_calcs!K22<>"",consumption_mix_calcs!K22&" ("&IFERROR(INDEX(ba_ferc_mapping!$B$2:$B$71,MATCH(consumption_mix_calcs!K22,ba_ferc_mapping!$A$2:$A$71,0),1)&")","Canada)"),"") -> California Independent System Operator (CAISO) | M54: =IF(consumption_mix_calcs!L22<>"",consumption_mix_calcs!L22&" ("&IFERROR(INDEX(ba_ferc_mapping!$B$2:$B$71,MATCH(consumption_mix_calcs!L22,ba_ferc_mapping!$A$2:$A$71,0),1)&")","Canada)"),"") -> City of Tacoma, Department of Public Utilities, Light Division (Northwest) | N54: =IF(consumption_mix_calcs!M22<>"",consumption_mix_calcs!M22&" ("&IFERROR(INDEX(ba_ferc_mapping!$B$2:$B$71,MATCH(consumption_mix_calcs!M22,ba_ferc_mapping!$A$2:$A$71,0),1)&")","Canada)"),"") -> Duke Energy Carolinas (Southeast) | O54: =IF(consumption_mix_calcs!N22<>"",consumption_mix_calcs!N22&" ("&IFERROR(INDEX(ba_ferc_mapping!$B$2:$B$71,MATCH(consumption_mix_calcs!N22,ba_ferc_mapping!$A$2:$A$71,0),1)&")","Canada)"),"") -> Duke Energy Florida, Inc. (Southeast) | P54: =IF(consumption_mix_calcs!O22<>"",consumption_mix_calcs!O22&" ("&IFERROR(INDEX(ba_ferc_mapping!$B$2:$B$71,MATCH(consumption_mix_calcs!O22,ba_ferc_mapping!$A$2:$A$71,0),1)&")","Canada)"),"") -> Duke Energy Progress East (Southeast) | Q54: =IF(consumption_mix_calcs!P22<>"",consumption_mix_calcs!P22&" ("&IFERROR(INDEX(ba_ferc_mapping!$B$2:$B$71,MATCH(consumption_mix_calcs!P22,ba_ferc_mapping!$A$2:$A$71,0),1)&")","Canada)"),"") -> Duke Energy Progress West (Southeast) | R54: =IF(consumption_mix_calcs!Q22<>"",consumption_mix_calcs!Q22&" ("&IFERROR(INDEX(ba_ferc_mapping!$B$2:$B$71,MATCH(consumption_mix_calcs!Q22,ba_ferc_mapping!$A$2:$A$71,0),1)&")","Canada)"),"") -> El Paso Electric Company (Southwest) | S54: =IF(consumption_mix_calcs!R22<>"",consumption_mix_calcs!R22&" ("&IFERROR(INDEX(ba_ferc_mapping!$B$2:$B$71,MATCH(consumption_mix_calcs!R22,ba_ferc_mapping!$A$2:$A$71,0),1)&")","Canada)"),"") -> Electric Energy, Inc. (MISO) | T54: =IF(consumption_mix_calcs!S22<>"",consumption_mix_calcs!S22&" ("&IFERROR(INDEX(ba_ferc_mapping!$B$2:$B$71,MATCH(consumption_mix_calcs!S22,ba_ferc_mapping!$A$2:$A$71,0),1)&")","Canada)"),"") -> Electric Reliability Council of Texas, Inc. (ERCOT) | U54: =IF(consumption_mix_calcs!T22<>"",consumption_mix_calcs!T22&" ("&IFERROR(INDEX(ba_ferc_mapping!$B$2:$B$71,MATCH(consumption_mix_calcs!T22,ba_ferc_mapping!$A$2:$A$71,0),1)&")","Canada)"),"") -> Florida Municipal Power Pool (Southeast) | V54: =IF(consumption_mix_calcs!U22<>"",consumption_mix_calcs!U22&" ("&IFERROR(INDEX(ba_ferc_mapping!$B$2:$B$71,MATCH(consumption_mix_calcs!U22,ba_ferc_mapping!$A$2:$A$71,0),1)&")","Canada)"),"") -> Florida Power & Light Co. (Southeast) | W54: =IF(consumption_mix_calcs!V22<>"",consumption_mix_calcs!V22&" ("&IFERROR(INDEX(ba_ferc_mapping!$B$2:$B$71,MATCH(consumption_mix_calcs!V22,ba_ferc_mapping!$A$2:$A$71,0),1)&")","Canada)"),"") -> Gainesville Regional Utilities (Southeast) | X54: =IF(consumption_mix_calcs!W22<>"",consumption_mix_calcs!W22&" ("&IFERROR(INDEX(ba_ferc_mapping!$B$2:$B$71,MATCH(consumption_mix_calcs!W22,ba_ferc_mapping!$A$2:$A$71,0),1)&")","Canada)"),"") -> Gila River Power, LLC (Southwest) | Y54: =IF(consumption_mix_calcs!X22<>"",consumption_mix_calcs!X22&" ("&IFERROR(INDEX(ba_ferc_mapping!$B$2:$B$71,MATCH(consumption_mix_calcs!X22,ba_ferc_mapping!$A$2:$A$71,0),1)&")","Canada)"),"") -> Gridforce Energy Management, LLC (Northwest) | Z54: =IF(consumption_mix_calcs!Y22<>"",consumption_mix_calcs!Y22&" ("&IFERROR(INDEX(ba_ferc_mapping!$B$2:$B$71,MATCH(consumption_mix_calcs!Y22,ba_ferc_mapping!$A$2:$A$71,0),1)&")","Canada)"),"") -> Gridforce South (Southwest) | AA54: =IF(consumption_mix_calcs!Z22<>"",consumption_mix_calcs!Z22&" ("&IFERROR(INDEX(ba_ferc_mapping!$B$2:$B$71,MATCH(consumption_mix_calcs!Z22,ba_ferc_mapping!$A$2:$A$71,0),1)&")","Canada)"),"") -> Griffith Energy, LLC (Southwest) | AB54: =IF(consumption_mix_calcs!AA22<>"",consumption_mix_calcs!AA22&" ("&IFERROR(INDEX(ba_ferc_mapping!$B$2:$B$71,MATCH(consumption_mix_calcs!AA22,ba_ferc_mapping!$A$2:$A$71,0),1)&")","Canada)"),"") -> Homestead, City of (Southeast) | AC54: =IF(consumption_mix_calcs!AB22<>"",consumption_mix_calcs!AB22&" ("&IFERROR(INDEX(ba_ferc_mapping!$B$2:$B$71,MATCH(consumption_mix_calcs!AB22,ba_ferc_mapping!$A$2:$A$71,0),1)&")","Canada)"),"") -> Hydro-Quebec TransEnergie (Canada) | AD54: =IF(consumption_mix_calcs!AC22<>"",consumption_mix_calcs!AC22&" ("&IFERROR(INDEX(ba_ferc_mapping!$B$2:$B$71,MATCH(consumption_mix_calcs!AC22,ba_ferc_mapping!$A$2:$A$71,0),1)&")","Canada)"),"") -> ISO-NE (ISO-NE) | AE54: =IF(consumption_mix_calcs!AD22<>"",consumption_mix_calcs!AD22&" ("&IFERROR(INDEX(ba_ferc_mapping!$B$2:$B$71,MATCH(consumption_mix_calcs!AD22,ba_ferc_mapping!$A$2:$A$71,0),1)&")","Canada)"),"") -> Idaho Power Company (Northwest) | AF54: =IF(consumption_mix_calcs!AE22<>"",consumption_mix_calcs!AE22&" ("&IFERROR(INDEX(ba_ferc_mapping!$B$2:$B$71,MATCH(consumption_mix_calcs!AE22,ba_ferc_mapping!$A$2:$A$71,0),1)&")","Canada)"),"") -> Imperial Irrigation District (CAISO) | AG54: =IF(consumption_mix_calcs!AF22<>"",consumption_mix_calcs!AF22&" ("&IFERROR(INDEX(ba_ferc_mapping!$B$2:$B$71,MATCH(consumption_mix_calcs!AF22,ba_ferc_mapping!$A$2:$A$71,0),1)&")","Canada)"),"") -> JEA (Southeast) | AH54: =IF(consumption_mix_calcs!AG22<>"",consumption_mix_calcs!AG22&" ("&IFERROR(INDEX(ba_ferc_mapping!$B$2:$B$71,MATCH(consumption_mix_calcs!AG22,ba_ferc_mapping!$A$2:$A$71,0),1)&")","Canada)"),"") -> LG&E and KU Services Company as agent for Louisville Gas and Electric Company and Kentucky Utilities Company (MISO) | AI54: =IF(consumption_mix_calcs!AH22<>"",consumption_mix_calcs!AH22&" ("&IFERROR(INDEX(ba_ferc_mapping!$B$2:$B$71,MATCH(consumption_mix_calcs!AH22,ba_ferc_mapping!$A$2:$A$71,0),1)&")","Canada)"),"") -> Los Angeles Department of Water and Power (CAISO) | AJ54: =IF(consumption_mix_calcs!AI22<>"",consumption_mix_calcs!AI22&" ("&IFERROR(INDEX(ba_ferc_mapping!$B$2:$B$71,MATCH(consumption_mix_calcs!AI22,ba_ferc_mapping!$A$2:$A$71,0),1)&")","Canada)"),"") -> Manitoba Hydro (Canada) | AK54: =IF(consumption_mix_calcs!AJ22<>"",consumption_mix_calcs!AJ22&" ("&IFERROR(INDEX(ba_ferc_mapping!$B$2:$B$71,MATCH(consumption_mix_calcs!AJ22,ba_ferc_mapping!$A$2:$A$71,0),1)&")","Canada)"),"") -> Midcontinent Independent System Operator, Inc. (MISO) | AL54: =IF(consumption_mix_calcs!AK22<>"",consumption_mix_calcs!AK22&" ("&IFERROR(INDEX(ba_ferc_mapping!$B$2:$B$71,MATCH(consumption_mix_calcs!AK22,ba_ferc_mapping!$A$2:$A$71,0),1)&")","Canada)"),"") -> NaturEner Power Watch, LLC (GWA) (Northwest) | AM54: =IF(consumption_mix_calcs!AL22<>"",consumption_mix_calcs!AL22&" ("&IFERROR(INDEX(ba_ferc_mapping!$B$2:$B$71,MATCH(consumption_mix_calcs!AL22,ba_ferc_mapping!$A$2:$A$71,0),1)&")","Canada)"),"") -> NaturEner Wind Watch, LLC (Northwest) | AN54: =IF(consumption_mix_calcs!AM22<>"",consumption_mix_calcs!AM22&" ("&IFERROR(INDEX(ba_ferc_mapping!$B$2:$B$71,MATCH(consumption_mix_calcs!AM22,ba_ferc_mapping!$A$2:$A$71,0),1)&")","Canada)"),"") -> Nevada Power Company (Northwest) | AO54: =IF(consumption_mix_calcs!AN22<>"",consumption_mix_calcs!AN22&" ("&IFERROR(INDEX(ba_ferc_mapping!$B$2:$B$71,MATCH(consumption_mix_calcs!AN22,ba_ferc_mapping!$A$2:$A$71,0),1)&")","Canada)"),"") -> New Brunswick System Operator (Canada) | AP54: =IF(consumption_mix_calcs!AO22<>"",consumption_mix_calcs!AO22&" ("&IFERROR(INDEX(ba_ferc_mapping!$B$2:$B$71,MATCH(consumption_mix_calcs!AO22,ba_ferc_mapping!$A$2:$A$71,0),1)&")","Canada)"),"") -> New Harquahala Generating Company, LLC - HGBA (Southwest) | AQ54: =IF(consumption_mix_calcs!AP22<>"",consumption_mix_calcs!AP22&" ("&IFERROR(INDEX(ba_ferc_mapping!$B$2:$B$71,MATCH(consumption_mix_calcs!AP22,ba_ferc_mapping!$A$2:$A$71,0),1)&")","Canada)"),"") -> New Smyrna Beach, Utilities Commission of (Southeast) | AR54: =IF(consumption_mix_calcs!AQ22<>"",consumption_mix_calcs!AQ22&" ("&IFERROR(INDEX(ba_ferc_mapping!$B$2:$B$71,MATCH(consumption_mix_calcs!AQ22,ba_ferc_mapping!$A$2:$A$71,0),1)&")","Canada)"),"") -> New York Independent System Operator (NYISO) | AS54: =IF(consumption_mix_calcs!AR22<>"",consumption_mix_calcs!AR22&" ("&IFERROR(INDEX(ba_ferc_mapping!$B$2:$B$71,MATCH(consumption_mix_calcs!AR22,ba_ferc_mapping!$A$2:$A$71,0),1)&")","Canada)"),"") -> NorthWestern Corporation (Northwest) | AT54: =IF(consumption_mix_calcs!AS22<>"",consumption_mix_calcs!AS22&" ("&IFERROR(INDEX(ba_ferc_mapping!$B$2:$B$71,MATCH(consumption_mix_calcs!AS22,ba_ferc_mapping!$A$2:$A$71,0),1)&")","Canada)"),"") -> Ohio Valley Electric Corporation (PJM) | AU54: =IF(consumption_mix_calcs!AT22<>"",consumption_mix_calcs!AT22&" ("&IFERROR(INDEX(ba_ferc_mapping!$B$2:$B$71,MATCH(consumption_mix_calcs!AT22,ba_ferc_mapping!$A$2:$A$71,0),1)&")","Canada)"),"") -> Ontario IESO (Canada) | AV54: =IF(consumption_mix_calcs!AU22<>"",consumption_mix_calcs!AU22&" ("&IFERROR(INDEX(ba_ferc_mapping!$B$2:$B$71,MATCH(consumption_mix_calcs!AU22,ba_ferc_mapping!$A$2:$A$71,0),1)&")","Canada)"),"") -> PJM Interconnection, LLC (PJM) | AW54: =IF(consumption_mix_calcs!AV22<>"",consumption_mix_calcs!AV22&" ("&IFERROR(INDEX(ba_ferc_mapping!$B$2:$B$71,MATCH(consumption_mix_calcs!AV22,ba_ferc_mapping!$A$2:$A$71,0),1)&")","Canada)"),"") -> PUD No. 1 of Douglas County (Northwest) | AX54: =IF(consumption_mix_calcs!AW22<>"",consumption_mix_calcs!AW22&" ("&IFERROR(INDEX(ba_ferc_mapping!$B$2:$B$71,MATCH(consumption_mix_calcs!AW22,ba_ferc_mapping!$A$2:$A$71,0),1)&")","Canada)"),"") -> PacifiCorp East (Northwest) | AY54: =IF(consumption_mix_calcs!AX22<>"",consumption_mix_calcs!AX22&" ("&IFERROR(INDEX(ba_ferc_mapping!$B$2:$B$71,MATCH(consumption_mix_calcs!AX22,ba_ferc_mapping!$A$2:$A$71,0),1)&")","Canada)"),"") -> PacifiCorp West (Northwest) | AZ54: =IF(consumption_mix_calcs!AY22<>"",consumption_mix_calcs!AY22&" ("&IFERROR(INDEX(ba_ferc_mapping!$B$2:$B$71,MATCH(consumption_mix_calcs!AY22,ba_ferc_mapping!$A$2:$A$71,0),1)&")","Canada)"),"") -> Portland General Electric Company (Northwest) | BA54: =IF(consumption_mix_calcs!AZ22<>"",consumption_mix_calcs!AZ22&" ("&IFERROR(INDEX(ba_ferc_mapping!$B$2:$B$71,MATCH(consumption_mix_calcs!AZ22,ba_ferc_mapping!$A$2:$A$71,0),1)&")","Canada)"),"") -> PowerSouth Energy Cooperative (Southeast) | BB54: =IF(consumption_mix_calcs!BA22<>"",consumption_mix_calcs!BA22&" ("&IFERROR(INDEX(ba_ferc_mapping!$B$2:$B$71,MATCH(consumption_mix_calcs!BA22,ba_ferc_mapping!$A$2:$A$71,0),1)&")","Canada)"),"") -> Public Service Company of Colorado (Northwest) | BC54: =IF(consumption_mix_calcs!BB22<>"",consumption_mix_calcs!BB22&" ("&IFERROR(INDEX(ba_ferc_mapping!$B$2:$B$71,MATCH(consumption_mix_calcs!BB22,ba_ferc_mapping!$A$2:$A$71,0),1)&")","Canada)"),"") -> Public Service Company of New Mexico (Southwest) | BD54: =IF(consumption_mix_calcs!BC22<>"",consumption_mix_calcs!BC22&" ("&IFERROR(INDEX(ba_ferc_mapping!$B$2:$B$71,MATCH(consumption_mix_calcs!BC22,ba_ferc_mapping!$A$2:$A$71,0),1)&")","Canada)"),"") -> Public Utility District No. 1 of Chelan County (Northwest) | BE54: =IF(consumption_mix_calcs!BD22<>"",consumption_mix_calcs!BD22&" ("&IFERROR(INDEX(ba_ferc_mapping!$B$2:$B$71,MATCH(consumption_mix_calcs!BD22,ba_ferc_mapping!$A$2:$A$71,0),1)&")","Canada)"),"") -> Public Utility District No. 2 of Grant County, Washington (Northwest) | BF54: =IF(consumption_mix_calcs!BE22<>"",consumption_mix_calcs!BE22&" ("&IFERROR(INDEX(ba_ferc_mapping!$B$2:$B$71,MATCH(consumption_mix_calcs!BE22,ba_ferc_mapping!$A$2:$A$71,0),1)&")","Canada)"),"") -> Puget Sound Energy, Inc. (Northwest) | BG54: =IF(consumption_mix_calcs!BF22<>"",consumption_mix_calcs!BF22&" ("&IFERROR(INDEX(ba_ferc_mapping!$B$2:$B$71,MATCH(consumption_mix_calcs!BF22,ba_ferc_mapping!$A$2:$A$71,0),1)&")","Canada)"),"") -> Salt River Project Agricultural Improvement and Power District (Southwest) | BH54: =IF(consumption_mix_calcs!BG22<>"",consumption_mix_calcs!BG22&" ("&IFERROR(INDEX(ba_ferc_mapping!$B$2:$B$71,MATCH(consumption_mix_calcs!BG22,ba_ferc_mapping!$A$2:$A$71,0),1)&")","Canada)"),"") -> Seattle City Light (Northwest) | BI54: =IF(consumption_mix_calcs!BH22<>"",consumption_mix_calcs!BH22&" ("&IFERROR(INDEX(ba_ferc_mapping!$B$2:$B$71,MATCH(consumption_mix_calcs!BH22,ba_ferc_mapping!$A$2:$A$71,0),1)&")","Canada)"),"") -> Seminole Electric Cooperative (Southeast) | BJ54: =IF(consumption_mix_calcs!BI22<>"",consumption_mix_calcs!BI22&" ("&IFERROR(INDEX(ba_ferc_mapping!$B$2:$B$71,MATCH(consumption_mix_calcs!BI22,ba_ferc_mapping!$A$2:$A$71,0),1)&")","Canada)"),"") -> South Carolina Electric & Gas Company (Southeast) | BK54: =IF(consumption_mix_calcs!BJ22<>"",consumption_mix_calcs!BJ22&" ("&IFERROR(INDEX(ba_ferc_mapping!$B$2:$B$71,MATCH(consumption_mix_calcs!BJ22,ba_ferc_mapping!$A$2:$A$71,0),1)&")","Canada)"),"") -> South Carolina Public Service Authority (Southeast) | BL54: =IF(consumption_mix_calcs!BK22<>"",consumption_mix_calcs!BK22&" ("&IFERROR(INDEX(ba_ferc_mapping!$B$2:$B$71,MATCH(consumption_mix_calcs!BK22,ba_ferc_mapping!$A$2:$A$71,0),1)&")","Canada)"),"") -> Southeastern Power Administration (Southeast) | BM54: =IF(consumption_mix_calcs!BL22<>"",consumption_mix_calcs!BL22&" ("&IFERROR(INDEX(ba_ferc_mapping!$B$2:$B$71,MATCH(consumption_mix_calcs!BL22,ba_ferc_mapping!$A$2:$A$71,0),1)&")","Canada)"),"") -> Southern Company Services, Inc. - Trans (Southeast) | BN54: =IF(consumption_mix_calcs!BM22<>"",consumption_mix_calcs!BM22&" ("&IFERROR(INDEX(ba_ferc_mapping!$B$2:$B$71,MATCH(consumption_mix_calcs!BM22,ba_ferc_mapping!$A$2:$A$71,0),1)&")","Canada)"),"") -> Southwest Power Pool (SPP) | BO54: =IF(consumption_mix_calcs!BN22<>"",consumption_mix_calcs!BN22&" ("&IFERROR(INDEX(ba_ferc_mapping!$B$2:$B$71,MATCH(consumption_mix_calcs!BN22,ba_ferc_mapping!$A$2:$A$71,0),1)&")","Canada)"),"") -> Southwestern Power Administration (SPP) | BP54: =IF(consumption_mix_calcs!BO22<>"",consumption_mix_calcs!BO22&" ("&IFERROR(INDEX(ba_ferc_mapping!$B$2:$B$71,MATCH(consumption_mix_calcs!BO22,ba_ferc_mapping!$A$2:$A$71,0),1)&")","Canada)"),"") -> Tallahassee, City of (Southeast) | BQ54: =IF(consumption_mix_calcs!BP22<>"",consumption_mix_calcs!BP22&" ("&IFERROR(INDEX(ba_ferc_mapping!$B$2:$B$71,MATCH(consumption_mix_calcs!BP22,ba_ferc_mapping!$A$2:$A$71,0),1)&")","Canada)"),"") -> Tampa Electric Company (Southeast) | BR54: =IF(consumption_mix_calcs!BQ22<>"",consumption_mix_calcs!BQ22&" ("&IFERROR(INDEX(ba_ferc_mapping!$B$2:$B$71,MATCH(consumption_mix_calcs!BQ22,ba_ferc_mapping!$A$2:$A$71,0),1)&")","Canada)"),"") -> Tennessee Valley Authority (Southeast) | BS54: =IF(consumption_mix_calcs!BR22<>"",consumption_mix_calcs!BR22&" ("&IFERROR(INDEX(ba_ferc_mapping!$B$2:$B$71,MATCH(consumption_mix_calcs!BR22,ba_ferc_mapping!$A$2:$A$71,0),1)&")","Canada)"),"") -> Tucson Electric Power (Southwest) | BT54: =IF(consumption_mix_calcs!BS22<>"",consumption_mix_calcs!BS22&" ("&IFERROR(INDEX(ba_ferc_mapping!$B$2:$B$71,MATCH(consumption_mix_calcs!BS22,ba_ferc_mapping!$A$2:$A$71,0),1)&")","Canada)"),"") -> Turlock Irrigation District (CAISO) | BU54: =IF(consumption_mix_calcs!BT22<>"",consumption_mix_calcs!BT22&" ("&IFERROR(INDEX(ba_ferc_mapping!$B$2:$B$71,MATCH(consumption_mix_calcs!BT22,ba_ferc_mapping!$A$2:$A$71,0),1)&")","Canada)"),"") -> Western Area Power Administration - Desert Southwest Region (Southwest) | BV54: =IF(consumption_mix_calcs!BU22<>"",consumption_mix_calcs!BU22&" ("&IFERROR(INDEX(ba_ferc_mapping!$B$2:$B$71,MATCH(consumption_mix_calcs!BU22,ba_ferc_mapping!$A$2:$A$71,0),1)&")","Canada)"),"") -> Western Area Power Administration - Rocky Mountain Region (Northwest) | BW54: =IF(consumption_mix_calcs!BV22<>"",consumption_mix_calcs!BV22&" ("&IFERROR(INDEX(ba_ferc_mapping!$B$2:$B$71,MATCH(consumption_mix_calcs!BV22,ba_ferc_mapping!$A$2:$A$71,0),1)&")","Canada)"),"") -> 
B55: Eutrophication Potential | C55: =SUM(D55:BW55) -> 0.07105327816 | D55: =IF(consumption_mix_calcs!C8<>"",consumption_mix_calcs!C8,"") -> 0 | E55: =IF(consumption_mix_calcs!D8<>"",consumption_mix_calcs!D8,"") -> 0.002261113731 | F55: =IF(consumption_mix_calcs!E8<>"",consumption_mix_calcs!E8,"") -> 0 | G55: =IF(consumption_mix_calcs!F8<>"",consumption_mix_calcs!F8,"") -> 0 | H55: =IF(consumption_mix_calcs!G8<>"",consumption_mix_calcs!G8,"") -> 2.316552763e-05 | I55: =IF(consumption_mix_calcs!H8<>"",consumption_mix_calcs!H8,"") -> 9.536945799e-05 | J55: =IF(consumption_mix_calcs!I8<>"",consumption_mix_calcs!I8,"") -> 0.004461851496 | K55: =IF(consumption_mix_calcs!J8<>"",consumption_mix_calcs!J8,"") -> 0.0008823715559 | L55: =IF(consumption_mix_calcs!K8<>"",consumption_mix_calcs!K8,"") -> 0.03644468873 | M55: =IF(consumption_mix_calcs!L8<>"",consumption_mix_calcs!L8,"") -> 0 | N55: =IF(consumption_mix_calcs!M8<>"",consumption_mix_calcs!M8,"") -> 0 | O55: =IF(consumption_mix_calcs!N8<>"",consumption_mix_calcs!N8,"") -> 0 | P55: =IF(consumption_mix_calcs!O8<>"",consumption_mix_calcs!O8,"") -> 0 | Q55: =IF(consumption_mix_calcs!P8<>"",consumption_mix_calcs!P8,"") -> 0 | R55: =IF(consumption_mix_calcs!Q8<>"",consumption_mix_calcs!Q8,"") -> 0 | S55: =IF(consumption_mix_calcs!R8<>"",consumption_mix_calcs!R8,"") -> 0 | T55: =IF(consumption_mix_calcs!S8<>"",consumption_mix_calcs!S8,"") -> 0 | U55: =IF(consumption_mix_calcs!T8<>"",consumption_mix_calcs!T8,"") -> 0 | V55: =IF(consumption_mix_calcs!U8<>"",consumption_mix_calcs!U8,"") -> 0 | W55: =IF(consumption_mix_calcs!V8<>"",consumption_mix_calcs!V8,"") -> 0 | X55: =IF(consumption_mix_calcs!W8<>"",consumption_mix_calcs!W8,"") -> 0.0004099803806 | Y55: =IF(consumption_mix_calcs!X8<>"",consumption_mix_calcs!X8,"") -> 6.053705254e-06 | Z55: =IF(consumption_mix_calcs!Y8<>"",consumption_mix_calcs!Y8,"") -> 0 | AA55: =IF(consumption_mix_calcs!Z8<>"",consumption_mix_calcs!Z8,"") -> 0.0002308170401 | AB55: =IF(consumption_mix_calcs!AA8<>"",consumption_mix_calcs!AA8,"") -> 0 | AC55: =IF(consumption_mix_calcs!AB8<>"",consumption_mix_calcs!AB8,"") -> 0 | AD55: =IF(consumption_mix_calcs!AC8<>"",consumption_mix_calcs!AC8,"") -> 0 | AE55: =IF(consumption_mix_calcs!AD8<>"",consumption_mix_calcs!AD8,"") -> 3.176482673e-05 | AF55: =IF(consumption_mix_calcs!AE8<>"",consumption_mix_calcs!AE8,"") -> 0.0005533322517 | AG55: =IF(consumption_mix_calcs!AF8<>"",consumption_mix_calcs!AF8,"") -> 0 | AH55: =IF(consumption_mix_calcs!AG8<>"",consumption_mix_calcs!AG8,"") -> 0 | AI55: =IF(consumption_mix_calcs!AH8<>"",consumption_mix_calcs!AH8,"") -> 0.01750500115 | AJ55: =IF(consumption_mix_calcs!AI8<>"",consumption_mix_calcs!AI8,"") -> 0 | AK55: =IF(consumption_mix_calcs!AJ8<>"",consumption_mix_calcs!AJ8,"") -> 0 | AL55: =IF(consumption_mix_calcs!AK8<>"",consumption_mix_calcs!AK8,"") -> 8.686764456e-08 | AM55: =IF(consumption_mix_calcs!AL8<>"",consumption_mix_calcs!AL8,"") -> 0 | AN55: =IF(consumption_mix_calcs!AM8<>"",consumption_mix_calcs!AM8,"") -> 0.000356157407 | AO55: =IF(consumption_mix_calcs!AN8<>"",consumption_mix_calcs!AN8,"") -> 0 | AP55: =IF(consumption_mix_calcs!AO8<>"",consumption_mix_calcs!AO8,"") -> 0.0001697210515 | AQ55: =IF(consumption_mix_calcs!AP8<>"",consumption_mix_calcs!AP8,"") -> 0 | AR55: =IF(consumption_mix_calcs!AQ8<>"",consumption_mix_calcs!AQ8,"") -> 0 | AS55: =IF(consumption_mix_calcs!AR8<>"",consumption_mix_calcs!AR8,"") -> 6.474249743e-06 | AT55: =IF(consumption_mix_calcs!AS8<>"",consumption_mix_calcs!AS8,"") -> 0 | AU55: =IF(consumption_mix_calcs!AT8<>"",consumption_mix_calcs!AT8,"") -> 0 | AV55: =IF(consumption_mix_calcs!AU8<>"",consumption_mix_calcs!AU8,"") -> 0 | AW55: =IF(consumption_mix_calcs!AV8<>"",consumption_mix_calcs!AV8,"") -> 7.293183027e-06 | AX55: =IF(consumption_mix_calcs!AW8<>"",consumption_mix_calcs!AW8,"") -> 0 | AY55: =IF(consumption_mix_calcs!AX8<>"",consumption_mix_calcs!AX8,"") -> 0.0009742771647 | AZ55: =IF(consumption_mix_calcs!AY8<>"",consumption_mix_calcs!AY8,"") -> 0 | BA55: =IF(consumption_mix_calcs!AZ8<>"",consumption_mix_calcs!AZ8,"") -> 0 | BB55: =IF(consumption_mix_calcs!BA8<>"",consumption_mix_calcs!BA8,"") -> 0 | BC55: =IF(consumption_mix_calcs!BB8<>"",consumption_mix_calcs!BB8,"") -> 0 | BD55: =IF(consumption_mix_calcs!BC8<>"",consumption_mix_calcs!BC8,"") -> 5.791368663e-08 | BE55: =IF(consumption_mix_calcs!BD8<>"",consumption_mix_calcs!BD8,"") -> 3.216974822e-05 | BF55: =IF(consumption_mix_calcs!BE8<>"",consumption_mix_calcs!BE8,"") -> 0 | BG55: =IF(consumption_mix_calcs!BF8<>"",consumption_mix_calcs!BF8,"") -> 0.002305508093 | BH55: =IF(consumption_mix_calcs!BG8<>"",consumption_mix_calcs!BG8,"") -> 0 | BI55: =IF(consumption_mix_calcs!BH8<>"",consumption_mix_calcs!BH8,"") -> 0 | BJ55: =IF(consumption_mix_calcs!BI8<>"",consumption_mix_calcs!BI8,"") -> 0 | BK55: =IF(consumption_mix_calcs!BJ8<>"",consumption_mix_calcs!BJ8,"") -> 0 | BL55: =IF(consumption_mix_calcs!BK8<>"",consumption_mix_calcs!BK8,"") -> 0 | BM55: =IF(consumption_mix_calcs!BL8<>"",consumption_mix_calcs!BL8,"") -> 0 | BN55: =IF(consumption_mix_calcs!BM8<>"",consumption_mix_calcs!BM8,"") -> 0 | BO55: =IF(consumption_mix_calcs!BN8<>"",consumption_mix_calcs!BN8,"") -> 0 | BP55: =IF(consumption_mix_calcs!BO8<>"",consumption_mix_calcs!BO8,"") -> 0 | BQ55: =IF(consumption_mix_calcs!BP8<>"",consumption_mix_calcs!BP8,"") -> 0 | BR55: =IF(consumption_mix_calcs!BQ8<>"",consumption_mix_calcs!BQ8,"") -> 0 | BS55: =IF(consumption_mix_calcs!BR8<>"",consumption_mix_calcs!BR8,"") -> 0 | BT55: =IF(consumption_mix_calcs!BS8<>"",consumption_mix_calcs!BS8,"") -> 0.00197599518 | BU55: =IF(consumption_mix_calcs!BT8<>"",consumption_mix_calcs!BT8,"") -> 0.001403553233 | BV55: =IF(consumption_mix_calcs!BU8<>"",consumption_mix_calcs!BU8,"") -> 0.0009164742174 | BW55: =IF(consumption_mix_calcs!BV8<>"",consumption_mix_calcs!BV8,"") -> 
B56: Acidification Potential | C56: 1.174371393 | D56: =IF(consumption_mix_calcs!C9<>"",consumption_mix_calcs!C9,"") -> 0 | E56: =IF(consumption_mix_calcs!D9<>"",consumption_mix_calcs!D9,"") -> 0.04381920262 | F56: =IF(consumption_mix_calcs!E9<>"",consumption_mix_calcs!E9,"") -> 0 | G56: =IF(consumption_mix_calcs!F9<>"",consumption_mix_calcs!F9,"") -> 0 | H56: =IF(consumption_mix_calcs!G9<>"",consumption_mix_calcs!G9,"") -> 0.0004765099013 | I56: =IF(consumption_mix_calcs!H9<>"",consumption_mix_calcs!H9,"") -> 0.001614958179 | J56: =IF(consumption_mix_calcs!I9<>"",consumption_mix_calcs!I9,"") -> 0.071442066 | K56: =IF(consumption_mix_calcs!J9<>"",consumption_mix_calcs!J9,"") -> 0.01640581934 | L56: =IF(consumption_mix_calcs!K9<>"",consumption_mix_calcs!K9,"") -> 0.6053820017 | M56: =IF(consumption_mix_calcs!L9<>"",consumption_mix_calcs!L9,"") -> 0 | N56: =IF(consumption_mix_calcs!M9<>"",consumption_mix_calcs!M9,"") -> 0 | O56: =IF(consumption_mix_calcs!N9<>"",consumption_mix_calcs!N9,"") -> 0 | P56: =IF(consumption_mix_calcs!O9<>"",consumption_mix_calcs!O9,"") -> 0 | Q56: =IF(consumption_mix_calcs!P9<>"",consumption_mix_calcs!P9,"") -> 0 | R56: =IF(consumption_mix_calcs!Q9<>"",consumption_mix_calcs!Q9,"") -> 0 | S56: =IF(consumption_mix_calcs!R9<>"",consumption_mix_calcs!R9,"") -> 0 | T56: =IF(consumption_mix_calcs!S9<>"",consumption_mix_calcs!S9,"") -> 0 | U56: =IF(consumption_mix_calcs!T9<>"",consumption_mix_calcs!T9,"") -> 0 | V56: =IF(consumption_mix_calcs!U9<>"",consumption_mix_calcs!U9,"") -> 0 | W56: =IF(consumption_mix_calcs!V9<>"",consumption_mix_calcs!V9,"") -> 0 | X56: =IF(consumption_mix_calcs!W9<>"",consumption_mix_calcs!W9,"") -> 0.006142384769 | Y56: =IF(consumption_mix_calcs!X9<>"",consumption_mix_calcs!X9,"") -> 0 | Z56: =IF(consumption_mix_calcs!Y9<>"",consumption_mix_calcs!Y9,"") -> 0 | AA56: =IF(consumption_mix_calcs!Z9<>"",consumption_mix_calcs!Z9,"") -> 0.003450676029 | AB56: =IF(consumption_mix_calcs!AA9<>"",consumption_mix_calcs!AA9,"") -> 0 | AC56: =IF(consumption_mix_calcs!AB9<>"",consumption_mix_calcs!AB9,"") -> 0 | AD56: =IF(consumption_mix_calcs!AC9<>"",consumption_mix_calcs!AC9,"") -> 0 | AE56: =IF(consumption_mix_calcs!AD9<>"",consumption_mix_calcs!AD9,"") -> 0.0004072178928 | AF56: =IF(consumption_mix_calcs!AE9<>"",consumption_mix_calcs!AE9,"") -> 0.007680887734 | AG56: =IF(consumption_mix_calcs!AF9<>"",consumption_mix_calcs!AF9,"") -> 0 | AH56: =IF(consumption_mix_calcs!AG9<>"",consumption_mix_calcs!AG9,"") -> 0 | AI56: =IF(consumption_mix_calcs!AH9<>"",consumption_mix_calcs!AH9,"") -> 0.2860228201 | AJ56: =IF(consumption_mix_calcs!AI9<>"",consumption_mix_calcs!AI9,"") -> 0 | AK56: =IF(consumption_mix_calcs!AJ9<>"",consumption_mix_calcs!AJ9,"") -> 0 | AL56: =IF(consumption_mix_calcs!AK9<>"",consumption_mix_calcs!AK9,"") -> 7.55804747e-07 | AM56: =IF(consumption_mix_calcs!AL9<>"",consumption_mix_calcs!AL9,"") -> 0 | AN56: =IF(consumption_mix_calcs!AM9<>"",consumption_mix_calcs!AM9,"") -> 0.005987029389 | AO56: =IF(consumption_mix_calcs!AN9<>"",consumption_mix_calcs!AN9,"") -> 0 | AP56: =IF(consumption_mix_calcs!AO9<>"",consumption_mix_calcs!AO9,"") -> 0.002541049896 | AQ56: =IF(consumption_mix_calcs!AP9<>"",consumption_mix_calcs!AP9,"") -> 0 | AR56: =IF(consumption_mix_calcs!AQ9<>"",consumption_mix_calcs!AQ9,"") -> 0 | AS56: =IF(consumption_mix_calcs!AR9<>"",consumption_mix_calcs!AR9,"") -> 0.0001599466443 | AT56: =IF(consumption_mix_calcs!AS9<>"",consumption_mix_calcs!AS9,"") -> 0 | AU56: =IF(consumption_mix_calcs!AT9<>"",consumption_mix_calcs!AT9,"") -> 0 | AV56: =IF(consumption_mix_calcs!AU9<>"",consumption_mix_calcs!AU9,"") -> 0 | AW56: =IF(consumption_mix_calcs!AV9<>"",consumption_mix_calcs!AV9,"") -> 0 | AX56: =IF(consumption_mix_calcs!AW9<>"",consumption_mix_calcs!AW9,"") -> 0 | AY56: =IF(consumption_mix_calcs!AX9<>"",consumption_mix_calcs!AX9,"") -> 0.01390911518 | AZ56: =IF(consumption_mix_calcs!AY9<>"",consumption_mix_calcs!AY9,"") -> 0 | BA56: =IF(consumption_mix_calcs!AZ9<>"",consumption_mix_calcs!AZ9,"") -> 0 | BB56: =IF(consumption_mix_calcs!BA9<>"",consumption_mix_calcs!BA9,"") -> 0 | BC56: =IF(consumption_mix_calcs!BB9<>"",consumption_mix_calcs!BB9,"") -> 0 | BD56: =IF(consumption_mix_calcs!BC9<>"",consumption_mix_calcs!BC9,"") -> 0 | BE56: =IF(consumption_mix_calcs!BD9<>"",consumption_mix_calcs!BD9,"") -> 0 | BF56: =IF(consumption_mix_calcs!BE9<>"",consumption_mix_calcs!BE9,"") -> 0 | BG56: =IF(consumption_mix_calcs!BF9<>"",consumption_mix_calcs!BF9,"") -> 0.03921051784 | BH56: =IF(consumption_mix_calcs!BG9<>"",consumption_mix_calcs!BG9,"") -> 0 | BI56: =IF(consumption_mix_calcs!BH9<>"",consumption_mix_calcs!BH9,"") -> 0 | BJ56: =IF(consumption_mix_calcs!BI9<>"",consumption_mix_calcs!BI9,"") -> 0 | BK56: =IF(consumption_mix_calcs!BJ9<>"",consumption_mix_calcs!BJ9,"") -> 0 | BL56: =IF(consumption_mix_calcs!BK9<>"",consumption_mix_calcs!BK9,"") -> 0 | BM56: =IF(consumption_mix_calcs!BL9<>"",consumption_mix_calcs!BL9,"") -> 0 | BN56: =IF(consumption_mix_calcs!BM9<>"",consumption_mix_calcs!BM9,"") -> 0 | BO56: =IF(consumption_mix_calcs!BN9<>"",consumption_mix_calcs!BN9,"") -> 0 | BP56: =IF(consumption_mix_calcs!BO9<>"",consumption_mix_calcs!BO9,"") -> 0 | BQ56: =IF(consumption_mix_calcs!BP9<>"",consumption_mix_calcs!BP9,"") -> 0 | BR56: =IF(consumption_mix_calcs!BQ9<>"",consumption_mix_calcs!BQ9,"") -> 0 | BS56: =IF(consumption_mix_calcs!BR9<>"",consumption_mix_calcs!BR9,"") -> 0 | BT56: =IF(consumption_mix_calcs!BS9<>"",consumption_mix_calcs!BS9,"") -> 0.02928826404 | BU56: =IF(consumption_mix_calcs!BT9<>"",consumption_mix_calcs!BT9,"") -> 0.02273602536 | BV56: =IF(consumption_mix_calcs!BU9<>"",consumption_mix_calcs!BU9,"") -> 0.0176941441 | BW56: =IF(consumption_mix_calcs!BV9<>"",consumption_mix_calcs!BV9,"") -> 0
B57: Particulate Matter Formation Potential | C57: 0.1044074899 | D57: =IF(consumption_mix_calcs!C10<>"",consumption_mix_calcs!C10,"") -> 0 | E57: =IF(consumption_mix_calcs!D10<>"",consumption_mix_calcs!D10,"") -> 0.002288654042 | F57: =IF(consumption_mix_calcs!E10<>"",consumption_mix_calcs!E10,"") -> 0 | G57: =IF(consumption_mix_calcs!F10<>"",consumption_mix_calcs!F10,"") -> 0 | H57: =IF(consumption_mix_calcs!G10<>"",consumption_mix_calcs!G10,"") -> 1.966239878e-05 | I57: =IF(consumption_mix_calcs!H10<>"",consumption_mix_calcs!H10,"") -> 9.496342943e-05 | J57: =IF(consumption_mix_calcs!I10<>"",consumption_mix_calcs!I10,"") -> 0.001055949706 | K57: =IF(consumption_mix_calcs!J10<>"",consumption_mix_calcs!J10,"") -> 0.0005662649853 | L57: =IF(consumption_mix_calcs!K10<>"",consumption_mix_calcs!K10,"") -> 0.08459482748 | M57: =IF(consumption_mix_calcs!L10<>"",consumption_mix_calcs!L10,"") -> 0 | N57: =IF(consumption_mix_calcs!M10<>"",consumption_mix_calcs!M10,"") -> 0 | O57: =IF(consumption_mix_calcs!N10<>"",consumption_mix_calcs!N10,"") -> 0 | P57: =IF(consumption_mix_calcs!O10<>"",consumption_mix_calcs!O10,"") -> 0 | Q57: =IF(consumption_mix_calcs!P10<>"",consumption_mix_calcs!P10,"") -> 0 | R57: =IF(consumption_mix_calcs!Q10<>"",consumption_mix_calcs!Q10,"") -> 0 | S57: =IF(consumption_mix_calcs!R10<>"",consumption_mix_calcs!R10,"") -> 0 | T57: =IF(consumption_mix_calcs!S10<>"",consumption_mix_calcs!S10,"") -> 0 | U57: =IF(consumption_mix_calcs!T10<>"",consumption_mix_calcs!T10,"") -> 0 | V57: =IF(consumption_mix_calcs!U10<>"",consumption_mix_calcs!U10,"") -> 0 | W57: =IF(consumption_mix_calcs!V10<>"",consumption_mix_calcs!V10,"") -> 0 | X57: =IF(consumption_mix_calcs!W10<>"",consumption_mix_calcs!W10,"") -> 0.0001670553862 | Y57: =IF(consumption_mix_calcs!X10<>"",consumption_mix_calcs!X10,"") -> 0 | Z57: =IF(consumption_mix_calcs!Y10<>"",consumption_mix_calcs!Y10,"") -> 0 | AA57: =IF(consumption_mix_calcs!Z10<>"",consumption_mix_calcs!Z10,"") -> 5.091265974e-05 | AB57: =IF(consumption_mix_calcs!AA10<>"",consumption_mix_calcs!AA10,"") -> 0 | AC57: =IF(consumption_mix_calcs!AB10<>"",consumption_mix_calcs!AB10,"") -> 0 | AD57: =IF(consumption_mix_calcs!AC10<>"",consumption_mix_calcs!AC10,"") -> 0 | AE57: =IF(consumption_mix_calcs!AD10<>"",consumption_mix_calcs!AD10,"") -> 1.296767418e-05 | AF57: =IF(consumption_mix_calcs!AE10<>"",consumption_mix_calcs!AE10,"") -> 0.0001763905056 | AG57: =IF(consumption_mix_calcs!AF10<>"",consumption_mix_calcs!AF10,"") -> 0 | AH57: =IF(consumption_mix_calcs!AG10<>"",consumption_mix_calcs!AG10,"") -> 0 | AI57: =IF(consumption_mix_calcs!AH10<>"",consumption_mix_calcs!AH10,"") -> 0.01034143888 | AJ57: =IF(consumption_mix_calcs!AI10<>"",consumption_mix_calcs!AI10,"") -> 0 | AK57: =IF(consumption_mix_calcs!AJ10<>"",consumption_mix_calcs!AJ10,"") -> 0 | AL57: =IF(consumption_mix_calcs!AK10<>"",consumption_mix_calcs!AK10,"") -> 3.136457077e-08 | AM57: =IF(consumption_mix_calcs!AL10<>"",consumption_mix_calcs!AL10,"") -> 0 | AN57: =IF(consumption_mix_calcs!AM10<>"",consumption_mix_calcs!AM10,"") -> 0.0002176959507 | AO57: =IF(consumption_mix_calcs!AN10<>"",consumption_mix_calcs!AN10,"") -> 0 | AP57: =IF(consumption_mix_calcs!AO10<>"",consumption_mix_calcs!AO10,"") -> 4.04078758e-05 | AQ57: =IF(consumption_mix_calcs!AP10<>"",consumption_mix_calcs!AP10,"") -> 0 | AR57: =IF(consumption_mix_calcs!AQ10<>"",consumption_mix_calcs!AQ10,"") -> 0 | AS57: =IF(consumption_mix_calcs!AR10<>"",consumption_mix_calcs!AR10,"") -> 1.02071695e-05 | AT57: =IF(consumption_mix_calcs!AS10<>"",consumption_mix_calcs!AS10,"") -> 0 | AU57: =IF(consumption_mix_calcs!AT10<>"",consumption_mix_calcs!AT10,"") -> 0 | AV57: =IF(consumption_mix_calcs!AU10<>"",consumption_mix_calcs!AU10,"") -> 0 | AW57: =IF(consumption_mix_calcs!AV10<>"",consumption_mix_calcs!AV10,"") -> 0 | AX57: =IF(consumption_mix_calcs!AW10<>"",consumption_mix_calcs!AW10,"") -> 0 | AY57: =IF(consumption_mix_calcs!AX10<>"",consumption_mix_calcs!AX10,"") -> 0.0003536389415 | AZ57: =IF(consumption_mix_calcs!AY10<>"",consumption_mix_calcs!AY10,"") -> 0 | BA57: =IF(consumption_mix_calcs!AZ10<>"",consumption_mix_calcs!AZ10,"") -> 0 | BB57: =IF(consumption_mix_calcs!BA10<>"",consumption_mix_calcs!BA10,"") -> 0 | BC57: =IF(consumption_mix_calcs!BB10<>"",consumption_mix_calcs!BB10,"") -> 0 | BD57: =IF(consumption_mix_calcs!BC10<>"",consumption_mix_calcs!BC10,"") -> 0 | BE57: =IF(consumption_mix_calcs!BD10<>"",consumption_mix_calcs!BD10,"") -> 0 | BF57: =IF(consumption_mix_calcs!BE10<>"",consumption_mix_calcs!BE10,"") -> 0 | BG57: =IF(consumption_mix_calcs!BF10<>"",consumption_mix_calcs!BF10,"") -> 0.00240062414 | BH57: =IF(consumption_mix_calcs!BG10<>"",consumption_mix_calcs!BG10,"") -> 0 | BI57: =IF(consumption_mix_calcs!BH10<>"",consumption_mix_calcs!BH10,"") -> 0 | BJ57: =IF(consumption_mix_calcs!BI10<>"",consumption_mix_calcs!BI10,"") -> 0 | BK57: =IF(consumption_mix_calcs!BJ10<>"",consumption_mix_calcs!BJ10,"") -> 0 | BL57: =IF(consumption_mix_calcs!BK10<>"",consumption_mix_calcs!BK10,"") -> 0 | BM57: =IF(consumption_mix_calcs!BL10<>"",consumption_mix_calcs!BL10,"") -> 0 | BN57: =IF(consumption_mix_calcs!BM10<>"",consumption_mix_calcs!BM10,"") -> 0 | BO57: =IF(consumption_mix_calcs!BN10<>"",consumption_mix_calcs!BN10,"") -> 0 | BP57: =IF(consumption_mix_calcs!BO10<>"",consumption_mix_calcs!BO10,"") -> 0 | BQ57: =IF(consumption_mix_calcs!BP10<>"",consumption_mix_calcs!BP10,"") -> 0 | BR57: =IF(consumption_mix_calcs!BQ10<>"",consumption_mix_calcs!BQ10,"") -> 0 | BS57: =IF(consumption_mix_calcs!BR10<>"",consumption_mix_calcs!BR10,"") -> 0 | BT57: =IF(consumption_mix_calcs!BS10<>"",consumption_mix_calcs!BS10,"") -> 0.0009326434015 | BU57: =IF(consumption_mix_calcs!BT10<>"",consumption_mix_calcs!BT10,"") -> 0.0006018504024 | BV57: =IF(consumption_mix_calcs!BU10<>"",consumption_mix_calcs!BU10,"") -> 0.0004813034891 | BW57: =IF(consumption_mix_calcs!BV10<>"",consumption_mix_calcs!BV10,"") -> 0
B58: Photochemical Smog Formation Potential | C58: 37.87644172 | D58: =IF(consumption_mix_calcs!C11<>"",consumption_mix_calcs!C11,"") -> 0 | E58: =IF(consumption_mix_calcs!D11<>"",consumption_mix_calcs!D11,"") -> 1.22983507 | F58: =IF(consumption_mix_calcs!E11<>"",consumption_mix_calcs!E11,"") -> 0 | G58: =IF(consumption_mix_calcs!F11<>"",consumption_mix_calcs!F11,"") -> 0 | H58: =IF(consumption_mix_calcs!G11<>"",consumption_mix_calcs!G11,"") -> 0.01296466432 | I58: =IF(consumption_mix_calcs!H11<>"",consumption_mix_calcs!H11,"") -> 0.05260115664 | J58: =IF(consumption_mix_calcs!I11<>"",consumption_mix_calcs!I11,"") -> 2.459182544 | K58: =IF(consumption_mix_calcs!J11<>"",consumption_mix_calcs!J11,"") -> 0.466061851 | L58: =IF(consumption_mix_calcs!K11<>"",consumption_mix_calcs!K11,"") -> 20.08600583 | M58: =IF(consumption_mix_calcs!L11<>"",consumption_mix_calcs!L11,"") -> 0 | N58: =IF(consumption_mix_calcs!M11<>"",consumption_mix_calcs!M11,"") -> 0 | O58: =IF(consumption_mix_calcs!N11<>"",consumption_mix_calcs!N11,"") -> 0 | P58: =IF(consumption_mix_calcs!O11<>"",consumption_mix_calcs!O11,"") -> 0 | Q58: =IF(consumption_mix_calcs!P11<>"",consumption_mix_calcs!P11,"") -> 0 | R58: =IF(consumption_mix_calcs!Q11<>"",consumption_mix_calcs!Q11,"") -> 0 | S58: =IF(consumption_mix_calcs!R11<>"",consumption_mix_calcs!R11,"") -> 0 | T58: =IF(consumption_mix_calcs!S11<>"",consumption_mix_calcs!S11,"") -> 0 | U58: =IF(consumption_mix_calcs!T11<>"",consumption_mix_calcs!T11,"") -> 0 | V58: =IF(consumption_mix_calcs!U11<>"",consumption_mix_calcs!U11,"") -> 0 | W58: =IF(consumption_mix_calcs!V11<>"",consumption_mix_calcs!V11,"") -> 0 | X58: =IF(consumption_mix_calcs!W11<>"",consumption_mix_calcs!W11,"") -> 0.2133030086 | Y58: =IF(consumption_mix_calcs!X11<>"",consumption_mix_calcs!X11,"") -> 1.23748823e-07 | Z58: =IF(consumption_mix_calcs!Y11<>"",consumption_mix_calcs!Y11,"") -> 0 | AA58: =IF(consumption_mix_calcs!Z11<>"",consumption_mix_calcs!Z11,"") -> 0.1210382722 | AB58: =IF(consumption_mix_calcs!AA11<>"",consumption_mix_calcs!AA11,"") -> 0 | AC58: =IF(consumption_mix_calcs!AB11<>"",consumption_mix_calcs!AB11,"") -> 0 | AD58: =IF(consumption_mix_calcs!AC11<>"",consumption_mix_calcs!AC11,"") -> 0 | AE58: =IF(consumption_mix_calcs!AD11<>"",consumption_mix_calcs!AD11,"") -> 0.01376148808 | AF58: =IF(consumption_mix_calcs!AE11<>"",consumption_mix_calcs!AE11,"") -> 0.2400182075 | AG58: =IF(consumption_mix_calcs!AF11<>"",consumption_mix_calcs!AF11,"") -> 0 | AH58: =IF(consumption_mix_calcs!AG11<>"",consumption_mix_calcs!AG11,"") -> 0 | AI58: =IF(consumption_mix_calcs!AH11<>"",consumption_mix_calcs!AH11,"") -> 9.045898943 | AJ58: =IF(consumption_mix_calcs!AI11<>"",consumption_mix_calcs!AI11,"") -> 0 | AK58: =IF(consumption_mix_calcs!AJ11<>"",consumption_mix_calcs!AJ11,"") -> 0 | AL58: =IF(consumption_mix_calcs!AK11<>"",consumption_mix_calcs!AK11,"") -> 8.047682821e-06 | AM58: =IF(consumption_mix_calcs!AL11<>"",consumption_mix_calcs!AL11,"") -> 0 | AN58: =IF(consumption_mix_calcs!AM11<>"",consumption_mix_calcs!AM11,"") -> 0.1794887464 | AO58: =IF(consumption_mix_calcs!AN11<>"",consumption_mix_calcs!AN11,"") -> 0 | AP58: =IF(consumption_mix_calcs!AO11<>"",consumption_mix_calcs!AO11,"") -> 0.08613776542 | AQ58: =IF(consumption_mix_calcs!AP11<>"",consumption_mix_calcs!AP11,"") -> 0 | AR58: =IF(consumption_mix_calcs!AQ11<>"",consumption_mix_calcs!AQ11,"") -> 0 | AS58: =IF(consumption_mix_calcs!AR11<>"",consumption_mix_calcs!AR11,"") -> 0.003251260561 | AT58: =IF(consumption_mix_calcs!AS11<>"",consumption_mix_calcs!AS11,"") -> 0 | AU58: =IF(consumption_mix_calcs!AT11<>"",consumption_mix_calcs!AT11,"") -> 0 | AV58: =IF(consumption_mix_calcs!AU11<>"",consumption_mix_calcs!AU11,"") -> 0 | AW58: =IF(consumption_mix_calcs!AV11<>"",consumption_mix_calcs!AV11,"") -> 1.536879188e-07 | AX58: =IF(consumption_mix_calcs!AW11<>"",consumption_mix_calcs!AW11,"") -> 0 | AY58: =IF(consumption_mix_calcs!AX11<>"",consumption_mix_calcs!AX11,"") -> 0.4661226105 | AZ58: =IF(consumption_mix_calcs!AY11<>"",consumption_mix_calcs!AY11,"") -> 0 | BA58: =IF(consumption_mix_calcs!AZ11<>"",consumption_mix_calcs!AZ11,"") -> 0 | BB58: =IF(consumption_mix_calcs!BA11<>"",consumption_mix_calcs!BA11,"") -> 0 | BC58: =IF(consumption_mix_calcs!BB11<>"",consumption_mix_calcs!BB11,"") -> 0 | BD58: =IF(consumption_mix_calcs!BC11<>"",consumption_mix_calcs!BC11,"") -> 1.375120539e-09 | BE58: =IF(consumption_mix_calcs!BD11<>"",consumption_mix_calcs!BD11,"") -> 7.658286961e-07 | BF58: =IF(consumption_mix_calcs!BE11<>"",consumption_mix_calcs!BE11,"") -> 0 | BG58: =IF(consumption_mix_calcs!BF11<>"",consumption_mix_calcs!BF11,"") -> 1.113942878 | BH58: =IF(consumption_mix_calcs!BG11<>"",consumption_mix_calcs!BG11,"") -> 0 | BI58: =IF(consumption_mix_calcs!BH11<>"",consumption_mix_calcs!BH11,"") -> 0 | BJ58: =IF(consumption_mix_calcs!BI11<>"",consumption_mix_calcs!BI11,"") -> 0 | BK58: =IF(consumption_mix_calcs!BJ11<>"",consumption_mix_calcs!BJ11,"") -> 0 | BL58: =IF(consumption_mix_calcs!BK11<>"",consumption_mix_calcs!BK11,"") -> 0 | BM58: =IF(consumption_mix_calcs!BL11<>"",consumption_mix_calcs!BL11,"") -> 0 | BN58: =IF(consumption_mix_calcs!BM11<>"",consumption_mix_calcs!BM11,"") -> 0 | BO58: =IF(consumption_mix_calcs!BN11<>"",consumption_mix_calcs!BN11,"") -> 0 | BP58: =IF(consumption_mix_calcs!BO11<>"",consumption_mix_calcs!BO11,"") -> 0 | BQ58: =IF(consumption_mix_calcs!BP11<>"",consumption_mix_calcs!BP11,"") -> 0 | BR58: =IF(consumption_mix_calcs!BQ11<>"",consumption_mix_calcs!BQ11,"") -> 0 | BS58: =IF(consumption_mix_calcs!BR11<>"",consumption_mix_calcs!BR11,"") -> 0 | BT58: =IF(consumption_mix_calcs!BS11<>"",consumption_mix_calcs!BS11,"") -> 0.9932873084 | BU58: =IF(consumption_mix_calcs!BT11<>"",consumption_mix_calcs!BT11,"") -> 0.6262792448 | BV58: =IF(consumption_mix_calcs!BU11<>"",consumption_mix_calcs!BU11,"") -> 0.4672517846 | BW58: =IF(consumption_mix_calcs!BV11<>"",consumption_mix_calcs!BV11,"") -> 0
B59: Global Warming Potential | C59: 418.8830509 | D59: =IF(consumption_mix_calcs!C12<>"",consumption_mix_calcs!C12,"") -> 0 | E59: =IF(consumption_mix_calcs!D12<>"",consumption_mix_calcs!D12,"") -> 17.35258499 | F59: =IF(consumption_mix_calcs!E12<>"",consumption_mix_calcs!E12,"") -> 0 | G59: =IF(consumption_mix_calcs!F12<>"",consumption_mix_calcs!F12,"") -> 0 | H59: =IF(consumption_mix_calcs!G12<>"",consumption_mix_calcs!G12,"") -> 0.225828005 | I59: =IF(consumption_mix_calcs!H12<>"",consumption_mix_calcs!H12,"") -> 0.4850561825 | J59: =IF(consumption_mix_calcs!I12<>"",consumption_mix_calcs!I12,"") -> 22.53886317 | K59: =IF(consumption_mix_calcs!J12<>"",consumption_mix_calcs!J12,"") -> 4.811589363 | L59: =IF(consumption_mix_calcs!K12<>"",consumption_mix_calcs!K12,"") -> 228.1760121 | M59: =IF(consumption_mix_calcs!L12<>"",consumption_mix_calcs!L12,"") -> 0 | N59: =IF(consumption_mix_calcs!M12<>"",consumption_mix_calcs!M12,"") -> 0 | O59: =IF(consumption_mix_calcs!N12<>"",consumption_mix_calcs!N12,"") -> 0 | P59: =IF(consumption_mix_calcs!O12<>"",consumption_mix_calcs!O12,"") -> 0 | Q59: =IF(consumption_mix_calcs!P12<>"",consumption_mix_calcs!P12,"") -> 0 | R59: =IF(consumption_mix_calcs!Q12<>"",consumption_mix_calcs!Q12,"") -> 0 | S59: =IF(consumption_mix_calcs!R12<>"",consumption_mix_calcs!R12,"") -> 0 | T59: =IF(consumption_mix_calcs!S12<>"",consumption_mix_calcs!S12,"") -> 0 | U59: =IF(consumption_mix_calcs!T12<>"",consumption_mix_calcs!T12,"") -> 0 | V59: =IF(consumption_mix_calcs!U12<>"",consumption_mix_calcs!U12,"") -> 0 | W59: =IF(consumption_mix_calcs!V12<>"",consumption_mix_calcs!V12,"") -> 0 | X59: =IF(consumption_mix_calcs!W12<>"",consumption_mix_calcs!W12,"") -> 2.279856607 | Y59: =IF(consumption_mix_calcs!X12<>"",consumption_mix_calcs!X12,"") -> 0 | Z59: =IF(consumption_mix_calcs!Y12<>"",consumption_mix_calcs!Y12,"") -> 0 | AA59: =IF(consumption_mix_calcs!Z12<>"",consumption_mix_calcs!Z12,"") -> 1.275323074 | AB59: =IF(consumption_mix_calcs!AA12<>"",consumption_mix_calcs!AA12,"") -> 0 | AC59: =IF(consumption_mix_calcs!AB12<>"",consumption_mix_calcs!AB12,"") -> 0 | AD59: =IF(consumption_mix_calcs!AC12<>"",consumption_mix_calcs!AC12,"") -> 0 | AE59: =IF(consumption_mix_calcs!AD12<>"",consumption_mix_calcs!AD12,"") -> 0.1111705998 | AF59: =IF(consumption_mix_calcs!AE12<>"",consumption_mix_calcs!AE12,"") -> 5.455397679 | AG59: =IF(consumption_mix_calcs!AF12<>"",consumption_mix_calcs!AF12,"") -> 0 | AH59: =IF(consumption_mix_calcs!AG12<>"",consumption_mix_calcs!AG12,"") -> 0 | AI59: =IF(consumption_mix_calcs!AH12<>"",consumption_mix_calcs!AH12,"") -> 89.76799634 | AJ59: =IF(consumption_mix_calcs!AI12<>"",consumption_mix_calcs!AI12,"") -> 0 | AK59: =IF(consumption_mix_calcs!AJ12<>"",consumption_mix_calcs!AJ12,"") -> 0 | AL59: =IF(consumption_mix_calcs!AK12<>"",consumption_mix_calcs!AK12,"") -> 0.0002693792791 | AM59: =IF(consumption_mix_calcs!AL12<>"",consumption_mix_calcs!AL12,"") -> 0 | AN59: =IF(consumption_mix_calcs!AM12<>"",consumption_mix_calcs!AM12,"") -> 2.138026281 | AO59: =IF(consumption_mix_calcs!AN12<>"",consumption_mix_calcs!AN12,"") -> 0 | AP59: =IF(consumption_mix_calcs!AO12<>"",consumption_mix_calcs!AO12,"") -> 0.8667858934 | AQ59: =IF(consumption_mix_calcs!AP12<>"",consumption_mix_calcs!AP12,"") -> 0 | AR59: =IF(consumption_mix_calcs!AQ12<>"",consumption_mix_calcs!AQ12,"") -> 0 | AS59: =IF(consumption_mix_calcs!AR12<>"",consumption_mix_calcs!AR12,"") -> 0.0542647919 | AT59: =IF(consumption_mix_calcs!AS12<>"",consumption_mix_calcs!AS12,"") -> 0 | AU59: =IF(consumption_mix_calcs!AT12<>"",consumption_mix_calcs!AT12,"") -> 0 | AV59: =IF(consumption_mix_calcs!AU12<>"",consumption_mix_calcs!AU12,"") -> 0 | AW59: =IF(consumption_mix_calcs!AV12<>"",consumption_mix_calcs!AV12,"") -> 0.0007622931149 | AX59: =IF(consumption_mix_calcs!AW12<>"",consumption_mix_calcs!AW12,"") -> 0 | AY59: =IF(consumption_mix_calcs!AX12<>"",consumption_mix_calcs!AX12,"") -> 5.252884697 | AZ59: =IF(consumption_mix_calcs!AY12<>"",consumption_mix_calcs!AY12,"") -> 0 | BA59: =IF(consumption_mix_calcs!AZ12<>"",consumption_mix_calcs!AZ12,"") -> 0 | BB59: =IF(consumption_mix_calcs!BA12<>"",consumption_mix_calcs!BA12,"") -> 0 | BC59: =IF(consumption_mix_calcs!BB12<>"",consumption_mix_calcs!BB12,"") -> 0 | BD59: =IF(consumption_mix_calcs!BC12<>"",consumption_mix_calcs!BC12,"") -> 1.693892088e-05 | BE59: =IF(consumption_mix_calcs!BD12<>"",consumption_mix_calcs!BD12,"") -> 0.01765801925 | BF59: =IF(consumption_mix_calcs!BE12<>"",consumption_mix_calcs!BE12,"") -> 0 | BG59: =IF(consumption_mix_calcs!BF12<>"",consumption_mix_calcs!BF12,"") -> 14.71815093 | BH59: =IF(consumption_mix_calcs!BG12<>"",consumption_mix_calcs!BG12,"") -> 0 | BI59: =IF(consumption_mix_calcs!BH12<>"",consumption_mix_calcs!BH12,"") -> 0 | BJ59: =IF(consumption_mix_calcs!BI12<>"",consumption_mix_calcs!BI12,"") -> 0 | BK59: =IF(consumption_mix_calcs!BJ12<>"",consumption_mix_calcs!BJ12,"") -> 0 | BL59: =IF(consumption_mix_calcs!BK12<>"",consumption_mix_calcs!BK12,"") -> 0 | BM59: =IF(consumption_mix_calcs!BL12<>"",consumption_mix_calcs!BL12,"") -> 0 | BN59: =IF(consumption_mix_calcs!BM12<>"",consumption_mix_calcs!BM12,"") -> 0 | BO59: =IF(consumption_mix_calcs!BN12<>"",consumption_mix_calcs!BN12,"") -> 0 | BP59: =IF(consumption_mix_calcs!BO12<>"",consumption_mix_calcs!BO12,"") -> 0 | BQ59: =IF(consumption_mix_calcs!BP12<>"",consumption_mix_calcs!BP12,"") -> 0 | BR59: =IF(consumption_mix_calcs!BQ12<>"",consumption_mix_calcs!BQ12,"") -> 0 | BS59: =IF(consumption_mix_calcs!BR12<>"",consumption_mix_calcs!BR12,"") -> 0 | BT59: =IF(consumption_mix_calcs!BS12<>"",consumption_mix_calcs!BS12,"") -> 10.72440994 | BU59: =IF(consumption_mix_calcs!BT12<>"",consumption_mix_calcs!BT12,"") -> 6.728569322 | BV59: =IF(consumption_mix_calcs!BU12<>"",consumption_mix_calcs!BU12,"") -> 5.901574261 | BW59: =IF(consumption_mix_calcs!BV12<>"",consumption_mix_calcs!BV12,"") -> 0
B60: Ozone Depletion Potential | C60: 2.472333273e-06 | D60: =IF(consumption_mix_calcs!C13<>"",consumption_mix_calcs!C13,"") -> 0 | E60: =IF(consumption_mix_calcs!D13<>"",consumption_mix_calcs!D13,"") -> 2.677431982e-07 | F60: =IF(consumption_mix_calcs!E13<>"",consumption_mix_calcs!E13,"") -> 0 | G60: =IF(consumption_mix_calcs!F13<>"",consumption_mix_calcs!F13,"") -> 0 | H60: =IF(consumption_mix_calcs!G13<>"",consumption_mix_calcs!G13,"") -> 9.832764506e-09 | I60: =IF(consumption_mix_calcs!H13<>"",consumption_mix_calcs!H13,"") -> 1.835536806e-08 | J60: =IF(consumption_mix_calcs!I13<>"",consumption_mix_calcs!I13,"") -> 2.664190981e-08 | K60: =IF(consumption_mix_calcs!J13<>"",consumption_mix_calcs!J13,"") -> 9.719407959e-08 | L60: =IF(consumption_mix_calcs!K13<>"",consumption_mix_calcs!K13,"") -> 3.77289181e-07 | M60: =IF(consumption_mix_calcs!L13<>"",consumption_mix_calcs!L13,"") -> 0 | N60: =IF(consumption_mix_calcs!M13<>"",consumption_mix_calcs!M13,"") -> 0 | O60: =IF(consumption_mix_calcs!N13<>"",consumption_mix_calcs!N13,"") -> 0 | P60: =IF(consumption_mix_calcs!O13<>"",consumption_mix_calcs!O13,"") -> 0 | Q60: =IF(consumption_mix_calcs!P13<>"",consumption_mix_calcs!P13,"") -> 0 | R60: =IF(consumption_mix_calcs!Q13<>"",consumption_mix_calcs!Q13,"") -> 0 | S60: =IF(consumption_mix_calcs!R13<>"",consumption_mix_calcs!R13,"") -> 0 | T60: =IF(consumption_mix_calcs!S13<>"",consumption_mix_calcs!S13,"") -> 0 | U60: =IF(consumption_mix_calcs!T13<>"",consumption_mix_calcs!T13,"") -> 0 | V60: =IF(consumption_mix_calcs!U13<>"",consumption_mix_calcs!U13,"") -> 0 | W60: =IF(consumption_mix_calcs!V13<>"",consumption_mix_calcs!V13,"") -> 0 | X60: =IF(consumption_mix_calcs!W13<>"",consumption_mix_calcs!W13,"") -> 2.819958742e-09 | Y60: =IF(consumption_mix_calcs!X13<>"",consumption_mix_calcs!X13,"") -> 0 | Z60: =IF(consumption_mix_calcs!Y13<>"",consumption_mix_calcs!Y13,"") -> 0 | AA60: =IF(consumption_mix_calcs!Z13<>"",consumption_mix_calcs!Z13,"") -> 1.230022401e-09 | AB60: =IF(consumption_mix_calcs!AA13<>"",consumption_mix_calcs!AA13,"") -> 0 | AC60: =IF(consumption_mix_calcs!AB13<>"",consumption_mix_calcs!AB13,"") -> 0 | AD60: =IF(consumption_mix_calcs!AC13<>"",consumption_mix_calcs!AC13,"") -> 0 | AE60: =IF(consumption_mix_calcs!AD13<>"",consumption_mix_calcs!AD13,"") -> 1.436865173e-10 | AF60: =IF(consumption_mix_calcs!AE13<>"",consumption_mix_calcs!AE13,"") -> 3.703431931e-09 | AG60: =IF(consumption_mix_calcs!AF13<>"",consumption_mix_calcs!AF13,"") -> 0 | AH60: =IF(consumption_mix_calcs!AG13<>"",consumption_mix_calcs!AG13,"") -> 0 | AI60: =IF(consumption_mix_calcs!AH13<>"",consumption_mix_calcs!AH13,"") -> 1.146206593e-06 | AJ60: =IF(consumption_mix_calcs!AI13<>"",consumption_mix_calcs!AI13,"") -> 0 | AK60: =IF(consumption_mix_calcs!AJ13<>"",consumption_mix_calcs!AJ13,"") -> 0 | AL60: =IF(consumption_mix_calcs!AK13<>"",consumption_mix_calcs!AK13,"") -> 1.23122289e-13 | AM60: =IF(consumption_mix_calcs!AL13<>"",consumption_mix_calcs!AL13,"") -> 0 | AN60: =IF(consumption_mix_calcs!AM13<>"",consumption_mix_calcs!AM13,"") -> 1.046702047e-08 | AO60: =IF(consumption_mix_calcs!AN13<>"",consumption_mix_calcs!AN13,"") -> 0 | AP60: =IF(consumption_mix_calcs!AO13<>"",consumption_mix_calcs!AO13,"") -> 1.105439079e-09 | AQ60: =IF(consumption_mix_calcs!AP13<>"",consumption_mix_calcs!AP13,"") -> 0 | AR60: =IF(consumption_mix_calcs!AQ13<>"",consumption_mix_calcs!AQ13,"") -> 0 | AS60: =IF(consumption_mix_calcs!AR13<>"",consumption_mix_calcs!AR13,"") -> 1.367095677e-09 | AT60: =IF(consumption_mix_calcs!AS13<>"",consumption_mix_calcs!AS13,"") -> 0 | AU60: =IF(consumption_mix_calcs!AT13<>"",consumption_mix_calcs!AT13,"") -> 0 | AV60: =IF(consumption_mix_calcs!AU13<>"",consumption_mix_calcs!AU13,"") -> 0 | AW60: =IF(consumption_mix_calcs!AV13<>"",consumption_mix_calcs!AV13,"") -> 0 | AX60: =IF(consumption_mix_calcs!AW13<>"",consumption_mix_calcs!AW13,"") -> 0 | AY60: =IF(consumption_mix_calcs!AX13<>"",consumption_mix_calcs!AX13,"") -> 3.207907062e-08 | AZ60: =IF(consumption_mix_calcs!AY13<>"",consumption_mix_calcs!AY13,"") -> 0 | BA60: =IF(consumption_mix_calcs!AZ13<>"",consumption_mix_calcs!AZ13,"") -> 0 | BB60: =IF(consumption_mix_calcs!BA13<>"",consumption_mix_calcs!BA13,"") -> 0 | BC60: =IF(consumption_mix_calcs!BB13<>"",consumption_mix_calcs!BB13,"") -> 0 | BD60: =IF(consumption_mix_calcs!BC13<>"",consumption_mix_calcs!BC13,"") -> 0 | BE60: =IF(consumption_mix_calcs!BD13<>"",consumption_mix_calcs!BD13,"") -> 0 | BF60: =IF(consumption_mix_calcs!BE13<>"",consumption_mix_calcs!BE13,"") -> 0 | BG60: =IF(consumption_mix_calcs!BF13<>"",consumption_mix_calcs!BF13,"") -> 2.29420318e-07 | BH60: =IF(consumption_mix_calcs!BG13<>"",consumption_mix_calcs!BG13,"") -> 0 | BI60: =IF(consumption_mix_calcs!BH13<>"",consumption_mix_calcs!BH13,"") -> 0 | BJ60: =IF(consumption_mix_calcs!BI13<>"",consumption_mix_calcs!BI13,"") -> 0 | BK60: =IF(consumption_mix_calcs!BJ13<>"",consumption_mix_calcs!BJ13,"") -> 0 | BL60: =IF(consumption_mix_calcs!BK13<>"",consumption_mix_calcs!BK13,"") -> 0 | BM60: =IF(consumption_mix_calcs!BL13<>"",consumption_mix_calcs!BL13,"") -> 0 | BN60: =IF(consumption_mix_calcs!BM13<>"",consumption_mix_calcs!BM13,"") -> 0 | BO60: =IF(consumption_mix_calcs!BN13<>"",consumption_mix_calcs!BN13,"") -> 0 | BP60: =IF(consumption_mix_calcs!BO13<>"",consumption_mix_calcs!BO13,"") -> 0 | BQ60: =IF(consumption_mix_calcs!BP13<>"",consumption_mix_calcs!BP13,"") -> 0 | BR60: =IF(consumption_mix_calcs!BQ13<>"",consumption_mix_calcs!BQ13,"") -> 0 | BS60: =IF(consumption_mix_calcs!BR13<>"",consumption_mix_calcs!BR13,"") -> 0 | BT60: =IF(consumption_mix_calcs!BS13<>"",consumption_mix_calcs!BS13,"") -> 1.281567265e-08 | BU60: =IF(consumption_mix_calcs!BT13<>"",consumption_mix_calcs!BT13,"") -> 1.321087564e-07 | BV60: =IF(consumption_mix_calcs!BU13<>"",consumption_mix_calcs!BU13,"") -> 1.018095828e-07 | BW60: =IF(consumption_mix_calcs!BV13<>"",consumption_mix_calcs!BV13,"") -> 0
B61: Water Consumption | C61: 3739.301009 | D61: =IF(consumption_mix_calcs!C14<>"",consumption_mix_calcs!C14,"") -> 0 | E61: =IF(consumption_mix_calcs!D14<>"",consumption_mix_calcs!D14,"") -> 55.58054257 | F61: =IF(consumption_mix_calcs!E14<>"",consumption_mix_calcs!E14,"") -> 0 | G61: =IF(consumption_mix_calcs!F14<>"",consumption_mix_calcs!F14,"") -> 0 | H61: =IF(consumption_mix_calcs!G14<>"",consumption_mix_calcs!G14,"") -> 0.05292977 | I61: =IF(consumption_mix_calcs!H14<>"",consumption_mix_calcs!H14,"") -> 1.868614233 | J61: =IF(consumption_mix_calcs!I14<>"",consumption_mix_calcs!I14,"") -> 0.07794085357 | K61: =IF(consumption_mix_calcs!J14<>"",consumption_mix_calcs!J14,"") -> 13.53113654 | L61: =IF(consumption_mix_calcs!K14<>"",consumption_mix_calcs!K14,"") -> 43.48091263 | M61: =IF(consumption_mix_calcs!L14<>"",consumption_mix_calcs!L14,"") -> 0 | N61: =IF(consumption_mix_calcs!M14<>"",consumption_mix_calcs!M14,"") -> 0 | O61: =IF(consumption_mix_calcs!N14<>"",consumption_mix_calcs!N14,"") -> 0 | P61: =IF(consumption_mix_calcs!O14<>"",consumption_mix_calcs!O14,"") -> 0 | Q61: =IF(consumption_mix_calcs!P14<>"",consumption_mix_calcs!P14,"") -> 0 | R61: =IF(consumption_mix_calcs!Q14<>"",consumption_mix_calcs!Q14,"") -> 0 | S61: =IF(consumption_mix_calcs!R14<>"",consumption_mix_calcs!R14,"") -> 0 | T61: =IF(consumption_mix_calcs!S14<>"",consumption_mix_calcs!S14,"") -> 0 | U61: =IF(consumption_mix_calcs!T14<>"",consumption_mix_calcs!T14,"") -> 0 | V61: =IF(consumption_mix_calcs!U14<>"",consumption_mix_calcs!U14,"") -> 0 | W61: =IF(consumption_mix_calcs!V14<>"",consumption_mix_calcs!V14,"") -> 0 | X61: =IF(consumption_mix_calcs!W14<>"",consumption_mix_calcs!W14,"") -> -12.64949062 | Y61: =IF(consumption_mix_calcs!X14<>"",consumption_mix_calcs!X14,"") -> -2.960789568 | Z61: =IF(consumption_mix_calcs!Y14<>"",consumption_mix_calcs!Y14,"") -> 0 | AA61: =IF(consumption_mix_calcs!Z14<>"",consumption_mix_calcs!Z14,"") -> -5.159287045 | AB61: =IF(consumption_mix_calcs!AA14<>"",consumption_mix_calcs!AA14,"") -> 0 | AC61: =IF(consumption_mix_calcs!AB14<>"",consumption_mix_calcs!AB14,"") -> 0 | AD61: =IF(consumption_mix_calcs!AC14<>"",consumption_mix_calcs!AC14,"") -> 0 | AE61: =IF(consumption_mix_calcs!AD14<>"",consumption_mix_calcs!AD14,"") -> -3.341640325 | AF61: =IF(consumption_mix_calcs!AE14<>"",consumption_mix_calcs!AE14,"") -> -53.8185304 | AG61: =IF(consumption_mix_calcs!AF14<>"",consumption_mix_calcs!AF14,"") -> 0 | AH61: =IF(consumption_mix_calcs!AG14<>"",consumption_mix_calcs!AG14,"") -> 0 | AI61: =IF(consumption_mix_calcs!AH14<>"",consumption_mix_calcs!AH14,"") -> 3961.821164 | AJ61: =IF(consumption_mix_calcs!AI14<>"",consumption_mix_calcs!AI14,"") -> 0 | AK61: =IF(consumption_mix_calcs!AJ14<>"",consumption_mix_calcs!AJ14,"") -> 0 | AL61: =IF(consumption_mix_calcs!AK14<>"",consumption_mix_calcs!AK14,"") -> -0.03469081605 | AM61: =IF(consumption_mix_calcs!AL14<>"",consumption_mix_calcs!AL14,"") -> 0 | AN61: =IF(consumption_mix_calcs!AM14<>"",consumption_mix_calcs!AM14,"") -> 116.2399272 | AO61: =IF(consumption_mix_calcs!AN14<>"",consumption_mix_calcs!AN14,"") -> 0 | AP61: =IF(consumption_mix_calcs!AO14<>"",consumption_mix_calcs!AO14,"") -> -3.870977093 | AQ61: =IF(consumption_mix_calcs!AP14<>"",consumption_mix_calcs!AP14,"") -> 0 | AR61: =IF(consumption_mix_calcs!AQ14<>"",consumption_mix_calcs!AQ14,"") -> 0 | AS61: =IF(consumption_mix_calcs!AR14<>"",consumption_mix_calcs!AR14,"") -> 0.2967778561 | AT61: =IF(consumption_mix_calcs!AS14<>"",consumption_mix_calcs!AS14,"") -> 0 | AU61: =IF(consumption_mix_calcs!AT14<>"",consumption_mix_calcs!AT14,"") -> 0 | AV61: =IF(consumption_mix_calcs!AU14<>"",consumption_mix_calcs!AU14,"") -> 0 | AW61: =IF(consumption_mix_calcs!AV14<>"",consumption_mix_calcs!AV14,"") -> -3.564700086 | AX61: =IF(consumption_mix_calcs!AW14<>"",consumption_mix_calcs!AW14,"") -> 0 | AY61: =IF(consumption_mix_calcs!AX14<>"",consumption_mix_calcs!AX14,"") -> -60.58486404 | AZ61: =IF(consumption_mix_calcs!AY14<>"",consumption_mix_calcs!AY14,"") -> 0 | BA61: =IF(consumption_mix_calcs!AZ14<>"",consumption_mix_calcs!AZ14,"") -> 0 | BB61: =IF(consumption_mix_calcs!BA14<>"",consumption_mix_calcs!BA14,"") -> 0 | BC61: =IF(consumption_mix_calcs!BB14<>"",consumption_mix_calcs!BB14,"") -> 0 | BD61: =IF(consumption_mix_calcs!BC14<>"",consumption_mix_calcs!BC14,"") -> -0.02822597368 | BE61: =IF(consumption_mix_calcs!BD14<>"",consumption_mix_calcs!BD14,"") -> -15.67790759 | BF61: =IF(consumption_mix_calcs!BE14<>"",consumption_mix_calcs!BE14,"") -> 0 | BG61: =IF(consumption_mix_calcs!BF14<>"",consumption_mix_calcs!BF14,"") -> -96.03736754 | BH61: =IF(consumption_mix_calcs!BG14<>"",consumption_mix_calcs!BG14,"") -> 0 | BI61: =IF(consumption_mix_calcs!BH14<>"",consumption_mix_calcs!BH14,"") -> 0 | BJ61: =IF(consumption_mix_calcs!BI14<>"",consumption_mix_calcs!BI14,"") -> 0 | BK61: =IF(consumption_mix_calcs!BJ14<>"",consumption_mix_calcs!BJ14,"") -> 0 | BL61: =IF(consumption_mix_calcs!BK14<>"",consumption_mix_calcs!BK14,"") -> 0 | BM61: =IF(consumption_mix_calcs!BL14<>"",consumption_mix_calcs!BL14,"") -> 0 | BN61: =IF(consumption_mix_calcs!BM14<>"",consumption_mix_calcs!BM14,"") -> 0 | BO61: =IF(consumption_mix_calcs!BN14<>"",consumption_mix_calcs!BN14,"") -> 0 | BP61: =IF(consumption_mix_calcs!BO14<>"",consumption_mix_calcs!BO14,"") -> 0 | BQ61: =IF(consumption_mix_calcs!BP14<>"",consumption_mix_calcs!BP14,"") -> 0 | BR61: =IF(consumption_mix_calcs!BQ14<>"",consumption_mix_calcs!BQ14,"") -> 0 | BS61: =IF(consumption_mix_calcs!BR14<>"",consumption_mix_calcs!BR14,"") -> 0 | BT61: =IF(consumption_mix_calcs!BS14<>"",consumption_mix_calcs!BS14,"") -> -71.28681845 | BU61: =IF(consumption_mix_calcs!BT14<>"",consumption_mix_calcs!BT14,"") -> -108.1269403 | BV61: =IF(consumption_mix_calcs!BU14<>"",consumption_mix_calcs!BU14,"") -> -16.50670662 | BW61: =IF(consumption_mix_calcs!BV14<>"",consumption_mix_calcs!BV14,"") -> 0
A62: Category | B62: Emission | C62: Total | D62: =IF(consumption_mix_calcs!C22<>"",consumption_mix_calcs!C22&" ("&IFERROR(INDEX(ba_ferc_mapping!$B$2:$B$71,MATCH(consumption_mix_calcs!C22,ba_ferc_mapping!$A$2:$A$71,0),1)&")","Canada)"),"") -> Alcoa Power Generating, Inc. - Yadkin Division (Southeast) | E62: =IF(consumption_mix_calcs!D22<>"",consumption_mix_calcs!D22&" ("&IFERROR(INDEX(ba_ferc_mapping!$B$2:$B$71,MATCH(consumption_mix_calcs!D22,ba_ferc_mapping!$A$2:$A$71,0),1)&")","Canada)"),"") -> Arizona Public Service Company (Southwest) | F62: =IF(consumption_mix_calcs!E22<>"",consumption_mix_calcs!E22&" ("&IFERROR(INDEX(ba_ferc_mapping!$B$2:$B$71,MATCH(consumption_mix_calcs!E22,ba_ferc_mapping!$A$2:$A$71,0),1)&")","Canada)"),"") -> Arlington Valley, LLC - AVBA (Southwest) | G62: =IF(consumption_mix_calcs!F22<>"",consumption_mix_calcs!F22&" ("&IFERROR(INDEX(ba_ferc_mapping!$B$2:$B$71,MATCH(consumption_mix_calcs!F22,ba_ferc_mapping!$A$2:$A$71,0),1)&")","Canada)"),"") -> Associated Electric Cooperative, Inc. (MISO) | H62: =IF(consumption_mix_calcs!G22<>"",consumption_mix_calcs!G22&" ("&IFERROR(INDEX(ba_ferc_mapping!$B$2:$B$71,MATCH(consumption_mix_calcs!G22,ba_ferc_mapping!$A$2:$A$71,0),1)&")","Canada)"),"") -> Avista Corporation (Northwest) | I62: =IF(consumption_mix_calcs!H22<>"",consumption_mix_calcs!H22&" ("&IFERROR(INDEX(ba_ferc_mapping!$B$2:$B$71,MATCH(consumption_mix_calcs!H22,ba_ferc_mapping!$A$2:$A$71,0),1)&")","Canada)"),"") -> B.C. Hydro & Power Authority (Canada) | J62: =IF(consumption_mix_calcs!I22<>"",consumption_mix_calcs!I22&" ("&IFERROR(INDEX(ba_ferc_mapping!$B$2:$B$71,MATCH(consumption_mix_calcs!I22,ba_ferc_mapping!$A$2:$A$71,0),1)&")","Canada)"),"") -> Balancing Authority of Northern California (CAISO) | K62: =IF(consumption_mix_calcs!J22<>"",consumption_mix_calcs!J22&" ("&IFERROR(INDEX(ba_ferc_mapping!$B$2:$B$71,MATCH(consumption_mix_calcs!J22,ba_ferc_mapping!$A$2:$A$71,0),1)&")","Canada)"),"") -> Bonneville Power Administration (Northwest) | L62: =IF(consumption_mix_calcs!K22<>"",consumption_mix_calcs!K22&" ("&IFERROR(INDEX(ba_ferc_mapping!$B$2:$B$71,MATCH(consumption_mix_calcs!K22,ba_ferc_mapping!$A$2:$A$71,0),1)&")","Canada)"),"") -> California Independent System Operator (CAISO) | M62: =IF(consumption_mix_calcs!L22<>"",consumption_mix_calcs!L22&" ("&IFERROR(INDEX(ba_ferc_mapping!$B$2:$B$71,MATCH(consumption_mix_calcs!L22,ba_ferc_mapping!$A$2:$A$71,0),1)&")","Canada)"),"") -> City of Tacoma, Department of Public Utilities, Light Division (Northwest) | N62: =IF(consumption_mix_calcs!M22<>"",consumption_mix_calcs!M22&" ("&IFERROR(INDEX(ba_ferc_mapping!$B$2:$B$71,MATCH(consumption_mix_calcs!M22,ba_ferc_mapping!$A$2:$A$71,0),1)&")","Canada)"),"") -> Duke Energy Carolinas (Southeast) | O62: =IF(consumption_mix_calcs!N22<>"",consumption_mix_calcs!N22&" ("&IFERROR(INDEX(ba_ferc_mapping!$B$2:$B$71,MATCH(consumption_mix_calcs!N22,ba_ferc_mapping!$A$2:$A$71,0),1)&")","Canada)"),"") -> Duke Energy Florida, Inc. (Southeast) | P62: =IF(consumption_mix_calcs!O22<>"",consumption_mix_calcs!O22&" ("&IFERROR(INDEX(ba_ferc_mapping!$B$2:$B$71,MATCH(consumption_mix_calcs!O22,ba_ferc_mapping!$A$2:$A$71,0),1)&")","Canada)"),"") -> Duke Energy Progress East (Southeast) | Q62: =IF(consumption_mix_calcs!P22<>"",consumption_mix_calcs!P22&" ("&IFERROR(INDEX(ba_ferc_mapping!$B$2:$B$71,MATCH(consumption_mix_calcs!P22,ba_ferc_mapping!$A$2:$A$71,0),1)&")","Canada)"),"") -> Duke Energy Progress West (Southeast) | R62: =IF(consumption_mix_calcs!Q22<>"",consumption_mix_calcs!Q22&" ("&IFERROR(INDEX(ba_ferc_mapping!$B$2:$B$71,MATCH(consumption_mix_calcs!Q22,ba_ferc_mapping!$A$2:$A$71,0),1)&")","Canada)"),"") -> El Paso Electric Company (Southwest) | S62: =IF(consumption_mix_calcs!R22<>"",consumption_mix_calcs!R22&" ("&IFERROR(INDEX(ba_ferc_mapping!$B$2:$B$71,MATCH(consumption_mix_calcs!R22,ba_ferc_mapping!$A$2:$A$71,0),1)&")","Canada)"),"") -> Electric Energy, Inc. (MISO) | T62: =IF(consumption_mix_calcs!S22<>"",consumption_mix_calcs!S22&" ("&IFERROR(INDEX(ba_ferc_mapping!$B$2:$B$71,MATCH(consumption_mix_calcs!S22,ba_ferc_mapping!$A$2:$A$71,0),1)&")","Canada)"),"") -> Electric Reliability Council of Texas, Inc. (ERCOT) | U62: =IF(consumption_mix_calcs!T22<>"",consumption_mix_calcs!T22&" ("&IFERROR(INDEX(ba_ferc_mapping!$B$2:$B$71,MATCH(consumption_mix_calcs!T22,ba_ferc_mapping!$A$2:$A$71,0),1)&")","Canada)"),"") -> Florida Municipal Power Pool (Southeast) | V62: =IF(consumption_mix_calcs!U22<>"",consumption_mix_calcs!U22&" ("&IFERROR(INDEX(ba_ferc_mapping!$B$2:$B$71,MATCH(consumption_mix_calcs!U22,ba_ferc_mapping!$A$2:$A$71,0),1)&")","Canada)"),"") -> Florida Power & Light Co. (Southeast) | W62: =IF(consumption_mix_calcs!V22<>"",consumption_mix_calcs!V22&" ("&IFERROR(INDEX(ba_ferc_mapping!$B$2:$B$71,MATCH(consumption_mix_calcs!V22,ba_ferc_mapping!$A$2:$A$71,0),1)&")","Canada)"),"") -> Gainesville Regional Utilities (Southeast) | X62: =IF(consumption_mix_calcs!W22<>"",consumption_mix_calcs!W22&" ("&IFERROR(INDEX(ba_ferc_mapping!$B$2:$B$71,MATCH(consumption_mix_calcs!W22,ba_ferc_mapping!$A$2:$A$71,0),1)&")","Canada)"),"") -> Gila River Power, LLC (Southwest) | Y62: =IF(consumption_mix_calcs!X22<>"",consumption_mix_calcs!X22&" ("&IFERROR(INDEX(ba_ferc_mapping!$B$2:$B$71,MATCH(consumption_mix_calcs!X22,ba_ferc_mapping!$A$2:$A$71,0),1)&")","Canada)"),"") -> Gridforce Energy Management, LLC (Northwest) | Z62: =IF(consumption_mix_calcs!Y22<>"",consumption_mix_calcs!Y22&" ("&IFERROR(INDEX(ba_ferc_mapping!$B$2:$B$71,MATCH(consumption_mix_calcs!Y22,ba_ferc_mapping!$A$2:$A$71,0),1)&")","Canada)"),"") -> Gridforce South (Southwest) | AA62: =IF(consumption_mix_calcs!Z22<>"",consumption_mix_calcs!Z22&" ("&IFERROR(INDEX(ba_ferc_mapping!$B$2:$B$71,MATCH(consumption_mix_calcs!Z22,ba_ferc_mapping!$A$2:$A$71,0),1)&")","Canada)"),"") -> Griffith Energy, LLC (Southwest) | AB62: =IF(consumption_mix_calcs!AA22<>"",consumption_mix_calcs!AA22&" ("&IFERROR(INDEX(ba_ferc_mapping!$B$2:$B$71,MATCH(consumption_mix_calcs!AA22,ba_ferc_mapping!$A$2:$A$71,0),1)&")","Canada)"),"") -> Homestead, City of (Southeast) | AC62: =IF(consumption_mix_calcs!AB22<>"",consumption_mix_calcs!AB22&" ("&IFERROR(INDEX(ba_ferc_mapping!$B$2:$B$71,MATCH(consumption_mix_calcs!AB22,ba_ferc_mapping!$A$2:$A$71,0),1)&")","Canada)"),"") -> Hydro-Quebec TransEnergie (Canada) | AD62: =IF(consumption_mix_calcs!AC22<>"",consumption_mix_calcs!AC22&" ("&IFERROR(INDEX(ba_ferc_mapping!$B$2:$B$71,MATCH(consumption_mix_calcs!AC22,ba_ferc_mapping!$A$2:$A$71,0),1)&")","Canada)"),"") -> ISO-NE (ISO-NE) | AE62: =IF(consumption_mix_calcs!AD22<>"",consumption_mix_calcs!AD22&" ("&IFERROR(INDEX(ba_ferc_mapping!$B$2:$B$71,MATCH(consumption_mix_calcs!AD22,ba_ferc_mapping!$A$2:$A$71,0),1)&")","Canada)"),"") -> Idaho Power Company (Northwest) | AF62: =IF(consumption_mix_calcs!AE22<>"",consumption_mix_calcs!AE22&" ("&IFERROR(INDEX(ba_ferc_mapping!$B$2:$B$71,MATCH(consumption_mix_calcs!AE22,ba_ferc_mapping!$A$2:$A$71,0),1)&")","Canada)"),"") -> Imperial Irrigation District (CAISO) | AG62: =IF(consumption_mix_calcs!AF22<>"",consumption_mix_calcs!AF22&" ("&IFERROR(INDEX(ba_ferc_mapping!$B$2:$B$71,MATCH(consumption_mix_calcs!AF22,ba_ferc_mapping!$A$2:$A$71,0),1)&")","Canada)"),"") -> JEA (Southeast) | AH62: =IF(consumption_mix_calcs!AG22<>"",consumption_mix_calcs!AG22&" ("&IFERROR(INDEX(ba_ferc_mapping!$B$2:$B$71,MATCH(consumption_mix_calcs!AG22,ba_ferc_mapping!$A$2:$A$71,0),1)&")","Canada)"),"") -> LG&E and KU Services Company as agent for Louisville Gas and Electric Company and Kentucky Utilities Company (MISO) | AI62: =IF(consumption_mix_calcs!AH22<>"",consumption_mix_calcs!AH22&" ("&IFERROR(INDEX(ba_ferc_mapping!$B$2:$B$71,MATCH(consumption_mix_calcs!AH22,ba_ferc_mapping!$A$2:$A$71,0),1)&")","Canada)"),"") -> Los Angeles Department of Water and Power (CAISO) | AJ62: =IF(consumption_mix_calcs!AI22<>"",consumption_mix_calcs!AI22&" ("&IFERROR(INDEX(ba_ferc_mapping!$B$2:$B$71,MATCH(consumption_mix_calcs!AI22,ba_ferc_mapping!$A$2:$A$71,0),1)&")","Canada)"),"") -> Manitoba Hydro (Canada) | AK62: =IF(consumption_mix_calcs!AJ22<>"",consumption_mix_calcs!AJ22&" ("&IFERROR(INDEX(ba_ferc_mapping!$B$2:$B$71,MATCH(consumption_mix_calcs!AJ22,ba_ferc_mapping!$A$2:$A$71,0),1)&")","Canada)"),"") -> Midcontinent Independent System Operator, Inc. (MISO) | AL62: =IF(consumption_mix_calcs!AK22<>"",consumption_mix_calcs!AK22&" ("&IFERROR(INDEX(ba_ferc_mapping!$B$2:$B$71,MATCH(consumption_mix_calcs!AK22,ba_ferc_mapping!$A$2:$A$71,0),1)&")","Canada)"),"") -> NaturEner Power Watch, LLC (GWA) (Northwest) | AM62: =IF(consumption_mix_calcs!AL22<>"",consumption_mix_calcs!AL22&" ("&IFERROR(INDEX(ba_ferc_mapping!$B$2:$B$71,MATCH(consumption_mix_calcs!AL22,ba_ferc_mapping!$A$2:$A$71,0),1)&")","Canada)"),"") -> NaturEner Wind Watch, LLC (Northwest) | AN62: =IF(consumption_mix_calcs!AM22<>"",consumption_mix_calcs!AM22&" ("&IFERROR(INDEX(ba_ferc_mapping!$B$2:$B$71,MATCH(consumption_mix_calcs!AM22,ba_ferc_mapping!$A$2:$A$71,0),1)&")","Canada)"),"") -> Nevada Power Company (Northwest) | AO62: =IF(consumption_mix_calcs!AN22<>"",consumption_mix_calcs!AN22&" ("&IFERROR(INDEX(ba_ferc_mapping!$B$2:$B$71,MATCH(consumption_mix_calcs!AN22,ba_ferc_mapping!$A$2:$A$71,0),1)&")","Canada)"),"") -> New Brunswick System Operator (Canada) | AP62: =IF(consumption_mix_calcs!AO22<>"",consumption_mix_calcs!AO22&" ("&IFERROR(INDEX(ba_ferc_mapping!$B$2:$B$71,MATCH(consumption_mix_calcs!AO22,ba_ferc_mapping!$A$2:$A$71,0),1)&")","Canada)"),"") -> New Harquahala Generating Company, LLC - HGBA (Southwest) | AQ62: =IF(consumption_mix_calcs!AP22<>"",consumption_mix_calcs!AP22&" ("&IFERROR(INDEX(ba_ferc_mapping!$B$2:$B$71,MATCH(consumption_mix_calcs!AP22,ba_ferc_mapping!$A$2:$A$71,0),1)&")","Canada)"),"") -> New Smyrna Beach, Utilities Commission of (Southeast) | AR62: =IF(consumption_mix_calcs!AQ22<>"",consumption_mix_calcs!AQ22&" ("&IFERROR(INDEX(ba_ferc_mapping!$B$2:$B$71,MATCH(consumption_mix_calcs!AQ22,ba_ferc_mapping!$A$2:$A$71,0),1)&")","Canada)"),"") -> New York Independent System Operator (NYISO) | AS62: =IF(consumption_mix_calcs!AR22<>"",consumption_mix_calcs!AR22&" ("&IFERROR(INDEX(ba_ferc_mapping!$B$2:$B$71,MATCH(consumption_mix_calcs!AR22,ba_ferc_mapping!$A$2:$A$71,0),1)&")","Canada)"),"") -> NorthWestern Corporation (Northwest) | AT62: =IF(consumption_mix_calcs!AS22<>"",consumption_mix_calcs!AS22&" ("&IFERROR(INDEX(ba_ferc_mapping!$B$2:$B$71,MATCH(consumption_mix_calcs!AS22,ba_ferc_mapping!$A$2:$A$71,0),1)&")","Canada)"),"") -> Ohio Valley Electric Corporation (PJM) | AU62: =IF(consumption_mix_calcs!AT22<>"",consumption_mix_calcs!AT22&" ("&IFERROR(INDEX(ba_ferc_mapping!$B$2:$B$71,MATCH(consumption_mix_calcs!AT22,ba_ferc_mapping!$A$2:$A$71,0),1)&")","Canada)"),"") -> Ontario IESO (Canada) | AV62: =IF(consumption_mix_calcs!AU22<>"",consumption_mix_calcs!AU22&" ("&IFERROR(INDEX(ba_ferc_mapping!$B$2:$B$71,MATCH(consumption_mix_calcs!AU22,ba_ferc_mapping!$A$2:$A$71,0),1)&")","Canada)"),"") -> PJM Interconnection, LLC (PJM) | AW62: =IF(consumption_mix_calcs!AV22<>"",consumption_mix_calcs!AV22&" ("&IFERROR(INDEX(ba_ferc_mapping!$B$2:$B$71,MATCH(consumption_mix_calcs!AV22,ba_ferc_mapping!$A$2:$A$71,0),1)&")","Canada)"),"") -> PUD No. 1 of Douglas County (Northwest) | AX62: =IF(consumption_mix_calcs!AW22<>"",consumption_mix_calcs!AW22&" ("&IFERROR(INDEX(ba_ferc_mapping!$B$2:$B$71,MATCH(consumption_mix_calcs!AW22,ba_ferc_mapping!$A$2:$A$71,0),1)&")","Canada)"),"") -> PacifiCorp East (Northwest) | AY62: =IF(consumption_mix_calcs!AX22<>"",consumption_mix_calcs!AX22&" ("&IFERROR(INDEX(ba_ferc_mapping!$B$2:$B$71,MATCH(consumption_mix_calcs!AX22,ba_ferc_mapping!$A$2:$A$71,0),1)&")","Canada)"),"") -> PacifiCorp West (Northwest) | AZ62: =IF(consumption_mix_calcs!AY22<>"",consumption_mix_calcs!AY22&" ("&IFERROR(INDEX(ba_ferc_mapping!$B$2:$B$71,MATCH(consumption_mix_calcs!AY22,ba_ferc_mapping!$A$2:$A$71,0),1)&")","Canada)"),"") -> Portland General Electric Company (Northwest) | BA62: =IF(consumption_mix_calcs!AZ22<>"",consumption_mix_calcs!AZ22&" ("&IFERROR(INDEX(ba_ferc_mapping!$B$2:$B$71,MATCH(consumption_mix_calcs!AZ22,ba_ferc_mapping!$A$2:$A$71,0),1)&")","Canada)"),"") -> PowerSouth Energy Cooperative (Southeast) | BB62: =IF(consumption_mix_calcs!BA22<>"",consumption_mix_calcs!BA22&" ("&IFERROR(INDEX(ba_ferc_mapping!$B$2:$B$71,MATCH(consumption_mix_calcs!BA22,ba_ferc_mapping!$A$2:$A$71,0),1)&")","Canada)"),"") -> Public Service Company of Colorado (Northwest) | BC62: =IF(consumption_mix_calcs!BB22<>"",consumption_mix_calcs!BB22&" ("&IFERROR(INDEX(ba_ferc_mapping!$B$2:$B$71,MATCH(consumption_mix_calcs!BB22,ba_ferc_mapping!$A$2:$A$71,0),1)&")","Canada)"),"") -> Public Service Company of New Mexico (Southwest) | BD62: =IF(consumption_mix_calcs!BC22<>"",consumption_mix_calcs!BC22&" ("&IFERROR(INDEX(ba_ferc_mapping!$B$2:$B$71,MATCH(consumption_mix_calcs!BC22,ba_ferc_mapping!$A$2:$A$71,0),1)&")","Canada)"),"") -> Public Utility District No. 1 of Chelan County (Northwest) | BE62: =IF(consumption_mix_calcs!BD22<>"",consumption_mix_calcs!BD22&" ("&IFERROR(INDEX(ba_ferc_mapping!$B$2:$B$71,MATCH(consumption_mix_calcs!BD22,ba_ferc_mapping!$A$2:$A$71,0),1)&")","Canada)"),"") -> Public Utility District No. 2 of Grant County, Washington (Northwest) | BF62: =IF(consumption_mix_calcs!BE22<>"",consumption_mix_calcs!BE22&" ("&IFERROR(INDEX(ba_ferc_mapping!$B$2:$B$71,MATCH(consumption_mix_calcs!BE22,ba_ferc_mapping!$A$2:$A$71,0),1)&")","Canada)"),"") -> Puget Sound Energy, Inc. (Northwest) | BG62: =IF(consumption_mix_calcs!BF22<>"",consumption_mix_calcs!BF22&" ("&IFERROR(INDEX(ba_ferc_mapping!$B$2:$B$71,MATCH(consumption_mix_calcs!BF22,ba_ferc_mapping!$A$2:$A$71,0),1)&")","Canada)"),"") -> Salt River Project Agricultural Improvement and Power District (Southwest) | BH62: =IF(consumption_mix_calcs!BG22<>"",consumption_mix_calcs!BG22&" ("&IFERROR(INDEX(ba_ferc_mapping!$B$2:$B$71,MATCH(consumption_mix_calcs!BG22,ba_ferc_mapping!$A$2:$A$71,0),1)&")","Canada)"),"") -> Seattle City Light (Northwest) | BI62: =IF(consumption_mix_calcs!BH22<>"",consumption_mix_calcs!BH22&" ("&IFERROR(INDEX(ba_ferc_mapping!$B$2:$B$71,MATCH(consumption_mix_calcs!BH22,ba_ferc_mapping!$A$2:$A$71,0),1)&")","Canada)"),"") -> Seminole Electric Cooperative (Southeast) | BJ62: =IF(consumption_mix_calcs!BI22<>"",consumption_mix_calcs!BI22&" ("&IFERROR(INDEX(ba_ferc_mapping!$B$2:$B$71,MATCH(consumption_mix_calcs!BI22,ba_ferc_mapping!$A$2:$A$71,0),1)&")","Canada)"),"") -> South Carolina Electric & Gas Company (Southeast) | BK62: =IF(consumption_mix_calcs!BJ22<>"",consumption_mix_calcs!BJ22&" ("&IFERROR(INDEX(ba_ferc_mapping!$B$2:$B$71,MATCH(consumption_mix_calcs!BJ22,ba_ferc_mapping!$A$2:$A$71,0),1)&")","Canada)"),"") -> South Carolina Public Service Authority (Southeast) | BL62: =IF(consumption_mix_calcs!BK22<>"",consumption_mix_calcs!BK22&" ("&IFERROR(INDEX(ba_ferc_mapping!$B$2:$B$71,MATCH(consumption_mix_calcs!BK22,ba_ferc_mapping!$A$2:$A$71,0),1)&")","Canada)"),"") -> Southeastern Power Administration (Southeast) | BM62: =IF(consumption_mix_calcs!BL22<>"",consumption_mix_calcs!BL22&" ("&IFERROR(INDEX(ba_ferc_mapping!$B$2:$B$71,MATCH(consumption_mix_calcs!BL22,ba_ferc_mapping!$A$2:$A$71,0),1)&")","Canada)"),"") -> Southern Company Services, Inc. - Trans (Southeast) | BN62: =IF(consumption_mix_calcs!BM22<>"",consumption_mix_calcs!BM22&" ("&IFERROR(INDEX(ba_ferc_mapping!$B$2:$B$71,MATCH(consumption_mix_calcs!BM22,ba_ferc_mapping!$A$2:$A$71,0),1)&")","Canada)"),"") -> Southwest Power Pool (SPP) | BO62: =IF(consumption_mix_calcs!BN22<>"",consumption_mix_calcs!BN22&" ("&IFERROR(INDEX(ba_ferc_mapping!$B$2:$B$71,MATCH(consumption_mix_calcs!BN22,ba_ferc_mapping!$A$2:$A$71,0),1)&")","Canada)"),"") -> Southwestern Power Administration (SPP) | BP62: =IF(consumption_mix_calcs!BO22<>"",consumption_mix_calcs!BO22&" ("&IFERROR(INDEX(ba_ferc_mapping!$B$2:$B$71,MATCH(consumption_mix_calcs!BO22,ba_ferc_mapping!$A$2:$A$71,0),1)&")","Canada)"),"") -> Tallahassee, City of (Southeast) | BQ62: =IF(consumption_mix_calcs!BP22<>"",consumption_mix_calcs!BP22&" ("&IFERROR(INDEX(ba_ferc_mapping!$B$2:$B$71,MATCH(consumption_mix_calcs!BP22,ba_ferc_mapping!$A$2:$A$71,0),1)&")","Canada)"),"") -> Tampa Electric Company (Southeast) | BR62: =IF(consumption_mix_calcs!BQ22<>"",consumption_mix_calcs!BQ22&" ("&IFERROR(INDEX(ba_ferc_mapping!$B$2:$B$71,MATCH(consumption_mix_calcs!BQ22,ba_ferc_mapping!$A$2:$A$71,0),1)&")","Canada)"),"") -> Tennessee Valley Authority (Southeast) | BS62: =IF(consumption_mix_calcs!BR22<>"",consumption_mix_calcs!BR22&" ("&IFERROR(INDEX(ba_ferc_mapping!$B$2:$B$71,MATCH(consumption_mix_calcs!BR22,ba_ferc_mapping!$A$2:$A$71,0),1)&")","Canada)"),"") -> Tucson Electric Power (Southwest) | BT62: =IF(consumption_mix_calcs!BS22<>"",consumption_mix_calcs!BS22&" ("&IFERROR(INDEX(ba_ferc_mapping!$B$2:$B$71,MATCH(consumption_mix_calcs!BS22,ba_ferc_mapping!$A$2:$A$71,0),1)&")","Canada)"),"") -> Turlock Irrigation District (CAISO) | BU62: =IF(consumption_mix_calcs!BT22<>"",consumption_mix_calcs!BT22&" ("&IFERROR(INDEX(ba_ferc_mapping!$B$2:$B$71,MATCH(consumption_mix_calcs!BT22,ba_ferc_mapping!$A$2:$A$71,0),1)&")","Canada)"),"") -> Western Area Power Administration - Desert Southwest Region (Southwest) | BV62: =IF(consumption_mix_calcs!BU22<>"",consumption_mix_calcs!BU22&" ("&IFERROR(INDEX(ba_ferc_mapping!$B$2:$B$71,MATCH(consumption_mix_calcs!BU22,ba_ferc_mapping!$A$2:$A$71,0),1)&")","Canada)"),"") -> Western Area Power Administration - Rocky Mountain Region (Northwest) | BW62: =IF(consumption_mix_calcs!BV22<>"",consumption_mix_calcs!BV22&" ("&IFERROR(INDEX(ba_ferc_mapping!$B$2:$B$71,MATCH(consumption_mix_calcs!BV22,ba_ferc_mapping!$A$2:$A$71,0),1)&")","Canada)"),"") -> 
A63: input | B63: Heat | C63: =SUM(D63:BW63) -> 9669.404592 | D63: =IF(consumption_mix_calcs!C23<>"",consumption_mix_calcs!C23,"") -> 0 | E63: =IF(consumption_mix_calcs!D23<>"",consumption_mix_calcs!D23,"") -> 223.2387212 | F63: =IF(consumption_mix_calcs!E23<>"",consumption_mix_calcs!E23,"") -> 0 | G63: =IF(consumption_mix_calcs!F23<>"",consumption_mix_calcs!F23,"") -> 0 | H63: =IF(consumption_mix_calcs!G23<>"",consumption_mix_calcs!G23,"") -> 9.090610801 | I63: =IF(consumption_mix_calcs!H23<>"",consumption_mix_calcs!H23,"") -> 39.12283098 | J63: =IF(consumption_mix_calcs!I23<>"",consumption_mix_calcs!I23,"") -> 436.9270086 | K63: =IF(consumption_mix_calcs!J23<>"",consumption_mix_calcs!J23,"") -> 386.588655 | L63: =IF(consumption_mix_calcs!K23<>"",consumption_mix_calcs!K23,"") -> 5762.239096 | M63: =IF(consumption_mix_calcs!L23<>"",consumption_mix_calcs!L23,"") -> 0 | N63: =IF(consumption_mix_calcs!M23<>"",consumption_mix_calcs!M23,"") -> 0 | O63: =IF(consumption_mix_calcs!N23<>"",consumption_mix_calcs!N23,"") -> 0 | P63: =IF(consumption_mix_calcs!O23<>"",consumption_mix_calcs!O23,"") -> 0 | Q63: =IF(consumption_mix_calcs!P23<>"",consumption_mix_calcs!P23,"") -> 0 | R63: =IF(consumption_mix_calcs!Q23<>"",consumption_mix_calcs!Q23,"") -> 0 | S63: =IF(consumption_mix_calcs!R23<>"",consumption_mix_calcs!R23,"") -> 0 | T63: =IF(consumption_mix_calcs!S23<>"",consumption_mix_calcs!S23,"") -> 0 | U63: =IF(consumption_mix_calcs!T23<>"",consumption_mix_calcs!T23,"") -> 0 | V63: =IF(consumption_mix_calcs!U23<>"",consumption_mix_calcs!U23,"") -> 0 | W63: =IF(consumption_mix_calcs!V23<>"",consumption_mix_calcs!V23,"") -> 0 | X63: =IF(consumption_mix_calcs!W23<>"",consumption_mix_calcs!W23,"") -> 75.69433962 | Y63: =IF(consumption_mix_calcs!X23<>"",consumption_mix_calcs!X23,"") -> 0 | Z63: =IF(consumption_mix_calcs!Y23<>"",consumption_mix_calcs!Y23,"") -> 0 | AA63: =IF(consumption_mix_calcs!Z23<>"",consumption_mix_calcs!Z23,"") -> 17.55651236 | AB63: =IF(consumption_mix_calcs!AA23<>"",consumption_mix_calcs!AA23,"") -> 0 | AC63: =IF(consumption_mix_calcs!AB23<>"",consumption_mix_calcs!AB23,"") -> 0 | AD63: =IF(consumption_mix_calcs!AC23<>"",consumption_mix_calcs!AC23,"") -> 0 | AE63: =IF(consumption_mix_calcs!AD23<>"",consumption_mix_calcs!AD23,"") -> 10.09648158 | AF63: =IF(consumption_mix_calcs!AE23<>"",consumption_mix_calcs!AE23,"") -> 179.9331135 | AG63: =IF(consumption_mix_calcs!AF23<>"",consumption_mix_calcs!AF23,"") -> 0 | AH63: =IF(consumption_mix_calcs!AG23<>"",consumption_mix_calcs!AG23,"") -> 0 | AI63: =IF(consumption_mix_calcs!AH23<>"",consumption_mix_calcs!AH23,"") -> 1251.250736 | AJ63: =IF(consumption_mix_calcs!AI23<>"",consumption_mix_calcs!AI23,"") -> 0 | AK63: =IF(consumption_mix_calcs!AJ23<>"",consumption_mix_calcs!AJ23,"") -> 0 | AL63: =IF(consumption_mix_calcs!AK23<>"",consumption_mix_calcs!AK23,"") -> 0.1035267936 | AM63: =IF(consumption_mix_calcs!AL23<>"",consumption_mix_calcs!AL23,"") -> 0 | AN63: =IF(consumption_mix_calcs!AM23<>"",consumption_mix_calcs!AM23,"") -> 32.89601917 | AO63: =IF(consumption_mix_calcs!AN23<>"",consumption_mix_calcs!AN23,"") -> 0 | AP63: =IF(consumption_mix_calcs!AO23<>"",consumption_mix_calcs!AO23,"") -> 11.87634579 | AQ63: =IF(consumption_mix_calcs!AP23<>"",consumption_mix_calcs!AP23,"") -> 0 | AR63: =IF(consumption_mix_calcs!AQ23<>"",consumption_mix_calcs!AQ23,"") -> 0 | AS63: =IF(consumption_mix_calcs!AR23<>"",consumption_mix_calcs!AR23,"") -> 0.7715942019 | AT63: =IF(consumption_mix_calcs!AS23<>"",consumption_mix_calcs!AS23,"") -> 0 | AU63: =IF(consumption_mix_calcs!AT23<>"",consumption_mix_calcs!AT23,"") -> 0 | AV63: =IF(consumption_mix_calcs!AU23<>"",consumption_mix_calcs!AU23,"") -> 0 | AW63: =IF(consumption_mix_calcs!AV23<>"",consumption_mix_calcs!AV23,"") -> 10.64490276 | AX63: =IF(consumption_mix_calcs!AW23<>"",consumption_mix_calcs!AW23,"") -> 0 | AY63: =IF(consumption_mix_calcs!AX23<>"",consumption_mix_calcs!AX23,"") -> 169.6025903 | AZ63: =IF(consumption_mix_calcs!AY23<>"",consumption_mix_calcs!AY23,"") -> 0 | BA63: =IF(consumption_mix_calcs!AZ23<>"",consumption_mix_calcs!AZ23,"") -> 0 | BB63: =IF(consumption_mix_calcs!BA23<>"",consumption_mix_calcs!BA23,"") -> 0 | BC63: =IF(consumption_mix_calcs!BB23<>"",consumption_mix_calcs!BB23,"") -> 0 | BD63: =IF(consumption_mix_calcs!BC23<>"",consumption_mix_calcs!BC23,"") -> 0.0845290147 | BE63: =IF(consumption_mix_calcs!BD23<>"",consumption_mix_calcs!BD23,"") -> 46.95396439 | BF63: =IF(consumption_mix_calcs!BE23<>"",consumption_mix_calcs!BE23,"") -> 0 | BG63: =IF(consumption_mix_calcs!BF23<>"",consumption_mix_calcs!BF23,"") -> 384.8889278 | BH63: =IF(consumption_mix_calcs!BG23<>"",consumption_mix_calcs!BG23,"") -> 0 | BI63: =IF(consumption_mix_calcs!BH23<>"",consumption_mix_calcs!BH23,"") -> 0 | BJ63: =IF(consumption_mix_calcs!BI23<>"",consumption_mix_calcs!BI23,"") -> 0 | BK63: =IF(consumption_mix_calcs!BJ23<>"",consumption_mix_calcs!BJ23,"") -> 0 | BL63: =IF(consumption_mix_calcs!BK23<>"",consumption_mix_calcs!BK23,"") -> 0 | BM63: =IF(consumption_mix_calcs!BL23<>"",consumption_mix_calcs!BL23,"") -> 0 | BN63: =IF(consumption_mix_calcs!BM23<>"",consumption_mix_calcs!BM23,"") -> 0 | BO63: =IF(consumption_mix_calcs!BN23<>"",consumption_mix_calcs!BN23,"") -> 0 | BP63: =IF(consumption_mix_calcs!BO23<>"",consumption_mix_calcs!BO23,"") -> 0 | BQ63: =IF(consumption_mix_calcs!BP23<>"",consumption_mix_calcs!BP23,"") -> 0 | BR63: =IF(consumption_mix_calcs!BQ23<>"",consumption_mix_calcs!BQ23,"") -> 0 | BS63: =IF(consumption_mix_calcs!BR23<>"",consumption_mix_calcs!BR23,"") -> 0 | BT63: =IF(consumption_mix_calcs!BS23<>"",consumption_mix_calcs!BS23,"") -> 199.1518907 | BU63: =IF(consumption_mix_calcs!BT23<>"",consumption_mix_calcs!BT23,"") -> 346.1652713 | BV63: =IF(consumption_mix_calcs!BU23<>"",consumption_mix_calcs!BU23,"") -> 74.52692323 | BW63: =IF(consumption_mix_calcs!BV23<>"",consumption_mix_calcs!BV23,"") -> FALSE
A64: input | B64: Water | C64: 4324.166307 | D64: =IF(consumption_mix_calcs!C24<>"",consumption_mix_calcs!C24,"") -> 0 | E64: =IF(consumption_mix_calcs!D24<>"",consumption_mix_calcs!D24,"") -> 0 | F64: =IF(consumption_mix_calcs!E24<>"",consumption_mix_calcs!E24,"") -> 0 | G64: =IF(consumption_mix_calcs!F24<>"",consumption_mix_calcs!F24,"") -> 0 | H64: =IF(consumption_mix_calcs!G24<>"",consumption_mix_calcs!G24,"") -> 0 | I64: =IF(consumption_mix_calcs!H24<>"",consumption_mix_calcs!H24,"") -> 0.04380782305 | J64: =IF(consumption_mix_calcs!I24<>"",consumption_mix_calcs!I24,"") -> 0 | K64: =IF(consumption_mix_calcs!J24<>"",consumption_mix_calcs!J24,"") -> 0.2663922372 | L64: =IF(consumption_mix_calcs!K24<>"",consumption_mix_calcs!K24,"") -> 10.91548352 | M64: =IF(consumption_mix_calcs!L24<>"",consumption_mix_calcs!L24,"") -> 0 | N64: =IF(consumption_mix_calcs!M24<>"",consumption_mix_calcs!M24,"") -> 0 | O64: =IF(consumption_mix_calcs!N24<>"",consumption_mix_calcs!N24,"") -> 0 | P64: =IF(consumption_mix_calcs!O24<>"",consumption_mix_calcs!O24,"") -> 0 | Q64: =IF(consumption_mix_calcs!P24<>"",consumption_mix_calcs!P24,"") -> 0 | R64: =IF(consumption_mix_calcs!Q24<>"",consumption_mix_calcs!Q24,"") -> 0 | S64: =IF(consumption_mix_calcs!R24<>"",consumption_mix_calcs!R24,"") -> 0 | T64: =IF(consumption_mix_calcs!S24<>"",consumption_mix_calcs!S24,"") -> 0 | U64: =IF(consumption_mix_calcs!T24<>"",consumption_mix_calcs!T24,"") -> 0 | V64: =IF(consumption_mix_calcs!U24<>"",consumption_mix_calcs!U24,"") -> 0 | W64: =IF(consumption_mix_calcs!V24<>"",consumption_mix_calcs!V24,"") -> 0 | X64: =IF(consumption_mix_calcs!W24<>"",consumption_mix_calcs!W24,"") -> 0 | Y64: =IF(consumption_mix_calcs!X24<>"",consumption_mix_calcs!X24,"") -> 0 | Z64: =IF(consumption_mix_calcs!Y24<>"",consumption_mix_calcs!Y24,"") -> 0 | AA64: =IF(consumption_mix_calcs!Z24<>"",consumption_mix_calcs!Z24,"") -> 0 | AB64: =IF(consumption_mix_calcs!AA24<>"",consumption_mix_calcs!AA24,"") -> 0 | AC64: =IF(consumption_mix_calcs!AB24<>"",consumption_mix_calcs!AB24,"") -> 0 | AD64: =IF(consumption_mix_calcs!AC24<>"",consumption_mix_calcs!AC24,"") -> 0 | AE64: =IF(consumption_mix_calcs!AD24<>"",consumption_mix_calcs!AD24,"") -> 0 | AF64: =IF(consumption_mix_calcs!AE24<>"",consumption_mix_calcs!AE24,"") -> 0 | AG64: =IF(consumption_mix_calcs!AF24<>"",consumption_mix_calcs!AF24,"") -> 0 | AH64: =IF(consumption_mix_calcs!AG24<>"",consumption_mix_calcs!AG24,"") -> 0 | AI64: =IF(consumption_mix_calcs!AH24<>"",consumption_mix_calcs!AH24,"") -> 4312.838885 | AJ64: =IF(consumption_mix_calcs!AI24<>"",consumption_mix_calcs!AI24,"") -> 0 | AK64: =IF(consumption_mix_calcs!AJ24<>"",consumption_mix_calcs!AJ24,"") -> 0 | AL64: =IF(consumption_mix_calcs!AK24<>"",consumption_mix_calcs!AK24,"") -> 0 | AM64: =IF(consumption_mix_calcs!AL24<>"",consumption_mix_calcs!AL24,"") -> 0 | AN64: =IF(consumption_mix_calcs!AM24<>"",consumption_mix_calcs!AM24,"") -> 0.1017379374 | AO64: =IF(consumption_mix_calcs!AN24<>"",consumption_mix_calcs!AN24,"") -> 0 | AP64: =IF(consumption_mix_calcs!AO24<>"",consumption_mix_calcs!AO24,"") -> 0 | AQ64: =IF(consumption_mix_calcs!AP24<>"",consumption_mix_calcs!AP24,"") -> 0 | AR64: =IF(consumption_mix_calcs!AQ24<>"",consumption_mix_calcs!AQ24,"") -> 0 | AS64: =IF(consumption_mix_calcs!AR24<>"",consumption_mix_calcs!AR24,"") -> 0 | AT64: =IF(consumption_mix_calcs!AS24<>"",consumption_mix_calcs!AS24,"") -> 0 | AU64: =IF(consumption_mix_calcs!AT24<>"",consumption_mix_calcs!AT24,"") -> 0 | AV64: =IF(consumption_mix_calcs!AU24<>"",consumption_mix_calcs!AU24,"") -> 0 | AW64: =IF(consumption_mix_calcs!AV24<>"",consumption_mix_calcs!AV24,"") -> 0 | AX64: =IF(consumption_mix_calcs!AW24<>"",consumption_mix_calcs!AW24,"") -> 0 | AY64: =IF(consumption_mix_calcs!AX24<>"",consumption_mix_calcs!AX24,"") -> 0 | AZ64: =IF(consumption_mix_calcs!AY24<>"",consumption_mix_calcs!AY24,"") -> 0 | BA64: =IF(consumption_mix_calcs!AZ24<>"",consumption_mix_calcs!AZ24,"") -> 0 | BB64: =IF(consumption_mix_calcs!BA24<>"",consumption_mix_calcs!BA24,"") -> 0 | BC64: =IF(consumption_mix_calcs!BB24<>"",consumption_mix_calcs!BB24,"") -> 0 | BD64: =IF(consumption_mix_calcs!BC24<>"",consumption_mix_calcs!BC24,"") -> 0 | BE64: =IF(consumption_mix_calcs!BD24<>"",consumption_mix_calcs!BD24,"") -> 0 | BF64: =IF(consumption_mix_calcs!BE24<>"",consumption_mix_calcs!BE24,"") -> 0 | BG64: =IF(consumption_mix_calcs!BF24<>"",consumption_mix_calcs!BF24,"") -> 0 | BH64: =IF(consumption_mix_calcs!BG24<>"",consumption_mix_calcs!BG24,"") -> 0 | BI64: =IF(consumption_mix_calcs!BH24<>"",consumption_mix_calcs!BH24,"") -> 0 | BJ64: =IF(consumption_mix_calcs!BI24<>"",consumption_mix_calcs!BI24,"") -> 0 | BK64: =IF(consumption_mix_calcs!BJ24<>"",consumption_mix_calcs!BJ24,"") -> 0 | BL64: =IF(consumption_mix_calcs!BK24<>"",consumption_mix_calcs!BK24,"") -> 0 | BM64: =IF(consumption_mix_calcs!BL24<>"",consumption_mix_calcs!BL24,"") -> 0 | BN64: =IF(consumption_mix_calcs!BM24<>"",consumption_mix_calcs!BM24,"") -> 0 | BO64: =IF(consumption_mix_calcs!BN24<>"",consumption_mix_calcs!BN24,"") -> 0 | BP64: =IF(consumption_mix_calcs!BO24<>"",consumption_mix_calcs!BO24,"") -> 0 | BQ64: =IF(consumption_mix_calcs!BP24<>"",consumption_mix_calcs!BP24,"") -> 0 | BR64: =IF(consumption_mix_calcs!BQ24<>"",consumption_mix_calcs!BQ24,"") -> 0 | BS64: =IF(consumption_mix_calcs!BR24<>"",consumption_mix_calcs!BR24,"") -> 0 | BT64: =IF(consumption_mix_calcs!BS24<>"",consumption_mix_calcs!BS24,"") -> 0 | BU64: =IF(consumption_mix_calcs!BT24<>"",consumption_mix_calcs!BT24,"") -> 0 | BV64: =IF(consumption_mix_calcs!BU24<>"",consumption_mix_calcs!BU24,"") -> 0 | BW64: =IF(consumption_mix_calcs!BV24<>"",consumption_mix_calcs!BV24,"") -> 0
A65: input | B65: Water, brackish | C65: 117.4140459 | D65: =IF(consumption_mix_calcs!C25<>"",consumption_mix_calcs!C25,"") -> 0 | E65: =IF(consumption_mix_calcs!D25<>"",consumption_mix_calcs!D25,"") -> 0 | F65: =IF(consumption_mix_calcs!E25<>"",consumption_mix_calcs!E25,"") -> 0 | G65: =IF(consumption_mix_calcs!F25<>"",consumption_mix_calcs!F25,"") -> 0 | H65: =IF(consumption_mix_calcs!G25<>"",consumption_mix_calcs!G25,"") -> 0 | I65: =IF(consumption_mix_calcs!H25<>"",consumption_mix_calcs!H25,"") -> 0.6634730675 | J65: =IF(consumption_mix_calcs!I25<>"",consumption_mix_calcs!I25,"") -> 0 | K65: =IF(consumption_mix_calcs!J25<>"",consumption_mix_calcs!J25,"") -> 0 | L65: =IF(consumption_mix_calcs!K25<>"",consumption_mix_calcs!K25,"") -> 116.7505728 | M65: =IF(consumption_mix_calcs!L25<>"",consumption_mix_calcs!L25,"") -> 0 | N65: =IF(consumption_mix_calcs!M25<>"",consumption_mix_calcs!M25,"") -> 0 | O65: =IF(consumption_mix_calcs!N25<>"",consumption_mix_calcs!N25,"") -> 0 | P65: =IF(consumption_mix_calcs!O25<>"",consumption_mix_calcs!O25,"") -> 0 | Q65: =IF(consumption_mix_calcs!P25<>"",consumption_mix_calcs!P25,"") -> 0 | R65: =IF(consumption_mix_calcs!Q25<>"",consumption_mix_calcs!Q25,"") -> 0 | S65: =IF(consumption_mix_calcs!R25<>"",consumption_mix_calcs!R25,"") -> 0 | T65: =IF(consumption_mix_calcs!S25<>"",consumption_mix_calcs!S25,"") -> 0 | U65: =IF(consumption_mix_calcs!T25<>"",consumption_mix_calcs!T25,"") -> 0 | V65: =IF(consumption_mix_calcs!U25<>"",consumption_mix_calcs!U25,"") -> 0 | W65: =IF(consumption_mix_calcs!V25<>"",consumption_mix_calcs!V25,"") -> 0 | X65: =IF(consumption_mix_calcs!W25<>"",consumption_mix_calcs!W25,"") -> 0 | Y65: =IF(consumption_mix_calcs!X25<>"",consumption_mix_calcs!X25,"") -> 0 | Z65: =IF(consumption_mix_calcs!Y25<>"",consumption_mix_calcs!Y25,"") -> 0 | AA65: =IF(consumption_mix_calcs!Z25<>"",consumption_mix_calcs!Z25,"") -> 0 | AB65: =IF(consumption_mix_calcs!AA25<>"",consumption_mix_calcs!AA25,"") -> 0 | AC65: =IF(consumption_mix_calcs!AB25<>"",consumption_mix_calcs!AB25,"") -> 0 | AD65: =IF(consumption_mix_calcs!AC25<>"",consumption_mix_calcs!AC25,"") -> 0 | AE65: =IF(consumption_mix_calcs!AD25<>"",consumption_mix_calcs!AD25,"") -> 0 | AF65: =IF(consumption_mix_calcs!AE25<>"",consumption_mix_calcs!AE25,"") -> 0 | AG65: =IF(consumption_mix_calcs!AF25<>"",consumption_mix_calcs!AF25,"") -> 0 | AH65: =IF(consumption_mix_calcs!AG25<>"",consumption_mix_calcs!AG25,"") -> 0 | AI65: =IF(consumption_mix_calcs!AH25<>"",consumption_mix_calcs!AH25,"") -> 0 | AJ65: =IF(consumption_mix_calcs!AI25<>"",consumption_mix_calcs!AI25,"") -> 0 | AK65: =IF(consumption_mix_calcs!AJ25<>"",consumption_mix_calcs!AJ25,"") -> 0 | AL65: =IF(consumption_mix_calcs!AK25<>"",consumption_mix_calcs!AK25,"") -> 0 | AM65: =IF(consumption_mix_calcs!AL25<>"",consumption_mix_calcs!AL25,"") -> 0 | AN65: =IF(consumption_mix_calcs!AM25<>"",consumption_mix_calcs!AM25,"") -> 0 | AO65: =IF(consumption_mix_calcs!AN25<>"",consumption_mix_calcs!AN25,"") -> 0 | AP65: =IF(consumption_mix_calcs!AO25<>"",consumption_mix_calcs!AO25,"") -> 0 | AQ65: =IF(consumption_mix_calcs!AP25<>"",consumption_mix_calcs!AP25,"") -> 0 | AR65: =IF(consumption_mix_calcs!AQ25<>"",consumption_mix_calcs!AQ25,"") -> 0 | AS65: =IF(consumption_mix_calcs!AR25<>"",consumption_mix_calcs!AR25,"") -> 0 | AT65: =IF(consumption_mix_calcs!AS25<>"",consumption_mix_calcs!AS25,"") -> 0 | AU65: =IF(consumption_mix_calcs!AT25<>"",consumption_mix_calcs!AT25,"") -> 0 | AV65: =IF(consumption_mix_calcs!AU25<>"",consumption_mix_calcs!AU25,"") -> 0 | AW65: =IF(consumption_mix_calcs!AV25<>"",consumption_mix_calcs!AV25,"") -> 0 | AX65: =IF(consumption_mix_calcs!AW25<>"",consumption_mix_calcs!AW25,"") -> 0 | AY65: =IF(consumption_mix_calcs!AX25<>"",consumption_mix_calcs!AX25,"") -> 0 | AZ65: =IF(consumption_mix_calcs!AY25<>"",consumption_mix_calcs!AY25,"") -> 0 | BA65: =IF(consumption_mix_calcs!AZ25<>"",consumption_mix_calcs!AZ25,"") -> 0 | BB65: =IF(consumption_mix_calcs!BA25<>"",consumption_mix_calcs!BA25,"") -> 0 | BC65: =IF(consumption_mix_calcs!BB25<>"",consumption_mix_calcs!BB25,"") -> 0 | BD65: =IF(consumption_mix_calcs!BC25<>"",consumption_mix_calcs!BC25,"") -> 0 | BE65: =IF(consumption_mix_calcs!BD25<>"",consumption_mix_calcs!BD25,"") -> 0 | BF65: =IF(consumption_mix_calcs!BE25<>"",consumption_mix_calcs!BE25,"") -> 0 | BG65: =IF(consumption_mix_calcs!BF25<>"",consumption_mix_calcs!BF25,"") -> 0 | BH65: =IF(consumption_mix_calcs!BG25<>"",consumption_mix_calcs!BG25,"") -> 0 | BI65: =IF(consumption_mix_calcs!BH25<>"",consumption_mix_calcs!BH25,"") -> 0 | BJ65: =IF(consumption_mix_calcs!BI25<>"",consumption_mix_calcs!BI25,"") -> 0 | BK65: =IF(consumption_mix_calcs!BJ25<>"",consumption_mix_calcs!BJ25,"") -> 0 | BL65: =IF(consumption_mix_calcs!BK25<>"",consumption_mix_calcs!BK25,"") -> 0 | BM65: =IF(consumption_mix_calcs!BL25<>"",consumption_mix_calcs!BL25,"") -> 0 | BN65: =IF(consumption_mix_calcs!BM25<>"",consumption_mix_calcs!BM25,"") -> 0 | BO65: =IF(consumption_mix_calcs!BN25<>"",consumption_mix_calcs!BN25,"") -> 0 | BP65: =IF(consumption_mix_calcs!BO25<>"",consumption_mix_calcs!BO25,"") -> 0 | BQ65: =IF(consumption_mix_calcs!BP25<>"",consumption_mix_calcs!BP25,"") -> 0 | BR65: =IF(consumption_mix_calcs!BQ25<>"",consumption_mix_calcs!BQ25,"") -> 0 | BS65: =IF(consumption_mix_calcs!BR25<>"",consumption_mix_calcs!BR25,"") -> 0 | BT65: =IF(consumption_mix_calcs!BS25<>"",consumption_mix_calcs!BS25,"") -> 0 | BU65: =IF(consumption_mix_calcs!BT25<>"",consumption_mix_calcs!BT25,"") -> 0 | BV65: =IF(consumption_mix_calcs!BU25<>"",consumption_mix_calcs!BU25,"") -> 0 | BW65: =IF(consumption_mix_calcs!BV25<>"",consumption_mix_calcs!BV25,"") -> 0
A66: input | B66: Water, fresh | C66: 350.3203203 | D66: =IF(consumption_mix_calcs!C26<>"",consumption_mix_calcs!C26,"") -> 0 | E66: =IF(consumption_mix_calcs!D26<>"",consumption_mix_calcs!D26,"") -> 55.58054257 | F66: =IF(consumption_mix_calcs!E26<>"",consumption_mix_calcs!E26,"") -> 0 | G66: =IF(consumption_mix_calcs!F26<>"",consumption_mix_calcs!F26,"") -> 0 | H66: =IF(consumption_mix_calcs!G26<>"",consumption_mix_calcs!G26,"") -> 0.05292977 | I66: =IF(consumption_mix_calcs!H26<>"",consumption_mix_calcs!H26,"") -> 1.82480641 | J66: =IF(consumption_mix_calcs!I26<>"",consumption_mix_calcs!I26,"") -> 0.07794085357 | K66: =IF(consumption_mix_calcs!J26<>"",consumption_mix_calcs!J26,"") -> 13.2647443 | L66: =IF(consumption_mix_calcs!K26<>"",consumption_mix_calcs!K26,"") -> 32.56542911 | M66: =IF(consumption_mix_calcs!L26<>"",consumption_mix_calcs!L26,"") -> 0 | N66: =IF(consumption_mix_calcs!M26<>"",consumption_mix_calcs!M26,"") -> 0 | O66: =IF(consumption_mix_calcs!N26<>"",consumption_mix_calcs!N26,"") -> 0 | P66: =IF(consumption_mix_calcs!O26<>"",consumption_mix_calcs!O26,"") -> 0 | Q66: =IF(consumption_mix_calcs!P26<>"",consumption_mix_calcs!P26,"") -> 0 | R66: =IF(consumption_mix_calcs!Q26<>"",consumption_mix_calcs!Q26,"") -> 0 | S66: =IF(consumption_mix_calcs!R26<>"",consumption_mix_calcs!R26,"") -> 0 | T66: =IF(consumption_mix_calcs!S26<>"",consumption_mix_calcs!S26,"") -> 0 | U66: =IF(consumption_mix_calcs!T26<>"",consumption_mix_calcs!T26,"") -> 0 | V66: =IF(consumption_mix_calcs!U26<>"",consumption_mix_calcs!U26,"") -> 0 | W66: =IF(consumption_mix_calcs!V26<>"",consumption_mix_calcs!V26,"") -> 0 | X66: =IF(consumption_mix_calcs!W26<>"",consumption_mix_calcs!W26,"") -> 0 | Y66: =IF(consumption_mix_calcs!X26<>"",consumption_mix_calcs!X26,"") -> 0 | Z66: =IF(consumption_mix_calcs!Y26<>"",consumption_mix_calcs!Y26,"") -> 0 | AA66: =IF(consumption_mix_calcs!Z26<>"",consumption_mix_calcs!Z26,"") -> 2.189811154 | AB66: =IF(consumption_mix_calcs!AA26<>"",consumption_mix_calcs!AA26,"") -> 0 | AC66: =IF(consumption_mix_calcs!AB26<>"",consumption_mix_calcs!AB26,"") -> 0 | AD66: =IF(consumption_mix_calcs!AC26<>"",consumption_mix_calcs!AC26,"") -> 0 | AE66: =IF(consumption_mix_calcs!AD26<>"",consumption_mix_calcs!AD26,"") -> 0.1395306768 | AF66: =IF(consumption_mix_calcs!AE26<>"",consumption_mix_calcs!AE26,"") -> 4.385211566 | AG66: =IF(consumption_mix_calcs!AF26<>"",consumption_mix_calcs!AF26,"") -> 0 | AH66: =IF(consumption_mix_calcs!AG26<>"",consumption_mix_calcs!AG26,"") -> 0 | AI66: =IF(consumption_mix_calcs!AH26<>"",consumption_mix_calcs!AH26,"") -> 79.5799925 | AJ66: =IF(consumption_mix_calcs!AI26<>"",consumption_mix_calcs!AI26,"") -> 0 | AK66: =IF(consumption_mix_calcs!AJ26<>"",consumption_mix_calcs!AJ26,"") -> 0 | AL66: =IF(consumption_mix_calcs!AK26<>"",consumption_mix_calcs!AK26,"") -> 0 | AM66: =IF(consumption_mix_calcs!AL26<>"",consumption_mix_calcs!AL26,"") -> 0 | AN66: =IF(consumption_mix_calcs!AM26<>"",consumption_mix_calcs!AM26,"") -> 129.1779905 | AO66: =IF(consumption_mix_calcs!AN26<>"",consumption_mix_calcs!AN26,"") -> 0 | AP66: =IF(consumption_mix_calcs!AO26<>"",consumption_mix_calcs!AO26,"") -> 1.40730253 | AQ66: =IF(consumption_mix_calcs!AP26<>"",consumption_mix_calcs!AP26,"") -> 0 | AR66: =IF(consumption_mix_calcs!AQ26<>"",consumption_mix_calcs!AQ26,"") -> 0 | AS66: =IF(consumption_mix_calcs!AR26<>"",consumption_mix_calcs!AR26,"") -> 0.5167468632 | AT66: =IF(consumption_mix_calcs!AS26<>"",consumption_mix_calcs!AS26,"") -> 0 | AU66: =IF(consumption_mix_calcs!AT26<>"",consumption_mix_calcs!AT26,"") -> 0 | AV66: =IF(consumption_mix_calcs!AU26<>"",consumption_mix_calcs!AU26,"") -> 0 | AW66: =IF(consumption_mix_calcs!AV26<>"",consumption_mix_calcs!AV26,"") -> 0.002302157396 | AX66: =IF(consumption_mix_calcs!AW26<>"",consumption_mix_calcs!AW26,"") -> 0 | AY66: =IF(consumption_mix_calcs!AX26<>"",consumption_mix_calcs!AX26,"") -> 0.04384285235 | AZ66: =IF(consumption_mix_calcs!AY26<>"",consumption_mix_calcs!AY26,"") -> 0 | BA66: =IF(consumption_mix_calcs!AZ26<>"",consumption_mix_calcs!AZ26,"") -> 0 | BB66: =IF(consumption_mix_calcs!BA26<>"",consumption_mix_calcs!BA26,"") -> 0 | BC66: =IF(consumption_mix_calcs!BB26<>"",consumption_mix_calcs!BB26,"") -> 0 | BD66: =IF(consumption_mix_calcs!BC26<>"",consumption_mix_calcs!BC26,"") -> 9.886738853e-05 | BE66: =IF(consumption_mix_calcs!BD26<>"",consumption_mix_calcs!BD26,"") -> 0.05590351558 | BF66: =IF(consumption_mix_calcs!BE26<>"",consumption_mix_calcs!BE26,"") -> 0 | BG66: =IF(consumption_mix_calcs!BF26<>"",consumption_mix_calcs!BF26,"") -> 20.62449126 | BH66: =IF(consumption_mix_calcs!BG26<>"",consumption_mix_calcs!BG26,"") -> 0 | BI66: =IF(consumption_mix_calcs!BH26<>"",consumption_mix_calcs!BH26,"") -> 0 | BJ66: =IF(consumption_mix_calcs!BI26<>"",consumption_mix_calcs!BI26,"") -> 0 | BK66: =IF(consumption_mix_calcs!BJ26<>"",consumption_mix_calcs!BJ26,"") -> 0 | BL66: =IF(consumption_mix_calcs!BK26<>"",consumption_mix_calcs!BK26,"") -> 0 | BM66: =IF(consumption_mix_calcs!BL26<>"",consumption_mix_calcs!BL26,"") -> 0 | BN66: =IF(consumption_mix_calcs!BM26<>"",consumption_mix_calcs!BM26,"") -> 0 | BO66: =IF(consumption_mix_calcs!BN26<>"",consumption_mix_calcs!BN26,"") -> 0 | BP66: =IF(consumption_mix_calcs!BO26<>"",consumption_mix_calcs!BO26,"") -> 0 | BQ66: =IF(consumption_mix_calcs!BP26<>"",consumption_mix_calcs!BP26,"") -> 0 | BR66: =IF(consumption_mix_calcs!BQ26<>"",consumption_mix_calcs!BQ26,"") -> 0 | BS66: =IF(consumption_mix_calcs!BR26<>"",consumption_mix_calcs!BR26,"") -> 0 | BT66: =IF(consumption_mix_calcs!BS26<>"",consumption_mix_calcs!BS26,"") -> 0.4591718084 | BU66: =IF(consumption_mix_calcs!BT26<>"",consumption_mix_calcs!BT26,"") -> 3.076820095 | BV66: =IF(consumption_mix_calcs!BU26<>"",consumption_mix_calcs!BU26,"") -> 5.294710935 | BW66: =IF(consumption_mix_calcs!BV26<>"",consumption_mix_calcs!BV26,"") -> 0
A67: input | B67: Water, reclaimed | C67: 100.6472167 | D67: =IF(consumption_mix_calcs!C27<>"",consumption_mix_calcs!C27,"") -> 0 | E67: =IF(consumption_mix_calcs!D27<>"",consumption_mix_calcs!D27,"") -> 0 | F67: =IF(consumption_mix_calcs!E27<>"",consumption_mix_calcs!E27,"") -> 0 | G67: =IF(consumption_mix_calcs!F27<>"",consumption_mix_calcs!F27,"") -> 0 | H67: =IF(consumption_mix_calcs!G27<>"",consumption_mix_calcs!G27,"") -> 0 | I67: =IF(consumption_mix_calcs!H27<>"",consumption_mix_calcs!H27,"") -> 0.006555891301 | J67: =IF(consumption_mix_calcs!I27<>"",consumption_mix_calcs!I27,"") -> 0 | K67: =IF(consumption_mix_calcs!J27<>"",consumption_mix_calcs!J27,"") -> 0 | L67: =IF(consumption_mix_calcs!K27<>"",consumption_mix_calcs!K27,"") -> 38.89814539 | M67: =IF(consumption_mix_calcs!L27<>"",consumption_mix_calcs!L27,"") -> 0 | N67: =IF(consumption_mix_calcs!M27<>"",consumption_mix_calcs!M27,"") -> 0 | O67: =IF(consumption_mix_calcs!N27<>"",consumption_mix_calcs!N27,"") -> 0 | P67: =IF(consumption_mix_calcs!O27<>"",consumption_mix_calcs!O27,"") -> 0 | Q67: =IF(consumption_mix_calcs!P27<>"",consumption_mix_calcs!P27,"") -> 0 | R67: =IF(consumption_mix_calcs!Q27<>"",consumption_mix_calcs!Q27,"") -> 0 | S67: =IF(consumption_mix_calcs!R27<>"",consumption_mix_calcs!R27,"") -> 0 | T67: =IF(consumption_mix_calcs!S27<>"",consumption_mix_calcs!S27,"") -> 0 | U67: =IF(consumption_mix_calcs!T27<>"",consumption_mix_calcs!T27,"") -> 0 | V67: =IF(consumption_mix_calcs!U27<>"",consumption_mix_calcs!U27,"") -> 0 | W67: =IF(consumption_mix_calcs!V27<>"",consumption_mix_calcs!V27,"") -> 0 | X67: =IF(consumption_mix_calcs!W27<>"",consumption_mix_calcs!W27,"") -> 0 | Y67: =IF(consumption_mix_calcs!X27<>"",consumption_mix_calcs!X27,"") -> 0 | Z67: =IF(consumption_mix_calcs!Y27<>"",consumption_mix_calcs!Y27,"") -> 0 | AA67: =IF(consumption_mix_calcs!Z27<>"",consumption_mix_calcs!Z27,"") -> 0 | AB67: =IF(consumption_mix_calcs!AA27<>"",consumption_mix_calcs!AA27,"") -> 0 | AC67: =IF(consumption_mix_calcs!AB27<>"",consumption_mix_calcs!AB27,"") -> 0 | AD67: =IF(consumption_mix_calcs!AC27<>"",consumption_mix_calcs!AC27,"") -> 0 | AE67: =IF(consumption_mix_calcs!AD27<>"",consumption_mix_calcs!AD27,"") -> 0 | AF67: =IF(consumption_mix_calcs!AE27<>"",consumption_mix_calcs!AE27,"") -> 0 | AG67: =IF(consumption_mix_calcs!AF27<>"",consumption_mix_calcs!AF27,"") -> 0 | AH67: =IF(consumption_mix_calcs!AG27<>"",consumption_mix_calcs!AG27,"") -> 0 | AI67: =IF(consumption_mix_calcs!AH27<>"",consumption_mix_calcs!AH27,"") -> 8.896839363 | AJ67: =IF(consumption_mix_calcs!AI27<>"",consumption_mix_calcs!AI27,"") -> 0 | AK67: =IF(consumption_mix_calcs!AJ27<>"",consumption_mix_calcs!AJ27,"") -> 0 | AL67: =IF(consumption_mix_calcs!AK27<>"",consumption_mix_calcs!AK27,"") -> 0 | AM67: =IF(consumption_mix_calcs!AL27<>"",consumption_mix_calcs!AL27,"") -> 0 | AN67: =IF(consumption_mix_calcs!AM27<>"",consumption_mix_calcs!AM27,"") -> 0.1030655811 | AO67: =IF(consumption_mix_calcs!AN27<>"",consumption_mix_calcs!AN27,"") -> 0 | AP67: =IF(consumption_mix_calcs!AO27<>"",consumption_mix_calcs!AO27,"") -> 0 | AQ67: =IF(consumption_mix_calcs!AP27<>"",consumption_mix_calcs!AP27,"") -> 0 | AR67: =IF(consumption_mix_calcs!AQ27<>"",consumption_mix_calcs!AQ27,"") -> 0 | AS67: =IF(consumption_mix_calcs!AR27<>"",consumption_mix_calcs!AR27,"") -> 0 | AT67: =IF(consumption_mix_calcs!AS27<>"",consumption_mix_calcs!AS27,"") -> 0 | AU67: =IF(consumption_mix_calcs!AT27<>"",consumption_mix_calcs!AT27,"") -> 0 | AV67: =IF(consumption_mix_calcs!AU27<>"",consumption_mix_calcs!AU27,"") -> 0 | AW67: =IF(consumption_mix_calcs!AV27<>"",consumption_mix_calcs!AV27,"") -> 0 | AX67: =IF(consumption_mix_calcs!AW27<>"",consumption_mix_calcs!AW27,"") -> 0 | AY67: =IF(consumption_mix_calcs!AX27<>"",consumption_mix_calcs!AX27,"") -> 0 | AZ67: =IF(consumption_mix_calcs!AY27<>"",consumption_mix_calcs!AY27,"") -> 0 | BA67: =IF(consumption_mix_calcs!AZ27<>"",consumption_mix_calcs!AZ27,"") -> 0 | BB67: =IF(consumption_mix_calcs!BA27<>"",consumption_mix_calcs!BA27,"") -> 0 | BC67: =IF(consumption_mix_calcs!BB27<>"",consumption_mix_calcs!BB27,"") -> 0 | BD67: =IF(consumption_mix_calcs!BC27<>"",consumption_mix_calcs!BC27,"") -> 0 | BE67: =IF(consumption_mix_calcs!BD27<>"",consumption_mix_calcs!BD27,"") -> 0 | BF67: =IF(consumption_mix_calcs!BE27<>"",consumption_mix_calcs!BE27,"") -> 0 | BG67: =IF(consumption_mix_calcs!BF27<>"",consumption_mix_calcs!BF27,"") -> 52.57798285 | BH67: =IF(consumption_mix_calcs!BG27<>"",consumption_mix_calcs!BG27,"") -> 0 | BI67: =IF(consumption_mix_calcs!BH27<>"",consumption_mix_calcs!BH27,"") -> 0 | BJ67: =IF(consumption_mix_calcs!BI27<>"",consumption_mix_calcs!BI27,"") -> 0 | BK67: =IF(consumption_mix_calcs!BJ27<>"",consumption_mix_calcs!BJ27,"") -> 0 | BL67: =IF(consumption_mix_calcs!BK27<>"",consumption_mix_calcs!BK27,"") -> 0 | BM67: =IF(consumption_mix_calcs!BL27<>"",consumption_mix_calcs!BL27,"") -> 0 | BN67: =IF(consumption_mix_calcs!BM27<>"",consumption_mix_calcs!BM27,"") -> 0 | BO67: =IF(consumption_mix_calcs!BN27<>"",consumption_mix_calcs!BN27,"") -> 0 | BP67: =IF(consumption_mix_calcs!BO27<>"",consumption_mix_calcs!BO27,"") -> 0 | BQ67: =IF(consumption_mix_calcs!BP27<>"",consumption_mix_calcs!BP27,"") -> 0 | BR67: =IF(consumption_mix_calcs!BQ27<>"",consumption_mix_calcs!BQ27,"") -> 0 | BS67: =IF(consumption_mix_calcs!BR27<>"",consumption_mix_calcs!BR27,"") -> 0 | BT67: =IF(consumption_mix_calcs!BS27<>"",consumption_mix_calcs!BS27,"") -> 0 | BU67: =IF(consumption_mix_calcs!BT27<>"",consumption_mix_calcs!BT27,"") -> 0 | BV67: =IF(consumption_mix_calcs!BU27<>"",consumption_mix_calcs!BU27,"") -> 0.1646276612 | BW67: =IF(consumption_mix_calcs!BV27<>"",consumption_mix_calcs!BV27,"") -> 0
A68: input | B68: Water, saline | C68: 9699.127236 | D68: =IF(consumption_mix_calcs!C28<>"",consumption_mix_calcs!C28,"") -> 0 | E68: =IF(consumption_mix_calcs!D28<>"",consumption_mix_calcs!D28,"") -> 0 | F68: =IF(consumption_mix_calcs!E28<>"",consumption_mix_calcs!E28,"") -> 0 | G68: =IF(consumption_mix_calcs!F28<>"",consumption_mix_calcs!F28,"") -> 0 | H68: =IF(consumption_mix_calcs!G28<>"",consumption_mix_calcs!G28,"") -> 0 | I68: =IF(consumption_mix_calcs!H28<>"",consumption_mix_calcs!H28,"") -> 0.4237179696 | J68: =IF(consumption_mix_calcs!I28<>"",consumption_mix_calcs!I28,"") -> 0 | K68: =IF(consumption_mix_calcs!J28<>"",consumption_mix_calcs!J28,"") -> 0 | L68: =IF(consumption_mix_calcs!K28<>"",consumption_mix_calcs!K28,"") -> 9698.703518 | M68: =IF(consumption_mix_calcs!L28<>"",consumption_mix_calcs!L28,"") -> 0 | N68: =IF(consumption_mix_calcs!M28<>"",consumption_mix_calcs!M28,"") -> 0 | O68: =IF(consumption_mix_calcs!N28<>"",consumption_mix_calcs!N28,"") -> 0 | P68: =IF(consumption_mix_calcs!O28<>"",consumption_mix_calcs!O28,"") -> 0 | Q68: =IF(consumption_mix_calcs!P28<>"",consumption_mix_calcs!P28,"") -> 0 | R68: =IF(consumption_mix_calcs!Q28<>"",consumption_mix_calcs!Q28,"") -> 0 | S68: =IF(consumption_mix_calcs!R28<>"",consumption_mix_calcs!R28,"") -> 0 | T68: =IF(consumption_mix_calcs!S28<>"",consumption_mix_calcs!S28,"") -> 0 | U68: =IF(consumption_mix_calcs!T28<>"",consumption_mix_calcs!T28,"") -> 0 | V68: =IF(consumption_mix_calcs!U28<>"",consumption_mix_calcs!U28,"") -> 0 | W68: =IF(consumption_mix_calcs!V28<>"",consumption_mix_calcs!V28,"") -> 0 | X68: =IF(consumption_mix_calcs!W28<>"",consumption_mix_calcs!W28,"") -> 0 | Y68: =IF(consumption_mix_calcs!X28<>"",consumption_mix_calcs!X28,"") -> 0 | Z68: =IF(consumption_mix_calcs!Y28<>"",consumption_mix_calcs!Y28,"") -> 0 | AA68: =IF(consumption_mix_calcs!Z28<>"",consumption_mix_calcs!Z28,"") -> 0 | AB68: =IF(consumption_mix_calcs!AA28<>"",consumption_mix_calcs!AA28,"") -> 0 | AC68: =IF(consumption_mix_calcs!AB28<>"",consumption_mix_calcs!AB28,"") -> 0 | AD68: =IF(consumption_mix_calcs!AC28<>"",consumption_mix_calcs!AC28,"") -> 0 | AE68: =IF(consumption_mix_calcs!AD28<>"",consumption_mix_calcs!AD28,"") -> 0 | AF68: =IF(consumption_mix_calcs!AE28<>"",consumption_mix_calcs!AE28,"") -> 0 | AG68: =IF(consumption_mix_calcs!AF28<>"",consumption_mix_calcs!AF28,"") -> 0 | AH68: =IF(consumption_mix_calcs!AG28<>"",consumption_mix_calcs!AG28,"") -> 0 | AI68: =IF(consumption_mix_calcs!AH28<>"",consumption_mix_calcs!AH28,"") -> 0 | AJ68: =IF(consumption_mix_calcs!AI28<>"",consumption_mix_calcs!AI28,"") -> 0 | AK68: =IF(consumption_mix_calcs!AJ28<>"",consumption_mix_calcs!AJ28,"") -> 0 | AL68: =IF(consumption_mix_calcs!AK28<>"",consumption_mix_calcs!AK28,"") -> 0 | AM68: =IF(consumption_mix_calcs!AL28<>"",consumption_mix_calcs!AL28,"") -> 0 | AN68: =IF(consumption_mix_calcs!AM28<>"",consumption_mix_calcs!AM28,"") -> 0 | AO68: =IF(consumption_mix_calcs!AN28<>"",consumption_mix_calcs!AN28,"") -> 0 | AP68: =IF(consumption_mix_calcs!AO28<>"",consumption_mix_calcs!AO28,"") -> 0 | AQ68: =IF(consumption_mix_calcs!AP28<>"",consumption_mix_calcs!AP28,"") -> 0 | AR68: =IF(consumption_mix_calcs!AQ28<>"",consumption_mix_calcs!AQ28,"") -> 0 | AS68: =IF(consumption_mix_calcs!AR28<>"",consumption_mix_calcs!AR28,"") -> 0 | AT68: =IF(consumption_mix_calcs!AS28<>"",consumption_mix_calcs!AS28,"") -> 0 | AU68: =IF(consumption_mix_calcs!AT28<>"",consumption_mix_calcs!AT28,"") -> 0 | AV68: =IF(consumption_mix_calcs!AU28<>"",consumption_mix_calcs!AU28,"") -> 0 | AW68: =IF(consumption_mix_calcs!AV28<>"",consumption_mix_calcs!AV28,"") -> 0 | AX68: =IF(consumption_mix_calcs!AW28<>"",consumption_mix_calcs!AW28,"") -> 0 | AY68: =IF(consumption_mix_calcs!AX28<>"",consumption_mix_calcs!AX28,"") -> 0 | AZ68: =IF(consumption_mix_calcs!AY28<>"",consumption_mix_calcs!AY28,"") -> 0 | BA68: =IF(consumption_mix_calcs!AZ28<>"",consumption_mix_calcs!AZ28,"") -> 0 | BB68: =IF(consumption_mix_calcs!BA28<>"",consumption_mix_calcs!BA28,"") -> 0 | BC68: =IF(consumption_mix_calcs!BB28<>"",consumption_mix_calcs!BB28,"") -> 0 | BD68: =IF(consumption_mix_calcs!BC28<>"",consumption_mix_calcs!BC28,"") -> 0 | BE68: =IF(consumption_mix_calcs!BD28<>"",consumption_mix_calcs!BD28,"") -> 0 | BF68: =IF(consumption_mix_calcs!BE28<>"",consumption_mix_calcs!BE28,"") -> 0 | BG68: =IF(consumption_mix_calcs!BF28<>"",consumption_mix_calcs!BF28,"") -> 0 | BH68: =IF(consumption_mix_calcs!BG28<>"",consumption_mix_calcs!BG28,"") -> 0 | BI68: =IF(consumption_mix_calcs!BH28<>"",consumption_mix_calcs!BH28,"") -> 0 | BJ68: =IF(consumption_mix_calcs!BI28<>"",consumption_mix_calcs!BI28,"") -> 0 | BK68: =IF(consumption_mix_calcs!BJ28<>"",consumption_mix_calcs!BJ28,"") -> 0 | BL68: =IF(consumption_mix_calcs!BK28<>"",consumption_mix_calcs!BK28,"") -> 0 | BM68: =IF(consumption_mix_calcs!BL28<>"",consumption_mix_calcs!BL28,"") -> 0 | BN68: =IF(consumption_mix_calcs!BM28<>"",consumption_mix_calcs!BM28,"") -> 0 | BO68: =IF(consumption_mix_calcs!BN28<>"",consumption_mix_calcs!BN28,"") -> 0 | BP68: =IF(consumption_mix_calcs!BO28<>"",consumption_mix_calcs!BO28,"") -> 0 | BQ68: =IF(consumption_mix_calcs!BP28<>"",consumption_mix_calcs!BP28,"") -> 0 | BR68: =IF(consumption_mix_calcs!BQ28<>"",consumption_mix_calcs!BQ28,"") -> 0 | BS68: =IF(consumption_mix_calcs!BR28<>"",consumption_mix_calcs!BR28,"") -> 0 | BT68: =IF(consumption_mix_calcs!BS28<>"",consumption_mix_calcs!BS28,"") -> 0 | BU68: =IF(consumption_mix_calcs!BT28<>"",consumption_mix_calcs!BT28,"") -> 0 | BV68: =IF(consumption_mix_calcs!BU28<>"",consumption_mix_calcs!BU28,"") -> 0 | BW68: =IF(consumption_mix_calcs!BV28<>"",consumption_mix_calcs!BV28,"") -> 0
A69: air | B69: (E)-8-Dodecen-1-yl acetate | C69: 1.922359e-13 | D69: =IF(consumption_mix_calcs!C29<>"",consumption_mix_calcs!C29,"") -> 0 | E69: =IF(consumption_mix_calcs!D29<>"",consumption_mix_calcs!D29,"") -> 1.131100206e-14 | F69: =IF(consumption_mix_calcs!E29<>"",consumption_mix_calcs!E29,"") -> 0 | G69: =IF(consumption_mix_calcs!F29<>"",consumption_mix_calcs!F29,"") -> 0 | H69: =IF(consumption_mix_calcs!G29<>"",consumption_mix_calcs!G29,"") -> 5.235773424e-17 | I69: =IF(consumption_mix_calcs!H29<>"",consumption_mix_calcs!H29,"") -> 2.28535939e-17 | J69: =IF(consumption_mix_calcs!I29<>"",consumption_mix_calcs!I29,"") -> 1.043286769e-14 | K69: =IF(consumption_mix_calcs!J29<>"",consumption_mix_calcs!J29,"") -> 2.442808329e-15 | L69: =IF(consumption_mix_calcs!K29<>"",consumption_mix_calcs!K29,"") -> 9.639311492e-14 | M69: =IF(consumption_mix_calcs!L29<>"",consumption_mix_calcs!L29,"") -> 0 | N69: =IF(consumption_mix_calcs!M29<>"",consumption_mix_calcs!M29,"") -> 0 | O69: =IF(consumption_mix_calcs!N29<>"",consumption_mix_calcs!N29,"") -> 0 | P69: =IF(consumption_mix_calcs!O29<>"",consumption_mix_calcs!O29,"") -> 0 | Q69: =IF(consumption_mix_calcs!P29<>"",consumption_mix_calcs!P29,"") -> 0 | R69: =IF(consumption_mix_calcs!Q29<>"",consumption_mix_calcs!Q29,"") -> 0 | S69: =IF(consumption_mix_calcs!R29<>"",consumption_mix_calcs!R29,"") -> 0 | T69: =IF(consumption_mix_calcs!S29<>"",consumption_mix_calcs!S29,"") -> 0 | U69: =IF(consumption_mix_calcs!T29<>"",consumption_mix_calcs!T29,"") -> 0 | V69: =IF(consumption_mix_calcs!U29<>"",consumption_mix_calcs!U29,"") -> 0 | W69: =IF(consumption_mix_calcs!V29<>"",consumption_mix_calcs!V29,"") -> 0 | X69: =IF(consumption_mix_calcs!W29<>"",consumption_mix_calcs!W29,"") -> 1.122379348e-15 | Y69: =IF(consumption_mix_calcs!X29<>"",consumption_mix_calcs!X29,"") -> 0 | Z69: =IF(consumption_mix_calcs!Y29<>"",consumption_mix_calcs!Y29,"") -> 0 | AA69: =IF(consumption_mix_calcs!Z29<>"",consumption_mix_calcs!Z29,"") -> 4.895645173e-16 | AB69: =IF(consumption_mix_calcs!AA29<>"",consumption_mix_calcs!AA29,"") -> 0 | AC69: =IF(consumption_mix_calcs!AB29<>"",consumption_mix_calcs!AB29,"") -> 0 | AD69: =IF(consumption_mix_calcs!AC29<>"",consumption_mix_calcs!AC29,"") -> 0 | AE69: =IF(consumption_mix_calcs!AD29<>"",consumption_mix_calcs!AD29,"") -> 5.088156582e-17 | AF69: =IF(consumption_mix_calcs!AE29<>"",consumption_mix_calcs!AE29,"") -> 1.340460601e-15 | AG69: =IF(consumption_mix_calcs!AF29<>"",consumption_mix_calcs!AF29,"") -> 0 | AH69: =IF(consumption_mix_calcs!AG29<>"",consumption_mix_calcs!AG29,"") -> 0 | AI69: =IF(consumption_mix_calcs!AH29<>"",consumption_mix_calcs!AH29,"") -> 4.592033923e-14 | AJ69: =IF(consumption_mix_calcs!AI29<>"",consumption_mix_calcs!AI29,"") -> 0 | AK69: =IF(consumption_mix_calcs!AJ29<>"",consumption_mix_calcs!AJ29,"") -> 0 | AL69: =IF(consumption_mix_calcs!AK29<>"",consumption_mix_calcs!AK29,"") -> 0 | AM69: =IF(consumption_mix_calcs!AL29<>"",consumption_mix_calcs!AL29,"") -> 0 | AN69: =IF(consumption_mix_calcs!AM29<>"",consumption_mix_calcs!AM29,"") -> 9.24773453e-16 | AO69: =IF(consumption_mix_calcs!AN29<>"",consumption_mix_calcs!AN29,"") -> 0 | AP69: =IF(consumption_mix_calcs!AO29<>"",consumption_mix_calcs!AO29,"") -> 4.399787751e-16 | AQ69: =IF(consumption_mix_calcs!AP29<>"",consumption_mix_calcs!AP29,"") -> 0 | AR69: =IF(consumption_mix_calcs!AQ29<>"",consumption_mix_calcs!AQ29,"") -> 0 | AS69: =IF(consumption_mix_calcs!AR29<>"",consumption_mix_calcs!AR29,"") -> 2.079760466e-17 | AT69: =IF(consumption_mix_calcs!AS29<>"",consumption_mix_calcs!AS29,"") -> 0 | AU69: =IF(consumption_mix_calcs!AT29<>"",consumption_mix_calcs!AT29,"") -> 0 | AV69: =IF(consumption_mix_calcs!AU29<>"",consumption_mix_calcs!AU29,"") -> 0 | AW69: =IF(consumption_mix_calcs!AV29<>"",consumption_mix_calcs!AV29,"") -> 0 | AX69: =IF(consumption_mix_calcs!AW29<>"",consumption_mix_calcs!AW29,"") -> 0 | AY69: =IF(consumption_mix_calcs!AX29<>"",consumption_mix_calcs!AX29,"") -> 1.534855163e-15 | AZ69: =IF(consumption_mix_calcs!AY29<>"",consumption_mix_calcs!AY29,"") -> 0 | BA69: =IF(consumption_mix_calcs!AZ29<>"",consumption_mix_calcs!AZ29,"") -> 0 | BB69: =IF(consumption_mix_calcs!BA29<>"",consumption_mix_calcs!BA29,"") -> 0 | BC69: =IF(consumption_mix_calcs!BB29<>"",consumption_mix_calcs!BB29,"") -> 0 | BD69: =IF(consumption_mix_calcs!BC29<>"",consumption_mix_calcs!BC29,"") -> 0 | BE69: =IF(consumption_mix_calcs!BD29<>"",consumption_mix_calcs!BD29,"") -> 0 | BF69: =IF(consumption_mix_calcs!BE29<>"",consumption_mix_calcs!BE29,"") -> 0 | BG69: =IF(consumption_mix_calcs!BF29<>"",consumption_mix_calcs!BF29,"") -> 6.622449923e-15 | BH69: =IF(consumption_mix_calcs!BG29<>"",consumption_mix_calcs!BG29,"") -> 0 | BI69: =IF(consumption_mix_calcs!BH29<>"",consumption_mix_calcs!BH29,"") -> 0 | BJ69: =IF(consumption_mix_calcs!BI29<>"",consumption_mix_calcs!BI29,"") -> 0 | BK69: =IF(consumption_mix_calcs!BJ29<>"",consumption_mix_calcs!BJ29,"") -> 0 | BL69: =IF(consumption_mix_calcs!BK29<>"",consumption_mix_calcs!BK29,"") -> 0 | BM69: =IF(consumption_mix_calcs!BL29<>"",consumption_mix_calcs!BL29,"") -> 0 | BN69: =IF(consumption_mix_calcs!BM29<>"",consumption_mix_calcs!BM29,"") -> 0 | BO69: =IF(consumption_mix_calcs!BN29<>"",consumption_mix_calcs!BN29,"") -> 0 | BP69: =IF(consumption_mix_calcs!BO29<>"",consumption_mix_calcs!BO29,"") -> 0 | BQ69: =IF(consumption_mix_calcs!BP29<>"",consumption_mix_calcs!BP29,"") -> 0 | BR69: =IF(consumption_mix_calcs!BQ29<>"",consumption_mix_calcs!BQ29,"") -> 0 | BS69: =IF(consumption_mix_calcs!BR29<>"",consumption_mix_calcs!BR29,"") -> 0 | BT69: =IF(consumption_mix_calcs!BS29<>"",consumption_mix_calcs!BS29,"") -> 5.100800269e-15 | BU69: =IF(consumption_mix_calcs!BT29<>"",consumption_mix_calcs!BT29,"") -> 5.537552318e-15 | BV69: =IF(consumption_mix_calcs!BU29<>"",consumption_mix_calcs!BU29,"") -> 2.476062911e-15 | BW69: =IF(consumption_mix_calcs!BV29<>"",consumption_mix_calcs!BV29,"") -> 0
A70: air | B70: (E)-Crotonic acid | C70: 3.546473391e-12 | D70: =IF(consumption_mix_calcs!C30<>"",consumption_mix_calcs!C30,"") -> 0 | E70: =IF(consumption_mix_calcs!D30<>"",consumption_mix_calcs!D30,"") -> 2.086712979e-13 | F70: =IF(consumption_mix_calcs!E30<>"",consumption_mix_calcs!E30,"") -> 0 | G70: =IF(consumption_mix_calcs!F30<>"",consumption_mix_calcs!F30,"") -> 0 | H70: =IF(consumption_mix_calcs!G30<>"",consumption_mix_calcs!G30,"") -> 9.659247498e-16 | I70: =IF(consumption_mix_calcs!H30<>"",consumption_mix_calcs!H30,"") -> 4.216158737e-16 | J70: =IF(consumption_mix_calcs!I30<>"",consumption_mix_calcs!I30,"") -> 1.924713753e-13 | K70: =IF(consumption_mix_calcs!J30<>"",consumption_mix_calcs!J30,"") -> 4.506622289e-14 | L70: =IF(consumption_mix_calcs!K30<>"",consumption_mix_calcs!K30,"") -> 1.778314054e-12 | M70: =IF(consumption_mix_calcs!L30<>"",consumption_mix_calcs!L30,"") -> 0 | N70: =IF(consumption_mix_calcs!M30<>"",consumption_mix_calcs!M30,"") -> 0 | O70: =IF(consumption_mix_calcs!N30<>"",consumption_mix_calcs!N30,"") -> 0 | P70: =IF(consumption_mix_calcs!O30<>"",consumption_mix_calcs!O30,"") -> 0 | Q70: =IF(consumption_mix_calcs!P30<>"",consumption_mix_calcs!P30,"") -> 0 | R70: =IF(consumption_mix_calcs!Q30<>"",consumption_mix_calcs!Q30,"") -> 0 | S70: =IF(consumption_mix_calcs!R30<>"",consumption_mix_calcs!R30,"") -> 0 | T70: =IF(consumption_mix_calcs!S30<>"",consumption_mix_calcs!S30,"") -> 0 | U70: =IF(consumption_mix_calcs!T30<>"",consumption_mix_calcs!T30,"") -> 0 | V70: =IF(consumption_mix_calcs!U30<>"",consumption_mix_calcs!U30,"") -> 0 | W70: =IF(consumption_mix_calcs!V30<>"",consumption_mix_calcs!V30,"") -> 0 | X70: =IF(consumption_mix_calcs!W30<>"",consumption_mix_calcs!W30,"") -> 2.070628163e-14 | Y70: =IF(consumption_mix_calcs!X30<>"",consumption_mix_calcs!X30,"") -> 0 | Z70: =IF(consumption_mix_calcs!Y30<>"",consumption_mix_calcs!Y30,"") -> 0 | AA70: =IF(consumption_mix_calcs!Z30<>"",consumption_mix_calcs!Z30,"") -> 9.031759888e-15 | AB70: =IF(consumption_mix_calcs!AA30<>"",consumption_mix_calcs!AA30,"") -> 0 | AC70: =IF(consumption_mix_calcs!AB30<>"",consumption_mix_calcs!AB30,"") -> 0 | AD70: =IF(consumption_mix_calcs!AC30<>"",consumption_mix_calcs!AC30,"") -> 0 | AE70: =IF(consumption_mix_calcs!AD30<>"",consumption_mix_calcs!AD30,"") -> 9.386915696e-16 | AF70: =IF(consumption_mix_calcs!AE30<>"",consumption_mix_calcs!AE30,"") -> 2.472956651e-14 | AG70: =IF(consumption_mix_calcs!AF30<>"",consumption_mix_calcs!AF30,"") -> 0 | AH70: =IF(consumption_mix_calcs!AG30<>"",consumption_mix_calcs!AG30,"") -> 0 | AI70: =IF(consumption_mix_calcs!AH30<>"",consumption_mix_calcs!AH30,"") -> 8.47162997e-13 | AJ70: =IF(consumption_mix_calcs!AI30<>"",consumption_mix_calcs!AI30,"") -> 0 | AK70: =IF(consumption_mix_calcs!AJ30<>"",consumption_mix_calcs!AJ30,"") -> 0 | AL70: =IF(consumption_mix_calcs!AK30<>"",consumption_mix_calcs!AK30,"") -> 0 | AM70: =IF(consumption_mix_calcs!AL30<>"",consumption_mix_calcs!AL30,"") -> 0 | AN70: =IF(consumption_mix_calcs!AM30<>"",consumption_mix_calcs!AM30,"") -> 1.706072506e-14 | AO70: =IF(consumption_mix_calcs!AN30<>"",consumption_mix_calcs!AN30,"") -> 0 | AP70: =IF(consumption_mix_calcs!AO30<>"",consumption_mix_calcs!AO30,"") -> 8.116974396e-15 | AQ70: =IF(consumption_mix_calcs!AP30<>"",consumption_mix_calcs!AP30,"") -> 0 | AR70: =IF(consumption_mix_calcs!AQ30<>"",consumption_mix_calcs!AQ30,"") -> 0 | AS70: =IF(consumption_mix_calcs!AR30<>"",consumption_mix_calcs!AR30,"") -> 3.836849633e-16 | AT70: =IF(consumption_mix_calcs!AS30<>"",consumption_mix_calcs!AS30,"") -> 0 | AU70: =IF(consumption_mix_calcs!AT30<>"",consumption_mix_calcs!AT30,"") -> 0 | AV70: =IF(consumption_mix_calcs!AU30<>"",consumption_mix_calcs!AU30,"") -> 0 | AW70: =IF(consumption_mix_calcs!AV30<>"",consumption_mix_calcs!AV30,"") -> 0 | AX70: =IF(consumption_mix_calcs!AW30<>"",consumption_mix_calcs!AW30,"") -> 0 | AY70: =IF(consumption_mix_calcs!AX30<>"",consumption_mix_calcs!AX30,"") -> 2.831586604e-14 | AZ70: =IF(consumption_mix_calcs!AY30<>"",consumption_mix_calcs!AY30,"") -> 0 | BA70: =IF(consumption_mix_calcs!AZ30<>"",consumption_mix_calcs!AZ30,"") -> 0 | BB70: =IF(consumption_mix_calcs!BA30<>"",consumption_mix_calcs!BA30,"") -> 0 | BC70: =IF(consumption_mix_calcs!BB30<>"",consumption_mix_calcs!BB30,"") -> 0 | BD70: =IF(consumption_mix_calcs!BC30<>"",consumption_mix_calcs!BC30,"") -> 0 | BE70: =IF(consumption_mix_calcs!BD30<>"",consumption_mix_calcs!BD30,"") -> 0 | BF70: =IF(consumption_mix_calcs!BE30<>"",consumption_mix_calcs!BE30,"") -> 0 | BG70: =IF(consumption_mix_calcs!BF30<>"",consumption_mix_calcs!BF30,"") -> 1.221744772e-13 | BH70: =IF(consumption_mix_calcs!BG30<>"",consumption_mix_calcs!BG30,"") -> 0 | BI70: =IF(consumption_mix_calcs!BH30<>"",consumption_mix_calcs!BH30,"") -> 0 | BJ70: =IF(consumption_mix_calcs!BI30<>"",consumption_mix_calcs!BI30,"") -> 0 | BK70: =IF(consumption_mix_calcs!BJ30<>"",consumption_mix_calcs!BJ30,"") -> 0 | BL70: =IF(consumption_mix_calcs!BK30<>"",consumption_mix_calcs!BK30,"") -> 0 | BM70: =IF(consumption_mix_calcs!BL30<>"",consumption_mix_calcs!BL30,"") -> 0 | BN70: =IF(consumption_mix_calcs!BM30<>"",consumption_mix_calcs!BM30,"") -> 0 | BO70: =IF(consumption_mix_calcs!BN30<>"",consumption_mix_calcs!BN30,"") -> 0 | BP70: =IF(consumption_mix_calcs!BO30<>"",consumption_mix_calcs!BO30,"") -> 0 | BQ70: =IF(consumption_mix_calcs!BP30<>"",consumption_mix_calcs!BP30,"") -> 0 | BR70: =IF(consumption_mix_calcs!BQ30<>"",consumption_mix_calcs!BQ30,"") -> 0 | BS70: =IF(consumption_mix_calcs!BR30<>"",consumption_mix_calcs!BR30,"") -> 0 | BT70: =IF(consumption_mix_calcs!BS30<>"",consumption_mix_calcs!BS30,"") -> 9.410241477e-14 | BU70: =IF(consumption_mix_calcs!BT30<>"",consumption_mix_calcs!BT30,"") -> 1.021597674e-13 | BV70: =IF(consumption_mix_calcs!BU30<>"",consumption_mix_calcs!BU30,"") -> 4.567969331e-14 | BW70: =IF(consumption_mix_calcs!BV30<>"",consumption_mix_calcs!BV30,"") -> 0
A71: air | B71: .lambda.-Cyhalothrin | C71: 1.297446523e-09 | D71: =IF(consumption_mix_calcs!C31<>"",consumption_mix_calcs!C31,"") -> 0 | E71: =IF(consumption_mix_calcs!D31<>"",consumption_mix_calcs!D31,"") -> 7.718941438e-11 | F71: =IF(consumption_mix_calcs!E31<>"",consumption_mix_calcs!E31,"") -> 0 | G71: =IF(consumption_mix_calcs!F31<>"",consumption_mix_calcs!F31,"") -> 0 | H71: =IF(consumption_mix_calcs!G31<>"",consumption_mix_calcs!G31,"") -> 3.517381404e-13 | I71: =IF(consumption_mix_calcs!H31<>"",consumption_mix_calcs!H31,"") -> 1.535363838e-13 | J71: =IF(consumption_mix_calcs!I31<>"",consumption_mix_calcs!I31,"") -> 7.008778234e-11 | K71: =IF(consumption_mix_calcs!J31<>"",consumption_mix_calcs!J31,"") -> 1.662817867e-11 | L71: =IF(consumption_mix_calcs!K31<>"",consumption_mix_calcs!K31,"") -> 6.476110937e-10 | M71: =IF(consumption_mix_calcs!L31<>"",consumption_mix_calcs!L31,"") -> 0 | N71: =IF(consumption_mix_calcs!M31<>"",consumption_mix_calcs!M31,"") -> 0 | O71: =IF(consumption_mix_calcs!N31<>"",consumption_mix_calcs!N31,"") -> 0 | P71: =IF(consumption_mix_calcs!O31<>"",consumption_mix_calcs!O31,"") -> 0 | Q71: =IF(consumption_mix_calcs!P31<>"",consumption_mix_calcs!P31,"") -> 0 | R71: =IF(consumption_mix_calcs!Q31<>"",consumption_mix_calcs!Q31,"") -> 0 | S71: =IF(consumption_mix_calcs!R31<>"",consumption_mix_calcs!R31,"") -> 0 | T71: =IF(consumption_mix_calcs!S31<>"",consumption_mix_calcs!S31,"") -> 0 | U71: =IF(consumption_mix_calcs!T31<>"",consumption_mix_calcs!T31,"") -> 0 | V71: =IF(consumption_mix_calcs!U31<>"",consumption_mix_calcs!U31,"") -> 0 | W71: =IF(consumption_mix_calcs!V31<>"",consumption_mix_calcs!V31,"") -> 0 | X71: =IF(consumption_mix_calcs!W31<>"",consumption_mix_calcs!W31,"") -> 7.540120488e-12 | Y71: =IF(consumption_mix_calcs!X31<>"",consumption_mix_calcs!X31,"") -> 0 | Z71: =IF(consumption_mix_calcs!Y31<>"",consumption_mix_calcs!Y31,"") -> 0 | AA71: =IF(consumption_mix_calcs!Z31<>"",consumption_mix_calcs!Z31,"") -> 3.288883972e-12 | AB71: =IF(consumption_mix_calcs!AA31<>"",consumption_mix_calcs!AA31,"") -> 0 | AC71: =IF(consumption_mix_calcs!AB31<>"",consumption_mix_calcs!AB31,"") -> 0 | AD71: =IF(consumption_mix_calcs!AC31<>"",consumption_mix_calcs!AC31,"") -> 0 | AE71: =IF(consumption_mix_calcs!AD31<>"",consumption_mix_calcs!AD31,"") -> 3.418212725e-13 | AF71: =IF(consumption_mix_calcs!AE31<>"",consumption_mix_calcs!AE31,"") -> 9.005185692e-12 | AG71: =IF(consumption_mix_calcs!AF31<>"",consumption_mix_calcs!AF31,"") -> 0 | AH71: =IF(consumption_mix_calcs!AG31<>"",consumption_mix_calcs!AG31,"") -> 0 | AI71: =IF(consumption_mix_calcs!AH31<>"",consumption_mix_calcs!AH31,"") -> 3.118472408e-10 | AJ71: =IF(consumption_mix_calcs!AI31<>"",consumption_mix_calcs!AI31,"") -> 0 | AK71: =IF(consumption_mix_calcs!AJ31<>"",consumption_mix_calcs!AJ31,"") -> 0 | AL71: =IF(consumption_mix_calcs!AK31<>"",consumption_mix_calcs!AK31,"") -> 0 | AM71: =IF(consumption_mix_calcs!AL31<>"",consumption_mix_calcs!AL31,"") -> 0 | AN71: =IF(consumption_mix_calcs!AM31<>"",consumption_mix_calcs!AM31,"") -> 6.251243444e-12 | AO71: =IF(consumption_mix_calcs!AN31<>"",consumption_mix_calcs!AN31,"") -> 0 | AP71: =IF(consumption_mix_calcs!AO31<>"",consumption_mix_calcs!AO31,"") -> 2.955768014e-12 | AQ71: =IF(consumption_mix_calcs!AP31<>"",consumption_mix_calcs!AP31,"") -> 0 | AR71: =IF(consumption_mix_calcs!AQ31<>"",consumption_mix_calcs!AQ31,"") -> 0 | AS71: =IF(consumption_mix_calcs!AR31<>"",consumption_mix_calcs!AR31,"") -> 1.42403793e-13 | AT71: =IF(consumption_mix_calcs!AS31<>"",consumption_mix_calcs!AS31,"") -> 0 | AU71: =IF(consumption_mix_calcs!AT31<>"",consumption_mix_calcs!AT31,"") -> 0 | AV71: =IF(consumption_mix_calcs!AU31<>"",consumption_mix_calcs!AU31,"") -> 0 | AW71: =IF(consumption_mix_calcs!AV31<>"",consumption_mix_calcs!AV31,"") -> 0 | AX71: =IF(consumption_mix_calcs!AW31<>"",consumption_mix_calcs!AW31,"") -> 0 | AY71: =IF(consumption_mix_calcs!AX31<>"",consumption_mix_calcs!AX31,"") -> 1.03111242e-11 | AZ71: =IF(consumption_mix_calcs!AY31<>"",consumption_mix_calcs!AY31,"") -> 0 | BA71: =IF(consumption_mix_calcs!AZ31<>"",consumption_mix_calcs!AZ31,"") -> 0 | BB71: =IF(consumption_mix_calcs!BA31<>"",consumption_mix_calcs!BA31,"") -> 0 | BC71: =IF(consumption_mix_calcs!BB31<>"",consumption_mix_calcs!BB31,"") -> 0 | BD71: =IF(consumption_mix_calcs!BC31<>"",consumption_mix_calcs!BC31,"") -> 0 | BE71: =IF(consumption_mix_calcs!BD31<>"",consumption_mix_calcs!BD31,"") -> 0 | BF71: =IF(consumption_mix_calcs!BE31<>"",consumption_mix_calcs!BE31,"") -> 0 | BG71: =IF(consumption_mix_calcs!BF31<>"",consumption_mix_calcs!BF31,"") -> 4.504595217e-11 | BH71: =IF(consumption_mix_calcs!BG31<>"",consumption_mix_calcs!BG31,"") -> 0 | BI71: =IF(consumption_mix_calcs!BH31<>"",consumption_mix_calcs!BH31,"") -> 0 | BJ71: =IF(consumption_mix_calcs!BI31<>"",consumption_mix_calcs!BI31,"") -> 0 | BK71: =IF(consumption_mix_calcs!BJ31<>"",consumption_mix_calcs!BJ31,"") -> 0 | BL71: =IF(consumption_mix_calcs!BK31<>"",consumption_mix_calcs!BK31,"") -> 0 | BM71: =IF(consumption_mix_calcs!BL31<>"",consumption_mix_calcs!BL31,"") -> 0 | BN71: =IF(consumption_mix_calcs!BM31<>"",consumption_mix_calcs!BM31,"") -> 0 | BO71: =IF(consumption_mix_calcs!BN31<>"",consumption_mix_calcs!BN31,"") -> 0 | BP71: =IF(consumption_mix_calcs!BO31<>"",consumption_mix_calcs!BO31,"") -> 0 | BQ71: =IF(consumption_mix_calcs!BP31<>"",consumption_mix_calcs!BP31,"") -> 0 | BR71: =IF(consumption_mix_calcs!BQ31<>"",consumption_mix_calcs!BQ31,"") -> 0 | BS71: =IF(consumption_mix_calcs!BR31<>"",consumption_mix_calcs!BR31,"") -> 0 | BT71: =IF(consumption_mix_calcs!BS31<>"",consumption_mix_calcs!BS31,"") -> 3.426706727e-11 | BU71: =IF(consumption_mix_calcs!BT31<>"",consumption_mix_calcs!BT31,"") -> 3.748813223e-11 | BV71: =IF(consumption_mix_calcs!BU31<>"",consumption_mix_calcs!BU31,"") -> 1.693983561e-11 | BW71: =IF(consumption_mix_calcs!BV31<>"",consumption_mix_calcs!BV31,"") -> 0
A72: air | B72: 1,1,1,2-Tetrachloroethane | C72: 3.701039745e-10 | D72: =IF(consumption_mix_calcs!C32<>"",consumption_mix_calcs!C32,"") -> 0 | E72: =IF(consumption_mix_calcs!D32<>"",consumption_mix_calcs!D32,"") -> 2.948761502e-11 | F72: =IF(consumption_mix_calcs!E32<>"",consumption_mix_calcs!E32,"") -> 0 | G72: =IF(consumption_mix_calcs!F32<>"",consumption_mix_calcs!F32,"") -> 0 | H72: =IF(consumption_mix_calcs!G32<>"",consumption_mix_calcs!G32,"") -> 8.215788179e-14 | I72: =IF(consumption_mix_calcs!H32<>"",consumption_mix_calcs!H32,"") -> 3.69526161e-14 | J72: =IF(consumption_mix_calcs!I32<>"",consumption_mix_calcs!I32,"") -> 1.626249303e-11 | K72: =IF(consumption_mix_calcs!J32<>"",consumption_mix_calcs!J32,"") -> 6.08668323e-12 | L72: =IF(consumption_mix_calcs!K32<>"",consumption_mix_calcs!K32,"") -> 1.605404889e-10 | M72: =IF(consumption_mix_calcs!L32<>"",consumption_mix_calcs!L32,"") -> 0 | N72: =IF(consumption_mix_calcs!M32<>"",consumption_mix_calcs!M32,"") -> 0 | O72: =IF(consumption_mix_calcs!N32<>"",consumption_mix_calcs!N32,"") -> 0 | P72: =IF(consumption_mix_calcs!O32<>"",consumption_mix_calcs!O32,"") -> 0 | Q72: =IF(consumption_mix_calcs!P32<>"",consumption_mix_calcs!P32,"") -> 0 | R72: =IF(consumption_mix_calcs!Q32<>"",consumption_mix_calcs!Q32,"") -> 0 | S72: =IF(consumption_mix_calcs!R32<>"",consumption_mix_calcs!R32,"") -> 0 | T72: =IF(consumption_mix_calcs!S32<>"",consumption_mix_calcs!S32,"") -> 0 | U72: =IF(consumption_mix_calcs!T32<>"",consumption_mix_calcs!T32,"") -> 0 | V72: =IF(consumption_mix_calcs!U32<>"",consumption_mix_calcs!U32,"") -> 0 | W72: =IF(consumption_mix_calcs!V32<>"",consumption_mix_calcs!V32,"") -> 0 | X72: =IF(consumption_mix_calcs!W32<>"",consumption_mix_calcs!W32,"") -> 1.724997102e-12 | Y72: =IF(consumption_mix_calcs!X32<>"",consumption_mix_calcs!X32,"") -> 0 | Z72: =IF(consumption_mix_calcs!Y32<>"",consumption_mix_calcs!Y32,"") -> 0 | AA72: =IF(consumption_mix_calcs!Z32<>"",consumption_mix_calcs!Z32,"") -> 7.524170643e-13 | AB72: =IF(consumption_mix_calcs!AA32<>"",consumption_mix_calcs!AA32,"") -> 0 | AC72: =IF(consumption_mix_calcs!AB32<>"",consumption_mix_calcs!AB32,"") -> 0 | AD72: =IF(consumption_mix_calcs!AC32<>"",consumption_mix_calcs!AC32,"") -> 0 | AE72: =IF(consumption_mix_calcs!AD32<>"",consumption_mix_calcs!AD32,"") -> 1.006088225e-13 | AF72: =IF(consumption_mix_calcs!AE32<>"",consumption_mix_calcs!AE32,"") -> 2.191424152e-12 | AG72: =IF(consumption_mix_calcs!AF32<>"",consumption_mix_calcs!AF32,"") -> 0 | AH72: =IF(consumption_mix_calcs!AG32<>"",consumption_mix_calcs!AG32,"") -> 0 | AI72: =IF(consumption_mix_calcs!AH32<>"",consumption_mix_calcs!AH32,"") -> 1.06009731e-10 | AJ72: =IF(consumption_mix_calcs!AI32<>"",consumption_mix_calcs!AI32,"") -> 0 | AK72: =IF(consumption_mix_calcs!AJ32<>"",consumption_mix_calcs!AJ32,"") -> 0 | AL72: =IF(consumption_mix_calcs!AK32<>"",consumption_mix_calcs!AK32,"") -> 4.721110617e-16 | AM72: =IF(consumption_mix_calcs!AL32<>"",consumption_mix_calcs!AL32,"") -> 0 | AN72: =IF(consumption_mix_calcs!AM32<>"",consumption_mix_calcs!AM32,"") -> 1.819854459e-12 | AO72: =IF(consumption_mix_calcs!AN32<>"",consumption_mix_calcs!AN32,"") -> 0 | AP72: =IF(consumption_mix_calcs!AO32<>"",consumption_mix_calcs!AO32,"") -> 6.762081944e-13 | AQ72: =IF(consumption_mix_calcs!AP32<>"",consumption_mix_calcs!AP32,"") -> 0 | AR72: =IF(consumption_mix_calcs!AQ32<>"",consumption_mix_calcs!AQ32,"") -> 0 | AS72: =IF(consumption_mix_calcs!AR32<>"",consumption_mix_calcs!AR32,"") -> 5.851416183e-14 | AT72: =IF(consumption_mix_calcs!AS32<>"",consumption_mix_calcs!AS32,"") -> 0 | AU72: =IF(consumption_mix_calcs!AT32<>"",consumption_mix_calcs!AT32,"") -> 0 | AV72: =IF(consumption_mix_calcs!AU32<>"",consumption_mix_calcs!AU32,"") -> 0 | AW72: =IF(consumption_mix_calcs!AV32<>"",consumption_mix_calcs!AV32,"") -> 0 | AX72: =IF(consumption_mix_calcs!AW32<>"",consumption_mix_calcs!AW32,"") -> 0 | AY72: =IF(consumption_mix_calcs!AX32<>"",consumption_mix_calcs!AX32,"") -> 2.556507777e-12 | AZ72: =IF(consumption_mix_calcs!AY32<>"",consumption_mix_calcs!AY32,"") -> 0 | BA72: =IF(consumption_mix_calcs!AZ32<>"",consumption_mix_calcs!AZ32,"") -> 0 | BB72: =IF(consumption_mix_calcs!BA32<>"",consumption_mix_calcs!BA32,"") -> 0 | BC72: =IF(consumption_mix_calcs!BB32<>"",consumption_mix_calcs!BB32,"") -> 0 | BD72: =IF(consumption_mix_calcs!BC32<>"",consumption_mix_calcs!BC32,"") -> 0 | BE72: =IF(consumption_mix_calcs!BD32<>"",consumption_mix_calcs!BD32,"") -> 0 | BF72: =IF(consumption_mix_calcs!BE32<>"",consumption_mix_calcs!BE32,"") -> 0 | BG72: =IF(consumption_mix_calcs!BF32<>"",consumption_mix_calcs!BF32,"") -> 1.570759832e-11 | BH72: =IF(consumption_mix_calcs!BG32<>"",consumption_mix_calcs!BG32,"") -> 0 | BI72: =IF(consumption_mix_calcs!BH32<>"",consumption_mix_calcs!BH32,"") -> 0 | BJ72: =IF(consumption_mix_calcs!BI32<>"",consumption_mix_calcs!BI32,"") -> 0 | BK72: =IF(consumption_mix_calcs!BJ32<>"",consumption_mix_calcs!BJ32,"") -> 0 | BL72: =IF(consumption_mix_calcs!BK32<>"",consumption_mix_calcs!BK32,"") -> 0 | BM72: =IF(consumption_mix_calcs!BL32<>"",consumption_mix_calcs!BL32,"") -> 0 | BN72: =IF(consumption_mix_calcs!BM32<>"",consumption_mix_calcs!BM32,"") -> 0 | BO72: =IF(consumption_mix_calcs!BN32<>"",consumption_mix_calcs!BN32,"") -> 0 | BP72: =IF(consumption_mix_calcs!BO32<>"",consumption_mix_calcs!BO32,"") -> 0 | BQ72: =IF(consumption_mix_calcs!BP32<>"",consumption_mix_calcs!BP32,"") -> 0 | BR72: =IF(consumption_mix_calcs!BQ32<>"",consumption_mix_calcs!BQ32,"") -> 0 | BS72: =IF(consumption_mix_calcs!BR32<>"",consumption_mix_calcs!BR32,"") -> 0 | BT72: =IF(consumption_mix_calcs!BS32<>"",consumption_mix_calcs!BS32,"") -> 7.839475755e-12 | BU72: =IF(consumption_mix_calcs!BT32<>"",consumption_mix_calcs!BT32,"") -> 1.135349812e-11 | BV72: =IF(consumption_mix_calcs!BU32<>"",consumption_mix_calcs!BU32,"") -> 6.816276771e-12 | BW72: =IF(consumption_mix_calcs!BV32<>"",consumption_mix_calcs!BV32,"") -> 0
A73: air | B73: 1,1,1-Trichloroethane | C73: 2.164544289e-06 | D73: =IF(consumption_mix_calcs!C33<>"",consumption_mix_calcs!C33,"") -> 0 | E73: =IF(consumption_mix_calcs!D33<>"",consumption_mix_calcs!D33,"") -> 7.620185512e-08 | F73: =IF(consumption_mix_calcs!E33<>"",consumption_mix_calcs!E33,"") -> 0 | G73: =IF(consumption_mix_calcs!F33<>"",consumption_mix_calcs!F33,"") -> 0 | H73: =IF(consumption_mix_calcs!G33<>"",consumption_mix_calcs!G33,"") -> 1.156525135e-08 | I73: =IF(consumption_mix_calcs!H33<>"",consumption_mix_calcs!H33,"") -> 6.017882725e-08 | J73: =IF(consumption_mix_calcs!I33<>"",consumption_mix_calcs!I33,"") -> 7.188558715e-08 | K73: =IF(consumption_mix_calcs!J33<>"",consumption_mix_calcs!J33,"") -> 3.487705062e-08 | L73: =IF(consumption_mix_calcs!K33<>"",consumption_mix_calcs!K33,"") -> 1.240778802e-06 | M73: =IF(consumption_mix_calcs!L33<>"",consumption_mix_calcs!L33,"") -> 0 | N73: =IF(consumption_mix_calcs!M33<>"",consumption_mix_calcs!M33,"") -> 0 | O73: =IF(consumption_mix_calcs!N33<>"",consumption_mix_calcs!N33,"") -> 0 | P73: =IF(consumption_mix_calcs!O33<>"",consumption_mix_calcs!O33,"") -> 0 | Q73: =IF(consumption_mix_calcs!P33<>"",consumption_mix_calcs!P33,"") -> 0 | R73: =IF(consumption_mix_calcs!Q33<>"",consumption_mix_calcs!Q33,"") -> 0 | S73: =IF(consumption_mix_calcs!R33<>"",consumption_mix_calcs!R33,"") -> 0 | T73: =IF(consumption_mix_calcs!S33<>"",consumption_mix_calcs!S33,"") -> 0 | U73: =IF(consumption_mix_calcs!T33<>"",consumption_mix_calcs!T33,"") -> 0 | V73: =IF(consumption_mix_calcs!U33<>"",consumption_mix_calcs!U33,"") -> 0 | W73: =IF(consumption_mix_calcs!V33<>"",consumption_mix_calcs!V33,"") -> 0 | X73: =IF(consumption_mix_calcs!W33<>"",consumption_mix_calcs!W33,"") -> 7.388064633e-09 | Y73: =IF(consumption_mix_calcs!X33<>"",consumption_mix_calcs!X33,"") -> 0 | Z73: =IF(consumption_mix_calcs!Y33<>"",consumption_mix_calcs!Y33,"") -> 0 | AA73: =IF(consumption_mix_calcs!Z33<>"",consumption_mix_calcs!Z33,"") -> 3.222559559e-09 | AB73: =IF(consumption_mix_calcs!AA33<>"",consumption_mix_calcs!AA33,"") -> 0 | AC73: =IF(consumption_mix_calcs!AB33<>"",consumption_mix_calcs!AB33,"") -> 0 | AD73: =IF(consumption_mix_calcs!AC33<>"",consumption_mix_calcs!AC33,"") -> 0 | AE73: =IF(consumption_mix_calcs!AD33<>"",consumption_mix_calcs!AD33,"") -> 4.347354885e-10 | AF73: =IF(consumption_mix_calcs!AE33<>"",consumption_mix_calcs!AE33,"") -> 1.11898673e-08 | AG73: =IF(consumption_mix_calcs!AF33<>"",consumption_mix_calcs!AF33,"") -> 0 | AH73: =IF(consumption_mix_calcs!AG33<>"",consumption_mix_calcs!AG33,"") -> 0 | AI73: =IF(consumption_mix_calcs!AH33<>"",consumption_mix_calcs!AH33,"") -> 3.064015158e-07 | AJ73: =IF(consumption_mix_calcs!AI33<>"",consumption_mix_calcs!AI33,"") -> 0 | AK73: =IF(consumption_mix_calcs!AJ33<>"",consumption_mix_calcs!AJ33,"") -> 0 | AL73: =IF(consumption_mix_calcs!AK33<>"",consumption_mix_calcs!AK33,"") -> 1.704425062e-13 | AM73: =IF(consumption_mix_calcs!AL33<>"",consumption_mix_calcs!AL33,"") -> 0 | AN73: =IF(consumption_mix_calcs!AM33<>"",consumption_mix_calcs!AM33,"") -> 6.221546459e-09 | AO73: =IF(consumption_mix_calcs!AN33<>"",consumption_mix_calcs!AN33,"") -> 0 | AP73: =IF(consumption_mix_calcs!AO33<>"",consumption_mix_calcs!AO33,"") -> 2.896161297e-09 | AQ73: =IF(consumption_mix_calcs!AP33<>"",consumption_mix_calcs!AP33,"") -> 0 | AR73: =IF(consumption_mix_calcs!AQ33<>"",consumption_mix_calcs!AQ33,"") -> 0 | AS73: =IF(consumption_mix_calcs!AR33<>"",consumption_mix_calcs!AR33,"") -> 1.228465044e-10 | AT73: =IF(consumption_mix_calcs!AS33<>"",consumption_mix_calcs!AS33,"") -> 0 | AU73: =IF(consumption_mix_calcs!AT33<>"",consumption_mix_calcs!AT33,"") -> 0 | AV73: =IF(consumption_mix_calcs!AU33<>"",consumption_mix_calcs!AU33,"") -> 0 | AW73: =IF(consumption_mix_calcs!AV33<>"",consumption_mix_calcs!AV33,"") -> 0 | AX73: =IF(consumption_mix_calcs!AW33<>"",consumption_mix_calcs!AW33,"") -> 0 | AY73: =IF(consumption_mix_calcs!AX33<>"",consumption_mix_calcs!AX33,"") -> 2.030713116e-07 | AZ73: =IF(consumption_mix_calcs!AY33<>"",consumption_mix_calcs!AY33,"") -> 0 | BA73: =IF(consumption_mix_calcs!AZ33<>"",consumption_mix_calcs!AZ33,"") -> 0 | BB73: =IF(consumption_mix_calcs!BA33<>"",consumption_mix_calcs!BA33,"") -> 0 | BC73: =IF(consumption_mix_calcs!BB33<>"",consumption_mix_calcs!BB33,"") -> 0 | BD73: =IF(consumption_mix_calcs!BC33<>"",consumption_mix_calcs!BC33,"") -> 0 | BE73: =IF(consumption_mix_calcs!BD33<>"",consumption_mix_calcs!BD33,"") -> 0 | BF73: =IF(consumption_mix_calcs!BE33<>"",consumption_mix_calcs!BE33,"") -> 0 | BG73: =IF(consumption_mix_calcs!BF33<>"",consumption_mix_calcs!BF33,"") -> 4.136901699e-08 | BH73: =IF(consumption_mix_calcs!BG33<>"",consumption_mix_calcs!BG33,"") -> 0 | BI73: =IF(consumption_mix_calcs!BH33<>"",consumption_mix_calcs!BH33,"") -> 0 | BJ73: =IF(consumption_mix_calcs!BI33<>"",consumption_mix_calcs!BI33,"") -> 0 | BK73: =IF(consumption_mix_calcs!BJ33<>"",consumption_mix_calcs!BJ33,"") -> 0 | BL73: =IF(consumption_mix_calcs!BK33<>"",consumption_mix_calcs!BK33,"") -> 0 | BM73: =IF(consumption_mix_calcs!BL33<>"",consumption_mix_calcs!BL33,"") -> 0 | BN73: =IF(consumption_mix_calcs!BM33<>"",consumption_mix_calcs!BM33,"") -> 0 | BO73: =IF(consumption_mix_calcs!BN33<>"",consumption_mix_calcs!BN33,"") -> 0 | BP73: =IF(consumption_mix_calcs!BO33<>"",consumption_mix_calcs!BO33,"") -> 0 | BQ73: =IF(consumption_mix_calcs!BP33<>"",consumption_mix_calcs!BP33,"") -> 0 | BR73: =IF(consumption_mix_calcs!BQ33<>"",consumption_mix_calcs!BQ33,"") -> 0 | BS73: =IF(consumption_mix_calcs!BR33<>"",consumption_mix_calcs!BR33,"") -> 0 | BT73: =IF(consumption_mix_calcs!BS33<>"",consumption_mix_calcs!BS33,"") -> 3.357602948e-08 | BU73: =IF(consumption_mix_calcs!BT33<>"",consumption_mix_calcs!BT33,"") -> 3.518223668e-08 | BV73: =IF(consumption_mix_calcs!BU33<>"",consumption_mix_calcs!BU33,"") -> 1.798085257e-08 | BW73: =IF(consumption_mix_calcs!BV33<>"",consumption_mix_calcs!BV33,"") -> 0
A74: air | B74: 1,1,2,2-Tetrachloroethane | C74: 1.758044431e-06 | D74: =IF(consumption_mix_calcs!C34<>"",consumption_mix_calcs!C34,"") -> 0 | E74: =IF(consumption_mix_calcs!D34<>"",consumption_mix_calcs!D34,"") -> 8.758404189e-10 | F74: =IF(consumption_mix_calcs!E34<>"",consumption_mix_calcs!E34,"") -> 0 | G74: =IF(consumption_mix_calcs!F34<>"",consumption_mix_calcs!F34,"") -> 0 | H74: =IF(consumption_mix_calcs!G34<>"",consumption_mix_calcs!G34,"") -> 4.37455082e-09 | I74: =IF(consumption_mix_calcs!H34<>"",consumption_mix_calcs!H34,"") -> 8.571809812e-08 | J74: =IF(consumption_mix_calcs!I34<>"",consumption_mix_calcs!I34,"") -> 8.293896788e-10 | K74: =IF(consumption_mix_calcs!J34<>"",consumption_mix_calcs!J34,"") -> 1.907066565e-10 | L74: =IF(consumption_mix_calcs!K34<>"",consumption_mix_calcs!K34,"") -> 1.095695111e-06 | M74: =IF(consumption_mix_calcs!L34<>"",consumption_mix_calcs!L34,"") -> 0 | N74: =IF(consumption_mix_calcs!M34<>"",consumption_mix_calcs!M34,"") -> 0 | O74: =IF(consumption_mix_calcs!N34<>"",consumption_mix_calcs!N34,"") -> 0 | P74: =IF(consumption_mix_calcs!O34<>"",consumption_mix_calcs!O34,"") -> 0 | Q74: =IF(consumption_mix_calcs!P34<>"",consumption_mix_calcs!P34,"") -> 0 | R74: =IF(consumption_mix_calcs!Q34<>"",consumption_mix_calcs!Q34,"") -> 0 | S74: =IF(consumption_mix_calcs!R34<>"",consumption_mix_calcs!R34,"") -> 0 | T74: =IF(consumption_mix_calcs!S34<>"",consumption_mix_calcs!S34,"") -> 0 | U74: =IF(consumption_mix_calcs!T34<>"",consumption_mix_calcs!T34,"") -> 0 | V74: =IF(consumption_mix_calcs!U34<>"",consumption_mix_calcs!U34,"") -> 0 | W74: =IF(consumption_mix_calcs!V34<>"",consumption_mix_calcs!V34,"") -> 0 | X74: =IF(consumption_mix_calcs!W34<>"",consumption_mix_calcs!W34,"") -> 8.909133899e-11 | Y74: =IF(consumption_mix_calcs!X34<>"",consumption_mix_calcs!X34,"") -> 0 | Z74: =IF(consumption_mix_calcs!Y34<>"",consumption_mix_calcs!Y34,"") -> 0 | AA74: =IF(consumption_mix_calcs!Z34<>"",consumption_mix_calcs!Z34,"") -> 3.889367426e-11 | AB74: =IF(consumption_mix_calcs!AA34<>"",consumption_mix_calcs!AA34,"") -> 0 | AC74: =IF(consumption_mix_calcs!AB34<>"",consumption_mix_calcs!AB34,"") -> 0 | AD74: =IF(consumption_mix_calcs!AC34<>"",consumption_mix_calcs!AC34,"") -> 0 | AE74: =IF(consumption_mix_calcs!AD34<>"",consumption_mix_calcs!AD34,"") -> 4.118054702e-12 | AF74: =IF(consumption_mix_calcs!AE34<>"",consumption_mix_calcs!AE34,"") -> 4.287426171e-09 | AG74: =IF(consumption_mix_calcs!AF34<>"",consumption_mix_calcs!AF34,"") -> 0 | AH74: =IF(consumption_mix_calcs!AG34<>"",consumption_mix_calcs!AG34,"") -> 0 | AI74: =IF(consumption_mix_calcs!AH34<>"",consumption_mix_calcs!AH34,"") -> 3.589983805e-09 | AJ74: =IF(consumption_mix_calcs!AI34<>"",consumption_mix_calcs!AI34,"") -> 0 | AK74: =IF(consumption_mix_calcs!AJ34<>"",consumption_mix_calcs!AJ34,"") -> 0 | AL74: =IF(consumption_mix_calcs!AK34<>"",consumption_mix_calcs!AK34,"") -> 1.890161868e-15 | AM74: =IF(consumption_mix_calcs!AL34<>"",consumption_mix_calcs!AL34,"") -> 0 | AN74: =IF(consumption_mix_calcs!AM34<>"",consumption_mix_calcs!AM34,"") -> 7.282021192e-11 | AO74: =IF(consumption_mix_calcs!AN34<>"",consumption_mix_calcs!AN34,"") -> 0 | AP74: =IF(consumption_mix_calcs!AO34<>"",consumption_mix_calcs!AO34,"") -> 3.492848831e-11 | AQ74: =IF(consumption_mix_calcs!AP34<>"",consumption_mix_calcs!AP34,"") -> 0 | AR74: =IF(consumption_mix_calcs!AQ34<>"",consumption_mix_calcs!AQ34,"") -> 0 | AS74: =IF(consumption_mix_calcs!AR34<>"",consumption_mix_calcs!AR34,"") -> 1.60065166e-12 | AT74: =IF(consumption_mix_calcs!AS34<>"",consumption_mix_calcs!AS34,"") -> 0 | AU74: =IF(consumption_mix_calcs!AT34<>"",consumption_mix_calcs!AT34,"") -> 0 | AV74: =IF(consumption_mix_calcs!AU34<>"",consumption_mix_calcs!AU34,"") -> 0 | AW74: =IF(consumption_mix_calcs!AV34<>"",consumption_mix_calcs!AV34,"") -> 0 | AX74: =IF(consumption_mix_calcs!AW34<>"",consumption_mix_calcs!AW34,"") -> 0 | AY74: =IF(consumption_mix_calcs!AX34<>"",consumption_mix_calcs!AX34,"") -> 5.606968177e-07 | AZ74: =IF(consumption_mix_calcs!AY34<>"",consumption_mix_calcs!AY34,"") -> 0 | BA74: =IF(consumption_mix_calcs!AZ34<>"",consumption_mix_calcs!AZ34,"") -> 0 | BB74: =IF(consumption_mix_calcs!BA34<>"",consumption_mix_calcs!BA34,"") -> 0 | BC74: =IF(consumption_mix_calcs!BB34<>"",consumption_mix_calcs!BB34,"") -> 0 | BD74: =IF(consumption_mix_calcs!BC34<>"",consumption_mix_calcs!BC34,"") -> 0 | BE74: =IF(consumption_mix_calcs!BD34<>"",consumption_mix_calcs!BD34,"") -> 0 | BF74: =IF(consumption_mix_calcs!BE34<>"",consumption_mix_calcs!BE34,"") -> 0 | BG74: =IF(consumption_mix_calcs!BF34<>"",consumption_mix_calcs!BF34,"") -> 5.155610551e-10 | BH74: =IF(consumption_mix_calcs!BG34<>"",consumption_mix_calcs!BG34,"") -> 0 | BI74: =IF(consumption_mix_calcs!BH34<>"",consumption_mix_calcs!BH34,"") -> 0 | BJ74: =IF(consumption_mix_calcs!BI34<>"",consumption_mix_calcs!BI34,"") -> 0 | BK74: =IF(consumption_mix_calcs!BJ34<>"",consumption_mix_calcs!BJ34,"") -> 0 | BL74: =IF(consumption_mix_calcs!BK34<>"",consumption_mix_calcs!BK34,"") -> 0 | BM74: =IF(consumption_mix_calcs!BL34<>"",consumption_mix_calcs!BL34,"") -> 0 | BN74: =IF(consumption_mix_calcs!BM34<>"",consumption_mix_calcs!BM34,"") -> 0 | BO74: =IF(consumption_mix_calcs!BN34<>"",consumption_mix_calcs!BN34,"") -> 0 | BP74: =IF(consumption_mix_calcs!BO34<>"",consumption_mix_calcs!BO34,"") -> 0 | BQ74: =IF(consumption_mix_calcs!BP34<>"",consumption_mix_calcs!BP34,"") -> 0 | BR74: =IF(consumption_mix_calcs!BQ34<>"",consumption_mix_calcs!BQ34,"") -> 0 | BS74: =IF(consumption_mix_calcs!BR34<>"",consumption_mix_calcs!BR34,"") -> 0 | BT74: =IF(consumption_mix_calcs!BS34<>"",consumption_mix_calcs!BS34,"") -> 4.050669615e-10 | BU74: =IF(consumption_mix_calcs!BT34<>"",consumption_mix_calcs!BT34,"") -> 4.336366312e-10 | BV74: =IF(consumption_mix_calcs!BU34<>"",consumption_mix_calcs!BU34,"") -> 1.907881514e-10 | BW74: =IF(consumption_mix_calcs!BV34<>"",consumption_mix_calcs!BV34,"") -> 0
A75: air | B75: 1,1,2-Trichloroethane | C75: 3.661447124e-07 | D75: =IF(consumption_mix_calcs!C35<>"",consumption_mix_calcs!C35,"") -> 0 | E75: =IF(consumption_mix_calcs!D35<>"",consumption_mix_calcs!D35,"") -> 9.74352464e-08 | F75: =IF(consumption_mix_calcs!E35<>"",consumption_mix_calcs!E35,"") -> 0 | G75: =IF(consumption_mix_calcs!F35<>"",consumption_mix_calcs!F35,"") -> 0 | H75: =IF(consumption_mix_calcs!G35<>"",consumption_mix_calcs!G35,"") -> 5.036641281e-12 | I75: =IF(consumption_mix_calcs!H35<>"",consumption_mix_calcs!H35,"") -> 1.16205499e-08 | J75: =IF(consumption_mix_calcs!I35<>"",consumption_mix_calcs!I35,"") -> 1.00197695e-09 | K75: =IF(consumption_mix_calcs!J35<>"",consumption_mix_calcs!J35,"") -> 2.464346128e-10 | L75: =IF(consumption_mix_calcs!K35<>"",consumption_mix_calcs!K35,"") -> 9.873479885e-09 | M75: =IF(consumption_mix_calcs!L35<>"",consumption_mix_calcs!L35,"") -> 0 | N75: =IF(consumption_mix_calcs!M35<>"",consumption_mix_calcs!M35,"") -> 0 | O75: =IF(consumption_mix_calcs!N35<>"",consumption_mix_calcs!N35,"") -> 0 | P75: =IF(consumption_mix_calcs!O35<>"",consumption_mix_calcs!O35,"") -> 0 | Q75: =IF(consumption_mix_calcs!P35<>"",consumption_mix_calcs!P35,"") -> 0 | R75: =IF(consumption_mix_calcs!Q35<>"",consumption_mix_calcs!Q35,"") -> 0 | S75: =IF(consumption_mix_calcs!R35<>"",consumption_mix_calcs!R35,"") -> 0 | T75: =IF(consumption_mix_calcs!S35<>"",consumption_mix_calcs!S35,"") -> 0 | U75: =IF(consumption_mix_calcs!T35<>"",consumption_mix_calcs!T35,"") -> 0 | V75: =IF(consumption_mix_calcs!U35<>"",consumption_mix_calcs!U35,"") -> 0 | W75: =IF(consumption_mix_calcs!V35<>"",consumption_mix_calcs!V35,"") -> 0 | X75: =IF(consumption_mix_calcs!W35<>"",consumption_mix_calcs!W35,"") -> 1.075107109e-10 | Y75: =IF(consumption_mix_calcs!X35<>"",consumption_mix_calcs!X35,"") -> 0 | Z75: =IF(consumption_mix_calcs!Y35<>"",consumption_mix_calcs!Y35,"") -> 0 | AA75: =IF(consumption_mix_calcs!Z35<>"",consumption_mix_calcs!Z35,"") -> 4.689450977e-11 | AB75: =IF(consumption_mix_calcs!AA35<>"",consumption_mix_calcs!AA35,"") -> 0 | AC75: =IF(consumption_mix_calcs!AB35<>"",consumption_mix_calcs!AB35,"") -> 0 | AD75: =IF(consumption_mix_calcs!AC35<>"",consumption_mix_calcs!AC35,"") -> 0 | AE75: =IF(consumption_mix_calcs!AD35<>"",consumption_mix_calcs!AD35,"") -> 5.138889883e-12 | AF75: =IF(consumption_mix_calcs!AE35<>"",consumption_mix_calcs!AE35,"") -> 1.29923134e-10 | AG75: =IF(consumption_mix_calcs!AF35<>"",consumption_mix_calcs!AF35,"") -> 0 | AH75: =IF(consumption_mix_calcs!AG35<>"",consumption_mix_calcs!AG35,"") -> 0 | AI75: =IF(consumption_mix_calcs!AH35<>"",consumption_mix_calcs!AH35,"") -> 2.284465061e-07 | AJ75: =IF(consumption_mix_calcs!AI35<>"",consumption_mix_calcs!AI35,"") -> 0 | AK75: =IF(consumption_mix_calcs!AJ35<>"",consumption_mix_calcs!AJ35,"") -> 0 | AL75: =IF(consumption_mix_calcs!AK35<>"",consumption_mix_calcs!AK35,"") -> 5.77730908e-15 | AM75: =IF(consumption_mix_calcs!AL35<>"",consumption_mix_calcs!AL35,"") -> 0 | AN75: =IF(consumption_mix_calcs!AM35<>"",consumption_mix_calcs!AM35,"") -> 9.058768257e-11 | AO75: =IF(consumption_mix_calcs!AN35<>"",consumption_mix_calcs!AN35,"") -> 0 | AP75: =IF(consumption_mix_calcs!AO35<>"",consumption_mix_calcs!AO35,"") -> 4.214478018e-11 | AQ75: =IF(consumption_mix_calcs!AP35<>"",consumption_mix_calcs!AP35,"") -> 0 | AR75: =IF(consumption_mix_calcs!AQ35<>"",consumption_mix_calcs!AQ35,"") -> 0 | AS75: =IF(consumption_mix_calcs!AR35<>"",consumption_mix_calcs!AR35,"") -> 2.117900482e-12 | AT75: =IF(consumption_mix_calcs!AS35<>"",consumption_mix_calcs!AS35,"") -> 0 | AU75: =IF(consumption_mix_calcs!AT35<>"",consumption_mix_calcs!AT35,"") -> 0 | AV75: =IF(consumption_mix_calcs!AU35<>"",consumption_mix_calcs!AU35,"") -> 0 | AW75: =IF(consumption_mix_calcs!AV35<>"",consumption_mix_calcs!AV35,"") -> 0 | AX75: =IF(consumption_mix_calcs!AW35<>"",consumption_mix_calcs!AW35,"") -> 0 | AY75: =IF(consumption_mix_calcs!AX35<>"",consumption_mix_calcs!AX35,"") -> 1.49415858e-10 | AZ75: =IF(consumption_mix_calcs!AY35<>"",consumption_mix_calcs!AY35,"") -> 0 | BA75: =IF(consumption_mix_calcs!AZ35<>"",consumption_mix_calcs!AZ35,"") -> 0 | BB75: =IF(consumption_mix_calcs!BA35<>"",consumption_mix_calcs!BA35,"") -> 0 | BC75: =IF(consumption_mix_calcs!BB35<>"",consumption_mix_calcs!BB35,"") -> 0 | BD75: =IF(consumption_mix_calcs!BC35<>"",consumption_mix_calcs!BC35,"") -> 0 | BE75: =IF(consumption_mix_calcs!BD35<>"",consumption_mix_calcs!BD35,"") -> 0 | BF75: =IF(consumption_mix_calcs!BE35<>"",consumption_mix_calcs!BE35,"") -> 0 | BG75: =IF(consumption_mix_calcs!BF35<>"",consumption_mix_calcs!BF35,"") -> 1.56578871e-08 | BH75: =IF(consumption_mix_calcs!BG35<>"",consumption_mix_calcs!BG35,"") -> 0 | BI75: =IF(consumption_mix_calcs!BH35<>"",consumption_mix_calcs!BH35,"") -> 0 | BJ75: =IF(consumption_mix_calcs!BI35<>"",consumption_mix_calcs!BI35,"") -> 0 | BK75: =IF(consumption_mix_calcs!BJ35<>"",consumption_mix_calcs!BJ35,"") -> 0 | BL75: =IF(consumption_mix_calcs!BK35<>"",consumption_mix_calcs!BK35,"") -> 0 | BM75: =IF(consumption_mix_calcs!BL35<>"",consumption_mix_calcs!BL35,"") -> 0 | BN75: =IF(consumption_mix_calcs!BM35<>"",consumption_mix_calcs!BM35,"") -> 0 | BO75: =IF(consumption_mix_calcs!BN35<>"",consumption_mix_calcs!BN35,"") -> 0 | BP75: =IF(consumption_mix_calcs!BO35<>"",consumption_mix_calcs!BO35,"") -> 0 | BQ75: =IF(consumption_mix_calcs!BP35<>"",consumption_mix_calcs!BP35,"") -> 0 | BR75: =IF(consumption_mix_calcs!BQ35<>"",consumption_mix_calcs!BQ35,"") -> 0 | BS75: =IF(consumption_mix_calcs!BR35<>"",consumption_mix_calcs!BR35,"") -> 0 | BT75: =IF(consumption_mix_calcs!BS35<>"",consumption_mix_calcs!BS35,"") -> 4.885965375e-10 | BU75: =IF(consumption_mix_calcs!BT35<>"",consumption_mix_calcs!BT35,"") -> 5.439064766e-10 | BV75: =IF(consumption_mix_calcs!BU35<>"",consumption_mix_calcs!BU35,"") -> 2.513525696e-10 | BW75: =IF(consumption_mix_calcs!BV35<>"",consumption_mix_calcs!BV35,"") -> 0
A76: air | B76: 1,1-Dichloroethane | C76: 2.284812382e-06 | D76: =IF(consumption_mix_calcs!C36<>"",consumption_mix_calcs!C36,"") -> 0 | E76: =IF(consumption_mix_calcs!D36<>"",consumption_mix_calcs!D36,"") -> 2.030075145e-14 | F76: =IF(consumption_mix_calcs!E36<>"",consumption_mix_calcs!E36,"") -> 0 | G76: =IF(consumption_mix_calcs!F36<>"",consumption_mix_calcs!F36,"") -> 0 | H76: =IF(consumption_mix_calcs!G36<>"",consumption_mix_calcs!G36,"") -> 5.455659771e-09 | I76: =IF(consumption_mix_calcs!H36<>"",consumption_mix_calcs!H36,"") -> 1.117795314e-07 | J76: =IF(consumption_mix_calcs!I36<>"",consumption_mix_calcs!I36,"") -> 6.535093055e-17 | K76: =IF(consumption_mix_calcs!J36<>"",consumption_mix_calcs!J36,"") -> 4.942339999e-10 | L76: =IF(consumption_mix_calcs!K36<>"",consumption_mix_calcs!K36,"") -> 1.467306563e-06 | M76: =IF(consumption_mix_calcs!L36<>"",consumption_mix_calcs!L36,"") -> 0 | N76: =IF(consumption_mix_calcs!M36<>"",consumption_mix_calcs!M36,"") -> 0 | O76: =IF(consumption_mix_calcs!N36<>"",consumption_mix_calcs!N36,"") -> 0 | P76: =IF(consumption_mix_calcs!O36<>"",consumption_mix_calcs!O36,"") -> 0 | Q76: =IF(consumption_mix_calcs!P36<>"",consumption_mix_calcs!P36,"") -> 0 | R76: =IF(consumption_mix_calcs!Q36<>"",consumption_mix_calcs!Q36,"") -> 0 | S76: =IF(consumption_mix_calcs!R36<>"",consumption_mix_calcs!R36,"") -> 0 | T76: =IF(consumption_mix_calcs!S36<>"",consumption_mix_calcs!S36,"") -> 0 | U76: =IF(consumption_mix_calcs!T36<>"",consumption_mix_calcs!T36,"") -> 0 | V76: =IF(consumption_mix_calcs!U36<>"",consumption_mix_calcs!U36,"") -> 0 | W76: =IF(consumption_mix_calcs!V36<>"",consumption_mix_calcs!V36,"") -> 0 | X76: =IF(consumption_mix_calcs!W36<>"",consumption_mix_calcs!W36,"") -> 0 | Y76: =IF(consumption_mix_calcs!X36<>"",consumption_mix_calcs!X36,"") -> 0 | Z76: =IF(consumption_mix_calcs!Y36<>"",consumption_mix_calcs!Y36,"") -> 0 | AA76: =IF(consumption_mix_calcs!Z36<>"",consumption_mix_calcs!Z36,"") -> 0 | AB76: =IF(consumption_mix_calcs!AA36<>"",consumption_mix_calcs!AA36,"") -> 0 | AC76: =IF(consumption_mix_calcs!AB36<>"",consumption_mix_calcs!AB36,"") -> 0 | AD76: =IF(consumption_mix_calcs!AC36<>"",consumption_mix_calcs!AC36,"") -> 0 | AE76: =IF(consumption_mix_calcs!AD36<>"",consumption_mix_calcs!AD36,"") -> 6.077254803e-18 | AF76: =IF(consumption_mix_calcs!AE36<>"",consumption_mix_calcs!AE36,"") -> 4.686005943e-15 | AG76: =IF(consumption_mix_calcs!AF36<>"",consumption_mix_calcs!AF36,"") -> 0 | AH76: =IF(consumption_mix_calcs!AG36<>"",consumption_mix_calcs!AG36,"") -> 0 | AI76: =IF(consumption_mix_calcs!AH36<>"",consumption_mix_calcs!AH36,"") -> 2.034008432e-13 | AJ76: =IF(consumption_mix_calcs!AI36<>"",consumption_mix_calcs!AI36,"") -> 0 | AK76: =IF(consumption_mix_calcs!AJ36<>"",consumption_mix_calcs!AJ36,"") -> 0 | AL76: =IF(consumption_mix_calcs!AK36<>"",consumption_mix_calcs!AK36,"") -> 0 | AM76: =IF(consumption_mix_calcs!AL36<>"",consumption_mix_calcs!AL36,"") -> 0 | AN76: =IF(consumption_mix_calcs!AM36<>"",consumption_mix_calcs!AM36,"") -> 3.690370046e-15 | AO76: =IF(consumption_mix_calcs!AN36<>"",consumption_mix_calcs!AN36,"") -> 0 | AP76: =IF(consumption_mix_calcs!AO36<>"",consumption_mix_calcs!AO36,"") -> 0 | AQ76: =IF(consumption_mix_calcs!AP36<>"",consumption_mix_calcs!AP36,"") -> 0 | AR76: =IF(consumption_mix_calcs!AQ36<>"",consumption_mix_calcs!AQ36,"") -> 0 | AS76: =IF(consumption_mix_calcs!AR36<>"",consumption_mix_calcs!AR36,"") -> 1.050828695e-16 | AT76: =IF(consumption_mix_calcs!AS36<>"",consumption_mix_calcs!AS36,"") -> 0 | AU76: =IF(consumption_mix_calcs!AT36<>"",consumption_mix_calcs!AT36,"") -> 0 | AV76: =IF(consumption_mix_calcs!AU36<>"",consumption_mix_calcs!AU36,"") -> 0 | AW76: =IF(consumption_mix_calcs!AV36<>"",consumption_mix_calcs!AV36,"") -> 0 | AX76: =IF(consumption_mix_calcs!AW36<>"",consumption_mix_calcs!AW36,"") -> 0 | AY76: =IF(consumption_mix_calcs!AX36<>"",consumption_mix_calcs!AX36,"") -> 6.997760968e-07 | AZ76: =IF(consumption_mix_calcs!AY36<>"",consumption_mix_calcs!AY36,"") -> 0 | BA76: =IF(consumption_mix_calcs!AZ36<>"",consumption_mix_calcs!AZ36,"") -> 0 | BB76: =IF(consumption_mix_calcs!BA36<>"",consumption_mix_calcs!BA36,"") -> 0 | BC76: =IF(consumption_mix_calcs!BB36<>"",consumption_mix_calcs!BB36,"") -> 0 | BD76: =IF(consumption_mix_calcs!BC36<>"",consumption_mix_calcs!BC36,"") -> 0 | BE76: =IF(consumption_mix_calcs!BD36<>"",consumption_mix_calcs!BD36,"") -> 0 | BF76: =IF(consumption_mix_calcs!BE36<>"",consumption_mix_calcs!BE36,"") -> 0 | BG76: =IF(consumption_mix_calcs!BF36<>"",consumption_mix_calcs!BF36,"") -> 5.34597287e-14 | BH76: =IF(consumption_mix_calcs!BG36<>"",consumption_mix_calcs!BG36,"") -> 0 | BI76: =IF(consumption_mix_calcs!BH36<>"",consumption_mix_calcs!BH36,"") -> 0 | BJ76: =IF(consumption_mix_calcs!BI36<>"",consumption_mix_calcs!BI36,"") -> 0 | BK76: =IF(consumption_mix_calcs!BJ36<>"",consumption_mix_calcs!BJ36,"") -> 0 | BL76: =IF(consumption_mix_calcs!BK36<>"",consumption_mix_calcs!BK36,"") -> 0 | BM76: =IF(consumption_mix_calcs!BL36<>"",consumption_mix_calcs!BL36,"") -> 0 | BN76: =IF(consumption_mix_calcs!BM36<>"",consumption_mix_calcs!BM36,"") -> 0 | BO76: =IF(consumption_mix_calcs!BN36<>"",consumption_mix_calcs!BN36,"") -> 0 | BP76: =IF(consumption_mix_calcs!BO36<>"",consumption_mix_calcs!BO36,"") -> 0 | BQ76: =IF(consumption_mix_calcs!BP36<>"",consumption_mix_calcs!BP36,"") -> 0 | BR76: =IF(consumption_mix_calcs!BQ36<>"",consumption_mix_calcs!BQ36,"") -> 0 | BS76: =IF(consumption_mix_calcs!BR36<>"",consumption_mix_calcs!BR36,"") -> 0 | BT76: =IF(consumption_mix_calcs!BS36<>"",consumption_mix_calcs!BS36,"") -> 0 | BU76: =IF(consumption_mix_calcs!BT36<>"",consumption_mix_calcs!BT36,"") -> 3.14172842e-16 | BV76: =IF(consumption_mix_calcs!BU36<>"",consumption_mix_calcs!BU36,"") -> 1.058017456e-14 | BW76: =IF(consumption_mix_calcs!BV36<>"",consumption_mix_calcs!BV36,"") -> 0
A77: air | B77: 1,1-Dichloroethylene | C77: 3.951435397e-07 | D77: =IF(consumption_mix_calcs!C37<>"",consumption_mix_calcs!C37,"") -> 0 | E77: =IF(consumption_mix_calcs!D37<>"",consumption_mix_calcs!D37,"") -> 1.996864188e-07 | F77: =IF(consumption_mix_calcs!E37<>"",consumption_mix_calcs!E37,"") -> 0 | G77: =IF(consumption_mix_calcs!F37<>"",consumption_mix_calcs!F37,"") -> 0 | H77: =IF(consumption_mix_calcs!G37<>"",consumption_mix_calcs!G37,"") -> 4.580473232e-10 | I77: =IF(consumption_mix_calcs!H37<>"",consumption_mix_calcs!H37,"") -> 8.260244909e-09 | J77: =IF(consumption_mix_calcs!I37<>"",consumption_mix_calcs!I37,"") -> 6.471945813e-10 | K77: =IF(consumption_mix_calcs!J37<>"",consumption_mix_calcs!J37,"") -> 2.001260598e-10 | L77: =IF(consumption_mix_calcs!K37<>"",consumption_mix_calcs!K37,"") -> 1.221367268e-07 | M77: =IF(consumption_mix_calcs!L37<>"",consumption_mix_calcs!L37,"") -> 0 | N77: =IF(consumption_mix_calcs!M37<>"",consumption_mix_calcs!M37,"") -> 0 | O77: =IF(consumption_mix_calcs!N37<>"",consumption_mix_calcs!N37,"") -> 0 | P77: =IF(consumption_mix_calcs!O37<>"",consumption_mix_calcs!O37,"") -> 0 | Q77: =IF(consumption_mix_calcs!P37<>"",consumption_mix_calcs!P37,"") -> 0 | R77: =IF(consumption_mix_calcs!Q37<>"",consumption_mix_calcs!Q37,"") -> 0 | S77: =IF(consumption_mix_calcs!R37<>"",consumption_mix_calcs!R37,"") -> 0 | T77: =IF(consumption_mix_calcs!S37<>"",consumption_mix_calcs!S37,"") -> 0 | U77: =IF(consumption_mix_calcs!T37<>"",consumption_mix_calcs!T37,"") -> 0 | V77: =IF(consumption_mix_calcs!U37<>"",consumption_mix_calcs!U37,"") -> 0 | W77: =IF(consumption_mix_calcs!V37<>"",consumption_mix_calcs!V37,"") -> 0 | X77: =IF(consumption_mix_calcs!W37<>"",consumption_mix_calcs!W37,"") -> 6.907344364e-11 | Y77: =IF(consumption_mix_calcs!X37<>"",consumption_mix_calcs!X37,"") -> 0 | Z77: =IF(consumption_mix_calcs!Y37<>"",consumption_mix_calcs!Y37,"") -> 0 | AA77: =IF(consumption_mix_calcs!Z37<>"",consumption_mix_calcs!Z37,"") -> 3.012876811e-11 | AB77: =IF(consumption_mix_calcs!AA37<>"",consumption_mix_calcs!AA37,"") -> 0 | AC77: =IF(consumption_mix_calcs!AB37<>"",consumption_mix_calcs!AB37,"") -> 0 | AD77: =IF(consumption_mix_calcs!AC37<>"",consumption_mix_calcs!AC37,"") -> 0 | AE77: =IF(consumption_mix_calcs!AD37<>"",consumption_mix_calcs!AD37,"") -> 3.630203267e-12 | AF77: =IF(consumption_mix_calcs!AE37<>"",consumption_mix_calcs!AE37,"") -> 8.546293509e-11 | AG77: =IF(consumption_mix_calcs!AF37<>"",consumption_mix_calcs!AF37,"") -> 0 | AH77: =IF(consumption_mix_calcs!AG37<>"",consumption_mix_calcs!AG37,"") -> 0 | AI77: =IF(consumption_mix_calcs!AH37<>"",consumption_mix_calcs!AH37,"") -> 3.582590701e-09 | AJ77: =IF(consumption_mix_calcs!AI37<>"",consumption_mix_calcs!AI37,"") -> 0 | AK77: =IF(consumption_mix_calcs!AJ37<>"",consumption_mix_calcs!AJ37,"") -> 0 | AL77: =IF(consumption_mix_calcs!AK37<>"",consumption_mix_calcs!AK37,"") -> 1.045863152e-14 | AM77: =IF(consumption_mix_calcs!AL37<>"",consumption_mix_calcs!AL37,"") -> 0 | AN77: =IF(consumption_mix_calcs!AM37<>"",consumption_mix_calcs!AM37,"") -> 6.541683174e-11 | AO77: =IF(consumption_mix_calcs!AN37<>"",consumption_mix_calcs!AN37,"") -> 0 | AP77: =IF(consumption_mix_calcs!AO37<>"",consumption_mix_calcs!AO37,"") -> 2.707716351e-11 | AQ77: =IF(consumption_mix_calcs!AP37<>"",consumption_mix_calcs!AP37,"") -> 0 | AR77: =IF(consumption_mix_calcs!AQ37<>"",consumption_mix_calcs!AQ37,"") -> 0 | AS77: =IF(consumption_mix_calcs!AR37<>"",consumption_mix_calcs!AR37,"") -> 1.844905613e-12 | AT77: =IF(consumption_mix_calcs!AS37<>"",consumption_mix_calcs!AS37,"") -> 0 | AU77: =IF(consumption_mix_calcs!AT37<>"",consumption_mix_calcs!AT37,"") -> 0 | AV77: =IF(consumption_mix_calcs!AU37<>"",consumption_mix_calcs!AU37,"") -> 0 | AW77: =IF(consumption_mix_calcs!AV37<>"",consumption_mix_calcs!AV37,"") -> 0 | AX77: =IF(consumption_mix_calcs!AW37<>"",consumption_mix_calcs!AW37,"") -> 0 | AY77: =IF(consumption_mix_calcs!AX37<>"",consumption_mix_calcs!AX37,"") -> 5.843262565e-08 | AZ77: =IF(consumption_mix_calcs!AY37<>"",consumption_mix_calcs!AY37,"") -> 0 | BA77: =IF(consumption_mix_calcs!AZ37<>"",consumption_mix_calcs!AZ37,"") -> 0 | BB77: =IF(consumption_mix_calcs!BA37<>"",consumption_mix_calcs!BA37,"") -> 0 | BC77: =IF(consumption_mix_calcs!BB37<>"",consumption_mix_calcs!BB37,"") -> 0 | BD77: =IF(consumption_mix_calcs!BC37<>"",consumption_mix_calcs!BC37,"") -> 0 | BE77: =IF(consumption_mix_calcs!BD37<>"",consumption_mix_calcs!BD37,"") -> 0 | BF77: =IF(consumption_mix_calcs!BE37<>"",consumption_mix_calcs!BE37,"") -> 0 | BG77: =IF(consumption_mix_calcs!BF37<>"",consumption_mix_calcs!BF37,"") -> 5.252675707e-10 | BH77: =IF(consumption_mix_calcs!BG37<>"",consumption_mix_calcs!BG37,"") -> 0 | BI77: =IF(consumption_mix_calcs!BH37<>"",consumption_mix_calcs!BH37,"") -> 0 | BJ77: =IF(consumption_mix_calcs!BI37<>"",consumption_mix_calcs!BI37,"") -> 0 | BK77: =IF(consumption_mix_calcs!BJ37<>"",consumption_mix_calcs!BJ37,"") -> 0 | BL77: =IF(consumption_mix_calcs!BK37<>"",consumption_mix_calcs!BK37,"") -> 0 | BM77: =IF(consumption_mix_calcs!BL37<>"",consumption_mix_calcs!BL37,"") -> 0 | BN77: =IF(consumption_mix_calcs!BM37<>"",consumption_mix_calcs!BM37,"") -> 0 | BO77: =IF(consumption_mix_calcs!BN37<>"",consumption_mix_calcs!BN37,"") -> 0 | BP77: =IF(consumption_mix_calcs!BO37<>"",consumption_mix_calcs!BO37,"") -> 0 | BQ77: =IF(consumption_mix_calcs!BP37<>"",consumption_mix_calcs!BP37,"") -> 0 | BR77: =IF(consumption_mix_calcs!BQ37<>"",consumption_mix_calcs!BQ37,"") -> 0 | BS77: =IF(consumption_mix_calcs!BR37<>"",consumption_mix_calcs!BR37,"") -> 0 | BT77: =IF(consumption_mix_calcs!BS37<>"",consumption_mix_calcs!BS37,"") -> 3.139133312e-10 | BU77: =IF(consumption_mix_calcs!BT37<>"",consumption_mix_calcs!BT37,"") -> 4.012968938e-10 | BV77: =IF(consumption_mix_calcs!BU37<>"",consumption_mix_calcs!BU37,"") -> 2.16442432e-10 | BW77: =IF(consumption_mix_calcs!BV37<>"",consumption_mix_calcs!BV37,"") -> 0
A78: air | B78: 1,1-Dimethylhydrazine | C78: 4.305931017e-12 | D78: =IF(consumption_mix_calcs!C38<>"",consumption_mix_calcs!C38,"") -> 0 | E78: =IF(consumption_mix_calcs!D38<>"",consumption_mix_calcs!D38,"") -> 2.265450151e-13 | F78: =IF(consumption_mix_calcs!E38<>"",consumption_mix_calcs!E38,"") -> 0 | G78: =IF(consumption_mix_calcs!F38<>"",consumption_mix_calcs!F38,"") -> 0 | H78: =IF(consumption_mix_calcs!G38<>"",consumption_mix_calcs!G38,"") -> 1.202263828e-15 | I78: =IF(consumption_mix_calcs!H38<>"",consumption_mix_calcs!H38,"") -> 5.810820253e-14 | J78: =IF(consumption_mix_calcs!I38<>"",consumption_mix_calcs!I38,"") -> 2.395645959e-13 | K78: =IF(consumption_mix_calcs!J38<>"",consumption_mix_calcs!J38,"") -> 5.009166327e-14 | L78: =IF(consumption_mix_calcs!K38<>"",consumption_mix_calcs!K38,"") -> 2.212205655e-12 | M78: =IF(consumption_mix_calcs!L38<>"",consumption_mix_calcs!L38,"") -> 0 | N78: =IF(consumption_mix_calcs!M38<>"",consumption_mix_calcs!M38,"") -> 0 | O78: =IF(consumption_mix_calcs!N38<>"",consumption_mix_calcs!N38,"") -> 0 | P78: =IF(consumption_mix_calcs!O38<>"",consumption_mix_calcs!O38,"") -> 0 | Q78: =IF(consumption_mix_calcs!P38<>"",consumption_mix_calcs!P38,"") -> 0 | R78: =IF(consumption_mix_calcs!Q38<>"",consumption_mix_calcs!Q38,"") -> 0 | S78: =IF(consumption_mix_calcs!R38<>"",consumption_mix_calcs!R38,"") -> 0 | T78: =IF(consumption_mix_calcs!S38<>"",consumption_mix_calcs!S38,"") -> 0 | U78: =IF(consumption_mix_calcs!T38<>"",consumption_mix_calcs!T38,"") -> 0 | V78: =IF(consumption_mix_calcs!U38<>"",consumption_mix_calcs!U38,"") -> 0 | W78: =IF(consumption_mix_calcs!V38<>"",consumption_mix_calcs!V38,"") -> 0 | X78: =IF(consumption_mix_calcs!W38<>"",consumption_mix_calcs!W38,"") -> 2.577262195e-14 | Y78: =IF(consumption_mix_calcs!X38<>"",consumption_mix_calcs!X38,"") -> 0 | Z78: =IF(consumption_mix_calcs!Y38<>"",consumption_mix_calcs!Y38,"") -> 0 | AA78: =IF(consumption_mix_calcs!Z38<>"",consumption_mix_calcs!Z38,"") -> 1.12416192e-14 | AB78: =IF(consumption_mix_calcs!AA38<>"",consumption_mix_calcs!AA38,"") -> 0 | AC78: =IF(consumption_mix_calcs!AB38<>"",consumption_mix_calcs!AB38,"") -> 0 | AD78: =IF(consumption_mix_calcs!AC38<>"",consumption_mix_calcs!AC38,"") -> 0 | AE78: =IF(consumption_mix_calcs!AD38<>"",consumption_mix_calcs!AD38,"") -> 1.168367328e-15 | AF78: =IF(consumption_mix_calcs!AE38<>"",consumption_mix_calcs!AE38,"") -> 3.078031005e-14 | AG78: =IF(consumption_mix_calcs!AF38<>"",consumption_mix_calcs!AF38,"") -> 0 | AH78: =IF(consumption_mix_calcs!AG38<>"",consumption_mix_calcs!AG38,"") -> 0 | AI78: =IF(consumption_mix_calcs!AH38<>"",consumption_mix_calcs!AH38,"") -> 9.618393675e-13 | AJ78: =IF(consumption_mix_calcs!AI38<>"",consumption_mix_calcs!AI38,"") -> 0 | AK78: =IF(consumption_mix_calcs!AJ38<>"",consumption_mix_calcs!AJ38,"") -> 0 | AL78: =IF(consumption_mix_calcs!AK38<>"",consumption_mix_calcs!AK38,"") -> 0 | AM78: =IF(consumption_mix_calcs!AL38<>"",consumption_mix_calcs!AL38,"") -> 0 | AN78: =IF(consumption_mix_calcs!AM38<>"",consumption_mix_calcs!AM38,"") -> 2.016880035e-14 | AO78: =IF(consumption_mix_calcs!AN38<>"",consumption_mix_calcs!AN38,"") -> 0 | AP78: =IF(consumption_mix_calcs!AO38<>"",consumption_mix_calcs!AO38,"") -> 1.01030072e-14 | AQ78: =IF(consumption_mix_calcs!AP38<>"",consumption_mix_calcs!AP38,"") -> 0 | AR78: =IF(consumption_mix_calcs!AQ38<>"",consumption_mix_calcs!AQ38,"") -> 0 | AS78: =IF(consumption_mix_calcs!AR38<>"",consumption_mix_calcs!AR38,"") -> 4.034352592e-16 | AT78: =IF(consumption_mix_calcs!AS38<>"",consumption_mix_calcs!AS38,"") -> 0 | AU78: =IF(consumption_mix_calcs!AT38<>"",consumption_mix_calcs!AT38,"") -> 0 | AV78: =IF(consumption_mix_calcs!AU38<>"",consumption_mix_calcs!AU38,"") -> 0 | AW78: =IF(consumption_mix_calcs!AV38<>"",consumption_mix_calcs!AV38,"") -> 0 | AX78: =IF(consumption_mix_calcs!AW38<>"",consumption_mix_calcs!AW38,"") -> 0 | AY78: =IF(consumption_mix_calcs!AX38<>"",consumption_mix_calcs!AX38,"") -> 3.524409277e-14 | AZ78: =IF(consumption_mix_calcs!AY38<>"",consumption_mix_calcs!AY38,"") -> 0 | BA78: =IF(consumption_mix_calcs!AZ38<>"",consumption_mix_calcs!AZ38,"") -> 0 | BB78: =IF(consumption_mix_calcs!BA38<>"",consumption_mix_calcs!BA38,"") -> 0 | BC78: =IF(consumption_mix_calcs!BB38<>"",consumption_mix_calcs!BB38,"") -> 0 | BD78: =IF(consumption_mix_calcs!BC38<>"",consumption_mix_calcs!BC38,"") -> 0 | BE78: =IF(consumption_mix_calcs!BD38<>"",consumption_mix_calcs!BD38,"") -> 0 | BF78: =IF(consumption_mix_calcs!BE38<>"",consumption_mix_calcs!BE38,"") -> 0 | BG78: =IF(consumption_mix_calcs!BF38<>"",consumption_mix_calcs!BF38,"") -> 1.367096623e-13 | BH78: =IF(consumption_mix_calcs!BG38<>"",consumption_mix_calcs!BG38,"") -> 0 | BI78: =IF(consumption_mix_calcs!BH38<>"",consumption_mix_calcs!BH38,"") -> 0 | BJ78: =IF(consumption_mix_calcs!BI38<>"",consumption_mix_calcs!BI38,"") -> 0 | BK78: =IF(consumption_mix_calcs!BJ38<>"",consumption_mix_calcs!BJ38,"") -> 0 | BL78: =IF(consumption_mix_calcs!BK38<>"",consumption_mix_calcs!BK38,"") -> 0 | BM78: =IF(consumption_mix_calcs!BL38<>"",consumption_mix_calcs!BL38,"") -> 0 | BN78: =IF(consumption_mix_calcs!BM38<>"",consumption_mix_calcs!BM38,"") -> 0 | BO78: =IF(consumption_mix_calcs!BN38<>"",consumption_mix_calcs!BN38,"") -> 0 | BP78: =IF(consumption_mix_calcs!BO38<>"",consumption_mix_calcs!BO38,"") -> 0 | BQ78: =IF(consumption_mix_calcs!BP38<>"",consumption_mix_calcs!BP38,"") -> 0 | BR78: =IF(consumption_mix_calcs!BQ38<>"",consumption_mix_calcs!BQ38,"") -> 0 | BS78: =IF(consumption_mix_calcs!BR38<>"",consumption_mix_calcs!BR38,"") -> 0 | BT78: =IF(consumption_mix_calcs!BS38<>"",consumption_mix_calcs!BS38,"") -> 1.171270634e-13 | BU78: =IF(consumption_mix_calcs!BT38<>"",consumption_mix_calcs!BT38,"") -> 1.192357249e-13 | BV78: =IF(consumption_mix_calcs!BU38<>"",consumption_mix_calcs!BU38,"") -> 4.841954931e-14 | BW78: =IF(consumption_mix_calcs!BV38<>"",consumption_mix_calcs!BV38,"") -> 0
A79: air | B79: 1,2,3,4,6,7,8,9-Octachlorodibenzo-p-dioxin | C79: 1.444048439e-16 | D79: =IF(consumption_mix_calcs!C39<>"",consumption_mix_calcs!C39,"") -> 0 | E79: =IF(consumption_mix_calcs!D39<>"",consumption_mix_calcs!D39,"") -> 4.578526423e-18 | F79: =IF(consumption_mix_calcs!E39<>"",consumption_mix_calcs!E39,"") -> 0 | G79: =IF(consumption_mix_calcs!F39<>"",consumption_mix_calcs!F39,"") -> 0 | H79: =IF(consumption_mix_calcs!G39<>"",consumption_mix_calcs!G39,"") -> 3.509383531e-21 | I79: =IF(consumption_mix_calcs!H39<>"",consumption_mix_calcs!H39,"") -> 4.210265737e-19 | J79: =IF(consumption_mix_calcs!I39<>"",consumption_mix_calcs!I39,"") -> 1.473891068e-20 | K79: =IF(consumption_mix_calcs!J39<>"",consumption_mix_calcs!J39,"") -> 2.791226155e-18 | L79: =IF(consumption_mix_calcs!K39<>"",consumption_mix_calcs!K39,"") -> 8.068064592e-17 | M79: =IF(consumption_mix_calcs!L39<>"",consumption_mix_calcs!L39,"") -> 0 | N79: =IF(consumption_mix_calcs!M39<>"",consumption_mix_calcs!M39,"") -> 0 | O79: =IF(consumption_mix_calcs!N39<>"",consumption_mix_calcs!N39,"") -> 0 | P79: =IF(consumption_mix_calcs!O39<>"",consumption_mix_calcs!O39,"") -> 0 | Q79: =IF(consumption_mix_calcs!P39<>"",consumption_mix_calcs!P39,"") -> 0 | R79: =IF(consumption_mix_calcs!Q39<>"",consumption_mix_calcs!Q39,"") -> 0 | S79: =IF(consumption_mix_calcs!R39<>"",consumption_mix_calcs!R39,"") -> 0 | T79: =IF(consumption_mix_calcs!S39<>"",consumption_mix_calcs!S39,"") -> 0 | U79: =IF(consumption_mix_calcs!T39<>"",consumption_mix_calcs!T39,"") -> 0 | V79: =IF(consumption_mix_calcs!U39<>"",consumption_mix_calcs!U39,"") -> 0 | W79: =IF(consumption_mix_calcs!V39<>"",consumption_mix_calcs!V39,"") -> 0 | X79: =IF(consumption_mix_calcs!W39<>"",consumption_mix_calcs!W39,"") -> 0 | Y79: =IF(consumption_mix_calcs!X39<>"",consumption_mix_calcs!X39,"") -> 0 | Z79: =IF(consumption_mix_calcs!Y39<>"",consumption_mix_calcs!Y39,"") -> 0 | AA79: =IF(consumption_mix_calcs!Z39<>"",consumption_mix_calcs!Z39,"") -> 0 | AB79: =IF(consumption_mix_calcs!AA39<>"",consumption_mix_calcs!AA39,"") -> 0 | AC79: =IF(consumption_mix_calcs!AB39<>"",consumption_mix_calcs!AB39,"") -> 0 | AD79: =IF(consumption_mix_calcs!AC39<>"",consumption_mix_calcs!AC39,"") -> 0 | AE79: =IF(consumption_mix_calcs!AD39<>"",consumption_mix_calcs!AD39,"") -> 1.189184789e-21 | AF79: =IF(consumption_mix_calcs!AE39<>"",consumption_mix_calcs!AE39,"") -> 1.05685753e-18 | AG79: =IF(consumption_mix_calcs!AF39<>"",consumption_mix_calcs!AF39,"") -> 0 | AH79: =IF(consumption_mix_calcs!AG39<>"",consumption_mix_calcs!AG39,"") -> 0 | AI79: =IF(consumption_mix_calcs!AH39<>"",consumption_mix_calcs!AH39,"") -> 3.980106096e-17 | AJ79: =IF(consumption_mix_calcs!AI39<>"",consumption_mix_calcs!AI39,"") -> 0 | AK79: =IF(consumption_mix_calcs!AJ39<>"",consumption_mix_calcs!AJ39,"") -> 0 | AL79: =IF(consumption_mix_calcs!AK39<>"",consumption_mix_calcs!AK39,"") -> 0 | AM79: =IF(consumption_mix_calcs!AL39<>"",consumption_mix_calcs!AL39,"") -> 0 | AN79: =IF(consumption_mix_calcs!AM39<>"",consumption_mix_calcs!AM39,"") -> 8.32306962e-19 | AO79: =IF(consumption_mix_calcs!AN39<>"",consumption_mix_calcs!AN39,"") -> 0 | AP79: =IF(consumption_mix_calcs!AO39<>"",consumption_mix_calcs!AO39,"") -> 0 | AQ79: =IF(consumption_mix_calcs!AP39<>"",consumption_mix_calcs!AP39,"") -> 0 | AR79: =IF(consumption_mix_calcs!AQ39<>"",consumption_mix_calcs!AQ39,"") -> 0 | AS79: =IF(consumption_mix_calcs!AR39<>"",consumption_mix_calcs!AR39,"") -> 2.056240097e-20 | AT79: =IF(consumption_mix_calcs!AS39<>"",consumption_mix_calcs!AS39,"") -> 0 | AU79: =IF(consumption_mix_calcs!AT39<>"",consumption_mix_calcs!AT39,"") -> 0 | AV79: =IF(consumption_mix_calcs!AU39<>"",consumption_mix_calcs!AU39,"") -> 0 | AW79: =IF(consumption_mix_calcs!AV39<>"",consumption_mix_calcs!AV39,"") -> 0 | AX79: =IF(consumption_mix_calcs!AW39<>"",consumption_mix_calcs!AW39,"") -> 0 | AY79: =IF(consumption_mix_calcs!AX39<>"",consumption_mix_calcs!AX39,"") -> 0 | AZ79: =IF(consumption_mix_calcs!AY39<>"",consumption_mix_calcs!AY39,"") -> 0 | BA79: =IF(consumption_mix_calcs!AZ39<>"",consumption_mix_calcs!AZ39,"") -> 0 | BB79: =IF(consumption_mix_calcs!BA39<>"",consumption_mix_calcs!BA39,"") -> 0 | BC79: =IF(consumption_mix_calcs!BB39<>"",consumption_mix_calcs!BB39,"") -> 0 | BD79: =IF(consumption_mix_calcs!BC39<>"",consumption_mix_calcs!BC39,"") -> 0 | BE79: =IF(consumption_mix_calcs!BD39<>"",consumption_mix_calcs!BD39,"") -> 0 | BF79: =IF(consumption_mix_calcs!BE39<>"",consumption_mix_calcs!BE39,"") -> 0 | BG79: =IF(consumption_mix_calcs!BF39<>"",consumption_mix_calcs!BF39,"") -> 1.205703055e-17 | BH79: =IF(consumption_mix_calcs!BG39<>"",consumption_mix_calcs!BG39,"") -> 0 | BI79: =IF(consumption_mix_calcs!BH39<>"",consumption_mix_calcs!BH39,"") -> 0 | BJ79: =IF(consumption_mix_calcs!BI39<>"",consumption_mix_calcs!BI39,"") -> 0 | BK79: =IF(consumption_mix_calcs!BJ39<>"",consumption_mix_calcs!BJ39,"") -> 0 | BL79: =IF(consumption_mix_calcs!BK39<>"",consumption_mix_calcs!BK39,"") -> 0 | BM79: =IF(consumption_mix_calcs!BL39<>"",consumption_mix_calcs!BL39,"") -> 0 | BN79: =IF(consumption_mix_calcs!BM39<>"",consumption_mix_calcs!BM39,"") -> 0 | BO79: =IF(consumption_mix_calcs!BN39<>"",consumption_mix_calcs!BN39,"") -> 0 | BP79: =IF(consumption_mix_calcs!BO39<>"",consumption_mix_calcs!BO39,"") -> 0 | BQ79: =IF(consumption_mix_calcs!BP39<>"",consumption_mix_calcs!BP39,"") -> 0 | BR79: =IF(consumption_mix_calcs!BQ39<>"",consumption_mix_calcs!BQ39,"") -> 0 | BS79: =IF(consumption_mix_calcs!BR39<>"",consumption_mix_calcs!BR39,"") -> 0 | BT79: =IF(consumption_mix_calcs!BS39<>"",consumption_mix_calcs!BS39,"") -> 0 | BU79: =IF(consumption_mix_calcs!BT39<>"",consumption_mix_calcs!BT39,"") -> 7.085691691e-20 | BV79: =IF(consumption_mix_calcs!BU39<>"",consumption_mix_calcs!BU39,"") -> 2.075306062e-18 | BW79: =IF(consumption_mix_calcs!BV39<>"",consumption_mix_calcs!BV39,"") -> 0
A80: air | B80: 1,2,3,4,6,7,8,9-Octachlorodibenzofuran | C80: 9.259581917e-17 | D80: =IF(consumption_mix_calcs!C40<>"",consumption_mix_calcs!C40,"") -> 0 | E80: =IF(consumption_mix_calcs!D40<>"",consumption_mix_calcs!D40,"") -> 2.932369881e-18 | F80: =IF(consumption_mix_calcs!E40<>"",consumption_mix_calcs!E40,"") -> 0 | G80: =IF(consumption_mix_calcs!F40<>"",consumption_mix_calcs!F40,"") -> 0 | H80: =IF(consumption_mix_calcs!G40<>"",consumption_mix_calcs!G40,"") -> 2.247625026e-21 | I80: =IF(consumption_mix_calcs!H40<>"",consumption_mix_calcs!H40,"") -> 2.396039999e-19 | J80: =IF(consumption_mix_calcs!I40<>"",consumption_mix_calcs!I40,"") -> 9.439704779e-21 | K80: =IF(consumption_mix_calcs!J40<>"",consumption_mix_calcs!J40,"") -> 1.787672878e-18 | L80: =IF(consumption_mix_calcs!K40<>"",consumption_mix_calcs!K40,"") -> 5.167284718e-17 | M80: =IF(consumption_mix_calcs!L40<>"",consumption_mix_calcs!L40,"") -> 0 | N80: =IF(consumption_mix_calcs!M40<>"",consumption_mix_calcs!M40,"") -> 0 | O80: =IF(consumption_mix_calcs!N40<>"",consumption_mix_calcs!N40,"") -> 0 | P80: =IF(consumption_mix_calcs!O40<>"",consumption_mix_calcs!O40,"") -> 0 | Q80: =IF(consumption_mix_calcs!P40<>"",consumption_mix_calcs!P40,"") -> 0 | R80: =IF(consumption_mix_calcs!Q40<>"",consumption_mix_calcs!Q40,"") -> 0 | S80: =IF(consumption_mix_calcs!R40<>"",consumption_mix_calcs!R40,"") -> 0 | T80: =IF(consumption_mix_calcs!S40<>"",consumption_mix_calcs!S40,"") -> 0 | U80: =IF(consumption_mix_calcs!T40<>"",consumption_mix_calcs!T40,"") -> 0 | V80: =IF(consumption_mix_calcs!U40<>"",consumption_mix_calcs!U40,"") -> 0 | W80: =IF(consumption_mix_calcs!V40<>"",consumption_mix_calcs!V40,"") -> 0 | X80: =IF(consumption_mix_calcs!W40<>"",consumption_mix_calcs!W40,"") -> 0 | Y80: =IF(consumption_mix_calcs!X40<>"",consumption_mix_calcs!X40,"") -> 0 | Z80: =IF(consumption_mix_calcs!Y40<>"",consumption_mix_calcs!Y40,"") -> 0 | AA80: =IF(consumption_mix_calcs!Z40<>"",consumption_mix_calcs!Z40,"") -> 0 | AB80: =IF(consumption_mix_calcs!AA40<>"",consumption_mix_calcs!AA40,"") -> 0 | AC80: =IF(consumption_mix_calcs!AB40<>"",consumption_mix_calcs!AB40,"") -> 0 | AD80: =IF(consumption_mix_calcs!AC40<>"",consumption_mix_calcs!AC40,"") -> 0 | AE80: =IF(consumption_mix_calcs!AD40<>"",consumption_mix_calcs!AD40,"") -> 7.655993516e-22 | AF80: =IF(consumption_mix_calcs!AE40<>"",consumption_mix_calcs!AE40,"") -> 6.768765545e-19 | AG80: =IF(consumption_mix_calcs!AF40<>"",consumption_mix_calcs!AF40,"") -> 0 | AH80: =IF(consumption_mix_calcs!AG40<>"",consumption_mix_calcs!AG40,"") -> 0 | AI80: =IF(consumption_mix_calcs!AH40<>"",consumption_mix_calcs!AH40,"") -> 2.562399615e-17 | AJ80: =IF(consumption_mix_calcs!AI40<>"",consumption_mix_calcs!AI40,"") -> 0 | AK80: =IF(consumption_mix_calcs!AJ40<>"",consumption_mix_calcs!AJ40,"") -> 0 | AL80: =IF(consumption_mix_calcs!AK40<>"",consumption_mix_calcs!AK40,"") -> 0 | AM80: =IF(consumption_mix_calcs!AL40<>"",consumption_mix_calcs!AL40,"") -> 0 | AN80: =IF(consumption_mix_calcs!AM40<>"",consumption_mix_calcs!AM40,"") -> 5.330605619e-19 | AO80: =IF(consumption_mix_calcs!AN40<>"",consumption_mix_calcs!AN40,"") -> 0 | AP80: =IF(consumption_mix_calcs!AO40<>"",consumption_mix_calcs!AO40,"") -> 0 | AQ80: =IF(consumption_mix_calcs!AP40<>"",consumption_mix_calcs!AP40,"") -> 0 | AR80: =IF(consumption_mix_calcs!AQ40<>"",consumption_mix_calcs!AQ40,"") -> 0 | AS80: =IF(consumption_mix_calcs!AR40<>"",consumption_mix_calcs!AR40,"") -> 1.323811151e-20 | AT80: =IF(consumption_mix_calcs!AS40<>"",consumption_mix_calcs!AS40,"") -> 0 | AU80: =IF(consumption_mix_calcs!AT40<>"",consumption_mix_calcs!AT40,"") -> 0 | AV80: =IF(consumption_mix_calcs!AU40<>"",consumption_mix_calcs!AU40,"") -> 0 | AW80: =IF(consumption_mix_calcs!AV40<>"",consumption_mix_calcs!AV40,"") -> 0 | AX80: =IF(consumption_mix_calcs!AW40<>"",consumption_mix_calcs!AW40,"") -> 0 | AY80: =IF(consumption_mix_calcs!AX40<>"",consumption_mix_calcs!AX40,"") -> 0 | AZ80: =IF(consumption_mix_calcs!AY40<>"",consumption_mix_calcs!AY40,"") -> 0 | BA80: =IF(consumption_mix_calcs!AZ40<>"",consumption_mix_calcs!AZ40,"") -> 0 | BB80: =IF(consumption_mix_calcs!BA40<>"",consumption_mix_calcs!BA40,"") -> 0 | BC80: =IF(consumption_mix_calcs!BB40<>"",consumption_mix_calcs!BB40,"") -> 0 | BD80: =IF(consumption_mix_calcs!BC40<>"",consumption_mix_calcs!BC40,"") -> 0 | BE80: =IF(consumption_mix_calcs!BD40<>"",consumption_mix_calcs!BD40,"") -> 0 | BF80: =IF(consumption_mix_calcs!BE40<>"",consumption_mix_calcs!BE40,"") -> 0 | BG80: =IF(consumption_mix_calcs!BF40<>"",consumption_mix_calcs!BF40,"") -> 7.722063822e-18 | BH80: =IF(consumption_mix_calcs!BG40<>"",consumption_mix_calcs!BG40,"") -> 0 | BI80: =IF(consumption_mix_calcs!BH40<>"",consumption_mix_calcs!BH40,"") -> 0 | BJ80: =IF(consumption_mix_calcs!BI40<>"",consumption_mix_calcs!BI40,"") -> 0 | BK80: =IF(consumption_mix_calcs!BJ40<>"",consumption_mix_calcs!BJ40,"") -> 0 | BL80: =IF(consumption_mix_calcs!BK40<>"",consumption_mix_calcs!BK40,"") -> 0 | BM80: =IF(consumption_mix_calcs!BL40<>"",consumption_mix_calcs!BL40,"") -> 0 | BN80: =IF(consumption_mix_calcs!BM40<>"",consumption_mix_calcs!BM40,"") -> 0 | BO80: =IF(consumption_mix_calcs!BN40<>"",consumption_mix_calcs!BN40,"") -> 0 | BP80: =IF(consumption_mix_calcs!BO40<>"",consumption_mix_calcs!BO40,"") -> 0 | BQ80: =IF(consumption_mix_calcs!BP40<>"",consumption_mix_calcs!BP40,"") -> 0 | BR80: =IF(consumption_mix_calcs!BQ40<>"",consumption_mix_calcs!BQ40,"") -> 0 | BS80: =IF(consumption_mix_calcs!BR40<>"",consumption_mix_calcs!BR40,"") -> 0 | BT80: =IF(consumption_mix_calcs!BS40<>"",consumption_mix_calcs!BS40,"") -> 0 | BU80: =IF(consumption_mix_calcs!BT40<>"",consumption_mix_calcs!BT40,"") -> 4.538112699e-20 | BV80: =IF(consumption_mix_calcs!BU40<>"",consumption_mix_calcs!BU40,"") -> 1.336255974e-18 | BW80: =IF(consumption_mix_calcs!BV40<>"",consumption_mix_calcs!BV40,"") -> 0
